Workbook

Sheet ใส่ชื่อ
A1: เลขที่ | B1: StudentID | C1: เลขประจำตัว | D1: คำนำหน้า | E1: ชื่อ | F1: นามสกุล | G1: =COUNTIF(D2:D51,"ด.ช.") -> 0 | H1: =COUNTIF(D2:D51,"ด.ญ.") -> 0
A2: 1 | C2: 2836 | D2: เด็กชาย | E2: ธิติวัฒน์ | F2: ขุนสิทธิ์ | G2: =COUNTIF(D2:D51,"นาย") -> 0 | H2: =COUNTIF(D2:D51,"นางสาว") -> 0
A3: 2 | C3: 2840 | D3: เด็กชาย | E3: อภิชาติ | F3: ล่องสุวรรณ | G3: =COUNTIF(D2:D51,"เด็กชาย") -> 7 | H3: =COUNTIF(D2:D51,"เด็กหญิง") -> 13
A4: 3 | C4: 2842 | D4: เด็กชาย | E4: เมธัส | F4: ป้อมเมือง | G4: =SUM(G1:G3) -> 7 | H4: =SUM(H1:H3) -> 13 | L4: สรุปจำนวนนักเรียน | N4: ชาย | O4: =G4 -> 7 | P4: คน
A5: 4 | C5: 2844 | D5: เด็กหญิง | E5: พรณิสา | F5: เพ็ชรจั่น | N5: หญิง | O5: =H4 -> 13 | P5: คน
A6: 5 | C6: 2845 | D6: เด็กหญิง | E6: บุญฑริกา | F6: นิ่มอ่อน | N6: รวม | O6: =SUM(O4:O5) -> 20 | P6: คน
A7: 6 | C7: 2846 | D7: เด็กหญิง | E7: รัญชิดา | F7: นรเนตร
A8: 7 | C8: 2847 | D8: เด็กหญิง | E8: อริสา | F8: วีระวิทยกุญชร
A9: 8 | C9: 2855 | D9: เด็กหญิง | E9: ณัฐวรา | F9: ธนกิจชัยชนะ | K9: การบันทึกชื่อไฟล์ ปถ.05
A10: 9 | C10: 2856 | D10: เด็กชาย | E10: อักคเชน | F10: ดอกกระถิน
A11: 10 | C11: 2863 | D11: เด็กหญิง | E11: ณัฐณิชา | F11: วงศ์บุศรัตน์ | K11: 1. คัดลอกไฟล์ ปถ.05 ไปใช้ตามห้องที่สอน เพราะทำรายชื่อแล้ว เช่น
A12: 11 | C12: 2918 | D12: เด็กชาย | E12: ณัฐวุฒิ | F12: เปรมผล | L12: ป1-1 คือ ป.1 ห้อง 1
A13: 12 | C13: 2919 | D13: เด็กชาย | E13: ธนาธิป | F13: สังข์โพธิ์ | L13: ป2-1 คือ ป.2 ห้อง 1
A14: 13 | C14: 2946 | D14: เด็กหญิง | E14: น้ำหวาน | F14: พม่า | L14: ป3-1 คือ ป.3 ห้อง 1
A15: 14 | C15: 3010 | D15: เด็กหญิง | E15: ชลิตา | F15: ยมนา | L15: ป1-EP คือ ป.1 กลุ่มเรียนองค์ลิชโปรแกรม
A16: 15 | C16: 3043 | D16: เด็กหญิง | E16: ฉัตรพรรณราย | F16: แสงรัตนายนต์ | L16: ป2-วิทย์คณิต คือ ป.2 กลุ่มเน้นวิทย์-คณิต
A17: 16 | C17: 3084 | D17: เด็กชาย | E17: ธนวุฒิ | F17: - | L17: เป็นต้น
A18: 17 | C18: 3098 | D18: เด็กหญิง | E18: วรรณพิชชา | F18: จันไทย | K18: 2. เปลี่ยนชื่อไฟล์ ปถ.05 ซึ่งประกอบด้วย รหัสวิชา ชื่อห้องเรียน
A19: 18 | C19: 3111 | D19: เด็กหญิง | E19: มานาทิพย์ | F19: สมดี | K19: ชื่อผู้สอน เช่น
A20: 19 | C20: 3181 | D20: เด็กหญิง | E20: ชุติกาญจน์ | F20: เอี่ยมโสด | L20: ป1-1 เปลี่ยนเป็น ว11102 ป1-1 ครูสอนศรี ศรีสถาน
A21: 20 | D21: เด็กหญิง | E21: ฐิตาภรณ์ | F21: แย้มนาค | L21: ป3-2 เปลี่ยนเป็น ท13101 ป3-1 ครูสุนทร สอนคำไทย
G24: =#REF! ->  | H24: =#REF! -> 
G25: =#REF! ->  | H25: =#REF! -> 
G26: =#REF! ->  | H26: =#REF! -> 
G27: =#REF! ->  | H27: =#REF! -> 
G28: =#REF! ->  | H28: =#REF! -> 
G29: =#REF! ->  | H29: =#REF! -> 
G30: =#REF! ->  | H30: =#REF! -> 
G31: =#REF! ->  | H31: =#REF! -> 
G32: =#REF! ->  | H32: =#REF! -> 
G33: =#REF! ->  | H33: =#REF! -> 
G34: =#REF! ->  | H34: =#REF! -> 
G35: =#REF! ->  | H35: =#REF! -> 
G36: =#REF! ->  | H36: =#REF! -> 
G37: =#REF! ->  | H37: =#REF! -> 
G38: =#REF! ->  | H38: =#REF! -> 
G39: =#REF! ->  | H39: =#REF! -> 
G40: =#REF! ->  | H40: =#REF! -> 
G41: =#REF! ->  | H41: =#REF! -> 
G42: =#REF! ->  | H42: =#REF! -> 
G43: =#REF! ->  | H43: =#REF! -> 
G44: =#REF! ->  | H44: =#REF! -> 
G45: =#REF! ->  | H45: =#REF! -> 
G46: =#REF! ->  | H46: =#REF! -> 
G47: =#REF! ->  | H47: =#REF! -> 
G48: =#REF! ->  | H48: =#REF! -> 
G49: =#REF! ->  | H49: =#REF! -> 
G50: =#REF! ->  | H50: =#REF! -> 
G51: =#REF! ->  | H51: =#REF! -> 

Sheet ใบรายชื่อ
A2: =AB25&ปก!AL11 -> รายชื่อนักเรียนชั้นประถมศึกษาปีที่ 2/2
A3: =CONCATENATE(ปก!C5&" "&"สังกัด",IF(ปก!C8="","{{โปรดกรอกข้อมูลต้นสังกัด}}",ปก!C8)) -> โรงเรียนวัดสิงห์ทอง สังกัดองค์การบริหารส่วนจังหวัดนนทบุรี
A4: ="รายวิชา"&ปก!AC15&" "&"รหัสวิชา"&" "&ปก!AS15&" "&" "&"ปีการศึกษา"&" "&ปก!C16 -> รายวิชาหน้าที่พลเมือง รหัสวิชา - ปีการศึกษา 2565
A5: ="ครูประจำชั้น : "&ปก!AF19&""&ปก!AQ19&" จำนวนนักเรียน ชาย "&ใส่ชื่อ!O4&" คน หญิง "&ใส่ชื่อ!O5&" คน รวม "&ใส่ชื่อ!O6&" คน." -> ครูประจำชั้น : นางสาวดาราวัลย์ นิสัย นายฐิตวัฒน์ เคลื่อนคล้อย จำนวนนักเรียน ชาย 7 คน หญิง 13 คน รวม 20 คน.
A6: เลขที่ | B6: เลขประจำตัว | C6: ชื่อ-นามสกุล
A7: 1 | B7: =ใส่ชื่อ!C2 -> 2836 | C7: =CONCATENATE(ใส่ชื่อ!D2&ใส่ชื่อ!E2) -> เด็กชายธิติวัฒน์ | D7: =ใส่ชื่อ!F2 -> ขุนสิทธิ์
A8: 2 | B8: =ใส่ชื่อ!C3 -> 2840 | C8: =CONCATENATE(ใส่ชื่อ!D3&ใส่ชื่อ!E3) -> เด็กชายอภิชาติ | D8: =ใส่ชื่อ!F3 -> ล่องสุวรรณ
A9: 3 | B9: =ใส่ชื่อ!C4 -> 2842 | C9: =CONCATENATE(ใส่ชื่อ!D4&ใส่ชื่อ!E4) -> เด็กชายเมธัส | D9: =ใส่ชื่อ!F4 -> ป้อมเมือง
A10: 4 | B10: =ใส่ชื่อ!C5 -> 2844 | C10: =CONCATENATE(ใส่ชื่อ!D5&ใส่ชื่อ!E5) -> เด็กหญิงพรณิสา | D10: =ใส่ชื่อ!F5 -> เพ็ชรจั่น
A11: 5 | B11: =ใส่ชื่อ!C6 -> 2845 | C11: =CONCATENATE(ใส่ชื่อ!D6&ใส่ชื่อ!E6) -> เด็กหญิงบุญฑริกา | D11: =ใส่ชื่อ!F6 -> นิ่มอ่อน
A12: 6 | B12: =ใส่ชื่อ!C7 -> 2846 | C12: =CONCATENATE(ใส่ชื่อ!D7&ใส่ชื่อ!E7) -> เด็กหญิงรัญชิดา | D12: =ใส่ชื่อ!F7 -> นรเนตร
A13: 7 | B13: =ใส่ชื่อ!C8 -> 2847 | C13: =CONCATENATE(ใส่ชื่อ!D8&ใส่ชื่อ!E8) -> เด็กหญิงอริสา | D13: =ใส่ชื่อ!F8 -> วีระวิทยกุญชร
A14: 8 | B14: =ใส่ชื่อ!C9 -> 2855 | C14: =CONCATENATE(ใส่ชื่อ!D9&ใส่ชื่อ!E9) -> เด็กหญิงณัฐวรา | D14: =ใส่ชื่อ!F9 -> ธนกิจชัยชนะ
A15: 9 | B15: =ใส่ชื่อ!C10 -> 2856 | C15: =CONCATENATE(ใส่ชื่อ!D10&ใส่ชื่อ!E10) -> เด็กชายอักคเชน | D15: =ใส่ชื่อ!F10 -> ดอกกระถิน
A16: 10 | B16: =ใส่ชื่อ!C11 -> 2863 | C16: =CONCATENATE(ใส่ชื่อ!D11&ใส่ชื่อ!E11) -> เด็กหญิงณัฐณิชา | D16: =ใส่ชื่อ!F11 -> วงศ์บุศรัตน์
A17: 11 | B17: =ใส่ชื่อ!C12 -> 2918 | C17: =CONCATENATE(ใส่ชื่อ!D12&ใส่ชื่อ!E12) -> เด็กชายณัฐวุฒิ | D17: =ใส่ชื่อ!F12 -> เปรมผล
A18: 12 | B18: =ใส่ชื่อ!C13 -> 2919 | C18: =CONCATENATE(ใส่ชื่อ!D13&ใส่ชื่อ!E13) -> เด็กชายธนาธิป | D18: =ใส่ชื่อ!F13 -> สังข์โพธิ์
A19: 13 | B19: =ใส่ชื่อ!C14 -> 2946 | C19: =CONCATENATE(ใส่ชื่อ!D14&ใส่ชื่อ!E14) -> เด็กหญิงน้ำหวาน | D19: =ใส่ชื่อ!F14 -> พม่า
A20: 14 | B20: =ใส่ชื่อ!C15 -> 3010 | C20: =CONCATENATE(ใส่ชื่อ!D15&ใส่ชื่อ!E15) -> เด็กหญิงชลิตา | D20: =ใส่ชื่อ!F15 -> ยมนา
A21: 15 | B21: =ใส่ชื่อ!C16 -> 3043 | C21: =CONCATENATE(ใส่ชื่อ!D16&ใส่ชื่อ!E16) -> เด็กหญิงฉัตรพรรณราย | D21: =ใส่ชื่อ!F16 -> แสงรัตนายนต์
A22: 16 | B22: =ใส่ชื่อ!C17 -> 3084 | C22: =CONCATENATE(ใส่ชื่อ!D17&ใส่ชื่อ!E17) -> เด็กชายธนวุฒิ | D22: =ใส่ชื่อ!F17 -> -
A23: 17 | B23: =ใส่ชื่อ!C18 -> 3098 | C23: =CONCATENATE(ใส่ชื่อ!D18&ใส่ชื่อ!E18) -> เด็กหญิงวรรณพิชชา | D23: =ใส่ชื่อ!F18 -> จันไทย
A24: 18 | B24: =ใส่ชื่อ!C19 -> 3111 | C24: =CONCATENATE(ใส่ชื่อ!D19&ใส่ชื่อ!E19) -> เด็กหญิงมานาทิพย์ | D24: =ใส่ชื่อ!F19 -> สมดี
A25: 19 | B25: =ใส่ชื่อ!C20 -> 3181 | C25: =CONCATENATE(ใส่ชื่อ!D20&ใส่ชื่อ!E20) -> เด็กหญิงชุติกาญจน์ | D25: =ใส่ชื่อ!F20 -> เอี่ยมโสด | AB25: รายชื่อนักเรียน
A26: 20 | B26: =ใส่ชื่อ!C21 -> 0 | C26: =CONCATENATE(ใส่ชื่อ!D21&ใส่ชื่อ!E21) -> เด็กหญิงฐิตาภรณ์ | D26: =ใส่ชื่อ!F21 -> แย้มนาค
A27: 21 | B27: =ใส่ชื่อ!C22 -> 0 | C27: =CONCATENATE(ใส่ชื่อ!D22&ใส่ชื่อ!E22) ->  | D27: =ใส่ชื่อ!F22 -> 0
A28: 22 | B28: =ใส่ชื่อ!C23 -> 0 | C28: =CONCATENATE(ใส่ชื่อ!D23&ใส่ชื่อ!E23) ->  | D28: =ใส่ชื่อ!F23 -> 0
A29: 23 | B29: =ใส่ชื่อ!C24 -> 0 | C29: =CONCATENATE(ใส่ชื่อ!D24&ใส่ชื่อ!E24) ->  | D29: =ใส่ชื่อ!F24 -> 0
A30: 24 | B30: =ใส่ชื่อ!C25 -> 0 | C30: =CONCATENATE(ใส่ชื่อ!D25&ใส่ชื่อ!E25) ->  | D30: =ใส่ชื่อ!F25 -> 0
A31: 25 | B31: =ใส่ชื่อ!C26 -> 0 | C31: =CONCATENATE(ใส่ชื่อ!D26&ใส่ชื่อ!E26) ->  | D31: =ใส่ชื่อ!F26 -> 0
A32: 26 | B32: =ใส่ชื่อ!C27 -> 0 | C32: =CONCATENATE(ใส่ชื่อ!D27&ใส่ชื่อ!E27) ->  | D32: =ใส่ชื่อ!F27 -> 0
A33: 27 | B33: =ใส่ชื่อ!C28 -> 0 | C33: =CONCATENATE(ใส่ชื่อ!D28&ใส่ชื่อ!E28) ->  | D33: =ใส่ชื่อ!F28 -> 0
A34: 28 | B34: =ใส่ชื่อ!C29 -> 0 | C34: =CONCATENATE(ใส่ชื่อ!D29&ใส่ชื่อ!E29) ->  | D34: =ใส่ชื่อ!F29 -> 0
A35: 29 | B35: =ใส่ชื่อ!C30 -> 0 | C35: =CONCATENATE(ใส่ชื่อ!D30&ใส่ชื่อ!E30) ->  | D35: =ใส่ชื่อ!F30 -> 0
A36: 30 | B36: =ใส่ชื่อ!C31 -> 0 | C36: =CONCATENATE(ใส่ชื่อ!D31&ใส่ชื่อ!E31) ->  | D36: =ใส่ชื่อ!F31 -> 0
A37: 31 | B37: =ใส่ชื่อ!C32 -> 0 | C37: =CONCATENATE(ใส่ชื่อ!D32&ใส่ชื่อ!E32) ->  | D37: =ใส่ชื่อ!F32 -> 0
A38: 32 | B38: =ใส่ชื่อ!C33 -> 0 | C38: =CONCATENATE(ใส่ชื่อ!D33&ใส่ชื่อ!E33) ->  | D38: =ใส่ชื่อ!F33 -> 0
A39: 33 | B39: =ใส่ชื่อ!C34 -> 0 | C39: =CONCATENATE(ใส่ชื่อ!D34&ใส่ชื่อ!E34) ->  | D39: =ใส่ชื่อ!F34 -> 0
A40: 34 | B40: =ใส่ชื่อ!C35 -> 0 | C40: =CONCATENATE(ใส่ชื่อ!D35&ใส่ชื่อ!E35) ->  | D40: =ใส่ชื่อ!F35 -> 0
A41: 35 | B41: =ใส่ชื่อ!C36 -> 0 | C41: =CONCATENATE(ใส่ชื่อ!D36&ใส่ชื่อ!E36) ->  | D41: =ใส่ชื่อ!F36 -> 0
A42: 36 | B42: =ใส่ชื่อ!C37 -> 0 | C42: =CONCATENATE(ใส่ชื่อ!D37&ใส่ชื่อ!E37) ->  | D42: =ใส่ชื่อ!F37 -> 0
A43: 37 | B43: =ใส่ชื่อ!C38 -> 0 | C43: =CONCATENATE(ใส่ชื่อ!D38&ใส่ชื่อ!E38) ->  | D43: =ใส่ชื่อ!F38 -> 0
A44: 38 | B44: =ใส่ชื่อ!C39 -> 0 | C44: =CONCATENATE(ใส่ชื่อ!D39&ใส่ชื่อ!E39) ->  | D44: =ใส่ชื่อ!F39 -> 0
A45: 39 | B45: =ใส่ชื่อ!C40 -> 0 | C45: =CONCATENATE(ใส่ชื่อ!D40&ใส่ชื่อ!E40) ->  | D45: =ใส่ชื่อ!F40 -> 0
A46: 40 | B46: =ใส่ชื่อ!C41 -> 0 | C46: =CONCATENATE(ใส่ชื่อ!D41&ใส่ชื่อ!E41) ->  | D46: =ใส่ชื่อ!F41 -> 0
A47: 41 | B47: =ใส่ชื่อ!C42 -> 0 | C47: =CONCATENATE(ใส่ชื่อ!D42&ใส่ชื่อ!E42) ->  | D47: =ใส่ชื่อ!F42 -> 0
A48: 42 | B48: =ใส่ชื่อ!C43 -> 0 | C48: =CONCATENATE(ใส่ชื่อ!D43&ใส่ชื่อ!E43) ->  | D48: =ใส่ชื่อ!F43 -> 0
A49: 43 | B49: =ใส่ชื่อ!C44 -> 0 | C49: =CONCATENATE(ใส่ชื่อ!D44&ใส่ชื่อ!E44) ->  | D49: =ใส่ชื่อ!F44 -> 0
A50: 44 | B50: =ใส่ชื่อ!C45 -> 0 | C50: =CONCATENATE(ใส่ชื่อ!D45&ใส่ชื่อ!E45) ->  | D50: =ใส่ชื่อ!F45 -> 0
A51: 45 | B51: =ใส่ชื่อ!C46 -> 0 | C51: =CONCATENATE(ใส่ชื่อ!D46&ใส่ชื่อ!E46) ->  | D51: =ใส่ชื่อ!F46 -> 0
A52: 46 | B52: =ใส่ชื่อ!C47 -> 0 | C52: =CONCATENATE(ใส่ชื่อ!D47&ใส่ชื่อ!E47) ->  | D52: =ใส่ชื่อ!F47 -> 0
A53: 47 | B53: =ใส่ชื่อ!C48 -> 0 | C53: =CONCATENATE(ใส่ชื่อ!D48&ใส่ชื่อ!E48) ->  | D53: =ใส่ชื่อ!F48 -> 0
A54: 48 | B54: =ใส่ชื่อ!C49 -> 0 | C54: =CONCATENATE(ใส่ชื่อ!D49&ใส่ชื่อ!E49) ->  | D54: =ใส่ชื่อ!F49 -> 0
A55: 49 | B55: =ใส่ชื่อ!C50 -> 0 | C55: =CONCATENATE(ใส่ชื่อ!D50&ใส่ชื่อ!E50) ->  | D55: =ใส่ชื่อ!F50 -> 0
A56: 50 | B56: =ใส่ชื่อ!C51 -> 0 | C56: =CONCATENATE(ใส่ชื่อ!D51&ใส่ชื่อ!E51) ->  | D56: =ใส่ชื่อ!F51 -> 0

Sheet กำหนดอัตราส่วนคะแนน (hidden)
O2: =IF(ปก!C25="พื้นฐาน","กำหนดเกณฑ์การประเมินผ่านตัวชี้วัดของสถานศึกษา",IF(ปก!C25="เพิ่มเติม","กำหนดเกณฑ์การประเมินผ่านผลการเรียนรู้ของสถานศึกษา")) -> กำหนดเกณฑ์การประเมินผ่านตัวชี้วัดของสถานศึกษา
O4: =IF(ปก!C25="พื้นฐาน","ผู้เรียนต้องได้คะแนนแต่ละตัวชี้วัดคิดเป็นร้อยละ",IF(ปก!C25="เพิ่มเติม","ผู้เรียนต้องได้คะแนนแต่ละผลการเรียนรู้คิดเป็นร้อยละ")) -> ผู้เรียนต้องได้คะแนนแต่ละตัวชี้วัดคิดเป็นร้อยละ | U4: 50 | W4: ของคะแนนเต็ม
B9: =IF(ปก!C15=1,"คะแนนภาคเรียนที่ 1",IF(ปก!C15=2,"คะแนนภาคเรียนที่ 2")) -> FALSE
B11: กำหนดคะแนนระหว่างภาค
B13: =IF(ปก!C25="พื้นฐาน","คะแนนเก็บ(ตัวชี้วัด)",IF(ปก!C25="เพิ่มเติม","คะแนนเก็บ(ผลการเรียนรู้)")) -> คะแนนเก็บ(ตัวชี้วัด) | H13: =SUM(F13,F15) -> 0 | K13: คะแนนรวม ตลอดภาคเรียน ต้องได้=100
B15: คะแนนสอบกลางภาค
B18: กำหนดคะแนนสอบปลายภาค
B20: คะแนนสอบปรนัย | H20: =SUM(F20,F22) -> 0 | K20: =H13+H20 -> 0
B22: คะแนนสอบอัตนัย
A26: =IF(ปก!C25="พื้นฐาน","กำหนดคะแนนตัวชี้วัด",IF(ปก!C25="เพิ่มเติม","กำหนดคะแนนผลการเรียนรู้")) -> กำหนดคะแนนตัวชี้วัด
B28: =IF(ปก!C25="พื้นฐาน","ตัวชี้วัด",IF(ปก!C25="เพิ่มเติม","ผลการเรียนรู้")) -> ตัวชี้วัด | D28: สาระ | F28: =IF(ปก!C25="พื้นฐาน","",IF(ปก!C25="เพิ่มเติม","ผลการ")) ->  | H28: คะแนนเต็ม
B29: ที่ | D29: มาตรฐาน | F29: =IF(ปก!C25="พื้นฐาน","ตัวชี้วัด",IF(ปก!C25="เพิ่มเติม","เรียนรู้")) -> ตัวชี้วัด
B153: =IF(ปก!C25="พื้นฐาน","รวมตัวชี้วัด",IF(ปก!C25="เพิ่มเติม","รวมผลการเรียนรู้")) -> รวมตัวชี้วัด | H153: =COUNT(B31,B33,B35,B37,B39,B41,B43,B45,B47,B49,B51,B53,B55,B57,B59,B61,B63,B65,B67,B69,B71,B73,B75,B77,B79,B81,B83,B85,B87,B89,B91,B93,B95,B97,B99,B101,B103,B105,B107,B109,B111,B113,B115,B117,B119,B121,B123,B125,B127,B129,B131,B133,B135,B137,B139,B141,B143,B145,B147,B149) -> 0
D158: ท 1.1 | F158: ป.1/1 | Q158: ท 1.1 | S158: ม.1/1
D159: ท 2.1 | F159: ป.1/2 | Q159: ท 2.1 | S159: ม.1/2
D160: ท 3.1 | F160: ป.1/3 | Q160: ท 3.1 | S160: ม.1/3
D161: ท 4.1 | F161: ป.1/4 | Q161: ท 4.1 | S161: ม.1/4
D162: ท 5.1 | F162: ป.1/5 | Q162: ท 5.1 | S162: ม.1/5
D163: ค 1.1 | F163: ป.1/6 | Q163: ค 1.1 | S163: ม.1/6
D164: ค 1.2 | F164: ป.1/7 | Q164: ค 1.2 | S164: ม.1/7
D165: ค 1.3 | F165: ป.1/8 | Q165: ค 1.3 | S165: ม.1/8
D166: ค 1.4 | F166: ป.1/9 | Q166: ค 1.4 | S166: ม.1/9
D167: ค 2.1 | F167: ป.1/10 | Q167: ค 2.1 | S167: ม.1/10
D168: ค 2.2 | F168: ป.2/1 | Q168: ค 2.2 | S168: ม.2/1
D169: ค 3.1 | F169: ป.2/2 | Q169: ค 3.1 | S169: ม.2/2
D170: ค 3.2 | F170: ป.2/3 | Q170: ค 3.2 | S170: ม.2/3
D171: ค 4.1 | F171: ป.2/4 | Q171: ค 4.1 | S171: ม.2/4
D172: ค 4.2 | F172: ป.2/5 | Q172: ค 4.2 | S172: ม.2/5
D173: ค 5.1 | F173: ป.2/6 | Q173: ค 5.1 | S173: ม.2/6
D174: ค 5.2 | F174: ป.2/7 | Q174: ค 5.2 | S174: ม.2/7
D175: ค 5.3 | F175: ป.2/8 | Q175: ค 5.3 | S175: ม.2/8
D176: ค 6.1 | F176: ป.2/9 | Q176: ค 6.1 | S176: ม.2/9
D177: ว 1.1 | F177: ป.2/10 | Q177: ว 1.1 | S177: ม.2/10
D178: ว 1.2 | F178: ป.3/1 | Q178: ว 1.2 | S178: ม.3/1
D179: ว 2.1 | F179: ป.3/2 | Q179: ว 2.1 | S179: ม.3/2
D180: ว 2.2 | F180: ป.3/3 | Q180: ว 2.2 | S180: ม.3/3
D181: ว 3.1 | F181: ป.3/4 | Q181: ว 3.1 | S181: ม.3/4
D182: ว 3.2 | F182: ป.3/5 | Q182: ว 3.2 | S182: ม.3/5
D183: ว 4.1 | F183: ป.3/6 | Q183: ว 4.1 | S183: ม.3/6
D184: ว 4.2 | F184: ป.3/7 | Q184: ว 4.2 | S184: ม.3/7
D185: ว 5.1 | F185: ป.3/8 | Q185: ว 5.1 | S185: ม.3/8
D186: ว 6.1 | F186: ป.3/9 | Q186: ว 6.1 | S186: ม.3/9
D187: ว 7.1 | F187: ป.3/10 | Q187: ว 7.1 | S187: ม.3/10
D188: ว 7.2 | F188: ป.4/1 | Q188: ว 7.2 | S188: ม.4-6/1
D189: ว 8.1 | F189: ป.4/2 | Q189: ว 8.1 | S189: ม.4-6/2
D190: ส 1.1 | F190: ป.4/3 | Q190: ส 1.1 | S190: ม.4-6/3
D191: ส 1.2 | F191: ป.4/4 | Q191: ส 1.2 | S191: ม.4-6/4
D192: ส 2.1 | F192: ป.4/5 | Q192: ส 2.1 | S192: ม.4-6/5
D193: ส 2.2 | F193: ป.4/6 | Q193: ส 2.2 | S193: ม.4-6/6
D194: ส 3.1 | F194: ป.4/7 | Q194: ส 3.1 | S194: ม.4-6/7
D195: ส 3.2 | F195: ป.4/8 | Q195: ส 3.2 | S195: ม.4-6/8
D196: ส 4.1 | F196: ป.4/9 | Q196: ส 4.1 | S196: ม.4-6/9
D197: ส 4.2 | F197: ป.4/10 | Q197: ส 4.2 | S197: ม.4-6/10
D198: ส 4.2 | F198: ป.5/1 | Q198: ส 4.2 | S198: ม.4-6/11
D199: ส 5.1 | F199: ป.5/2 | Q199: ส 5.1 | S199: ม.4-6/12
D200: ส 5.2 | F200: ป.5/3 | Q200: ส 5.2 | S200: ม.4-6/13
D201: พ 1.1 | F201: ป.5/4 | Q201: พ 1.1 | S201: ม.4-6/14
D202: พ 2.1 | F202: ป.5/5 | Q202: พ 2.1 | S202: ม.4-6/15
D203: พ 3.1 | F203: ป.5/6 | Q203: พ 3.1 | S203: ม.4-6/16
D204: พ 3.2 | F204: ป.5/7 | Q204: พ 3.2 | S204: ม.4-6/17
D205: พ 4.1 | F205: ป.5/8 | Q205: พ 4.1 | S205: ม.4-6/18
D206: พ 5.1 | F206: ป.5/9 | Q206: พ 5.1 | S206: ม.4-6/19
D207: ศ. 1.1 | F207: ป.5/10 | Q207: ศ. 1.1 | S207: ม.4-6/20
D208: ศ 1.2 | F208: ม.6/1 | Q208: ศ 1.2 | S208: ม.4-6/21
D209: ศ 2.1 | F209: ม.6/2 | Q209: ศ 2.1 | S209: ม.4-6/22
D210: ศ 2.2 | F210: ม.6/3 | Q210: ศ 2.2 | S210: ม.4-6/23
D211: ศ 3.1 | F211: ม.6/4 | Q211: ศ 3.1 | S211: ม.4-6/24
D212: ศ 3.2 | F212: ม.6/5 | Q212: ศ 3.2 | S212: ม.4-6/25
D213: ง 1.1 | F213: ม.6/6 | Q213: ง 1.1 | S213: ม.4-6/26
D214: ง 2.1 | F214: ม.6/7 | Q214: ง 2.1 | S214: ม.4-6/27
D215: ง 3.1 | F215: ม.6/8 | Q215: ง 3.1 | S215: ม.4-6/28
D216: ง 4.1 | F216: ม.6/9 | Q216: ง 4.1 | S216: ม.4-6/29
D217: ต 1.1 | F217: ม.6/10 | Q217: ต 1.1 | S217: ม.4-6/30
D218: ต 1.2 | F218: ข้อ 1 | Q218: ต 1.2 | S218: ข้อ 1
D219: ต 1.3 | F219: ข้อ 2 | Q219: ต 1.3 | S219: ข้อ 2
D220: ต 2.1 | F220: ข้อ 3 | Q220: ต 2.1 | S220: ข้อ 3
D221: ต 2.2 | F221: ข้อ 4 | Q221: ต 2.2 | S221: ข้อ 4
D222: ต 3.1 | F222: ข้อ 5 | Q222: ต 3.1 | S222: ข้อ 5
D223: ต 4.1 | F223: ข้อ 6 | Q223: ต 4.1 | S223: ข้อ 6
D224: ต 4.2 | F224: ข้อ 7 | Q224: ต 4.2 | S224: ข้อ 7
F225: ข้อ 8 | Q225: - | S225: ข้อ 8
F226: ข้อ 9 | S226: ข้อ 9
F227: ข้อ 10 | S227: ข้อ 10
F228: ข้อ 11 | S228: ข้อ 11
F229: ข้อ 12 | S229: ข้อ 12
F230: ข้อ 13 | S230: ข้อ 13
F231: ข้อ 14 | S231: ข้อ 14
F232: ข้อ 15 | S232: ข้อ 15
F233: ข้อ 16 | S233: ข้อ 16
F234: ข้อ 17 | S234: ข้อ 17
F235: ข้อ 18 | S235: ข้อ 18
F236: ข้อ 19 | S236: ข้อ 19
F237: ข้อ 20 | S237: ข้อ 20
F238: ข้อ 21 | S238: ข้อ 21
F239: ข้อ 22 | S239: ข้อ 22
F240: ข้อ 23 | S240: ข้อ 23
F241: ข้อ 24 | S241: ข้อ 24
F242: ข้อ 25 | S242: ข้อ 25
F243: ข้อ 26 | S243: ข้อ 26
F244: ข้อ 27 | S244: ข้อ 27
F245: ข้อ 28 | S245: ข้อ 28
F246: ข้อ 29 | S246: ข้อ 29
F247: ข้อ 30 | S247: ข้อ 30
S248: ข้อ 31
S249: ข้อ 32
S250: ข้อ 33
S251: ข้อ 34
S252: ข้อ 35
S253: ข้อ 36
S254: ข้อ 37
S255: ข้อ 38
S256: ข้อ 39
S257: ข้อ 40

Sheet เวลาเรียน
A1: ="บันทึกเวลาเรียน รายวิชา"&ปก!C26&" "&"รหัสวิชา"&" "&ปก!C27 -> บันทึกเวลาเรียน รายวิชาหน้าที่พลเมือง รหัสวิชา - | M1: หน้า 1
A2: =ปก!AL11&" "&"ปีการศึกษา"&ปก!C16&" (เวลาเรียน"&" "&""&ปก!C28&" "&"ชั่วโมง : ปี)" -> ชั้นประถมศึกษาปีที่ 2/2 ปีการศึกษา2565 (เวลาเรียน 40 ชั่วโมง : ปี)
A3: เลขที่ | B3: เลขประจำตัว | C3: ชื่อ - ชื่อสกุล | D3: รวมเวลาเรียน ภาคเรียนที่ 1 (ชั่วโมง) | H3: รวมเวลาเรียน ตลอดปีการศึกษา(ชั่วโมง) | L3: มาเรียน ร้อยละ (เวลาเรียน ตลอดปี) | M3: สถานะ นักเรียน ปัจจุบัน
D6: มา | E6: ขาด | F6: ลา | G6: ป่วย | H6: มา | I6: ขาด | J6: ลา | K6: ป่วย
A9: =ใส่ชื่อ!A2 -> 1 | B9: =ใส่ชื่อ!C2 -> 2836 | C9: =CONCATENATE(ใส่ชื่อ!D2&ใส่ชื่อ!E2&" "&ใส่ชื่อ!F2) -> เด็กชายธิติวัฒน์ ขุนสิทธิ์ | D9: =IF(C9="","",IF(M9="","",IF(M9<>"ปกติ",0,$D$59-E9-F9-G9))) -> 20 | H9: =IF(C9="","",IF(M9="","",IF(M9<>"ปกติ",0,$H$59-I9-J9-K9))) -> 40 | L9: =IF(ปก!$C$28=0,"-",IF(M9="","",SUM(H9*100)/ปก!$C$28)) -> 100 | M9: ปกติ
A10: =ใส่ชื่อ!A3 -> 2 | B10: =ใส่ชื่อ!C3 -> 2840 | C10: =CONCATENATE(ใส่ชื่อ!D3&ใส่ชื่อ!E3&" "&ใส่ชื่อ!F3) -> เด็กชายอภิชาติ ล่องสุวรรณ | D10: 20 | H10: =IF(C10="","",IF(M10="","",IF(M10<>"ปกติ",0,$H$59-I10-J10-K10))) -> 40 | L10: =IF(ปก!$C$28=0,"-",IF(M10="","",SUM(H10*100)/ปก!$C$28)) -> 100 | M10: ปกติ
A11: =ใส่ชื่อ!A4 -> 3 | B11: =ใส่ชื่อ!C4 -> 2842 | C11: =CONCATENATE(ใส่ชื่อ!D4&ใส่ชื่อ!E4&" "&ใส่ชื่อ!F4) -> เด็กชายเมธัส ป้อมเมือง | D11: 20 | H11: 40 | L11: =IF(ปก!$C$28=0,"-",IF(M11="","",SUM(H11*100)/ปก!$C$28)) -> 100 | M11: ปกติ
A12: =ใส่ชื่อ!A5 -> 4 | B12: =ใส่ชื่อ!C5 -> 2844 | C12: =CONCATENATE(ใส่ชื่อ!D5&ใส่ชื่อ!E5&" "&ใส่ชื่อ!F5) -> เด็กหญิงพรณิสา เพ็ชรจั่น | D12: 20 | H12: 40 | L12: =IF(ปก!$C$28=0,"-",IF(M12="","",SUM(H12*100)/ปก!$C$28)) -> 100 | M12: ปกติ
A13: =ใส่ชื่อ!A6 -> 5 | B13: =ใส่ชื่อ!C6 -> 2845 | C13: =CONCATENATE(ใส่ชื่อ!D6&ใส่ชื่อ!E6&" "&ใส่ชื่อ!F6) -> เด็กหญิงบุญฑริกา นิ่มอ่อน | D13: 20 | H13: 40 | L13: =IF(ปก!$C$28=0,"-",IF(M13="","",SUM(H13*100)/ปก!$C$28)) -> 100 | M13: ปกติ
A14: =ใส่ชื่อ!A7 -> 6 | B14: =ใส่ชื่อ!C7 -> 2846 | C14: =CONCATENATE(ใส่ชื่อ!D7&ใส่ชื่อ!E7&" "&ใส่ชื่อ!F7) -> เด็กหญิงรัญชิดา นรเนตร | D14: 20 | H14: 40 | L14: =IF(ปก!$C$28=0,"-",IF(M14="","",SUM(H14*100)/ปก!$C$28)) -> 100 | M14: ปกติ
A15: =ใส่ชื่อ!A8 -> 7 | B15: =ใส่ชื่อ!C8 -> 2847 | C15: =CONCATENATE(ใส่ชื่อ!D8&ใส่ชื่อ!E8&" "&ใส่ชื่อ!F8) -> เด็กหญิงอริสา วีระวิทยกุญชร | D15: 20 | H15: 40 | L15: =IF(ปก!$C$28=0,"-",IF(M15="","",SUM(H15*100)/ปก!$C$28)) -> 100 | M15: ปกติ
A16: =ใส่ชื่อ!A9 -> 8 | B16: =ใส่ชื่อ!C9 -> 2855 | C16: =CONCATENATE(ใส่ชื่อ!D9&ใส่ชื่อ!E9&" "&ใส่ชื่อ!F9) -> เด็กหญิงณัฐวรา ธนกิจชัยชนะ | D16: 20 | H16: 40 | L16: =IF(ปก!$C$28=0,"-",IF(M16="","",SUM(H16*100)/ปก!$C$28)) -> 100 | M16: ปกติ
A17: =ใส่ชื่อ!A10 -> 9 | B17: =ใส่ชื่อ!C10 -> 2856 | C17: =CONCATENATE(ใส่ชื่อ!D10&ใส่ชื่อ!E10&" "&ใส่ชื่อ!F10) -> เด็กชายอักคเชน ดอกกระถิน | D17: 20 | H17: 40 | L17: =IF(ปก!$C$28=0,"-",IF(M17="","",SUM(H17*100)/ปก!$C$28)) -> 100 | M17: ปกติ
A18: =ใส่ชื่อ!A11 -> 10 | B18: =ใส่ชื่อ!C11 -> 2863 | C18: =CONCATENATE(ใส่ชื่อ!D11&ใส่ชื่อ!E11&" "&ใส่ชื่อ!F11) -> เด็กหญิงณัฐณิชา วงศ์บุศรัตน์ | D18: 20 | H18: 40 | L18: =IF(ปก!$C$28=0,"-",IF(M18="","",SUM(H18*100)/ปก!$C$28)) -> 100 | M18: ปกติ
A19: =ใส่ชื่อ!A12 -> 11 | B19: =ใส่ชื่อ!C12 -> 2918 | C19: =CONCATENATE(ใส่ชื่อ!D12&ใส่ชื่อ!E12&" "&ใส่ชื่อ!F12) -> เด็กชายณัฐวุฒิ เปรมผล | D19: 20 | H19: 40 | L19: =IF(ปก!$C$28=0,"-",IF(M19="","",SUM(H19*100)/ปก!$C$28)) -> 100 | M19: ปกติ
A20: =ใส่ชื่อ!A13 -> 12 | B20: =ใส่ชื่อ!C13 -> 2919 | C20: =CONCATENATE(ใส่ชื่อ!D13&ใส่ชื่อ!E13&" "&ใส่ชื่อ!F13) -> เด็กชายธนาธิป สังข์โพธิ์ | D20: 20 | H20: 40 | L20: =IF(ปก!$C$28=0,"-",IF(M20="","",SUM(H20*100)/ปก!$C$28)) -> 100 | M20: ปกติ
A21: =ใส่ชื่อ!A14 -> 13 | B21: =ใส่ชื่อ!C14 -> 2946 | C21: =CONCATENATE(ใส่ชื่อ!D14&ใส่ชื่อ!E14&" "&ใส่ชื่อ!F14) -> เด็กหญิงน้ำหวาน พม่า | D21: 20 | H21: 40 | L21: =IF(ปก!$C$28=0,"-",IF(M21="","",SUM(H21*100)/ปก!$C$28)) -> 100 | M21: ปกติ
A22: =ใส่ชื่อ!A15 -> 14 | B22: =ใส่ชื่อ!C15 -> 3010 | C22: =CONCATENATE(ใส่ชื่อ!D15&ใส่ชื่อ!E15&" "&ใส่ชื่อ!F15) -> เด็กหญิงชลิตา ยมนา | D22: 20 | H22: 40 | L22: =IF(ปก!$C$28=0,"-",IF(M22="","",SUM(H22*100)/ปก!$C$28)) -> 100 | M22: ปกติ
A23: =ใส่ชื่อ!A16 -> 15 | B23: =ใส่ชื่อ!C16 -> 3043 | C23: =CONCATENATE(ใส่ชื่อ!D16&ใส่ชื่อ!E16&" "&ใส่ชื่อ!F16) -> เด็กหญิงฉัตรพรรณราย แสงรัตนายนต์ | D23: 20 | H23: 40 | L23: =IF(ปก!$C$28=0,"-",IF(M23="","",SUM(H23*100)/ปก!$C$28)) -> 100 | M23: ปกติ
A24: =ใส่ชื่อ!A17 -> 16 | B24: =ใส่ชื่อ!C17 -> 3084 | C24: =CONCATENATE(ใส่ชื่อ!D17&ใส่ชื่อ!E17&" "&ใส่ชื่อ!F17) -> เด็กชายธนวุฒิ - | D24: 20 | H24: 40 | L24: =IF(ปก!$C$28=0,"-",IF(M24="","",SUM(H24*100)/ปก!$C$28)) -> 100 | M24: ปกติ
A25: =ใส่ชื่อ!A18 -> 17 | B25: =ใส่ชื่อ!C18 -> 3098 | C25: =CONCATENATE(ใส่ชื่อ!D18&ใส่ชื่อ!E18&" "&ใส่ชื่อ!F18) -> เด็กหญิงวรรณพิชชา จันไทย | D25: 20 | H25: 40 | L25: =IF(ปก!$C$28=0,"-",IF(M25="","",SUM(H25*100)/ปก!$C$28)) -> 100 | M25: ปกติ
A26: =ใส่ชื่อ!A19 -> 18 | B26: =ใส่ชื่อ!C19 -> 3111 | C26: =CONCATENATE(ใส่ชื่อ!D19&ใส่ชื่อ!E19&" "&ใส่ชื่อ!F19) -> เด็กหญิงมานาทิพย์ สมดี | D26: 20 | H26: 40 | L26: =IF(ปก!$C$28=0,"-",IF(M26="","",SUM(H26*100)/ปก!$C$28)) -> 100 | M26: ปกติ
A27: =ใส่ชื่อ!A20 -> 19 | B27: =ใส่ชื่อ!C20 -> 3181 | C27: =CONCATENATE(ใส่ชื่อ!D20&ใส่ชื่อ!E20&" "&ใส่ชื่อ!F20) -> เด็กหญิงชุติกาญจน์ เอี่ยมโสด | D27: 20 | H27: 40 | L27: =IF(ปก!$C$28=0,"-",IF(M27="","",SUM(H27*100)/ปก!$C$28)) -> 100 | M27: ปกติ
A28: =ใส่ชื่อ!A21 -> 20 | B28: =ใส่ชื่อ!C21 -> 0 | C28: =CONCATENATE(ใส่ชื่อ!D21&ใส่ชื่อ!E21&" "&ใส่ชื่อ!F21) -> เด็กหญิงฐิตาภรณ์ แย้มนาค | D28: 20 | H28: 40 | L28: =IF(ปก!$C$28=0,"-",IF(M28="","",SUM(H28*100)/ปก!$C$28)) -> 100 | M28: ปกติ
A29: =ใส่ชื่อ!A22 -> 0 | B29: =ใส่ชื่อ!C22 -> 0 | C29: =CONCATENATE(ใส่ชื่อ!D22&ใส่ชื่อ!E22&" "&ใส่ชื่อ!F22) ->  | L29: =IF(ปก!$C$28=0,"-",IF(M29="","",SUM(H29*100)/ปก!$C$28)) -> 
A30: =ใส่ชื่อ!A23 -> 0 | B30: =ใส่ชื่อ!C23 -> 0 | C30: =CONCATENATE(ใส่ชื่อ!D23&ใส่ชื่อ!E23&" "&ใส่ชื่อ!F23) ->  | L30: =IF(ปก!$C$28=0,"-",IF(M30="","",SUM(H30*100)/ปก!$C$28)) -> 
A31: =ใส่ชื่อ!A24 -> 0 | B31: =ใส่ชื่อ!C24 -> 0 | C31: =CONCATENATE(ใส่ชื่อ!D24&ใส่ชื่อ!E24&" "&ใส่ชื่อ!F24) ->  | L31: =IF(ปก!$C$28=0,"-",IF(M31="","",SUM(H31*100)/ปก!$C$28)) -> 
A32: =ใส่ชื่อ!A25 -> 0 | B32: =ใส่ชื่อ!C25 -> 0 | C32: =CONCATENATE(ใส่ชื่อ!D25&ใส่ชื่อ!E25&" "&ใส่ชื่อ!F25) ->  | L32: =IF(ปก!$C$28=0,"-",IF(M32="","",SUM(H32*100)/ปก!$C$28)) -> 
A33: =ใส่ชื่อ!A26 -> 0 | B33: =ใส่ชื่อ!C26 -> 0 | C33: =CONCATENATE(ใส่ชื่อ!D26&ใส่ชื่อ!E26&" "&ใส่ชื่อ!F26) ->  | L33: =IF(ปก!$C$28=0,"-",IF(M33="","",SUM(H33*100)/ปก!$C$28)) -> 
A34: =ใส่ชื่อ!A27 -> 0 | B34: =ใส่ชื่อ!C27 -> 0 | C34: =CONCATENATE(ใส่ชื่อ!D27&ใส่ชื่อ!E27&" "&ใส่ชื่อ!F27) ->  | L34: =IF(ปก!$C$28=0,"-",IF(M34="","",SUM(H34*100)/ปก!$C$28)) -> 
A35: =ใส่ชื่อ!A28 -> 0 | B35: =ใส่ชื่อ!C28 -> 0 | C35: =CONCATENATE(ใส่ชื่อ!D28&ใส่ชื่อ!E28&" "&ใส่ชื่อ!F28) ->  | L35: =IF(ปก!$C$28=0,"-",IF(M35="","",SUM(H35*100)/ปก!$C$28)) -> 
A36: =ใส่ชื่อ!A29 -> 0 | B36: =ใส่ชื่อ!C29 -> 0 | C36: =CONCATENATE(ใส่ชื่อ!D29&ใส่ชื่อ!E29&" "&ใส่ชื่อ!F29) ->  | L36: =IF(ปก!$C$28=0,"-",IF(M36="","",SUM(H36*100)/ปก!$C$28)) -> 
A37: =ใส่ชื่อ!A30 -> 0 | B37: =ใส่ชื่อ!C30 -> 0 | C37: =CONCATENATE(ใส่ชื่อ!D30&ใส่ชื่อ!E30&" "&ใส่ชื่อ!F30) ->  | L37: =IF(ปก!$C$28=0,"-",IF(M37="","",SUM(H37*100)/ปก!$C$28)) -> 
A38: =ใส่ชื่อ!A31 -> 0 | B38: =ใส่ชื่อ!C31 -> 0 | C38: =CONCATENATE(ใส่ชื่อ!D31&ใส่ชื่อ!E31&" "&ใส่ชื่อ!F31) ->  | L38: =IF(ปก!$C$28=0,"-",IF(M38="","",SUM(H38*100)/ปก!$C$28)) -> 
A39: =ใส่ชื่อ!A32 -> 0 | B39: =ใส่ชื่อ!C32 -> 0 | C39: =CONCATENATE(ใส่ชื่อ!D32&ใส่ชื่อ!E32&" "&ใส่ชื่อ!F32) ->  | L39: =IF(ปก!$C$28=0,"-",IF(M39="","",SUM(H39*100)/ปก!$C$28)) -> 
A40: =ใส่ชื่อ!A33 -> 0 | B40: =ใส่ชื่อ!C33 -> 0 | C40: =CONCATENATE(ใส่ชื่อ!D33&ใส่ชื่อ!E33&" "&ใส่ชื่อ!F33) ->  | L40: =IF(ปก!$C$28=0,"-",IF(M40="","",SUM(H40*100)/ปก!$C$28)) -> 
A41: =ใส่ชื่อ!A34 -> 0 | B41: =ใส่ชื่อ!C34 -> 0 | C41: =CONCATENATE(ใส่ชื่อ!D34&ใส่ชื่อ!E34&" "&ใส่ชื่อ!F34) ->  | L41: =IF(ปก!$C$28=0,"-",IF(M41="","",SUM(H41*100)/ปก!$C$28)) -> 
A42: =ใส่ชื่อ!A35 -> 0 | B42: =ใส่ชื่อ!C35 -> 0 | C42: =CONCATENATE(ใส่ชื่อ!D35&ใส่ชื่อ!E35&" "&ใส่ชื่อ!F35) ->  | L42: =IF(ปก!$C$28=0,"-",IF(M42="","",SUM(H42*100)/ปก!$C$28)) -> 
A43: =ใส่ชื่อ!A36 -> 0 | B43: =ใส่ชื่อ!C36 -> 0 | C43: =CONCATENATE(ใส่ชื่อ!D36&ใส่ชื่อ!E36&" "&ใส่ชื่อ!F36) ->  | L43: =IF(ปก!$C$28=0,"-",IF(M43="","",SUM(H43*100)/ปก!$C$28)) -> 
A44: =ใส่ชื่อ!A37 -> 0 | B44: =ใส่ชื่อ!C37 -> 0 | C44: =CONCATENATE(ใส่ชื่อ!D37&ใส่ชื่อ!E37&" "&ใส่ชื่อ!F37) ->  | L44: =IF(ปก!$C$28=0,"-",IF(M44="","",SUM(H44*100)/ปก!$C$28)) -> 
A45: =ใส่ชื่อ!A38 -> 0 | B45: =ใส่ชื่อ!C38 -> 0 | C45: =CONCATENATE(ใส่ชื่อ!D38&ใส่ชื่อ!E38&" "&ใส่ชื่อ!F38) ->  | L45: =IF(ปก!$C$28=0,"-",IF(M45="","",SUM(H45*100)/ปก!$C$28)) -> 
A46: =ใส่ชื่อ!A39 -> 0 | B46: =ใส่ชื่อ!C39 -> 0 | C46: =CONCATENATE(ใส่ชื่อ!D39&ใส่ชื่อ!E39&" "&ใส่ชื่อ!F39) ->  | L46: =IF(ปก!$C$28=0,"-",IF(M46="","",SUM(H46*100)/ปก!$C$28)) -> 
A47: =ใส่ชื่อ!A40 -> 0 | B47: =ใส่ชื่อ!C40 -> 0 | C47: =CONCATENATE(ใส่ชื่อ!D40&ใส่ชื่อ!E40&" "&ใส่ชื่อ!F40) ->  | L47: =IF(ปก!$C$28=0,"-",IF(M47="","",SUM(H47*100)/ปก!$C$28)) -> 
A48: =ใส่ชื่อ!A41 -> 0 | B48: =ใส่ชื่อ!C41 -> 0 | C48: =CONCATENATE(ใส่ชื่อ!D41&ใส่ชื่อ!E41&" "&ใส่ชื่อ!F41) ->  | L48: =IF(ปก!$C$28=0,"-",IF(M48="","",SUM(H48*100)/ปก!$C$28)) -> 
A49: =ใส่ชื่อ!A42 -> 0 | B49: =ใส่ชื่อ!C42 -> 0 | C49: =CONCATENATE(ใส่ชื่อ!D42&ใส่ชื่อ!E42&" "&ใส่ชื่อ!F42) ->  | L49: =IF(ปก!$C$28=0,"-",IF(M49="","",SUM(H49*100)/ปก!$C$28)) -> 
A50: =ใส่ชื่อ!A43 -> 0 | B50: =ใส่ชื่อ!C43 -> 0 | C50: =CONCATENATE(ใส่ชื่อ!D43&ใส่ชื่อ!E43&" "&ใส่ชื่อ!F43) ->  | L50: =IF(ปก!$C$28=0,"-",IF(M50="","",SUM(H50*100)/ปก!$C$28)) -> 
A51: =ใส่ชื่อ!A44 -> 0 | B51: =ใส่ชื่อ!C44 -> 0 | C51: =CONCATENATE(ใส่ชื่อ!D44&ใส่ชื่อ!E44&" "&ใส่ชื่อ!F44) ->  | L51: =IF(ปก!$C$28=0,"-",IF(M51="","",SUM(H51*100)/ปก!$C$28)) -> 
A52: =ใส่ชื่อ!A45 -> 0 | B52: =ใส่ชื่อ!C45 -> 0 | C52: =CONCATENATE(ใส่ชื่อ!D45&ใส่ชื่อ!E45&" "&ใส่ชื่อ!F45) ->  | L52: =IF(ปก!$C$28=0,"-",IF(M52="","",SUM(H52*100)/ปก!$C$28)) -> 
A53: =ใส่ชื่อ!A46 -> 0 | B53: =ใส่ชื่อ!C46 -> 0 | C53: =CONCATENATE(ใส่ชื่อ!D46&ใส่ชื่อ!E46&" "&ใส่ชื่อ!F46) ->  | L53: =IF(ปก!$C$28=0,"-",IF(M53="","",SUM(H53*100)/ปก!$C$28)) -> 
A54: =ใส่ชื่อ!A47 -> 0 | B54: =ใส่ชื่อ!C47 -> 0 | C54: =CONCATENATE(ใส่ชื่อ!D47&ใส่ชื่อ!E47&" "&ใส่ชื่อ!F47) ->  | L54: =IF(ปก!$C$28=0,"-",IF(M54="","",SUM(H54*100)/ปก!$C$28)) -> 
A55: =ใส่ชื่อ!A48 -> 0 | B55: =ใส่ชื่อ!C48 -> 0 | C55: =CONCATENATE(ใส่ชื่อ!D48&ใส่ชื่อ!E48&" "&ใส่ชื่อ!F48) ->  | L55: =IF(ปก!$C$28=0,"-",IF(M55="","",SUM(H55*100)/ปก!$C$28)) -> 
A56: =ใส่ชื่อ!A49 -> 0 | B56: =ใส่ชื่อ!C49 -> 0 | C56: =CONCATENATE(ใส่ชื่อ!D49&ใส่ชื่อ!E49&" "&ใส่ชื่อ!F49) ->  | L56: =IF(ปก!$C$28=0,"-",IF(M56="","",SUM(H56*100)/ปก!$C$28)) -> 
A57: =ใส่ชื่อ!A50 -> 0 | B57: =ใส่ชื่อ!C50 -> 0 | C57: =CONCATENATE(ใส่ชื่อ!D50&ใส่ชื่อ!E50&" "&ใส่ชื่อ!F50) ->  | L57: =IF(ปก!$C$28=0,"-",IF(M57="","",SUM(H57*100)/ปก!$C$28)) -> 
A58: =ใส่ชื่อ!A51 -> 0 | B58: =ใส่ชื่อ!C51 -> 0 | C58: =CONCATENATE(ใส่ชื่อ!D51&ใส่ชื่อ!E51&" "&ใส่ชื่อ!F51) ->  | L58: =IF(ปก!$C$28=0,"-",IF(M58="","",SUM(H58*100)/ปก!$C$28)) -> 
D59: =ปก!C28/2 -> 20 | H59: =ปก!C28 -> 40 | L59: =IF($F$1=0,"",SUM(D59*100)/$F$1) -> 

Sheet ปก
AX2: ปถ.05: | BA2: ป
B3: ข้อมูลพื้นฐานสถานศึกษา
B5: ชื่อสถานศึกษา : | C5: โรงเรียนวัดสิงห์ทอง
B6: อำเภอ : | C6: ปากเกร็ด | Y6: แบบบันทึกผลการพัฒนาคุณภาพผู้เรียนรายวิชา
B7: จังหวัด : | C7: นนทบุรี | Y7: =IF(C5="","",C5) -> โรงเรียนวัดสิงห์ทอง
B8: สังกัด (ชื่อ อปท.) : | C8: องค์การบริหารส่วนจังหวัดนนทบุรี | Y8: =IF(COUNTIF(C6:C8,""),"{{โปรดกรอกข้อมูลที่อยู่และต้นสังกัดให้ครบถ้วน}}","อำเภอ"&C6&" "&"จังหวัด"&C7&" สังกัด"&C8) -> อำเภอปากเกร็ด จังหวัดนนทบุรี สังกัดองค์การบริหารส่วนจังหวัดนนทบุรี
B10: ชื่อผู้อำนวยการฯ : | C10: นางชญาดา สุขวงค์ตานนท์ | AK10: ปีการศึกษา | AN10: =IF(C16="","",C16) -> 2565
B11: ชื่อรองผู้อำนวยการฯ : | C11: นางศรีประภา จีนฉาย | AL11: =IF(C21="","ชั้นประถมศึกษาปีที่{{โปรดกรอกข้อมูล}}","ชั้นประถมศึกษาปีที่ "&C21&"/"&C22) -> ชั้นประถมศึกษาปีที่ 2/2 | AN11: =IF(C18="","ระดับ{{โปรดเลือกข้อมูล}}","ระดับ"&ปก!C18) -> ระดับประถมศึกษาตอนต้น(ป.1-3)
B12: ตำแหน่งครูวัดผล : | C12: หัวหน้างานวัดผล | AG12: =IF(I23="","","แผนการเรียน") ->  | AN12: =IF(I23="","",I23) -> 
B13: ตำแหน่งครูฝ่ายวิชาการ :
C14: หัวหน้าฝ่ายวิชาการ | Z14: กลุ่มสาระการเรียนรู้ | AF14: =IF(C24="","{{โปรดเลือกกลุ่มสาระการเรียนรู้}}",C24) -> สังคมศึกษาศาสนาและวัฒนธรรม | AP14: =IF(C25="","สาระการเรียนรู้{{โปรดเลือกข้อมูล}}","สาระการเรียนรู้"&C25) -> สาระการเรียนรู้พื้นฐาน
B15: ภาคเรียนที่ | C15: 1 - 2 | R15: =IF(C31="","",IF(COUNTA(C31),",")) -> , | Z15: รายวิชา | AC15: =IF(C26="","{{โปรดกรอกข้อมูลรายวิชา}}",C26) -> หน้าที่พลเมือง | AP15: รหัสวิชา | AS15: =IF(C27="","{{โปรดกรอกรหัสวิชา}}",C27) -> -
B16: ปีการศึกษา : | C16: 2565 | Z16: เวลาเรียน | AC16: =C28 -> 40 | AE16: ชั่วโมงต่อปี | AP16: เวลาเรียน | AS16: =IF(AC16=0,"",IF(COUNTIF($AC$16,"40"),1,IF(COUNTIF($AC$16,"80"),2,IF(COUNTIF($AC$16,"120"),3,IF(COUNTIF($AC$16,"160"),4,IF(COUNTIF($AC$16,"200"),5)))))) -> 1 | AU16: ชั่วโมงต่อสัปดาห์
B17: ระดับ :
C18: ประถมศึกษาตอนต้น(ป.1-3) | AB18: ครูผู้สอน | AF18: =IF(C29="","{{โปรดกรอกข้อมูลครูผู้สอน}}",C29) -> นายฐิตวัฒน์ เคลื่อนคล้อย
AB19: ครูประจำชั้น | AF19: =IF(C30="","{{โปรดกรอกข้อมลครูประจำชั้น}}",C30&O30&" "&C31) -> นางสาวดาราวัลย์ นิสัย นายฐิตวัฒน์ เคลื่อนคล้อย
B21: ชั้นประถมศึกษาปีที่ : | C21: 2 | Z21: จำนวนนักเรียนทั้งหมด | AD21: สรุปผลการพัฒนาคุณภาพผู้เรียน | AV21: หมายเหตุ
B22: ห้อง / ทับ : | C22: 2 | AD22: จำนวนนักเรียนที่ได้ระดับผลการเรียน
B23: แผนการเรียน : | E23: ชื่อแผนการเรียน | AD23: 4 | AF23: 3.5 | AH23: 3 | AJ23: 2.5 | AL23: 2 | AN23: 1.5 | AP23: 1 | AR23: 0 | AT23: มส
B24: กลุ่มสาระการเรียนรู้ : | C24: สังคมศึกษาศาสนาและวัฒนธรรม | Z24: =SUM(AD24:AW24) -> 20 | AD24: =ประเมินผลการเรียนเทอม2!EA9 -> 8 | AF24: =ประเมินผลการเรียนเทอม2!EB9 -> 2 | AH24: =ประเมินผลการเรียนเทอม2!EC9 -> 8 | AJ24: =ประเมินผลการเรียนเทอม2!ED9 -> 2 | AL24: =ประเมินผลการเรียนเทอม2!EE9 -> 0 | AN24: =ประเมินผลการเรียนเทอม2!EF9 -> 0 | AP24: =ประเมินผลการเรียนเทอม2!EG9 -> 0 | AR24: =ประเมินผลการเรียนเทอม2!EH9 -> 0 | AT24: =ประเมินผลการเรียนเทอม2!EJ9 -> 0
B25: ประเภทวิชา : | C25: พื้นฐาน | Z25: คิดเป็นร้อยละ | AD25: =IF(AD24=0,"",(AD24*100)/$Z$24) -> 40 | AF25: =IF(AF24=0,"",(AF24*100)/$Z$24) -> 10 | AH25: =IF(AH24=0,"",(AH24*100)/$Z$24) -> 40 | AJ25: =IF(AJ24=0,"",(AJ24*100)/$Z$24) -> 10 | AL25: =IF(AL24=0,"",(AL24*100)/$Z$24) ->  | AN25: =IF(AN24=0,"",(AN24*100)/$Z$24) ->  | AP25: =IF(AP24=0,"",(AP24*100)/$Z$24) ->  | AR25: =IF(AR24=0,"",(AR24*100)/$Z$24) ->  | AT25: =IF(AT24=0,"",(AT24*100)/$Z$24) -> 
B26: ชื่อวิชา : | C26: หน้าที่พลเมือง | Z26: ร้อยละของนักเรียนที่ได้ผลการเรียนระดับดี(3) ขึ้นไป | AL26: =SUM(AD25:AI25) -> 90 | AN26: ผลการเรียนเฉลี่ยของรายวิชา | AX26: =IF(Z24=0,"",((AD24*4)+(AF24*3.5)+(AH24*3)+(AJ24*2.5)+(AL24*2)+(AN24*1.5)+(AP24*1)+(AR24*0))/Z24) -> 3.4
B27: รหัสวิชา : | C27: - | Z27: ร้อยละของนักเรียนที่ไม่ผ่านการประเมิน | AL27: =SUM(AR25:AW25) -> 0 | AN27: ส่วนเบี่ยงเบนมาตรฐาน | AX27: =IF(Z24=0,"",STDEV(ประเมินผลการเรียนเทอม2!DT7:DT56)) -> 0.5525062515
B28: เวลาเรียน | C28: 40 | G28: ชั่วโมงต่อปี | AC28: ผลการประเมินการอ่าน คิด วิเคราะห์ และเขียน | AO28: ผลการประเมินคุณลักษณะอันพึงประสงค์
B29: ชื่อครูผู้สอน : | C29: นายฐิตวัฒน์ เคลื่อนคล้อย | Z29: ผลการประเมิน | AC29: ดีเยี่ยม | AF29: ดี | AI29: ผ่าน | AL29: ไม่ผ่าน | AO29: ดีเยี่ยม | AR29: ดี | AU29: ผ่าน | AX29: ไม่ผ่าน
B30: ครูประจำชั้นคนที่ 1 : | C30: นางสาวดาราวัลย์ นิสัย | Z30: จำนวนที่ได้ | AC30: =ประเมินผลการเรียนเทอม2!CJ57 -> 17 | AF30: =ประเมินผลการเรียนเทอม2!CK57 -> 3 | AI30: =ประเมินผลการเรียนเทอม2!CL57 -> 0 | AL30: =ประเมินผลการเรียนเทอม2!CM57 -> 0 | AO30: =ประเมินผลการเรียนเทอม2!CR57 -> 17 | AR30: =ประเมินผลการเรียนเทอม2!CS57 -> 3 | AU30: =ประเมินผลการเรียนเทอม2!CT57 -> 0 | AX30: =ประเมินผลการเรียนเทอม2!CU57 -> 0
B31: ครูประจำชั้นคนที่ 2 : | C31: นายฐิตวัฒน์ เคลื่อนคล้อย | Z31: คิดเป็นร้อยละ | AC31: =IF(Z24=0,"",IF(AC30=0,"",(AC30*100)/$Z$24)) -> 85 | AF31: =IF(Z24=0,"",IF(AF30=0,"",(AF30*100)/$Z$24)) -> 15 | AI31: =IF(Z24=0,"",IF(AI30=0,"",(AI30*100)/$Z$24)) ->  | AL31: =IF(Z24=0,"",IF(AL30=0,"",(AL30*100)/$Z$24)) ->  | AO31: =IF(Z24=0,"",IF(AO30=0,"",(AO30*100)/$Z$24)) -> 85 | AR31: =IF(Z24=0,"",IF(AR30=0,"",(AR30*100)/$Z$24)) -> 15 | AU31: =IF(Z24=0,"",IF(AU30=0,"",(AU30*100)/$Z$24)) ->  | AX31: =IF(Z24=0,"",IF(AX30=0,"",(AX30*100)/$Z$24)) -> 
Y33: การอนุมัติผลการพัฒนาคุณภาพผู้เรียน
B34: ระบบจัดทำแบบบันทึกผลการพัฒนาคุณภาพผู้เรียนรายวิชา (ระดับประถมศึกษา) YEAR2565 ตามหลักสูตรแกนกลางการศึกษาขั้นพื้นฐาน 2551 สำหรับโอนผลการเรียนลงโปรแกรม Local School (ใช้รูปแบบการประเมินโดยเน้นการให้คะแนนชิ้นงาน/ภาระงาน รองรับนักเรียนไม่เกิน 50 คน ใช้กระดาษ A4) | Z34: ลงชื่อ..............................................ครูผู้สอน | AO34: ลงชื่อ...........................................หัวหน้ากลุ่มสาระการเรียนรู้
Z35: =IF(C12="","ลงชื่อ..............................................{{ใส่ข้อมูลครูวัดผล}}","ลงชื่อ.............................................."&C12) -> ลงชื่อ..............................................หัวหน้างานวัดผล | AO35: =IF(C14="","ลงชื่อ............................................{{กรอกข้อมูลฝ่ายวิชาการ}}","ลงชื่อ............................................"&C14) -> ลงชื่อ............................................หัวหน้าฝ่ายวิชาการ
Z37: เรียนเสนอเพื่อโปรดพิจารณา | AN37: การพิจารณา/สั่งการ
B38: จัดทำและพัฒนาโดย : นายพุทธรัตน์ นัยวิกุล ผู้อำนวยการสถานศึกษาโรงเรียนเทศบาล ๒ (วัดสมอราย) สังกัดเทศบาลนครนครราชสีมา (คณะทำงานกำหนดแนวทางการวัดและประเมินผล กรมส่งเสริมการปกครองท้องถิ่น) | Z38: m | AA38: เห็นควรควรอนุมัติ | AF38: m | AG38: เห็นควรนำไปปรับปรุงแก้ไข | AN38: m | AO38: อนุมัติ | AR38: m | AS38: ไม่อนุมัติ/ให้นำไปปรับปรุงแก้ไข
Z40: ลงชื่อ...........................................หัวหน้าฝ่ายวิชาการ | AN40: ลงชื่อ...........................................ผู้อำนวยการสถานศึกษา
B41: สอบถามและเสนอแนะได้ที่ : โทรศัพท์ : 089 846 7383 Line ID : Rongpum facebook : puttarat naivikul / facebook : แบบปถ.05 โรงเรียนสังกัด อปท. | Z41: . | AA41: =IF(C11="","{{กรอกชื่อ-สกุลรองผู้อำนวยการ}}","("&C11&")") -> (นางศรีประภา จีนฉาย) | AO41: =IF(C10="","{{กรอกชื่อ-สกุลผู้อำนวยการ}}","("&C10&")") -> (นางชญาดา สุขวงค์ตานนท์)
B42: ="ม."&C21&"0"&C22 -> ม.202 | C42: =IF(C23="มัธยมศึกษาตอนต้นทั่วไป",1,IF(C23="วิทย์-คณิต",1,IF(C23="ภาษา-สังคม",2,IF(C23="วิชาชีพ(หลักสูตรคู่ขนาน)",3)))) -> FALSE | D42: UPDATE : 18 Sep 2022 สงวนลิขสิทธิ์@2022 | AA42: ........../.........../.......... | AO42: ........../.........../..........
B46: ลงชื่อ...........................................รองผู้อำนวยการสถานศึกษา | M46: ลงชื่อ...........................................ผู้อำนวยการสถานศึกษา
B47: ลงชื่อ...........................................ปฏิบัติหน้าที่รองผู้อำนวยการฯ | M47: ลงชื่อ...........................................รก.ผู้อำนวยการสถานศึกษา
B48: ลงชื่อ...........................................รักษาการรองผู้อำนวยการฯ
B49: ลงชื่อ...........................................ผู้ช่วยผู้อำนวยการฯ
B50: ลงชื่อ...........................................หัวหน้าฝ่ายวิชาการ
B51: ลงชื่อ...........................................หัวหน้าฝ่ายบริหารวิชาการ
B52: ลงชื่อ...........................................หัวหน้ากลุ่มวิชาการ
B53: ลงชื่อ...........................................หัวหน้ากลุ่มบริหารวิชาการ
B54: ลงชื่อ...........................................ผู้ตรวจสอบ

Sheet ประเมินผลการเรียนเทอม1
D1: อัตราส่วนคะแนน = | E1: 70 : 30 | F1: ="คะแนนประเมินผลสัมฤทธิ์ ภาคเรียนที่1 "&" วิชา "&ปก!AS15&" "&"ชั้น ป."&ปก!$C$21&"/"&ปก!$C$22&" หน้า 2" -> คะแนนประเมินผลสัมฤทธิ์ ภาคเรียนที่1 วิชา - ชั้น ป.2/2 หน้า 2 | AC1: ="คะแนนประเมินผลสัมฤทธิ์ ภาคเรียนที่1 "&" วิชา "&ปก!AS15&" "&"ชั้น ป."&ปก!$C$21&"/"&ปก!$C$22&" หน้า 10" -> คะแนนประเมินผลสัมฤทธิ์ ภาคเรียนที่1 วิชา - ชั้น ป.2/2 หน้า 10 | AZ1: ="คะแนนประเมินผลสัมฤทธิ์ ภาคเรียนที่1 "&" วิชา "&ปก!AS15&" "&"ชั้น ป."&ปก!$C$21&"/"&ปก!$C$22&" หน้า 11" -> คะแนนประเมินผลสัมฤทธิ์ ภาคเรียนที่1 วิชา - ชั้น ป.2/2 หน้า 11 | BR1: ="คะแนนประเมินผลสัมฤทธิ์ ภาคเรียนที่1 "&" วิชา "&ปก!AS15&" "&"ชั้น ป."&ปก!$C$21&"/"&ปก!$C$22&" หน้า 3" -> คะแนนประเมินผลสัมฤทธิ์ ภาคเรียนที่1 วิชา - ชั้น ป.2/2 หน้า 3 | CJ1: ="คะแนนประเมินผลสัมฤทธิ์ ภาคเรียนที่1 "&" วิชา "&ปก!AS15&" "&"ชั้น ป."&ปก!$C$21&"/"&ปก!$C$22&" หน้า 4" -> คะแนนประเมินผลสัมฤทธิ์ ภาคเรียนที่1 วิชา - ชั้น ป.2/2 หน้า 4 | DC1: ระหว่างภาค | DG1: ="ผลสัมฤทธิ์ทางการเรียน ภาคเรียนที่1 "&" วิชา "&ปก!AS15&" "&"ชั้น ป."&ปก!$C$21&"/"&ปก!$C$22&" หน้า 5" -> ผลสัมฤทธิ์ทางการเรียน ภาคเรียนที่1 วิชา - ชั้น ป.2/2 หน้า 5
Z2: =กำหนดอัตราส่วนคะแนน!B41 -> 0 | AW2: =กำหนดอัตราส่วนคะแนน!Y41 -> 0 | BO2: =กำหนดอัตราส่วนคะแนน!BQ41 -> 0 | CG2: =กำหนดอัตราส่วนคะแนน!CN41 -> 0 | CO2: =กำหนดอัตราส่วนคะแนน!AH41 -> 0
C3: เลข ประจำ ตัว นักเรียน | D3: ชื่อ - นามสกุล | E3: การประเมิน | F3: คะแนน ชิ้นงาน ภาระงาน การสอบ การวัดผล ระหว่างภาค | Z3: คะแนนรวม | AB3: คะแนนเต็ม | AC3: =IF(ปก!$C$25="","{{ข้อมูล ERROR โปรดกลับไปเลือกประเภทวิชาที่หน้าปก}}",IF(ปก!$C$25="พื้นฐาน","การประเมินตัวชี้วัด หลังกลางภาค",IF(ปก!$C$25="เพิ่มเติม","การประเมินผลการเรียนรู้ หลังกลางภาค"))) -> การประเมินตัวชี้วัด หลังกลางภาค | AW3: คะแนนรวม | AY3: คะแนนเต็ม | AZ3: การประเมินผลกลางภาคเรียน(สอบกลางภาค) | BO3: คะแนนรวม | BQ3: คะแนนเต็ม | BR3: การประเมินผลปลายภาคเรียน(สอบปลายภาคเรียน) | CG3: คะแนนรวม | CI3: คะแนนเต็ม | CJ3: การอ่าน คิดวิเคราะห์ และเขียน | CO3: คะแนนรวม | CP3: คะแนนเต็ม | CQ3: ระดับคุณภาพ | CR3: คุณลักษณะอันพึงประสงค์ | DB3: ระดับคุณภาพ | DC3: ก่อนกลางภาค | DD3: หลังกลางภาค | DE3: สอบกลางภาค | DF3: สอบแก้ตัว | DG3: ระหว่างภาค 1 | DI3: สอบปลายภาค 1 | DJ3: สอบแก้ตัว(ซ่อม) | DL3: รวมตลอดภาคเรียน | DN3: ลงคะแนน นร.ย้ายเข้า | DP3: คะแนนภาคเรียนที่ 1 | DR3: สถานะ นักเรียน ปัจจุบัน
E4: ชิ้นงาน/ภาระงาน/การสอบ | F4: งาน | G4: งาน | H4: งาน | I4: งาน | J4: งาน | K4: งาน | W4: 18 | X4: 19 | Y4: 20 | AT4: 18 | AU4: 19 | AV4: 20 | CJ4: 1 | CK4: 2 | CL4: 3 | CM4: 4 | CN4: 5 | CR4: 1 | CS4: 2 | CT4: 3 | CU4: 4 | CV4: 5 | CW4: 6 | CX4: 7 | CY4: 8 | CZ4: 9 | DA4: 10
F5: ที่ 1 | G5: ที่ 2 | H5: ที่ 3 | I5: ที่ 4 | J5: ที่ 5 | K5: ที่ 6 | AA5: =$Z$6/$AB$6 -> 1 | AW5: =SUM(AC5,AD5,AE5,AF5,AG5,AH5,AI5,AJ5,AK5,AL5,AM5,AN5,AO5,AP5,AQ5,AR5,AS5,AT5,AU5,AV5) -> 0 | AX5: =$AW$5/$AY$5 ->  | BO5: =SUM(AZ5,BA5,BB5,BC5,BD5,BE5,BF5,BG5,BH5,BI5,BJ5,BK5,BL5,BM5,BN5) -> 0 | BP5: =$BO$5/$BQ$5 ->  | CH5: =$CG$6/$CI$6 -> 1 | CJ5: 3 | CK5: 3 | CL5: 3 | CM5: 3 | CN5: 3 | CO5: =SUM(CJ5,CK5,CL5,CM5,CN5) -> 15 | CP5: 3 | CR5: 3 | CS5: 3 | CT5: 3 | CU5: 3 | CV5: 3 | CW5: 3 | CX5: 3 | CY5: 3 | CZ5: 3 | DA5: 3
E6: คะแนน | F6: 10 | G6: 10 | H6: 10 | I6: 10 | J6: 10 | K6: 20 | Z6: =SUM(F6,G6,H6,I6,J6,K6,L6,M6,N6,O6,P6,Q6,R6,S6,T6,U6,V6,W6,X6,Y6) -> 70 | AB6: =IF(E1="50 : 50",50,IF(E1="60 : 40",60,IF(E1="70 : 30",70,IF(E1="80 : 20",80,IF(E1="90 : 10",90))))) -> 70 | BR6: 30 | CG6: =SUM(BR6,BS6,BT6,BU6,BV6,BW6,BX6,BY6,BZ6,CA6,CB6,CC6,CD6,CE6,CF6) -> 30 | CI6: =IF(E1="50 : 50",50,IF(E1="60 : 40",40,IF(E1="70 : 30",30,IF(E1="80 : 20",20,IF(E1="90 : 10",10))))) -> 30 | DC6: =AB5 -> 0 | DD6: =AY5 -> 0 | DE6: =BQ5 -> 0 | DG6: =AB6 -> 70 | DI6: =CI6 -> 30 | DJ6: =DI6/2 -> 15 | DL6: =IF(DG6+DI6<>100,"ERROR",SUM(DG6,DI6)) -> 100 | DN6: 100 | DP6: =DL6/2 -> 50
A7: 1 | C7: =CONCATENATE(ใส่ชื่อ!C2) -> 2836 | D7: =CONCATENATE(ใส่ชื่อ!D2&ใส่ชื่อ!E2&" "&ใส่ชื่อ!F2) -> เด็กชายธิติวัฒน์ ขุนสิทธิ์ | E7: =ใส่ชื่อ!A2 -> 1 | F7: 10 | G7: 10 | H7: 8 | I7: 9 | J7: 8 | K7: 13 | Z7: =IF(ใส่ชื่อ!D2="","",IF(DR7="ปกติ",SUM(F7,G7,H7,I7,J7,K7,L7,M7,N7,O7,P7,Q7,R7,S7,T7,U7,V7,W7,X7,Y7),"-")) -> 58 | AB7: =IF(Z7="","",IF(Z7="-","-",IF(Z7=0,"",IF($Z$6=0,"",ROUND(Z7/$AA$5,0))))) -> 58 | AW7: =IF(ใส่ชื่อ!D2="","",IF(COUNTIF(AC7:AS7,0),"มผ",IF(DR7="ปกติ",SUM(AC7,AD7,AE7,AF7,AG7,AH7,AI7,AJ7,AK7,AL7,AM7,AN7,AO7,AP7,AQ7,AR7,AS7),"-"))) -> 0 | AY7: =IF(AW7="","",IF(AW7="-","-",IF(AW7="มผ","มผ",IF(AW7=0,"",IF($AW$5=0,"",ROUND(AW7/$AX$5,0)))))) ->  | BO7: =IF(ใส่ชื่อ!D2="","",IF(COUNTIF(AZ7:BN7,0),"มผ",IF(DR7="ปกติ",SUM(AZ7,BA7,BB7,BC7,BD7,BE7,BF7,BG7,BH7,BI7,BJ7,BK7,BL7,BM7,BN7),"-"))) -> 0 | BQ7: =IF(BO7="","",IF(BO7="-","-",IF(BO7="มผ","มผ",IF(BO7=0,"",IF($BO$5=0,"",ROUND(BO7/$BP$5,0)))))) ->  | BR7: 22 | CG7: =IF(ใส่ชื่อ!D2="","",IF(DR7="ปกติ",SUM(BR7,BS7,BT7,BU7,BV7,BW7,BX7,BY7,BZ7,CA7,CB7,CC7,CD7,CE7,CF7),"-")) -> 22 | CI7: =IF(CG7="","",IF(CG7="-","-",IF(CG7=0,"",IF($CG$6=0,"",ROUND(CG7/$CH$5,0))))) -> 22 | CJ7: 3 | CK7: 3 | CL7: 3 | CM7: 3 | CN7: 3 | CO7: =IF(ใส่ชื่อ!D2="","",IF(CJ7="","",(IF(CK7="","",(IF(CL7="","",(IF(CM7="","",(IF(CN7="","",(SUM(CJ7:CN7)))))))))))) -> 15 | CP7: =IF(CO7="","",IF(CO7="-","-",IF(CO7="ร","ร",IF(CO7=0,0,IF($CO$5=0,"",ROUND(CO7/5,0)))))) -> 3 | CQ7: =IF(CP7="","",(IF(CP7>=2.5,"ดย",(IF(CP7>=1.5,"ด",(IF(CP7>=0.6,"ผ",(IF(CP7<=0.4,"มผ"))))))))) -> ดย | CR7: 3 | CS7: 3 | CT7: 3 | CU7: 3 | CV7: 3 | CW7: 3 | CX7: 3 | CY7: 3 | CZ7: 3 | DA7: 3 | DB7: =IF(CR7="","",(IF(CS7="","",(IF(CT7="","",(IF(CU7="","",(IF(CV7="","",(IF(CW7="","",(IF(CX7="","",(IF(CY7="","",IF(CZ7="","",(IF(DA7="","",(IF(COUNTIF(CR7:DA7,0)>0,"มผ",IF(AND(COUNTIF(CR7:DA7,3)>=6,COUNTIF(CR7:DA7,"<2")=0),"ดย",IF(OR(AND(AND(COUNTIF(CR7:DA7,3)>=1,COUNTIF(CR7:DA7,3)<=5),COUNTIF(CR7:DA7,"<2")=0),COUNTIF(CR7:DA7,2)=10,AND(COUNTIF(CR7:DA7,">=2")>=6,COUNTIF(CR7:DA7,1)>0)),"ด",IF(OR(COUNTIF(CR7:DA7,1)=10,AND(COUNTIF(CR7:DA7,">=2")>=1,COUNTIF(CR7:DA7,">=2")<=6)),"ผ","มผ"))))))))))))))))))))))) -> ดย | DC7: =AB7 -> 58 | DD7: =AY7 ->  | DE7: =BQ7 ->  | DG7: =IF(ใส่ชื่อ!D2="","",IF(COUNTIF(DC7:DE7,"มผ"),"มผ",IF(DE7="มผ","มผ",IF(DR7="ปกติ",SUM(DC7:DD7,IF(DF7="",DE7,DF7)),"-")))) -> 58 | DI7: =CI7 -> 22 | DL7: =IF(ใส่ชื่อ!D2="","",IF(DG7="","",IF(COUNTIF(DC7:DJ7,"มผ"),"มผ",IF(COUNTIF(DC7:DJ7,"-"),"-",IF(DR7="ปกติ",SUM(DG7,IF(DJ7="",DI7,DJ7))))))) -> 80 | DP7: =IF(ใส่ชื่อ!A2="","",IF(DL7="-","-",IF(DL7=0,"",IF(DR7="ปกติ",MAXA(DL7/2,DN7/2))))) -> 40 | DR7: =IF(เวลาเรียน!M9="","",เวลาเรียน!M9) -> ปกติ
A8: 2 | B8: 2498 | C8: =CONCATENATE(ใส่ชื่อ!C3) -> 2840 | D8: =CONCATENATE(ใส่ชื่อ!D3&ใส่ชื่อ!E3&" "&ใส่ชื่อ!F3) -> เด็กชายอภิชาติ ล่องสุวรรณ | E8: =ใส่ชื่อ!A3 -> 2 | F8: 5 | G8: 7 | H8: 8 | I8: 7 | J8: 7 | K8: 12 | Z8: =IF(ใส่ชื่อ!D3="","",IF(DR8="ปกติ",SUM(F8,G8,H8,I8,J8,K8,L8,M8,N8,O8,P8,Q8,R8,S8,T8,U8,V8,W8,X8,Y8),"-")) -> 46 | AB8: =IF(Z8="","",IF(Z8="-","-",IF(Z8=0,"",IF($Z$6=0,"",ROUND(Z8/$AA$5,0))))) -> 46 | AW8: =IF(ใส่ชื่อ!D3="","",IF(COUNTIF(AC8:AS8,0),"มผ",IF(DR8="ปกติ",SUM(AC8,AD8,AE8,AF8,AG8,AH8,AI8,AJ8,AK8,AL8,AM8,AN8,AO8,AP8,AQ8,AR8,AS8),"-"))) -> 0 | AY8: =IF(AW8="","",IF(AW8="-","-",IF(AW8="มผ","มผ",IF(AW8=0,"",IF($AW$5=0,"",ROUND(AW8/$AX$5,0)))))) ->  | BO8: =IF(ใส่ชื่อ!D3="","",IF(COUNTIF(AZ8:BN8,0),"มผ",IF(DR8="ปกติ",SUM(AZ8,BA8,BB8,BC8,BD8,BE8,BF8,BG8,BH8,BI8,BJ8,BK8,BL8,BM8,BN8),"-"))) -> 0 | BQ8: =IF(BO8="","",IF(BO8="-","-",IF(BO8="มผ","มผ",IF(BO8=0,"",IF($BO$5=0,"",ROUND(BO8/$BP$5,0)))))) ->  | BR8: 15 | CG8: =IF(ใส่ชื่อ!D3="","",IF(DR8="ปกติ",SUM(BR8,BS8,BT8,BU8,BV8,BW8,BX8,BY8,BZ8,CA8,CB8,CC8,CD8,CE8,CF8),"-")) -> 15 | CI8: =IF(CG8="","",IF(CG8="-","-",IF(CG8=0,"",IF($CG$6=0,"",ROUND(CG8/$CH$5,0))))) -> 15 | CJ8: 3 | CK8: 2 | CL8: 2 | CM8: 2 | CN8: 3 | CO8: =IF(ใส่ชื่อ!D3="","",IF(CJ8="","",(IF(CK8="","",(IF(CL8="","",(IF(CM8="","",(IF(CN8="","",(SUM(CJ8:CN8)))))))))))) -> 12 | CP8: =IF(CO8="","",IF(CO8="-","-",IF(CO8="ร","ร",IF(CO8=0,0,IF($CO$5=0,"",ROUND(CO8/5,0)))))) -> 2 | CQ8: =IF(CP8="","",(IF(CP8>=2.5,"ดย",(IF(CP8>=1.5,"ด",(IF(CP8>=0.6,"ผ",(IF(CP8<=0.4,"มผ"))))))))) -> ด | CR8: 3 | CS8: 3 | CT8: 2 | CU8: 2 | CV8: 2 | CW8: 2 | CX8: 3 | CY8: 3 | CZ8: 3 | DA8: 3 | DB8: =IF(CR8="","",(IF(CS8="","",(IF(CT8="","",(IF(CU8="","",(IF(CV8="","",(IF(CW8="","",(IF(CX8="","",(IF(CY8="","",IF(CZ8="","",(IF(DA8="","",(IF(COUNTIF(CR8:DA8,0)>0,"มผ",IF(AND(COUNTIF(CR8:DA8,3)>=6,COUNTIF(CR8:DA8,"<2")=0),"ดย",IF(OR(AND(AND(COUNTIF(CR8:DA8,3)>=1,COUNTIF(CR8:DA8,3)<=5),COUNTIF(CR8:DA8,"<2")=0),COUNTIF(CR8:DA8,2)=10,AND(COUNTIF(CR8:DA8,">=2")>=6,COUNTIF(CR8:DA8,1)>0)),"ด",IF(OR(COUNTIF(CR8:DA8,1)=10,AND(COUNTIF(CR8:DA8,">=2")>=1,COUNTIF(CR8:DA8,">=2")<=6)),"ผ","มผ"))))))))))))))))))))))) -> ดย | DC8: 46 | DG8: =IF(ใส่ชื่อ!D3="","",IF(COUNTIF(DC8:DE8,"มผ"),"มผ",IF(DE8="มผ","มผ",IF(DR8="ปกติ",SUM(DC8:DD8,IF(DF8="",DE8,DF8)),"-")))) -> 46 | DI8: 15 | DL8: =IF(ใส่ชื่อ!D3="","",IF(DG8="","",IF(COUNTIF(DC8:DJ8,"มผ"),"มผ",IF(COUNTIF(DC8:DJ8,"-"),"-",IF(DR8="ปกติ",SUM(DG8,IF(DJ8="",DI8,DJ8))))))) -> 61 | DP8: =IF(ใส่ชื่อ!A3="","",IF(DL8="-","-",IF(DL8=0,"",IF(DR8="ปกติ",MAXA(DL8/2,DN8/2))))) -> 30.5 | DR8: =IF(เวลาเรียน!M10="","",เวลาเรียน!M10) -> ปกติ | DT8: ช่วงคะแนน | DV8: เกรด | DX8: 4 | DY8: 3.5 | DZ8: 3 | EA8: 2.5 | EB8: 2 | EC8: 1.5 | ED8: 1 | EE8: 0 | EF8: ร | EG8: มส
A9: 3 | B9: 2499 | C9: =CONCATENATE(ใส่ชื่อ!C4) -> 2842 | D9: =CONCATENATE(ใส่ชื่อ!D4&ใส่ชื่อ!E4&" "&ใส่ชื่อ!F4) -> เด็กชายเมธัส ป้อมเมือง | E9: =ใส่ชื่อ!A4 -> 3 | F9: 8 | G9: 8 | H9: 9 | I9: 9 | J9: 8 | K9: 15 | Z9: =IF(ใส่ชื่อ!D4="","",IF(DR9="ปกติ",SUM(F9,G9,H9,I9,J9,K9,L9,M9,N9,O9,P9,Q9,R9,S9,T9,U9,V9,W9,X9,Y9),"-")) -> 57 | AB9: 57 | AW9: =IF(ใส่ชื่อ!D4="","",IF(COUNTIF(AC9:AS9,0),"มผ",IF(DR9="ปกติ",SUM(AC9,AD9,AE9,AF9,AG9,AH9,AI9,AJ9,AK9,AL9,AM9,AN9,AO9,AP9,AQ9,AR9,AS9),"-"))) -> 0 | BO9: =IF(ใส่ชื่อ!D4="","",IF(COUNTIF(AZ9:BN9,0),"มผ",IF(DR9="ปกติ",SUM(AZ9,BA9,BB9,BC9,BD9,BE9,BF9,BG9,BH9,BI9,BJ9,BK9,BL9,BM9,BN9),"-"))) -> 0 | BR9: 19 | CG9: =IF(ใส่ชื่อ!D4="","",IF(DR9="ปกติ",SUM(BR9,BS9,BT9,BU9,BV9,BW9,BX9,BY9,BZ9,CA9,CB9,CC9,CD9,CE9,CF9),"-")) -> 19 | CI9: 19 | CJ9: 3 | CK9: 3 | CL9: 3 | CM9: 3 | CN9: 3 | CO9: =IF(ใส่ชื่อ!D4="","",IF(CJ9="","",(IF(CK9="","",(IF(CL9="","",(IF(CM9="","",(IF(CN9="","",(SUM(CJ9:CN9)))))))))))) -> 15 | CP9: 3 | CQ9: ดย | CR9: 3 | CS9: 3 | CT9: 3 | CU9: 3 | CV9: 3 | CW9: 3 | CX9: 3 | CY9: 3 | CZ9: 3 | DA9: 3 | DB9: =IF(CR9="","",(IF(CS9="","",(IF(CT9="","",(IF(CU9="","",(IF(CV9="","",(IF(CW9="","",(IF(CX9="","",(IF(CY9="","",IF(CZ9="","",(IF(DA9="","",(IF(COUNTIF(CR9:DA9,0)>0,"มผ",IF(AND(COUNTIF(CR9:DA9,3)>=6,COUNTIF(CR9:DA9,"<2")=0),"ดย",IF(OR(AND(AND(COUNTIF(CR9:DA9,3)>=1,COUNTIF(CR9:DA9,3)<=5),COUNTIF(CR9:DA9,"<2")=0),COUNTIF(CR9:DA9,2)=10,AND(COUNTIF(CR9:DA9,">=2")>=6,COUNTIF(CR9:DA9,1)>0)),"ด",IF(OR(COUNTIF(CR9:DA9,1)=10,AND(COUNTIF(CR9:DA9,">=2")>=1,COUNTIF(CR9:DA9,">=2")<=6)),"ผ","มผ"))))))))))))))))))))))) -> ดย | DC9: 57 | DG9: =IF(ใส่ชื่อ!D4="","",IF(COUNTIF(DC9:DE9,"มผ"),"มผ",IF(DE9="มผ","มผ",IF(DR9="ปกติ",SUM(DC9:DD9,IF(DF9="",DE9,DF9)),"-")))) -> 57 | DI9: 19 | DL9: =IF(ใส่ชื่อ!D4="","",IF(DG9="","",IF(COUNTIF(DC9:DJ9,"มผ"),"มผ",IF(COUNTIF(DC9:DJ9,"-"),"-",IF(DR9="ปกติ",SUM(DG9,IF(DJ9="",DI9,DJ9))))))) -> 76 | DP9: =IF(ใส่ชื่อ!A4="","",IF(DL9="-","-",IF(DL9=0,"",IF(DR9="ปกติ",MAXA(DL9/2,DN9/2))))) -> 38 | DR9: =IF(เวลาเรียน!M11="","",เวลาเรียน!M11) -> ปกติ | DT9: จาก | DU9: ถึง | DX9: =COUNTIF($DN$7:$DN$56,DX8) -> 0 | DY9: =COUNTIF($DN$7:$DN$56,DY8) -> 0 | DZ9: 0 | EA9: 0 | EB9: 0 | EC9: 0 | ED9: 0 | EE9: 0 | EF9: 0 | EG9: 0
A10: 4 | B10: 2500 | C10: =CONCATENATE(ใส่ชื่อ!C5) -> 2844 | D10: =CONCATENATE(ใส่ชื่อ!D5&ใส่ชื่อ!E5&" "&ใส่ชื่อ!F5) -> เด็กหญิงพรณิสา เพ็ชรจั่น | E10: =ใส่ชื่อ!A5 -> 4 | F10: 10 | G10: 9 | H10: 10 | I10: 8 | J10: 10 | K10: 17 | Z10: =IF(ใส่ชื่อ!D5="","",IF(DR10="ปกติ",SUM(F10,G10,H10,I10,J10,K10,L10,M10,N10,O10,P10,Q10,R10,S10,T10,U10,V10,W10,X10,Y10),"-")) -> 64 | AB10: 64 | AW10: =IF(ใส่ชื่อ!D5="","",IF(COUNTIF(AC10:AS10,0),"มผ",IF(DR10="ปกติ",SUM(AC10,AD10,AE10,AF10,AG10,AH10,AI10,AJ10,AK10,AL10,AM10,AN10,AO10,AP10,AQ10,AR10,AS10),"-"))) -> 0 | BO10: =IF(ใส่ชื่อ!D5="","",IF(COUNTIF(AZ10:BN10,0),"มผ",IF(DR10="ปกติ",SUM(AZ10,BA10,BB10,BC10,BD10,BE10,BF10,BG10,BH10,BI10,BJ10,BK10,BL10,BM10,BN10),"-"))) -> 0 | BR10: 20 | CG10: =IF(ใส่ชื่อ!D5="","",IF(DR10="ปกติ",SUM(BR10,BS10,BT10,BU10,BV10,BW10,BX10,BY10,BZ10,CA10,CB10,CC10,CD10,CE10,CF10),"-")) -> 20 | CI10: 20 | CJ10: 3 | CK10: 3 | CL10: 3 | CM10: 3 | CN10: 3 | CO10: =IF(ใส่ชื่อ!D5="","",IF(CJ10="","",(IF(CK10="","",(IF(CL10="","",(IF(CM10="","",(IF(CN10="","",(SUM(CJ10:CN10)))))))))))) -> 15 | CP10: 3 | CQ10: ดย | CR10: 3 | CS10: 3 | CT10: 3 | CU10: 3 | CV10: 3 | CW10: 3 | CX10: 3 | CY10: 3 | CZ10: 3 | DA10: 3 | DB10: ดย | DC10: 64 | DG10: =IF(ใส่ชื่อ!D5="","",IF(COUNTIF(DC10:DE10,"มผ"),"มผ",IF(DE10="มผ","มผ",IF(DR10="ปกติ",SUM(DC10:DD10,IF(DF10="",DE10,DF10)),"-")))) -> 64 | DI10: 20 | DL10: =IF(ใส่ชื่อ!D5="","",IF(DG10="","",IF(COUNTIF(DC10:DJ10,"มผ"),"มผ",IF(COUNTIF(DC10:DJ10,"-"),"-",IF(DR10="ปกติ",SUM(DG10,IF(DJ10="",DI10,DJ10))))))) -> 84 | DP10: =IF(ใส่ชื่อ!A5="","",IF(DL10="-","-",IF(DL10=0,"",IF(DR10="ปกติ",MAXA(DL10/2,DN10/2))))) -> 42 | DR10: =IF(เวลาเรียน!M12="","",เวลาเรียน!M12) -> ปกติ | DT10: 0 | DU10: 49 | DV10: 0
A11: 5 | B11: 2501 | C11: =CONCATENATE(ใส่ชื่อ!C6) -> 2845 | D11: =CONCATENATE(ใส่ชื่อ!D6&ใส่ชื่อ!E6&" "&ใส่ชื่อ!F6) -> เด็กหญิงบุญฑริกา นิ่มอ่อน | E11: =ใส่ชื่อ!A6 -> 5 | F11: 5 | G11: 6 | H11: 7 | I11: 8 | J11: 6 | K11: 13 | Z11: =IF(ใส่ชื่อ!D6="","",IF(DR11="ปกติ",SUM(F11,G11,H11,I11,J11,K11,L11,M11,N11,O11,P11,Q11,R11,S11,T11,U11,V11,W11,X11,Y11),"-")) -> 45 | AB11: 45 | AW11: =IF(ใส่ชื่อ!D6="","",IF(COUNTIF(AC11:AS11,0),"มผ",IF(DR11="ปกติ",SUM(AC11,AD11,AE11,AF11,AG11,AH11,AI11,AJ11,AK11,AL11,AM11,AN11,AO11,AP11,AQ11,AR11,AS11),"-"))) -> 0 | BO11: =IF(ใส่ชื่อ!D6="","",IF(COUNTIF(AZ11:BN11,0),"มผ",IF(DR11="ปกติ",SUM(AZ11,BA11,BB11,BC11,BD11,BE11,BF11,BG11,BH11,BI11,BJ11,BK11,BL11,BM11,BN11),"-"))) -> 0 | BR11: 15 | CG11: =IF(ใส่ชื่อ!D6="","",IF(DR11="ปกติ",SUM(BR11,BS11,BT11,BU11,BV11,BW11,BX11,BY11,BZ11,CA11,CB11,CC11,CD11,CE11,CF11),"-")) -> 15 | CI11: 15 | CJ11: 3 | CK11: 2 | CL11: 2 | CM11: 2 | CN11: 3 | CO11: =IF(ใส่ชื่อ!D6="","",IF(CJ11="","",(IF(CK11="","",(IF(CL11="","",(IF(CM11="","",(IF(CN11="","",(SUM(CJ11:CN11)))))))))))) -> 12 | CP11: 2 | CQ11: ด | CR11: 3 | CS11: 2 | CT11: 2 | CU11: 2 | CV11: 2 | CW11: 3 | CX11: 3 | CY11: 3 | CZ11: 3 | DA11: 3 | DB11: ดย | DC11: 45 | DG11: =IF(ใส่ชื่อ!D6="","",IF(COUNTIF(DC11:DE11,"มผ"),"มผ",IF(DE11="มผ","มผ",IF(DR11="ปกติ",SUM(DC11:DD11,IF(DF11="",DE11,DF11)),"-")))) -> 45 | DI11: 15 | DL11: =IF(ใส่ชื่อ!D6="","",IF(DG11="","",IF(COUNTIF(DC11:DJ11,"มผ"),"มผ",IF(COUNTIF(DC11:DJ11,"-"),"-",IF(DR11="ปกติ",SUM(DG11,IF(DJ11="",DI11,DJ11))))))) -> 60 | DP11: =IF(ใส่ชื่อ!A6="","",IF(DL11="-","-",IF(DL11=0,"",IF(DR11="ปกติ",MAXA(DL11/2,DN11/2))))) -> 30 | DR11: =IF(เวลาเรียน!M13="","",เวลาเรียน!M13) -> ปกติ | DT11: 50 | DU11: 54 | DV11: 1
A12: 6 | B12: 2502 | C12: =CONCATENATE(ใส่ชื่อ!C7) -> 2846 | D12: =CONCATENATE(ใส่ชื่อ!D7&ใส่ชื่อ!E7&" "&ใส่ชื่อ!F7) -> เด็กหญิงรัญชิดา นรเนตร | E12: =ใส่ชื่อ!A7 -> 6 | F12: 6 | G12: 7 | H12: 8 | I12: 6 | J12: 8 | K12: 11 | Z12: =IF(ใส่ชื่อ!D7="","",IF(DR12="ปกติ",SUM(F12,G12,H12,I12,J12,K12,L12,M12,N12,O12,P12,Q12,R12,S12,T12,U12,V12,W12,X12,Y12),"-")) -> 46 | AB12: 46 | AW12: =IF(ใส่ชื่อ!D7="","",IF(COUNTIF(AC12:AS12,0),"มผ",IF(DR12="ปกติ",SUM(AC12,AD12,AE12,AF12,AG12,AH12,AI12,AJ12,AK12,AL12,AM12,AN12,AO12,AP12,AQ12,AR12,AS12),"-"))) -> 0 | BO12: =IF(ใส่ชื่อ!D7="","",IF(COUNTIF(AZ12:BN12,0),"มผ",IF(DR12="ปกติ",SUM(AZ12,BA12,BB12,BC12,BD12,BE12,BF12,BG12,BH12,BI12,BJ12,BK12,BL12,BM12,BN12),"-"))) -> 0 | BR12: 15 | CG12: =IF(ใส่ชื่อ!D7="","",IF(DR12="ปกติ",SUM(BR12,BS12,BT12,BU12,BV12,BW12,BX12,BY12,BZ12,CA12,CB12,CC12,CD12,CE12,CF12),"-")) -> 15 | CI12: 15 | CJ12: 3 | CK12: 2 | CL12: 2 | CM12: 3 | CN12: 3 | CO12: =IF(ใส่ชื่อ!D7="","",IF(CJ12="","",(IF(CK12="","",(IF(CL12="","",(IF(CM12="","",(IF(CN12="","",(SUM(CJ12:CN12)))))))))))) -> 13 | CP12: 3 | CQ12: ดย | CR12: 3 | CS12: 2 | CT12: 2 | CU12: 3 | CV12: 2 | CW12: 2 | CX12: 3 | CY12: 3 | CZ12: 3 | DA12: 3 | DB12: ดย | DC12: 46 | DG12: =IF(ใส่ชื่อ!D7="","",IF(COUNTIF(DC12:DE12,"มผ"),"มผ",IF(DE12="มผ","มผ",IF(DR12="ปกติ",SUM(DC12:DD12,IF(DF12="",DE12,DF12)),"-")))) -> 46 | DI12: 15 | DL12: =IF(ใส่ชื่อ!D7="","",IF(DG12="","",IF(COUNTIF(DC12:DJ12,"มผ"),"มผ",IF(COUNTIF(DC12:DJ12,"-"),"-",IF(DR12="ปกติ",SUM(DG12,IF(DJ12="",DI12,DJ12))))))) -> 61 | DP12: =IF(ใส่ชื่อ!A7="","",IF(DL12="-","-",IF(DL12=0,"",IF(DR12="ปกติ",MAXA(DL12/2,DN12/2))))) -> 30.5 | DR12: =IF(เวลาเรียน!M14="","",เวลาเรียน!M14) -> ปกติ | DT12: 55 | DU12: 59 | DV12: 1.5
A13: 7 | B13: 2503 | C13: =CONCATENATE(ใส่ชื่อ!C8) -> 2847 | D13: =CONCATENATE(ใส่ชื่อ!D8&ใส่ชื่อ!E8&" "&ใส่ชื่อ!F8) -> เด็กหญิงอริสา วีระวิทยกุญชร | E13: =ใส่ชื่อ!A8 -> 7 | F13: 8 | G13: 8 | H13: 8 | I13: 7 | J13: 8 | K13: 14 | Z13: =IF(ใส่ชื่อ!D8="","",IF(DR13="ปกติ",SUM(F13,G13,H13,I13,J13,K13,L13,M13,N13,O13,P13,Q13,R13,S13,T13,U13,V13,W13,X13,Y13),"-")) -> 53 | AB13: 53 | AW13: =IF(ใส่ชื่อ!D8="","",IF(COUNTIF(AC13:AS13,0),"มผ",IF(DR13="ปกติ",SUM(AC13,AD13,AE13,AF13,AG13,AH13,AI13,AJ13,AK13,AL13,AM13,AN13,AO13,AP13,AQ13,AR13,AS13),"-"))) -> 0 | BO13: =IF(ใส่ชื่อ!D8="","",IF(COUNTIF(AZ13:BN13,0),"มผ",IF(DR13="ปกติ",SUM(AZ13,BA13,BB13,BC13,BD13,BE13,BF13,BG13,BH13,BI13,BJ13,BK13,BL13,BM13,BN13),"-"))) -> 0 | BR13: 18 | CG13: =IF(ใส่ชื่อ!D8="","",IF(DR13="ปกติ",SUM(BR13,BS13,BT13,BU13,BV13,BW13,BX13,BY13,BZ13,CA13,CB13,CC13,CD13,CE13,CF13),"-")) -> 18 | CI13: 18 | CJ13: 3 | CK13: 3 | CL13: 3 | CM13: 3 | CN13: 3 | CO13: =IF(ใส่ชื่อ!D8="","",IF(CJ13="","",(IF(CK13="","",(IF(CL13="","",(IF(CM13="","",(IF(CN13="","",(SUM(CJ13:CN13)))))))))))) -> 15 | CP13: 3 | CQ13: ดย | CR13: 3 | CS13: 3 | CT13: 2 | CU13: 2 | CV13: 3 | CW13: 3 | CX13: 3 | CY13: 3 | CZ13: 3 | DA13: 3 | DB13: ดย | DC13: 53 | DG13: =IF(ใส่ชื่อ!D8="","",IF(COUNTIF(DC13:DE13,"มผ"),"มผ",IF(DE13="มผ","มผ",IF(DR13="ปกติ",SUM(DC13:DD13,IF(DF13="",DE13,DF13)),"-")))) -> 53 | DI13: 18 | DL13: =IF(ใส่ชื่อ!D8="","",IF(DG13="","",IF(COUNTIF(DC13:DJ13,"มผ"),"มผ",IF(COUNTIF(DC13:DJ13,"-"),"-",IF(DR13="ปกติ",SUM(DG13,IF(DJ13="",DI13,DJ13))))))) -> 71 | DP13: =IF(ใส่ชื่อ!A8="","",IF(DL13="-","-",IF(DL13=0,"",IF(DR13="ปกติ",MAXA(DL13/2,DN13/2))))) -> 35.5 | DR13: =IF(เวลาเรียน!M15="","",เวลาเรียน!M15) -> ปกติ | DT13: 60 | DU13: 64 | DV13: 2
A14: 8 | B14: 2504 | C14: =CONCATENATE(ใส่ชื่อ!C9) -> 2855 | D14: =CONCATENATE(ใส่ชื่อ!D9&ใส่ชื่อ!E9&" "&ใส่ชื่อ!F9) -> เด็กหญิงณัฐวรา ธนกิจชัยชนะ | E14: =ใส่ชื่อ!A9 -> 8 | F14: 7 | G14: 8 | H14: 8 | I14: 8 | J14: 6 | K14: 11 | Z14: =IF(ใส่ชื่อ!D9="","",IF(DR14="ปกติ",SUM(F14,G14,H14,I14,J14,K14,L14,M14,N14,O14,P14,Q14,R14,S14,T14,U14,V14,W14,X14,Y14),"-")) -> 48 | AB14: 48 | AW14: =IF(ใส่ชื่อ!D9="","",IF(COUNTIF(AC14:AS14,0),"มผ",IF(DR14="ปกติ",SUM(AC14,AD14,AE14,AF14,AG14,AH14,AI14,AJ14,AK14,AL14,AM14,AN14,AO14,AP14,AQ14,AR14,AS14),"-"))) -> 0 | BO14: =IF(ใส่ชื่อ!D9="","",IF(COUNTIF(AZ14:BN14,0),"มผ",IF(DR14="ปกติ",SUM(AZ14,BA14,BB14,BC14,BD14,BE14,BF14,BG14,BH14,BI14,BJ14,BK14,BL14,BM14,BN14),"-"))) -> 0 | BR14: 17 | CG14: =IF(ใส่ชื่อ!D9="","",IF(DR14="ปกติ",SUM(BR14,BS14,BT14,BU14,BV14,BW14,BX14,BY14,BZ14,CA14,CB14,CC14,CD14,CE14,CF14),"-")) -> 17 | CI14: 17 | CJ14: 3 | CK14: 2 | CL14: 2 | CM14: 2 | CN14: 3 | CO14: =IF(ใส่ชื่อ!D9="","",IF(CJ14="","",(IF(CK14="","",(IF(CL14="","",(IF(CM14="","",(IF(CN14="","",(SUM(CJ14:CN14)))))))))))) -> 12 | CP14: 2 | CQ14: ด | CR14: 3 | CS14: 3 | CT14: 2 | CU14: 2 | CV14: 2 | CW14: 2 | CX14: 3 | CY14: 3 | CZ14: 3 | DA14: 3 | DB14: ดย | DC14: 48 | DG14: =IF(ใส่ชื่อ!D9="","",IF(COUNTIF(DC14:DE14,"มผ"),"มผ",IF(DE14="มผ","มผ",IF(DR14="ปกติ",SUM(DC14:DD14,IF(DF14="",DE14,DF14)),"-")))) -> 48 | DI14: 17 | DL14: =IF(ใส่ชื่อ!D9="","",IF(DG14="","",IF(COUNTIF(DC14:DJ14,"มผ"),"มผ",IF(COUNTIF(DC14:DJ14,"-"),"-",IF(DR14="ปกติ",SUM(DG14,IF(DJ14="",DI14,DJ14))))))) -> 65 | DP14: =IF(ใส่ชื่อ!A9="","",IF(DL14="-","-",IF(DL14=0,"",IF(DR14="ปกติ",MAXA(DL14/2,DN14/2))))) -> 32.5 | DR14: =IF(เวลาเรียน!M16="","",เวลาเรียน!M16) -> ปกติ | DT14: 65 | DU14: 69 | DV14: 2.5
A15: 9 | B15: 2505 | C15: =CONCATENATE(ใส่ชื่อ!C10) -> 2856 | D15: =CONCATENATE(ใส่ชื่อ!D10&ใส่ชื่อ!E10&" "&ใส่ชื่อ!F10) -> เด็กชายอักคเชน ดอกกระถิน | E15: =ใส่ชื่อ!A10 -> 9 | F15: 7 | G15: 8 | H15: 8 | I15: 7 | J15: 8 | K15: 13 | Z15: =IF(ใส่ชื่อ!D10="","",IF(DR15="ปกติ",SUM(F15,G15,H15,I15,J15,K15,L15,M15,N15,O15,P15,Q15,R15,S15,T15,U15,V15,W15,X15,Y15),"-")) -> 51 | AB15: 51 | AW15: =IF(ใส่ชื่อ!D10="","",IF(COUNTIF(AC15:AS15,0),"มผ",IF(DR15="ปกติ",SUM(AC15,AD15,AE15,AF15,AG15,AH15,AI15,AJ15,AK15,AL15,AM15,AN15,AO15,AP15,AQ15,AR15,AS15),"-"))) -> 0 | BO15: =IF(ใส่ชื่อ!D10="","",IF(COUNTIF(AZ15:BN15,0),"มผ",IF(DR15="ปกติ",SUM(AZ15,BA15,BB15,BC15,BD15,BE15,BF15,BG15,BH15,BI15,BJ15,BK15,BL15,BM15,BN15),"-"))) -> 0 | BR15: 16 | CG15: =IF(ใส่ชื่อ!D10="","",IF(DR15="ปกติ",SUM(BR15,BS15,BT15,BU15,BV15,BW15,BX15,BY15,BZ15,CA15,CB15,CC15,CD15,CE15,CF15),"-")) -> 16 | CI15: 16 | CJ15: 3 | CK15: 2 | CL15: 2 | CM15: 2 | CN15: 3 | CO15: =IF(ใส่ชื่อ!D10="","",IF(CJ15="","",(IF(CK15="","",(IF(CL15="","",(IF(CM15="","",(IF(CN15="","",(SUM(CJ15:CN15)))))))))))) -> 12 | CP15: 2 | CQ15: ด | CR15: 3 | CS15: 3 | CT15: 2 | CU15: 2 | CV15: 2 | CW15: 2 | CX15: 3 | CY15: 3 | CZ15: 3 | DA15: 3 | DB15: ดย | DC15: 51 | DG15: =IF(ใส่ชื่อ!D10="","",IF(COUNTIF(DC15:DE15,"มผ"),"มผ",IF(DE15="มผ","มผ",IF(DR15="ปกติ",SUM(DC15:DD15,IF(DF15="",DE15,DF15)),"-")))) -> 51 | DI15: 16 | DL15: =IF(ใส่ชื่อ!D10="","",IF(DG15="","",IF(COUNTIF(DC15:DJ15,"มผ"),"มผ",IF(COUNTIF(DC15:DJ15,"-"),"-",IF(DR15="ปกติ",SUM(DG15,IF(DJ15="",DI15,DJ15))))))) -> 67 | DP15: =IF(ใส่ชื่อ!A10="","",IF(DL15="-","-",IF(DL15=0,"",IF(DR15="ปกติ",MAXA(DL15/2,DN15/2))))) -> 33.5 | DR15: =IF(เวลาเรียน!M17="","",เวลาเรียน!M17) -> ปกติ | DT15: 70 | DU15: 74 | DV15: 3
A16: 10 | B16: 2506 | C16: =CONCATENATE(ใส่ชื่อ!C11) -> 2863 | D16: =CONCATENATE(ใส่ชื่อ!D11&ใส่ชื่อ!E11&" "&ใส่ชื่อ!F11) -> เด็กหญิงณัฐณิชา วงศ์บุศรัตน์ | E16: =ใส่ชื่อ!A11 -> 10 | F16: 9 | G16: 9 | H16: 10 | I16: 8 | J16: 9 | K16: 14 | Z16: =IF(ใส่ชื่อ!D11="","",IF(DR16="ปกติ",SUM(F16,G16,H16,I16,J16,K16,L16,M16,N16,O16,P16,Q16,R16,S16,T16,U16,V16,W16,X16,Y16),"-")) -> 59 | AB16: 59 | AW16: =IF(ใส่ชื่อ!D11="","",IF(COUNTIF(AC16:AS16,0),"มผ",IF(DR16="ปกติ",SUM(AC16,AD16,AE16,AF16,AG16,AH16,AI16,AJ16,AK16,AL16,AM16,AN16,AO16,AP16,AQ16,AR16,AS16),"-"))) -> 0 | BO16: =IF(ใส่ชื่อ!D11="","",IF(COUNTIF(AZ16:BN16,0),"มผ",IF(DR16="ปกติ",SUM(AZ16,BA16,BB16,BC16,BD16,BE16,BF16,BG16,BH16,BI16,BJ16,BK16,BL16,BM16,BN16),"-"))) -> 0 | BR16: 22 | CG16: =IF(ใส่ชื่อ!D11="","",IF(DR16="ปกติ",SUM(BR16,BS16,BT16,BU16,BV16,BW16,BX16,BY16,BZ16,CA16,CB16,CC16,CD16,CE16,CF16),"-")) -> 22 | CI16: 22 | CJ16: 3 | CK16: 3 | CL16: 3 | CM16: 3 | CN16: 3 | CO16: =IF(ใส่ชื่อ!D11="","",IF(CJ16="","",(IF(CK16="","",(IF(CL16="","",(IF(CM16="","",(IF(CN16="","",(SUM(CJ16:CN16)))))))))))) -> 15 | CP16: 3 | CQ16: ดย | CR16: 3 | CS16: 3 | CT16: 3 | CU16: 3 | CV16: 3 | CW16: 3 | CX16: 3 | CY16: 3 | CZ16: 3 | DA16: 3 | DB16: ดย | DC16: 59 | DG16: =IF(ใส่ชื่อ!D11="","",IF(COUNTIF(DC16:DE16,"มผ"),"มผ",IF(DE16="มผ","มผ",IF(DR16="ปกติ",SUM(DC16:DD16,IF(DF16="",DE16,DF16)),"-")))) -> 59 | DI16: 22 | DL16: =IF(ใส่ชื่อ!D11="","",IF(DG16="","",IF(COUNTIF(DC16:DJ16,"มผ"),"มผ",IF(COUNTIF(DC16:DJ16,"-"),"-",IF(DR16="ปกติ",SUM(DG16,IF(DJ16="",DI16,DJ16))))))) -> 81 | DP16: =IF(ใส่ชื่อ!A11="","",IF(DL16="-","-",IF(DL16=0,"",IF(DR16="ปกติ",MAXA(DL16/2,DN16/2))))) -> 40.5 | DR16: =IF(เวลาเรียน!M18="","",เวลาเรียน!M18) -> ปกติ | DT16: 75 | DU16: 79 | DV16: 3.5
A17: 11 | B17: 2507 | C17: =CONCATENATE(ใส่ชื่อ!C12) -> 2918 | D17: =CONCATENATE(ใส่ชื่อ!D12&ใส่ชื่อ!E12&" "&ใส่ชื่อ!F12) -> เด็กชายณัฐวุฒิ เปรมผล | E17: =ใส่ชื่อ!A12 -> 11 | F17: 7 | G17: 7 | H17: 7 | I17: 8 | J17: 6 | K17: 12 | Z17: =IF(ใส่ชื่อ!D12="","",IF(DR17="ปกติ",SUM(F17,G17,H17,I17,J17,K17,L17,M17,N17,O17,P17,Q17,R17,S17,T17,U17,V17,W17,X17,Y17),"-")) -> 47 | AB17: 47 | AW17: =IF(ใส่ชื่อ!D12="","",IF(COUNTIF(AC17:AS17,0),"มผ",IF(DR17="ปกติ",SUM(AC17,AD17,AE17,AF17,AG17,AH17,AI17,AJ17,AK17,AL17,AM17,AN17,AO17,AP17,AQ17,AR17,AS17),"-"))) -> 0 | BO17: =IF(ใส่ชื่อ!D12="","",IF(COUNTIF(AZ17:BN17,0),"มผ",IF(DR17="ปกติ",SUM(AZ17,BA17,BB17,BC17,BD17,BE17,BF17,BG17,BH17,BI17,BJ17,BK17,BL17,BM17,BN17),"-"))) -> 0 | BR17: 18 | CG17: =IF(ใส่ชื่อ!D12="","",IF(DR17="ปกติ",SUM(BR17,BS17,BT17,BU17,BV17,BW17,BX17,BY17,BZ17,CA17,CB17,CC17,CD17,CE17,CF17),"-")) -> 18 | CI17: 18 | CJ17: 3 | CK17: 2 | CL17: 2 | CM17: 2 | CN17: 3 | CO17: =IF(ใส่ชื่อ!D12="","",IF(CJ17="","",(IF(CK17="","",(IF(CL17="","",(IF(CM17="","",(IF(CN17="","",(SUM(CJ17:CN17)))))))))))) -> 12 | CP17: 2 | CQ17: ด | CR17: 3 | CS17: 3 | CT17: 2 | CU17: 2 | CV17: 2 | CW17: 2 | CX17: 3 | CY17: 3 | CZ17: 3 | DA17: 3 | DB17: ดย | DC17: 47 | DG17: =IF(ใส่ชื่อ!D12="","",IF(COUNTIF(DC17:DE17,"มผ"),"มผ",IF(DE17="มผ","มผ",IF(DR17="ปกติ",SUM(DC17:DD17,IF(DF17="",DE17,DF17)),"-")))) -> 47 | DI17: 18 | DL17: =IF(ใส่ชื่อ!D12="","",IF(DG17="","",IF(COUNTIF(DC17:DJ17,"มผ"),"มผ",IF(COUNTIF(DC17:DJ17,"-"),"-",IF(DR17="ปกติ",SUM(DG17,IF(DJ17="",DI17,DJ17))))))) -> 65 | DP17: =IF(ใส่ชื่อ!A12="","",IF(DL17="-","-",IF(DL17=0,"",IF(DR17="ปกติ",MAXA(DL17/2,DN17/2))))) -> 32.5 | DR17: =IF(เวลาเรียน!M19="","",เวลาเรียน!M19) -> ปกติ | DT17: 80 | DU17: 100 | DV17: 4
A18: 12 | B18: 2508 | C18: =CONCATENATE(ใส่ชื่อ!C13) -> 2919 | D18: =CONCATENATE(ใส่ชื่อ!D13&ใส่ชื่อ!E13&" "&ใส่ชื่อ!F13) -> เด็กชายธนาธิป สังข์โพธิ์ | E18: =ใส่ชื่อ!A13 -> 12 | F18: 5 | G18: 7 | H18: 8 | I18: 8 | J18: 5 | K18: 12 | Z18: =IF(ใส่ชื่อ!D13="","",IF(DR18="ปกติ",SUM(F18,G18,H18,I18,J18,K18,L18,M18,N18,O18,P18,Q18,R18,S18,T18,U18,V18,W18,X18,Y18),"-")) -> 45 | AB18: 45 | AW18: =IF(ใส่ชื่อ!D13="","",IF(COUNTIF(AC18:AS18,0),"มผ",IF(DR18="ปกติ",SUM(AC18,AD18,AE18,AF18,AG18,AH18,AI18,AJ18,AK18,AL18,AM18,AN18,AO18,AP18,AQ18,AR18,AS18),"-"))) -> 0 | BO18: =IF(ใส่ชื่อ!D13="","",IF(COUNTIF(AZ18:BN18,0),"มผ",IF(DR18="ปกติ",SUM(AZ18,BA18,BB18,BC18,BD18,BE18,BF18,BG18,BH18,BI18,BJ18,BK18,BL18,BM18,BN18),"-"))) -> 0 | BR18: 15 | CG18: =IF(ใส่ชื่อ!D13="","",IF(DR18="ปกติ",SUM(BR18,BS18,BT18,BU18,BV18,BW18,BX18,BY18,BZ18,CA18,CB18,CC18,CD18,CE18,CF18),"-")) -> 15 | CI18: 15 | CJ18: 3 | CK18: 2 | CL18: 2 | CM18: 2 | CN18: 3 | CO18: =IF(ใส่ชื่อ!D13="","",IF(CJ18="","",(IF(CK18="","",(IF(CL18="","",(IF(CM18="","",(IF(CN18="","",(SUM(CJ18:CN18)))))))))))) -> 12 | CP18: 2 | CQ18: ด | CR18: 3 | CS18: 3 | CT18: 2 | CU18: 2 | CV18: 2 | CW18: 2 | CX18: 3 | CY18: 3 | CZ18: 3 | DA18: 3 | DB18: ดย | DC18: 45 | DG18: =IF(ใส่ชื่อ!D13="","",IF(COUNTIF(DC18:DE18,"มผ"),"มผ",IF(DE18="มผ","มผ",IF(DR18="ปกติ",SUM(DC18:DD18,IF(DF18="",DE18,DF18)),"-")))) -> 45 | DI18: 15 | DL18: =IF(ใส่ชื่อ!D13="","",IF(DG18="","",IF(COUNTIF(DC18:DJ18,"มผ"),"มผ",IF(COUNTIF(DC18:DJ18,"-"),"-",IF(DR18="ปกติ",SUM(DG18,IF(DJ18="",DI18,DJ18))))))) -> 60 | DP18: =IF(ใส่ชื่อ!A13="","",IF(DL18="-","-",IF(DL18=0,"",IF(DR18="ปกติ",MAXA(DL18/2,DN18/2))))) -> 30 | DR18: =IF(เวลาเรียน!M20="","",เวลาเรียน!M20) -> ปกติ
A19: 13 | B19: 2509 | C19: =CONCATENATE(ใส่ชื่อ!C14) -> 2946 | D19: =CONCATENATE(ใส่ชื่อ!D14&ใส่ชื่อ!E14&" "&ใส่ชื่อ!F14) -> เด็กหญิงน้ำหวาน พม่า | E19: =ใส่ชื่อ!A14 -> 13 | F19: 6 | G19: 8 | H19: 8 | I19: 7 | J19: 6 | K19: 12 | Z19: =IF(ใส่ชื่อ!D14="","",IF(DR19="ปกติ",SUM(F19,G19,H19,I19,J19,K19,L19,M19,N19,O19,P19,Q19,R19,S19,T19,U19,V19,W19,X19,Y19),"-")) -> 47 | AB19: 47 | AW19: =IF(ใส่ชื่อ!D14="","",IF(COUNTIF(AC19:AS19,0),"มผ",IF(DR19="ปกติ",SUM(AC19,AD19,AE19,AF19,AG19,AH19,AI19,AJ19,AK19,AL19,AM19,AN19,AO19,AP19,AQ19,AR19,AS19),"-"))) -> 0 | BO19: =IF(ใส่ชื่อ!D14="","",IF(COUNTIF(AZ19:BN19,0),"มผ",IF(DR19="ปกติ",SUM(AZ19,BA19,BB19,BC19,BD19,BE19,BF19,BG19,BH19,BI19,BJ19,BK19,BL19,BM19,BN19),"-"))) -> 0 | BR19: 16 | CG19: =IF(ใส่ชื่อ!D14="","",IF(DR19="ปกติ",SUM(BR19,BS19,BT19,BU19,BV19,BW19,BX19,BY19,BZ19,CA19,CB19,CC19,CD19,CE19,CF19),"-")) -> 16 | CI19: 16 | CJ19: 3 | CK19: 2 | CL19: 2 | CM19: 2 | CN19: 3 | CO19: =IF(ใส่ชื่อ!D14="","",IF(CJ19="","",(IF(CK19="","",(IF(CL19="","",(IF(CM19="","",(IF(CN19="","",(SUM(CJ19:CN19)))))))))))) -> 12 | CP19: 2 | CQ19: ด | CR19: 3 | CS19: 2 | CT19: 2 | CU19: 2 | CV19: 2 | CW19: 3 | CX19: 3 | CY19: 3 | CZ19: 3 | DA19: 3 | DB19: ดย | DC19: 47 | DG19: =IF(ใส่ชื่อ!D14="","",IF(COUNTIF(DC19:DE19,"มผ"),"มผ",IF(DE19="มผ","มผ",IF(DR19="ปกติ",SUM(DC19:DD19,IF(DF19="",DE19,DF19)),"-")))) -> 47 | DI19: 16 | DL19: =IF(ใส่ชื่อ!D14="","",IF(DG19="","",IF(COUNTIF(DC19:DJ19,"มผ"),"มผ",IF(COUNTIF(DC19:DJ19,"-"),"-",IF(DR19="ปกติ",SUM(DG19,IF(DJ19="",DI19,DJ19))))))) -> 63 | DP19: =IF(ใส่ชื่อ!A14="","",IF(DL19="-","-",IF(DL19=0,"",IF(DR19="ปกติ",MAXA(DL19/2,DN19/2))))) -> 31.5 | DR19: =IF(เวลาเรียน!M21="","",เวลาเรียน!M21) -> ปกติ | DT19: 0 | DU19: 50 | DV19: 0
A20: 14 | B20: 2510 | C20: =CONCATENATE(ใส่ชื่อ!C15) -> 3010 | D20: =CONCATENATE(ใส่ชื่อ!D15&ใส่ชื่อ!E15&" "&ใส่ชื่อ!F15) -> เด็กหญิงชลิตา ยมนา | E20: =ใส่ชื่อ!A15 -> 14 | F20: 7 | G20: 6 | H20: 6 | I20: 6 | J20: 7 | K20: 14 | Z20: =IF(ใส่ชื่อ!D15="","",IF(DR20="ปกติ",SUM(F20,G20,H20,I20,J20,K20,L20,M20,N20,O20,P20,Q20,R20,S20,T20,U20,V20,W20,X20,Y20),"-")) -> 46 | AB20: 46 | AW20: =IF(ใส่ชื่อ!D15="","",IF(COUNTIF(AC20:AS20,0),"มผ",IF(DR20="ปกติ",SUM(AC20,AD20,AE20,AF20,AG20,AH20,AI20,AJ20,AK20,AL20,AM20,AN20,AO20,AP20,AQ20,AR20,AS20),"-"))) -> 0 | BO20: =IF(ใส่ชื่อ!D15="","",IF(COUNTIF(AZ20:BN20,0),"มผ",IF(DR20="ปกติ",SUM(AZ20,BA20,BB20,BC20,BD20,BE20,BF20,BG20,BH20,BI20,BJ20,BK20,BL20,BM20,BN20),"-"))) -> 0 | BR20: 16 | CG20: =IF(ใส่ชื่อ!D15="","",IF(DR20="ปกติ",SUM(BR20,BS20,BT20,BU20,BV20,BW20,BX20,BY20,BZ20,CA20,CB20,CC20,CD20,CE20,CF20),"-")) -> 16 | CI20: 16 | CJ20: 3 | CK20: 2 | CL20: 2 | CM20: 2 | CN20: 3 | CO20: =IF(ใส่ชื่อ!D15="","",IF(CJ20="","",(IF(CK20="","",(IF(CL20="","",(IF(CM20="","",(IF(CN20="","",(SUM(CJ20:CN20)))))))))))) -> 12 | CP20: 2 | CQ20: ด | CR20: 3 | CS20: 3 | CT20: 2 | CU20: 2 | CV20: 2 | CW20: 2 | CX20: 3 | CY20: 3 | CZ20: 3 | DA20: 3 | DB20: ดย | DC20: 46 | DG20: =IF(ใส่ชื่อ!D15="","",IF(COUNTIF(DC20:DE20,"มผ"),"มผ",IF(DE20="มผ","มผ",IF(DR20="ปกติ",SUM(DC20:DD20,IF(DF20="",DE20,DF20)),"-")))) -> 46 | DI20: 16 | DL20: =IF(ใส่ชื่อ!D15="","",IF(DG20="","",IF(COUNTIF(DC20:DJ20,"มผ"),"มผ",IF(COUNTIF(DC20:DJ20,"-"),"-",IF(DR20="ปกติ",SUM(DG20,IF(DJ20="",DI20,DJ20))))))) -> 62 | DP20: =IF(ใส่ชื่อ!A15="","",IF(DL20="-","-",IF(DL20=0,"",IF(DR20="ปกติ",MAXA(DL20/2,DN20/2))))) -> 31 | DR20: =IF(เวลาเรียน!M22="","",เวลาเรียน!M22) -> ปกติ | DT20: 50 | DU20: 55 | DV20: 1
A21: 15 | B21: 2511 | C21: =CONCATENATE(ใส่ชื่อ!C16) -> 3043 | D21: =CONCATENATE(ใส่ชื่อ!D16&ใส่ชื่อ!E16&" "&ใส่ชื่อ!F16) -> เด็กหญิงฉัตรพรรณราย แสงรัตนายนต์ | E21: =ใส่ชื่อ!A16 -> 15 | F21: 10 | G21: 10 | H21: 9 | I21: 8 | J21: 9 | K21: 17 | Z21: =IF(ใส่ชื่อ!D16="","",IF(DR21="ปกติ",SUM(F21,G21,H21,I21,J21,K21,L21,M21,N21,O21,P21,Q21,R21,S21,T21,U21,V21,W21,X21,Y21),"-")) -> 63 | AB21: 63 | AW21: =IF(ใส่ชื่อ!D16="","",IF(COUNTIF(AC21:AS21,0),"มผ",IF(DR21="ปกติ",SUM(AC21,AD21,AE21,AF21,AG21,AH21,AI21,AJ21,AK21,AL21,AM21,AN21,AO21,AP21,AQ21,AR21,AS21),"-"))) -> 0 | BO21: =IF(ใส่ชื่อ!D16="","",IF(COUNTIF(AZ21:BN21,0),"มผ",IF(DR21="ปกติ",SUM(AZ21,BA21,BB21,BC21,BD21,BE21,BF21,BG21,BH21,BI21,BJ21,BK21,BL21,BM21,BN21),"-"))) -> 0 | BR21: 20 | CG21: =IF(ใส่ชื่อ!D16="","",IF(DR21="ปกติ",SUM(BR21,BS21,BT21,BU21,BV21,BW21,BX21,BY21,BZ21,CA21,CB21,CC21,CD21,CE21,CF21),"-")) -> 20 | CI21: 20 | CJ21: 3 | CK21: 3 | CL21: 3 | CM21: 3 | CN21: 3 | CO21: =IF(ใส่ชื่อ!D16="","",IF(CJ21="","",(IF(CK21="","",(IF(CL21="","",(IF(CM21="","",(IF(CN21="","",(SUM(CJ21:CN21)))))))))))) -> 15 | CP21: 3 | CQ21: ดย | CR21: 3 | CS21: 3 | CT21: 3 | CU21: 3 | CV21: 3 | CW21: 3 | CX21: 3 | CY21: 3 | CZ21: 3 | DA21: 3 | DB21: ดย | DC21: 63 | DG21: =IF(ใส่ชื่อ!D16="","",IF(COUNTIF(DC21:DE21,"มผ"),"มผ",IF(DE21="มผ","มผ",IF(DR21="ปกติ",SUM(DC21:DD21,IF(DF21="",DE21,DF21)),"-")))) -> 63 | DI21: 20 | DL21: =IF(ใส่ชื่อ!D16="","",IF(DG21="","",IF(COUNTIF(DC21:DJ21,"มผ"),"มผ",IF(COUNTIF(DC21:DJ21,"-"),"-",IF(DR21="ปกติ",SUM(DG21,IF(DJ21="",DI21,DJ21))))))) -> 83 | DP21: =IF(ใส่ชื่อ!A16="","",IF(DL21="-","-",IF(DL21=0,"",IF(DR21="ปกติ",MAXA(DL21/2,DN21/2))))) -> 41.5 | DR21: =IF(เวลาเรียน!M23="","",เวลาเรียน!M23) -> ปกติ | DT21: 55 | DU21: 60 | DV21: 1.5
A22: 16 | B22: 2512 | C22: =CONCATENATE(ใส่ชื่อ!C17) -> 3084 | D22: =CONCATENATE(ใส่ชื่อ!D17&ใส่ชื่อ!E17&" "&ใส่ชื่อ!F17) -> เด็กชายธนวุฒิ - | E22: =ใส่ชื่อ!A17 -> 16 | F22: 10 | G22: 10 | H22: 10 | I22: 9 | J22: 10 | K22: 16 | Z22: =IF(ใส่ชื่อ!D17="","",IF(DR22="ปกติ",SUM(F22,G22,H22,I22,J22,K22,L22,M22,N22,O22,P22,Q22,R22,S22,T22,U22,V22,W22,X22,Y22),"-")) -> 65 | AB22: 65 | AW22: =IF(ใส่ชื่อ!D17="","",IF(COUNTIF(AC22:AS22,0),"มผ",IF(DR22="ปกติ",SUM(AC22,AD22,AE22,AF22,AG22,AH22,AI22,AJ22,AK22,AL22,AM22,AN22,AO22,AP22,AQ22,AR22,AS22),"-"))) -> 0 | BO22: =IF(ใส่ชื่อ!D17="","",IF(COUNTIF(AZ22:BN22,0),"มผ",IF(DR22="ปกติ",SUM(AZ22,BA22,BB22,BC22,BD22,BE22,BF22,BG22,BH22,BI22,BJ22,BK22,BL22,BM22,BN22),"-"))) -> 0 | BR22: 25 | CG22: =IF(ใส่ชื่อ!D17="","",IF(DR22="ปกติ",SUM(BR22,BS22,BT22,BU22,BV22,BW22,BX22,BY22,BZ22,CA22,CB22,CC22,CD22,CE22,CF22),"-")) -> 25 | CI22: 25 | CJ22: 3 | CK22: 3 | CL22: 3 | CM22: 3 | CN22: 3 | CO22: =IF(ใส่ชื่อ!D17="","",IF(CJ22="","",(IF(CK22="","",(IF(CL22="","",(IF(CM22="","",(IF(CN22="","",(SUM(CJ22:CN22)))))))))))) -> 15 | CP22: 3 | CQ22: ดย | CR22: 3 | CS22: 3 | CT22: 3 | CU22: 3 | CV22: 3 | CW22: 3 | CX22: 3 | CY22: 3 | CZ22: 3 | DA22: 3 | DB22: ดย | DC22: 65 | DG22: =IF(ใส่ชื่อ!D17="","",IF(COUNTIF(DC22:DE22,"มผ"),"มผ",IF(DE22="มผ","มผ",IF(DR22="ปกติ",SUM(DC22:DD22,IF(DF22="",DE22,DF22)),"-")))) -> 65 | DI22: 25 | DL22: =IF(ใส่ชื่อ!D17="","",IF(DG22="","",IF(COUNTIF(DC22:DJ22,"มผ"),"มผ",IF(COUNTIF(DC22:DJ22,"-"),"-",IF(DR22="ปกติ",SUM(DG22,IF(DJ22="",DI22,DJ22))))))) -> 90 | DP22: =IF(ใส่ชื่อ!A17="","",IF(DL22="-","-",IF(DL22=0,"",IF(DR22="ปกติ",MAXA(DL22/2,DN22/2))))) -> 45 | DR22: =IF(เวลาเรียน!M24="","",เวลาเรียน!M24) -> ปกติ | DT22: 60 | DU22: 65 | DV22: 2
A23: 17 | B23: 2513 | C23: =CONCATENATE(ใส่ชื่อ!C18) -> 3098 | D23: =CONCATENATE(ใส่ชื่อ!D18&ใส่ชื่อ!E18&" "&ใส่ชื่อ!F18) -> เด็กหญิงวรรณพิชชา จันไทย | E23: =ใส่ชื่อ!A18 -> 17 | F23: 6 | G23: 5 | H23: 6 | I23: 7 | J23: 8 | K23: 13 | Z23: =IF(ใส่ชื่อ!D18="","",IF(DR23="ปกติ",SUM(F23,G23,H23,I23,J23,K23,L23,M23,N23,O23,P23,Q23,R23,S23,T23,U23,V23,W23,X23,Y23),"-")) -> 45 | AB23: 45 | AW23: =IF(ใส่ชื่อ!D18="","",IF(COUNTIF(AC23:AS23,0),"มผ",IF(DR23="ปกติ",SUM(AC23,AD23,AE23,AF23,AG23,AH23,AI23,AJ23,AK23,AL23,AM23,AN23,AO23,AP23,AQ23,AR23,AS23),"-"))) -> 0 | BO23: =IF(ใส่ชื่อ!D18="","",IF(COUNTIF(AZ23:BN23,0),"มผ",IF(DR23="ปกติ",SUM(AZ23,BA23,BB23,BC23,BD23,BE23,BF23,BG23,BH23,BI23,BJ23,BK23,BL23,BM23,BN23),"-"))) -> 0 | BR23: 17 | CG23: =IF(ใส่ชื่อ!D18="","",IF(DR23="ปกติ",SUM(BR23,BS23,BT23,BU23,BV23,BW23,BX23,BY23,BZ23,CA23,CB23,CC23,CD23,CE23,CF23),"-")) -> 17 | CI23: 17 | CJ23: 3 | CK23: 2 | CL23: 2 | CM23: 2 | CN23: 3 | CO23: =IF(ใส่ชื่อ!D18="","",IF(CJ23="","",(IF(CK23="","",(IF(CL23="","",(IF(CM23="","",(IF(CN23="","",(SUM(CJ23:CN23)))))))))))) -> 12 | CP23: 2 | CQ23: ด | CR23: 3 | CS23: 3 | CT23: 2 | CU23: 2 | CV23: 2 | CW23: 2 | CX23: 3 | CY23: 3 | CZ23: 3 | DA23: 3 | DB23: ดย | DC23: 45 | DG23: =IF(ใส่ชื่อ!D18="","",IF(COUNTIF(DC23:DE23,"มผ"),"มผ",IF(DE23="มผ","มผ",IF(DR23="ปกติ",SUM(DC23:DD23,IF(DF23="",DE23,DF23)),"-")))) -> 45 | DI23: 17 | DL23: =IF(ใส่ชื่อ!D18="","",IF(DG23="","",IF(COUNTIF(DC23:DJ23,"มผ"),"มผ",IF(COUNTIF(DC23:DJ23,"-"),"-",IF(DR23="ปกติ",SUM(DG23,IF(DJ23="",DI23,DJ23))))))) -> 62 | DP23: =IF(ใส่ชื่อ!A18="","",IF(DL23="-","-",IF(DL23=0,"",IF(DR23="ปกติ",MAXA(DL23/2,DN23/2))))) -> 31 | DR23: =IF(เวลาเรียน!M25="","",เวลาเรียน!M25) -> ปกติ | DT23: 65 | DU23: 70 | DV23: 2.5
A24: 18 | B24: 2514 | C24: =CONCATENATE(ใส่ชื่อ!C19) -> 3111 | D24: =CONCATENATE(ใส่ชื่อ!D19&ใส่ชื่อ!E19&" "&ใส่ชื่อ!F19) -> เด็กหญิงมานาทิพย์ สมดี | E24: =ใส่ชื่อ!A19 -> 18 | F24: 9 | G24: 8 | H24: 9 | I24: 8 | J24: 9 | K24: 15 | Z24: =IF(ใส่ชื่อ!D19="","",IF(DR24="ปกติ",SUM(F24,G24,H24,I24,J24,K24,L24,M24,N24,O24,P24,Q24,R24,S24,T24,U24,V24,W24,X24,Y24),"-")) -> 58 | AB24: 58 | AW24: =IF(ใส่ชื่อ!D19="","",IF(COUNTIF(AC24:AS24,0),"มผ",IF(DR24="ปกติ",SUM(AC24,AD24,AE24,AF24,AG24,AH24,AI24,AJ24,AK24,AL24,AM24,AN24,AO24,AP24,AQ24,AR24,AS24),"-"))) -> 0 | BO24: =IF(ใส่ชื่อ!D19="","",IF(COUNTIF(AZ24:BN24,0),"มผ",IF(DR24="ปกติ",SUM(AZ24,BA24,BB24,BC24,BD24,BE24,BF24,BG24,BH24,BI24,BJ24,BK24,BL24,BM24,BN24),"-"))) -> 0 | BR24: 19 | CG24: =IF(ใส่ชื่อ!D19="","",IF(DR24="ปกติ",SUM(BR24,BS24,BT24,BU24,BV24,BW24,BX24,BY24,BZ24,CA24,CB24,CC24,CD24,CE24,CF24),"-")) -> 19 | CI24: 19 | CJ24: 3 | CK24: 3 | CL24: 3 | CM24: 3 | CN24: 3 | CO24: =IF(ใส่ชื่อ!D19="","",IF(CJ24="","",(IF(CK24="","",(IF(CL24="","",(IF(CM24="","",(IF(CN24="","",(SUM(CJ24:CN24)))))))))))) -> 15 | CP24: 3 | CQ24: ดย | CR24: 3 | CS24: 3 | CT24: 3 | CU24: 3 | CV24: 3 | CW24: 3 | CX24: 3 | CY24: 3 | CZ24: 3 | DA24: 3 | DB24: ดย | DC24: 58 | DG24: =IF(ใส่ชื่อ!D19="","",IF(COUNTIF(DC24:DE24,"มผ"),"มผ",IF(DE24="มผ","มผ",IF(DR24="ปกติ",SUM(DC24:DD24,IF(DF24="",DE24,DF24)),"-")))) -> 58 | DI24: 19 | DL24: =IF(ใส่ชื่อ!D19="","",IF(DG24="","",IF(COUNTIF(DC24:DJ24,"มผ"),"มผ",IF(COUNTIF(DC24:DJ24,"-"),"-",IF(DR24="ปกติ",SUM(DG24,IF(DJ24="",DI24,DJ24))))))) -> 77 | DP24: =IF(ใส่ชื่อ!A19="","",IF(DL24="-","-",IF(DL24=0,"",IF(DR24="ปกติ",MAXA(DL24/2,DN24/2))))) -> 38.5 | DR24: =IF(เวลาเรียน!M26="","",เวลาเรียน!M26) -> ปกติ | DT24: 70 | DU24: 75 | DV24: 3
A25: 19 | B25: 2515 | C25: =CONCATENATE(ใส่ชื่อ!C20) -> 3181 | D25: =CONCATENATE(ใส่ชื่อ!D20&ใส่ชื่อ!E20&" "&ใส่ชื่อ!F20) -> เด็กหญิงชุติกาญจน์ เอี่ยมโสด | E25: =ใส่ชื่อ!A20 -> 19 | F25: 7 | G25: 7 | H25: 8 | I25: 7 | J25: 7 | K25: 13 | Z25: =IF(ใส่ชื่อ!D20="","",IF(DR25="ปกติ",SUM(F25,G25,H25,I25,J25,K25,L25,M25,N25,O25,P25,Q25,R25,S25,T25,U25,V25,W25,X25,Y25),"-")) -> 49 | AB25: 49 | AW25: =IF(ใส่ชื่อ!D20="","",IF(COUNTIF(AC25:AS25,0),"มผ",IF(DR25="ปกติ",SUM(AC25,AD25,AE25,AF25,AG25,AH25,AI25,AJ25,AK25,AL25,AM25,AN25,AO25,AP25,AQ25,AR25,AS25),"-"))) -> 0 | BO25: =IF(ใส่ชื่อ!D20="","",IF(COUNTIF(AZ25:BN25,0),"มผ",IF(DR25="ปกติ",SUM(AZ25,BA25,BB25,BC25,BD25,BE25,BF25,BG25,BH25,BI25,BJ25,BK25,BL25,BM25,BN25),"-"))) -> 0 | BR25: 21 | CG25: =IF(ใส่ชื่อ!D20="","",IF(DR25="ปกติ",SUM(BR25,BS25,BT25,BU25,BV25,BW25,BX25,BY25,BZ25,CA25,CB25,CC25,CD25,CE25,CF25),"-")) -> 21 | CI25: 21 | CJ25: 3 | CK25: 3 | CL25: 3 | CM25: 3 | CN25: 3 | CO25: =IF(ใส่ชื่อ!D20="","",IF(CJ25="","",(IF(CK25="","",(IF(CL25="","",(IF(CM25="","",(IF(CN25="","",(SUM(CJ25:CN25)))))))))))) -> 15 | CP25: 3 | CQ25: ดย | CR25: 3 | CS25: 3 | CT25: 3 | CU25: 3 | CV25: 3 | CW25: 3 | CX25: 3 | CY25: 3 | CZ25: 3 | DA25: 3 | DB25: ดย | DC25: 49 | DG25: =IF(ใส่ชื่อ!D20="","",IF(COUNTIF(DC25:DE25,"มผ"),"มผ",IF(DE25="มผ","มผ",IF(DR25="ปกติ",SUM(DC25:DD25,IF(DF25="",DE25,DF25)),"-")))) -> 49 | DI25: 21 | DL25: =IF(ใส่ชื่อ!D20="","",IF(DG25="","",IF(COUNTIF(DC25:DJ25,"มผ"),"มผ",IF(COUNTIF(DC25:DJ25,"-"),"-",IF(DR25="ปกติ",SUM(DG25,IF(DJ25="",DI25,DJ25))))))) -> 70 | DP25: =IF(ใส่ชื่อ!A20="","",IF(DL25="-","-",IF(DL25=0,"",IF(DR25="ปกติ",MAXA(DL25/2,DN25/2))))) -> 35 | DR25: =IF(เวลาเรียน!M27="","",เวลาเรียน!M27) -> ปกติ | DT25: 75 | DU25: 80 | DV25: 3.5
A26: 20 | B26: 2516 | C26: =CONCATENATE(ใส่ชื่อ!C21) ->  | D26: =CONCATENATE(ใส่ชื่อ!D21&ใส่ชื่อ!E21&" "&ใส่ชื่อ!F21) -> เด็กหญิงฐิตาภรณ์ แย้มนาค | E26: =ใส่ชื่อ!A21 -> 20 | F26: 10 | G26: 8 | H26: 9 | I26: 10 | J26: 10 | K26: 14 | Z26: =IF(ใส่ชื่อ!D21="","",IF(DR26="ปกติ",SUM(F26,G26,H26,I26,J26,K26,L26,M26,N26,O26,P26,Q26,R26,S26,T26,U26,V26,W26,X26,Y26),"-")) -> 61 | AB26: 61 | AW26: =IF(ใส่ชื่อ!D21="","",IF(COUNTIF(AC26:AS26,0),"มผ",IF(DR26="ปกติ",SUM(AC26,AD26,AE26,AF26,AG26,AH26,AI26,AJ26,AK26,AL26,AM26,AN26,AO26,AP26,AQ26,AR26,AS26),"-"))) -> 0 | BO26: =IF(ใส่ชื่อ!D21="","",IF(COUNTIF(AZ26:BN26,0),"มผ",IF(DR26="ปกติ",SUM(AZ26,BA26,BB26,BC26,BD26,BE26,BF26,BG26,BH26,BI26,BJ26,BK26,BL26,BM26,BN26),"-"))) -> 0 | BR26: 23 | CG26: =IF(ใส่ชื่อ!D21="","",IF(DR26="ปกติ",SUM(BR26,BS26,BT26,BU26,BV26,BW26,BX26,BY26,BZ26,CA26,CB26,CC26,CD26,CE26,CF26),"-")) -> 23 | CI26: 23 | CJ26: 3 | CK26: 3 | CL26: 3 | CM26: 3 | CN26: 3 | CO26: =IF(ใส่ชื่อ!D21="","",IF(CJ26="","",(IF(CK26="","",(IF(CL26="","",(IF(CM26="","",(IF(CN26="","",(SUM(CJ26:CN26)))))))))))) -> 15 | CP26: 3 | CQ26: ดย | CR26: 3 | CS26: 3 | CT26: 3 | CU26: 3 | CV26: 3 | CW26: 3 | CX26: 3 | CY26: 3 | CZ26: 3 | DA26: 3 | DB26: ดย | DC26: 61 | DG26: =IF(ใส่ชื่อ!D21="","",IF(COUNTIF(DC26:DE26,"มผ"),"มผ",IF(DE26="มผ","มผ",IF(DR26="ปกติ",SUM(DC26:DD26,IF(DF26="",DE26,DF26)),"-")))) -> 61 | DI26: 23 | DL26: =IF(ใส่ชื่อ!D21="","",IF(DG26="","",IF(COUNTIF(DC26:DJ26,"มผ"),"มผ",IF(COUNTIF(DC26:DJ26,"-"),"-",IF(DR26="ปกติ",SUM(DG26,IF(DJ26="",DI26,DJ26))))))) -> 84 | DP26: =IF(ใส่ชื่อ!A21="","",IF(DL26="-","-",IF(DL26=0,"",IF(DR26="ปกติ",MAXA(DL26/2,DN26/2))))) -> 42 | DR26: =IF(เวลาเรียน!M28="","",เวลาเรียน!M28) -> ปกติ | DT26: 80 | DU26: 100 | DV26: 4
A27: 21 | B27: 2517 | C27: =CONCATENATE(ใส่ชื่อ!C22) ->  | D27: =CONCATENATE(ใส่ชื่อ!D22&ใส่ชื่อ!E22&" "&ใส่ชื่อ!F22) ->  | E27: =ใส่ชื่อ!A22 -> 0 | Z27: =IF(ใส่ชื่อ!D22="","",IF(DR27="ปกติ",SUM(F27,G27,H27,I27,J27,K27,L27,M27,N27,O27,P27,Q27,R27,S27,T27,U27,V27,W27,X27,Y27),"-")) ->  | AW27: =IF(ใส่ชื่อ!D22="","",IF(COUNTIF(AC27:AS27,0),"มผ",IF(DR27="ปกติ",SUM(AC27,AD27,AE27,AF27,AG27,AH27,AI27,AJ27,AK27,AL27,AM27,AN27,AO27,AP27,AQ27,AR27,AS27),"-"))) ->  | BO27: =IF(ใส่ชื่อ!D22="","",IF(COUNTIF(AZ27:BN27,0),"มผ",IF(DR27="ปกติ",SUM(AZ27,BA27,BB27,BC27,BD27,BE27,BF27,BG27,BH27,BI27,BJ27,BK27,BL27,BM27,BN27),"-"))) ->  | CG27: =IF(ใส่ชื่อ!D22="","",IF(DR27="ปกติ",SUM(BR27,BS27,BT27,BU27,BV27,BW27,BX27,BY27,BZ27,CA27,CB27,CC27,CD27,CE27,CF27),"-")) ->  | CO27: =IF(ใส่ชื่อ!D22="","",IF(CJ27="","",(IF(CK27="","",(IF(CL27="","",(IF(CM27="","",(IF(CN27="","",(SUM(CJ27:CN27)))))))))))) ->  | DG27: =IF(ใส่ชื่อ!D22="","",IF(COUNTIF(DC27:DE27,"มผ"),"มผ",IF(DE27="มผ","มผ",IF(DR27="ปกติ",SUM(DC27:DD27,IF(DF27="",DE27,DF27)),"-")))) ->  | DL27: =IF(ใส่ชื่อ!D22="","",IF(DG27="","",IF(COUNTIF(DC27:DJ27,"มผ"),"มผ",IF(COUNTIF(DC27:DJ27,"-"),"-",IF(DR27="ปกติ",SUM(DG27,IF(DJ27="",DI27,DJ27))))))) ->  | DP27: =IF(ใส่ชื่อ!A22="","",IF(DL27="-","-",IF(DL27=0,"",IF(DR27="ปกติ",MAXA(DL27/2,DN27/2))))) ->  | DR27: =IF(เวลาเรียน!M29="","",เวลาเรียน!M29) -> 
A28: 22 | B28: 2518 | C28: =CONCATENATE(ใส่ชื่อ!C23) ->  | D28: =CONCATENATE(ใส่ชื่อ!D23&ใส่ชื่อ!E23&" "&ใส่ชื่อ!F23) ->  | E28: =ใส่ชื่อ!A23 -> 0 | Z28: =IF(ใส่ชื่อ!D23="","",IF(DR28="ปกติ",SUM(F28,G28,H28,I28,J28,K28,L28,M28,N28,O28,P28,Q28,R28,S28,T28,U28,V28,W28,X28,Y28),"-")) ->  | AW28: =IF(ใส่ชื่อ!D23="","",IF(COUNTIF(AC28:AS28,0),"มผ",IF(DR28="ปกติ",SUM(AC28,AD28,AE28,AF28,AG28,AH28,AI28,AJ28,AK28,AL28,AM28,AN28,AO28,AP28,AQ28,AR28,AS28),"-"))) ->  | BO28: =IF(ใส่ชื่อ!D23="","",IF(COUNTIF(AZ28:BN28,0),"มผ",IF(DR28="ปกติ",SUM(AZ28,BA28,BB28,BC28,BD28,BE28,BF28,BG28,BH28,BI28,BJ28,BK28,BL28,BM28,BN28),"-"))) ->  | CG28: =IF(ใส่ชื่อ!D23="","",IF(DR28="ปกติ",SUM(BR28,BS28,BT28,BU28,BV28,BW28,BX28,BY28,BZ28,CA28,CB28,CC28,CD28,CE28,CF28),"-")) ->  | CO28: =IF(ใส่ชื่อ!D23="","",IF(CJ28="","",(IF(CK28="","",(IF(CL28="","",(IF(CM28="","",(IF(CN28="","",(SUM(CJ28:CN28)))))))))))) ->  | DG28: =IF(ใส่ชื่อ!D23="","",IF(COUNTIF(DC28:DE28,"มผ"),"มผ",IF(DE28="มผ","มผ",IF(DR28="ปกติ",SUM(DC28:DD28,IF(DF28="",DE28,DF28)),"-")))) ->  | DL28: =IF(ใส่ชื่อ!D23="","",IF(DG28="","",IF(COUNTIF(DC28:DJ28,"มผ"),"มผ",IF(COUNTIF(DC28:DJ28,"-"),"-",IF(DR28="ปกติ",SUM(DG28,IF(DJ28="",DI28,DJ28))))))) ->  | DP28: =IF(ใส่ชื่อ!A23="","",IF(DL28="-","-",IF(DL28=0,"",IF(DR28="ปกติ",MAXA(DL28/2,DN28/2))))) ->  | DR28: =IF(เวลาเรียน!M30="","",เวลาเรียน!M30) -> 
A29: 23 | B29: 2519 | C29: =CONCATENATE(ใส่ชื่อ!C24) ->  | D29: =CONCATENATE(ใส่ชื่อ!D24&ใส่ชื่อ!E24&" "&ใส่ชื่อ!F24) ->  | E29: =ใส่ชื่อ!A24 -> 0 | Z29: =IF(ใส่ชื่อ!D24="","",IF(DR29="ปกติ",SUM(F29,G29,H29,I29,J29,K29,L29,M29,N29,O29,P29,Q29,R29,S29,T29,U29,V29,W29,X29,Y29),"-")) ->  | AW29: =IF(ใส่ชื่อ!D24="","",IF(COUNTIF(AC29:AS29,0),"มผ",IF(DR29="ปกติ",SUM(AC29,AD29,AE29,AF29,AG29,AH29,AI29,AJ29,AK29,AL29,AM29,AN29,AO29,AP29,AQ29,AR29,AS29),"-"))) ->  | BO29: =IF(ใส่ชื่อ!D24="","",IF(COUNTIF(AZ29:BN29,0),"มผ",IF(DR29="ปกติ",SUM(AZ29,BA29,BB29,BC29,BD29,BE29,BF29,BG29,BH29,BI29,BJ29,BK29,BL29,BM29,BN29),"-"))) ->  | CG29: =IF(ใส่ชื่อ!D24="","",IF(DR29="ปกติ",SUM(BR29,BS29,BT29,BU29,BV29,BW29,BX29,BY29,BZ29,CA29,CB29,CC29,CD29,CE29,CF29),"-")) ->  | CO29: =IF(ใส่ชื่อ!D24="","",IF(CJ29="","",(IF(CK29="","",(IF(CL29="","",(IF(CM29="","",(IF(CN29="","",(SUM(CJ29:CN29)))))))))))) ->  | DG29: =IF(ใส่ชื่อ!D24="","",IF(COUNTIF(DC29:DE29,"มผ"),"มผ",IF(DE29="มผ","มผ",IF(DR29="ปกติ",SUM(DC29:DD29,IF(DF29="",DE29,DF29)),"-")))) ->  | DL29: =IF(ใส่ชื่อ!D24="","",IF(DG29="","",IF(COUNTIF(DC29:DJ29,"มผ"),"มผ",IF(COUNTIF(DC29:DJ29,"-"),"-",IF(DR29="ปกติ",SUM(DG29,IF(DJ29="",DI29,DJ29))))))) ->  | DP29: =IF(ใส่ชื่อ!A24="","",IF(DL29="-","-",IF(DL29=0,"",IF(DR29="ปกติ",MAXA(DL29/2,DN29/2))))) ->  | DR29: =IF(เวลาเรียน!M31="","",เวลาเรียน!M31) -> 
A30: 24 | B30: 2520 | C30: =CONCATENATE(ใส่ชื่อ!C25) ->  | D30: =CONCATENATE(ใส่ชื่อ!D25&ใส่ชื่อ!E25&" "&ใส่ชื่อ!F25) ->  | E30: =ใส่ชื่อ!A25 -> 0 | Z30: =IF(ใส่ชื่อ!D25="","",IF(DR30="ปกติ",SUM(F30,G30,H30,I30,J30,K30,L30,M30,N30,O30,P30,Q30,R30,S30,T30,U30,V30,W30,X30,Y30),"-")) ->  | AW30: =IF(ใส่ชื่อ!D25="","",IF(COUNTIF(AC30:AS30,0),"มผ",IF(DR30="ปกติ",SUM(AC30,AD30,AE30,AF30,AG30,AH30,AI30,AJ30,AK30,AL30,AM30,AN30,AO30,AP30,AQ30,AR30,AS30),"-"))) ->  | BO30: =IF(ใส่ชื่อ!D25="","",IF(COUNTIF(AZ30:BN30,0),"มผ",IF(DR30="ปกติ",SUM(AZ30,BA30,BB30,BC30,BD30,BE30,BF30,BG30,BH30,BI30,BJ30,BK30,BL30,BM30,BN30),"-"))) ->  | CG30: =IF(ใส่ชื่อ!D25="","",IF(DR30="ปกติ",SUM(BR30,BS30,BT30,BU30,BV30,BW30,BX30,BY30,BZ30,CA30,CB30,CC30,CD30,CE30,CF30),"-")) ->  | CO30: =IF(ใส่ชื่อ!D25="","",IF(CJ30="","",(IF(CK30="","",(IF(CL30="","",(IF(CM30="","",(IF(CN30="","",(SUM(CJ30:CN30)))))))))))) ->  | DG30: =IF(ใส่ชื่อ!D25="","",IF(COUNTIF(DC30:DE30,"มผ"),"มผ",IF(DE30="มผ","มผ",IF(DR30="ปกติ",SUM(DC30:DD30,IF(DF30="",DE30,DF30)),"-")))) ->  | DL30: =IF(ใส่ชื่อ!D25="","",IF(DG30="","",IF(COUNTIF(DC30:DJ30,"มผ"),"มผ",IF(COUNTIF(DC30:DJ30,"-"),"-",IF(DR30="ปกติ",SUM(DG30,IF(DJ30="",DI30,DJ30))))))) ->  | DP30: =IF(ใส่ชื่อ!A25="","",IF(DL30="-","-",IF(DL30=0,"",IF(DR30="ปกติ",MAXA(DL30/2,DN30/2))))) ->  | DR30: =IF(เวลาเรียน!M32="","",เวลาเรียน!M32) -> 
A31: 25 | B31: 2521 | C31: =CONCATENATE(ใส่ชื่อ!C26) ->  | D31: =CONCATENATE(ใส่ชื่อ!D26&ใส่ชื่อ!E26&" "&ใส่ชื่อ!F26) ->  | E31: =ใส่ชื่อ!A26 -> 0 | Z31: =IF(ใส่ชื่อ!D26="","",IF(DR31="ปกติ",SUM(F31,G31,H31,I31,J31,K31,L31,M31,N31,O31,P31,Q31,R31,S31,T31,U31,V31,W31,X31,Y31),"-")) ->  | AW31: =IF(ใส่ชื่อ!D26="","",IF(COUNTIF(AC31:AS31,0),"มผ",IF(DR31="ปกติ",SUM(AC31,AD31,AE31,AF31,AG31,AH31,AI31,AJ31,AK31,AL31,AM31,AN31,AO31,AP31,AQ31,AR31,AS31),"-"))) ->  | BO31: =IF(ใส่ชื่อ!D26="","",IF(COUNTIF(AZ31:BN31,0),"มผ",IF(DR31="ปกติ",SUM(AZ31,BA31,BB31,BC31,BD31,BE31,BF31,BG31,BH31,BI31,BJ31,BK31,BL31,BM31,BN31),"-"))) ->  | CG31: =IF(ใส่ชื่อ!D26="","",IF(DR31="ปกติ",SUM(BR31,BS31,BT31,BU31,BV31,BW31,BX31,BY31,BZ31,CA31,CB31,CC31,CD31,CE31,CF31),"-")) ->  | CO31: =IF(ใส่ชื่อ!D26="","",IF(CJ31="","",(IF(CK31="","",(IF(CL31="","",(IF(CM31="","",(IF(CN31="","",(SUM(CJ31:CN31)))))))))))) ->  | DG31: =IF(ใส่ชื่อ!D26="","",IF(COUNTIF(DC31:DE31,"มผ"),"มผ",IF(DE31="มผ","มผ",IF(DR31="ปกติ",SUM(DC31:DD31,IF(DF31="",DE31,DF31)),"-")))) ->  | DL31: =IF(ใส่ชื่อ!D26="","",IF(DG31="","",IF(COUNTIF(DC31:DJ31,"มผ"),"มผ",IF(COUNTIF(DC31:DJ31,"-"),"-",IF(DR31="ปกติ",SUM(DG31,IF(DJ31="",DI31,DJ31))))))) ->  | DP31: =IF(ใส่ชื่อ!A26="","",IF(DL31="-","-",IF(DL31=0,"",IF(DR31="ปกติ",MAXA(DL31/2,DN31/2))))) ->  | DR31: =IF(เวลาเรียน!M33="","",เวลาเรียน!M33) -> 
A32: 26 | B32: 2522 | C32: =CONCATENATE(ใส่ชื่อ!C27) ->  | D32: =CONCATENATE(ใส่ชื่อ!D27&ใส่ชื่อ!E27&" "&ใส่ชื่อ!F27) ->  | E32: =ใส่ชื่อ!A27 -> 0 | Z32: =IF(ใส่ชื่อ!D27="","",IF(DR32="ปกติ",SUM(F32,G32,H32,I32,J32,K32,L32,M32,N32,O32,P32,Q32,R32,S32,T32,U32,V32,W32,X32,Y32),"-")) ->  | AW32: =IF(ใส่ชื่อ!D27="","",IF(COUNTIF(AC32:AS32,0),"มผ",IF(DR32="ปกติ",SUM(AC32,AD32,AE32,AF32,AG32,AH32,AI32,AJ32,AK32,AL32,AM32,AN32,AO32,AP32,AQ32,AR32,AS32),"-"))) ->  | BO32: =IF(ใส่ชื่อ!D27="","",IF(COUNTIF(AZ32:BN32,0),"มผ",IF(DR32="ปกติ",SUM(AZ32,BA32,BB32,BC32,BD32,BE32,BF32,BG32,BH32,BI32,BJ32,BK32,BL32,BM32,BN32),"-"))) ->  | CG32: =IF(ใส่ชื่อ!D27="","",IF(DR32="ปกติ",SUM(BR32,BS32,BT32,BU32,BV32,BW32,BX32,BY32,BZ32,CA32,CB32,CC32,CD32,CE32,CF32),"-")) ->  | CO32: =IF(ใส่ชื่อ!D27="","",IF(CJ32="","",(IF(CK32="","",(IF(CL32="","",(IF(CM32="","",(IF(CN32="","",(SUM(CJ32:CN32)))))))))))) ->  | DG32: =IF(ใส่ชื่อ!D27="","",IF(COUNTIF(DC32:DE32,"มผ"),"มผ",IF(DE32="มผ","มผ",IF(DR32="ปกติ",SUM(DC32:DD32,IF(DF32="",DE32,DF32)),"-")))) ->  | DL32: =IF(ใส่ชื่อ!D27="","",IF(DG32="","",IF(COUNTIF(DC32:DJ32,"มผ"),"มผ",IF(COUNTIF(DC32:DJ32,"-"),"-",IF(DR32="ปกติ",SUM(DG32,IF(DJ32="",DI32,DJ32))))))) ->  | DP32: =IF(ใส่ชื่อ!A27="","",IF(DL32="-","-",IF(DL32=0,"",IF(DR32="ปกติ",MAXA(DL32/2,DN32/2))))) ->  | DR32: =IF(เวลาเรียน!M34="","",เวลาเรียน!M34) -> 
A33: 27 | B33: 2523 | C33: =CONCATENATE(ใส่ชื่อ!C28) ->  | D33: =CONCATENATE(ใส่ชื่อ!D28&ใส่ชื่อ!E28&" "&ใส่ชื่อ!F28) ->  | E33: =ใส่ชื่อ!A28 -> 0 | Z33: =IF(ใส่ชื่อ!D28="","",IF(DR33="ปกติ",SUM(F33,G33,H33,I33,J33,K33,L33,M33,N33,O33,P33,Q33,R33,S33,T33,U33,V33,W33,X33,Y33),"-")) ->  | AW33: =IF(ใส่ชื่อ!D28="","",IF(COUNTIF(AC33:AS33,0),"มผ",IF(DR33="ปกติ",SUM(AC33,AD33,AE33,AF33,AG33,AH33,AI33,AJ33,AK33,AL33,AM33,AN33,AO33,AP33,AQ33,AR33,AS33),"-"))) ->  | BO33: =IF(ใส่ชื่อ!D28="","",IF(COUNTIF(AZ33:BN33,0),"มผ",IF(DR33="ปกติ",SUM(AZ33,BA33,BB33,BC33,BD33,BE33,BF33,BG33,BH33,BI33,BJ33,BK33,BL33,BM33,BN33),"-"))) ->  | CG33: =IF(ใส่ชื่อ!D28="","",IF(DR33="ปกติ",SUM(BR33,BS33,BT33,BU33,BV33,BW33,BX33,BY33,BZ33,CA33,CB33,CC33,CD33,CE33,CF33),"-")) ->  | CO33: =IF(ใส่ชื่อ!D28="","",IF(CJ33="","",(IF(CK33="","",(IF(CL33="","",(IF(CM33="","",(IF(CN33="","",(SUM(CJ33:CN33)))))))))))) ->  | DG33: =IF(ใส่ชื่อ!D28="","",IF(COUNTIF(DC33:DE33,"มผ"),"มผ",IF(DE33="มผ","มผ",IF(DR33="ปกติ",SUM(DC33:DD33,IF(DF33="",DE33,DF33)),"-")))) ->  | DL33: =IF(ใส่ชื่อ!D28="","",IF(DG33="","",IF(COUNTIF(DC33:DJ33,"มผ"),"มผ",IF(COUNTIF(DC33:DJ33,"-"),"-",IF(DR33="ปกติ",SUM(DG33,IF(DJ33="",DI33,DJ33))))))) ->  | DP33: =IF(ใส่ชื่อ!A28="","",IF(DL33="-","-",IF(DL33=0,"",IF(DR33="ปกติ",MAXA(DL33/2,DN33/2))))) ->  | DR33: =IF(เวลาเรียน!M35="","",เวลาเรียน!M35) -> 
A34: 28 | B34: 2524 | C34: =CONCATENATE(ใส่ชื่อ!C29) ->  | D34: =CONCATENATE(ใส่ชื่อ!D29&ใส่ชื่อ!E29&" "&ใส่ชื่อ!F29) ->  | E34: =ใส่ชื่อ!A29 -> 0 | Z34: =IF(ใส่ชื่อ!D29="","",IF(DR34="ปกติ",SUM(F34,G34,H34,I34,J34,K34,L34,M34,N34,O34,P34,Q34,R34,S34,T34,U34,V34,W34,X34,Y34),"-")) ->  | AW34: =IF(ใส่ชื่อ!D29="","",IF(COUNTIF(AC34:AS34,0),"มผ",IF(DR34="ปกติ",SUM(AC34,AD34,AE34,AF34,AG34,AH34,AI34,AJ34,AK34,AL34,AM34,AN34,AO34,AP34,AQ34,AR34,AS34),"-"))) ->  | BO34: =IF(ใส่ชื่อ!D29="","",IF(COUNTIF(AZ34:BN34,0),"มผ",IF(DR34="ปกติ",SUM(AZ34,BA34,BB34,BC34,BD34,BE34,BF34,BG34,BH34,BI34,BJ34,BK34,BL34,BM34,BN34),"-"))) ->  | CG34: =IF(ใส่ชื่อ!D29="","",IF(DR34="ปกติ",SUM(BR34,BS34,BT34,BU34,BV34,BW34,BX34,BY34,BZ34,CA34,CB34,CC34,CD34,CE34,CF34),"-")) ->  | CO34: =IF(ใส่ชื่อ!D29="","",IF(CJ34="","",(IF(CK34="","",(IF(CL34="","",(IF(CM34="","",(IF(CN34="","",(SUM(CJ34:CN34)))))))))))) ->  | DG34: =IF(ใส่ชื่อ!D29="","",IF(COUNTIF(DC34:DE34,"มผ"),"มผ",IF(DE34="มผ","มผ",IF(DR34="ปกติ",SUM(DC34:DD34,IF(DF34="",DE34,DF34)),"-")))) ->  | DL34: =IF(ใส่ชื่อ!D29="","",IF(DG34="","",IF(COUNTIF(DC34:DJ34,"มผ"),"มผ",IF(COUNTIF(DC34:DJ34,"-"),"-",IF(DR34="ปกติ",SUM(DG34,IF(DJ34="",DI34,DJ34))))))) ->  | DP34: =IF(ใส่ชื่อ!A29="","",IF(DL34="-","-",IF(DL34=0,"",IF(DR34="ปกติ",MAXA(DL34/2,DN34/2))))) ->  | DR34: =IF(เวลาเรียน!M36="","",เวลาเรียน!M36) -> 
A35: 29 | B35: 2525 | C35: =CONCATENATE(ใส่ชื่อ!C30) ->  | D35: =CONCATENATE(ใส่ชื่อ!D30&ใส่ชื่อ!E30&" "&ใส่ชื่อ!F30) ->  | E35: =ใส่ชื่อ!A30 -> 0 | Z35: =IF(ใส่ชื่อ!D30="","",IF(DR35="ปกติ",SUM(F35,G35,H35,I35,J35,K35,L35,M35,N35,O35,P35,Q35,R35,S35,T35,U35,V35,W35,X35,Y35),"-")) ->  | AW35: =IF(ใส่ชื่อ!D30="","",IF(COUNTIF(AC35:AS35,0),"มผ",IF(DR35="ปกติ",SUM(AC35,AD35,AE35,AF35,AG35,AH35,AI35,AJ35,AK35,AL35,AM35,AN35,AO35,AP35,AQ35,AR35,AS35),"-"))) ->  | BO35: =IF(ใส่ชื่อ!D30="","",IF(COUNTIF(AZ35:BN35,0),"มผ",IF(DR35="ปกติ",SUM(AZ35,BA35,BB35,BC35,BD35,BE35,BF35,BG35,BH35,BI35,BJ35,BK35,BL35,BM35,BN35),"-"))) ->  | CG35: =IF(ใส่ชื่อ!D30="","",IF(DR35="ปกติ",SUM(BR35,BS35,BT35,BU35,BV35,BW35,BX35,BY35,BZ35,CA35,CB35,CC35,CD35,CE35,CF35),"-")) ->  | CO35: =IF(ใส่ชื่อ!D30="","",IF(CJ35="","",(IF(CK35="","",(IF(CL35="","",(IF(CM35="","",(IF(CN35="","",(SUM(CJ35:CN35)))))))))))) ->  | DG35: =IF(ใส่ชื่อ!D30="","",IF(COUNTIF(DC35:DE35,"มผ"),"มผ",IF(DE35="มผ","มผ",IF(DR35="ปกติ",SUM(DC35:DD35,IF(DF35="",DE35,DF35)),"-")))) ->  | DL35: =IF(ใส่ชื่อ!D30="","",IF(DG35="","",IF(COUNTIF(DC35:DJ35,"มผ"),"มผ",IF(COUNTIF(DC35:DJ35,"-"),"-",IF(DR35="ปกติ",SUM(DG35,IF(DJ35="",DI35,DJ35))))))) ->  | DP35: =IF(ใส่ชื่อ!A30="","",IF(DL35="-","-",IF(DL35=0,"",IF(DR35="ปกติ",MAXA(DL35/2,DN35/2))))) ->  | DR35: =IF(เวลาเรียน!M37="","",เวลาเรียน!M37) -> 
A36: 30 | B36: 2526 | C36: =CONCATENATE(ใส่ชื่อ!C31) ->  | D36: =CONCATENATE(ใส่ชื่อ!D31&ใส่ชื่อ!E31&" "&ใส่ชื่อ!F31) ->  | E36: =ใส่ชื่อ!A31 -> 0 | Z36: =IF(ใส่ชื่อ!D31="","",IF(DR36="ปกติ",SUM(F36,G36,H36,I36,J36,K36,L36,M36,N36,O36,P36,Q36,R36,S36,T36,U36,V36,W36,X36,Y36),"-")) ->  | AW36: =IF(ใส่ชื่อ!D31="","",IF(COUNTIF(AC36:AS36,0),"มผ",IF(DR36="ปกติ",SUM(AC36,AD36,AE36,AF36,AG36,AH36,AI36,AJ36,AK36,AL36,AM36,AN36,AO36,AP36,AQ36,AR36,AS36),"-"))) ->  | BO36: =IF(ใส่ชื่อ!D31="","",IF(COUNTIF(AZ36:BN36,0),"มผ",IF(DR36="ปกติ",SUM(AZ36,BA36,BB36,BC36,BD36,BE36,BF36,BG36,BH36,BI36,BJ36,BK36,BL36,BM36,BN36),"-"))) ->  | CG36: =IF(ใส่ชื่อ!D31="","",IF(DR36="ปกติ",SUM(BR36,BS36,BT36,BU36,BV36,BW36,BX36,BY36,BZ36,CA36,CB36,CC36,CD36,CE36,CF36),"-")) ->  | CO36: =IF(ใส่ชื่อ!D31="","",IF(CJ36="","",(IF(CK36="","",(IF(CL36="","",(IF(CM36="","",(IF(CN36="","",(SUM(CJ36:CN36)))))))))))) ->  | DG36: =IF(ใส่ชื่อ!D31="","",IF(COUNTIF(DC36:DE36,"มผ"),"มผ",IF(DE36="มผ","มผ",IF(DR36="ปกติ",SUM(DC36:DD36,IF(DF36="",DE36,DF36)),"-")))) ->  | DL36: =IF(ใส่ชื่อ!D31="","",IF(DG36="","",IF(COUNTIF(DC36:DJ36,"มผ"),"มผ",IF(COUNTIF(DC36:DJ36,"-"),"-",IF(DR36="ปกติ",SUM(DG36,IF(DJ36="",DI36,DJ36))))))) ->  | DP36: =IF(ใส่ชื่อ!A31="","",IF(DL36="-","-",IF(DL36=0,"",IF(DR36="ปกติ",MAXA(DL36/2,DN36/2))))) ->  | DR36: =IF(เวลาเรียน!M38="","",เวลาเรียน!M38) -> 
A37: 31 | B37: 2528 | C37: =CONCATENATE(ใส่ชื่อ!C32) ->  | D37: =CONCATENATE(ใส่ชื่อ!D32&ใส่ชื่อ!E32&" "&ใส่ชื่อ!F32) ->  | E37: =ใส่ชื่อ!A32 -> 0 | Z37: =IF(ใส่ชื่อ!D32="","",IF(DR37="ปกติ",SUM(F37,G37,H37,I37,J37,K37,L37,M37,N37,O37,P37,Q37,R37,S37,T37,U37,V37,W37,X37,Y37),"-")) ->  | AW37: =IF(ใส่ชื่อ!D32="","",IF(COUNTIF(AC37:AS37,0),"มผ",IF(DR37="ปกติ",SUM(AC37,AD37,AE37,AF37,AG37,AH37,AI37,AJ37,AK37,AL37,AM37,AN37,AO37,AP37,AQ37,AR37,AS37),"-"))) ->  | BO37: =IF(ใส่ชื่อ!D32="","",IF(COUNTIF(AZ37:BN37,0),"มผ",IF(DR37="ปกติ",SUM(AZ37,BA37,BB37,BC37,BD37,BE37,BF37,BG37,BH37,BI37,BJ37,BK37,BL37,BM37,BN37),"-"))) ->  | CG37: =IF(ใส่ชื่อ!D32="","",IF(DR37="ปกติ",SUM(BR37,BS37,BT37,BU37,BV37,BW37,BX37,BY37,BZ37,CA37,CB37,CC37,CD37,CE37,CF37),"-")) ->  | CO37: =IF(ใส่ชื่อ!D32="","",IF(CJ37="","",(IF(CK37="","",(IF(CL37="","",(IF(CM37="","",(IF(CN37="","",(SUM(CJ37:CN37)))))))))))) ->  | DG37: =IF(ใส่ชื่อ!D32="","",IF(COUNTIF(DC37:DE37,"มผ"),"มผ",IF(DE37="มผ","มผ",IF(DR37="ปกติ",SUM(DC37:DD37,IF(DF37="",DE37,DF37)),"-")))) ->  | DL37: =IF(ใส่ชื่อ!D32="","",IF(DG37="","",IF(COUNTIF(DC37:DJ37,"มผ"),"มผ",IF(COUNTIF(DC37:DJ37,"-"),"-",IF(DR37="ปกติ",SUM(DG37,IF(DJ37="",DI37,DJ37))))))) ->  | DP37: =IF(ใส่ชื่อ!A32="","",IF(DL37="-","-",IF(DL37=0,"",IF(DR37="ปกติ",MAXA(DL37/2,DN37/2))))) ->  | DR37: =IF(เวลาเรียน!M39="","",เวลาเรียน!M39) -> 
A38: 32 | B38: 2529 | C38: =CONCATENATE(ใส่ชื่อ!C33) ->  | D38: =CONCATENATE(ใส่ชื่อ!D33&ใส่ชื่อ!E33&" "&ใส่ชื่อ!F33) ->  | E38: =ใส่ชื่อ!A33 -> 0 | Z38: =IF(ใส่ชื่อ!D33="","",IF(DR38="ปกติ",SUM(F38,G38,H38,I38,J38,K38,L38,M38,N38,O38,P38,Q38,R38,S38,T38,U38,V38,W38,X38,Y38),"-")) ->  | AW38: =IF(ใส่ชื่อ!D33="","",IF(COUNTIF(AC38:AS38,0),"มผ",IF(DR38="ปกติ",SUM(AC38,AD38,AE38,AF38,AG38,AH38,AI38,AJ38,AK38,AL38,AM38,AN38,AO38,AP38,AQ38,AR38,AS38),"-"))) ->  | BO38: =IF(ใส่ชื่อ!D33="","",IF(COUNTIF(AZ38:BN38,0),"มผ",IF(DR38="ปกติ",SUM(AZ38,BA38,BB38,BC38,BD38,BE38,BF38,BG38,BH38,BI38,BJ38,BK38,BL38,BM38,BN38),"-"))) ->  | CG38: =IF(ใส่ชื่อ!D33="","",IF(DR38="ปกติ",SUM(BR38,BS38,BT38,BU38,BV38,BW38,BX38,BY38,BZ38,CA38,CB38,CC38,CD38,CE38,CF38),"-")) ->  | CO38: =IF(ใส่ชื่อ!D33="","",IF(CJ38="","",(IF(CK38="","",(IF(CL38="","",(IF(CM38="","",(IF(CN38="","",(SUM(CJ38:CN38)))))))))))) ->  | DG38: =IF(ใส่ชื่อ!D33="","",IF(COUNTIF(DC38:DE38,"มผ"),"มผ",IF(DE38="มผ","มผ",IF(DR38="ปกติ",SUM(DC38:DD38,IF(DF38="",DE38,DF38)),"-")))) ->  | DL38: =IF(ใส่ชื่อ!D33="","",IF(DG38="","",IF(COUNTIF(DC38:DJ38,"มผ"),"มผ",IF(COUNTIF(DC38:DJ38,"-"),"-",IF(DR38="ปกติ",SUM(DG38,IF(DJ38="",DI38,DJ38))))))) ->  | DP38: =IF(ใส่ชื่อ!A33="","",IF(DL38="-","-",IF(DL38=0,"",IF(DR38="ปกติ",MAXA(DL38/2,DN38/2))))) ->  | DR38: =IF(เวลาเรียน!M40="","",เวลาเรียน!M40) -> 
A39: 33 | B39: 0 | C39: =CONCATENATE(ใส่ชื่อ!C34) ->  | D39: =CONCATENATE(ใส่ชื่อ!D34&ใส่ชื่อ!E34&" "&ใส่ชื่อ!F34) ->  | E39: =ใส่ชื่อ!A34 -> 0 | Z39: =IF(ใส่ชื่อ!D34="","",IF(DR39="ปกติ",SUM(F39,G39,H39,I39,J39,K39,L39,M39,N39,O39,P39,Q39,R39,S39,T39,U39,V39,W39,X39,Y39),"-")) ->  | AW39: =IF(ใส่ชื่อ!D34="","",IF(COUNTIF(AC39:AS39,0),"มผ",IF(DR39="ปกติ",SUM(AC39,AD39,AE39,AF39,AG39,AH39,AI39,AJ39,AK39,AL39,AM39,AN39,AO39,AP39,AQ39,AR39,AS39),"-"))) ->  | BO39: =IF(ใส่ชื่อ!D34="","",IF(COUNTIF(AZ39:BN39,0),"มผ",IF(DR39="ปกติ",SUM(AZ39,BA39,BB39,BC39,BD39,BE39,BF39,BG39,BH39,BI39,BJ39,BK39,BL39,BM39,BN39),"-"))) ->  | CG39: =IF(ใส่ชื่อ!D34="","",IF(DR39="ปกติ",SUM(BR39,BS39,BT39,BU39,BV39,BW39,BX39,BY39,BZ39,CA39,CB39,CC39,CD39,CE39,CF39),"-")) ->  | CO39: =IF(ใส่ชื่อ!D34="","",IF(CJ39="","",(IF(CK39="","",(IF(CL39="","",(IF(CM39="","",(IF(CN39="","",(SUM(CJ39:CN39)))))))))))) ->  | DC39: =AB39 ->  | DD39: =AY39 ->  | DE39: =BQ39 ->  | DG39: =IF(ใส่ชื่อ!D34="","",IF(COUNTIF(DC39:DE39,"มผ"),"มผ",IF(DE39="มผ","มผ",IF(DR39="ปกติ",SUM(DC39:DD39,IF(DF39="",DE39,DF39)),"-")))) ->  | DI39: =CI39 ->  | DL39: =IF(ใส่ชื่อ!D34="","",IF(DG39="","",IF(COUNTIF(DC39:DJ39,"มผ"),"มผ",IF(COUNTIF(DC39:DJ39,"-"),"-",IF(DR39="ปกติ",SUM(DG39,IF(DJ39="",DI39,DJ39))))))) ->  | DP39: =IF(ใส่ชื่อ!A34="","",IF(DL39="-","-",IF(DL39=0,"",IF(DR39="ปกติ",MAXA(DL39/2,DN39/2))))) ->  | DR39: =IF(เวลาเรียน!M41="","",เวลาเรียน!M41) -> 
A40: 34 | B40: 0 | C40: =CONCATENATE(ใส่ชื่อ!C35) ->  | D40: =CONCATENATE(ใส่ชื่อ!D35&ใส่ชื่อ!E35&" "&ใส่ชื่อ!F35) ->  | E40: =ใส่ชื่อ!A35 -> 0 | Z40: =IF(ใส่ชื่อ!D35="","",IF(DR40="ปกติ",SUM(F40,G40,H40,I40,J40,K40,L40,M40,N40,O40,P40,Q40,R40,S40,T40,U40,V40,W40,X40,Y40),"-")) ->  | AW40: =IF(ใส่ชื่อ!D35="","",IF(COUNTIF(AC40:AS40,0),"มผ",IF(DR40="ปกติ",SUM(AC40,AD40,AE40,AF40,AG40,AH40,AI40,AJ40,AK40,AL40,AM40,AN40,AO40,AP40,AQ40,AR40,AS40),"-"))) ->  | BO40: =IF(ใส่ชื่อ!D35="","",IF(COUNTIF(AZ40:BN40,0),"มผ",IF(DR40="ปกติ",SUM(AZ40,BA40,BB40,BC40,BD40,BE40,BF40,BG40,BH40,BI40,BJ40,BK40,BL40,BM40,BN40),"-"))) ->  | CG40: =IF(ใส่ชื่อ!D35="","",IF(DR40="ปกติ",SUM(BR40,BS40,BT40,BU40,BV40,BW40,BX40,BY40,BZ40,CA40,CB40,CC40,CD40,CE40,CF40),"-")) ->  | CO40: =IF(ใส่ชื่อ!D35="","",IF(CJ40="","",(IF(CK40="","",(IF(CL40="","",(IF(CM40="","",(IF(CN40="","",(SUM(CJ40:CN40)))))))))))) ->  | DG40: =IF(ใส่ชื่อ!D35="","",IF(COUNTIF(DC40:DE40,"มผ"),"มผ",IF(DE40="มผ","มผ",IF(DR40="ปกติ",SUM(DC40:DD40,IF(DF40="",DE40,DF40)),"-")))) ->  | DL40: =IF(ใส่ชื่อ!D35="","",IF(DG40="","",IF(COUNTIF(DC40:DJ40,"มผ"),"มผ",IF(COUNTIF(DC40:DJ40,"-"),"-",IF(DR40="ปกติ",SUM(DG40,IF(DJ40="",DI40,DJ40))))))) ->  | DP40: =IF(ใส่ชื่อ!A35="","",IF(DL40="-","-",IF(DL40=0,"",IF(DR40="ปกติ",MAXA(DL40/2,DN40/2))))) ->  | DR40: =IF(เวลาเรียน!M42="","",เวลาเรียน!M42) -> 
A41: 35 | B41: 0 | C41: =CONCATENATE(ใส่ชื่อ!C36) ->  | D41: =CONCATENATE(ใส่ชื่อ!D36&ใส่ชื่อ!E36&" "&ใส่ชื่อ!F36) ->  | E41: =ใส่ชื่อ!A36 -> 0 | Z41: =IF(ใส่ชื่อ!D36="","",IF(DR41="ปกติ",SUM(F41,G41,H41,I41,J41,K41,L41,M41,N41,O41,P41,Q41,R41,S41,T41,U41,V41,W41,X41,Y41),"-")) ->  | AW41: =IF(ใส่ชื่อ!D36="","",IF(COUNTIF(AC41:AS41,0),"มผ",IF(DR41="ปกติ",SUM(AC41,AD41,AE41,AF41,AG41,AH41,AI41,AJ41,AK41,AL41,AM41,AN41,AO41,AP41,AQ41,AR41,AS41),"-"))) ->  | BO41: =IF(ใส่ชื่อ!D36="","",IF(COUNTIF(AZ41:BN41,0),"มผ",IF(DR41="ปกติ",SUM(AZ41,BA41,BB41,BC41,BD41,BE41,BF41,BG41,BH41,BI41,BJ41,BK41,BL41,BM41,BN41),"-"))) ->  | CG41: =IF(ใส่ชื่อ!D36="","",IF(DR41="ปกติ",SUM(BR41,BS41,BT41,BU41,BV41,BW41,BX41,BY41,BZ41,CA41,CB41,CC41,CD41,CE41,CF41),"-")) ->  | CO41: =IF(ใส่ชื่อ!D36="","",IF(CJ41="","",(IF(CK41="","",(IF(CL41="","",(IF(CM41="","",(IF(CN41="","",(SUM(CJ41:CN41)))))))))))) ->  | DG41: =IF(ใส่ชื่อ!D36="","",IF(COUNTIF(DC41:DE41,"มผ"),"มผ",IF(DE41="มผ","มผ",IF(DR41="ปกติ",SUM(DC41:DD41,IF(DF41="",DE41,DF41)),"-")))) ->  | DL41: =IF(ใส่ชื่อ!D36="","",IF(DG41="","",IF(COUNTIF(DC41:DJ41,"มผ"),"มผ",IF(COUNTIF(DC41:DJ41,"-"),"-",IF(DR41="ปกติ",SUM(DG41,IF(DJ41="",DI41,DJ41))))))) ->  | DP41: =IF(ใส่ชื่อ!A36="","",IF(DL41="-","-",IF(DL41=0,"",IF(DR41="ปกติ",MAXA(DL41/2,DN41/2))))) ->  | DR41: =IF(เวลาเรียน!M43="","",เวลาเรียน!M43) -> 
A42: 36 | B42: 0 | C42: =CONCATENATE(ใส่ชื่อ!C37) ->  | D42: =CONCATENATE(ใส่ชื่อ!D37&ใส่ชื่อ!E37&" "&ใส่ชื่อ!F37) ->  | E42: =ใส่ชื่อ!A37 -> 0 | Z42: =IF(ใส่ชื่อ!D37="","",IF(DR42="ปกติ",SUM(F42,G42,H42,I42,J42,K42,L42,M42,N42,O42,P42,Q42,R42,S42,T42,U42,V42,W42,X42,Y42),"-")) ->  | AW42: =IF(ใส่ชื่อ!D37="","",IF(COUNTIF(AC42:AS42,0),"มผ",IF(DR42="ปกติ",SUM(AC42,AD42,AE42,AF42,AG42,AH42,AI42,AJ42,AK42,AL42,AM42,AN42,AO42,AP42,AQ42,AR42,AS42),"-"))) ->  | BO42: =IF(ใส่ชื่อ!D37="","",IF(COUNTIF(AZ42:BN42,0),"มผ",IF(DR42="ปกติ",SUM(AZ42,BA42,BB42,BC42,BD42,BE42,BF42,BG42,BH42,BI42,BJ42,BK42,BL42,BM42,BN42),"-"))) ->  | CG42: =IF(ใส่ชื่อ!D37="","",IF(DR42="ปกติ",SUM(BR42,BS42,BT42,BU42,BV42,BW42,BX42,BY42,BZ42,CA42,CB42,CC42,CD42,CE42,CF42),"-")) ->  | CO42: =IF(ใส่ชื่อ!D37="","",IF(CJ42="","",(IF(CK42="","",(IF(CL42="","",(IF(CM42="","",(IF(CN42="","",(SUM(CJ42:CN42)))))))))))) ->  | DG42: =IF(ใส่ชื่อ!D37="","",IF(COUNTIF(DC42:DE42,"มผ"),"มผ",IF(DE42="มผ","มผ",IF(DR42="ปกติ",SUM(DC42:DD42,IF(DF42="",DE42,DF42)),"-")))) ->  | DL42: =IF(ใส่ชื่อ!D37="","",IF(DG42="","",IF(COUNTIF(DC42:DJ42,"มผ"),"มผ",IF(COUNTIF(DC42:DJ42,"-"),"-",IF(DR42="ปกติ",SUM(DG42,IF(DJ42="",DI42,DJ42))))))) ->  | DP42: =IF(ใส่ชื่อ!A37="","",IF(DL42="-","-",IF(DL42=0,"",IF(DR42="ปกติ",MAXA(DL42/2,DN42/2))))) ->  | DR42: =IF(เวลาเรียน!M44="","",เวลาเรียน!M44) -> 
A43: 37 | B43: 0 | C43: =CONCATENATE(ใส่ชื่อ!C38) ->  | D43: =CONCATENATE(ใส่ชื่อ!D38&ใส่ชื่อ!E38&" "&ใส่ชื่อ!F38) ->  | E43: =ใส่ชื่อ!A38 -> 0 | Z43: =IF(ใส่ชื่อ!D38="","",IF(DR43="ปกติ",SUM(F43,G43,H43,I43,J43,K43,L43,M43,N43,O43,P43,Q43,R43,S43,T43,U43,V43,W43,X43,Y43),"-")) ->  | AW43: =IF(ใส่ชื่อ!D38="","",IF(COUNTIF(AC43:AS43,0),"มผ",IF(DR43="ปกติ",SUM(AC43,AD43,AE43,AF43,AG43,AH43,AI43,AJ43,AK43,AL43,AM43,AN43,AO43,AP43,AQ43,AR43,AS43),"-"))) ->  | BO43: =IF(ใส่ชื่อ!D38="","",IF(COUNTIF(AZ43:BN43,0),"มผ",IF(DR43="ปกติ",SUM(AZ43,BA43,BB43,BC43,BD43,BE43,BF43,BG43,BH43,BI43,BJ43,BK43,BL43,BM43,BN43),"-"))) ->  | CG43: =IF(ใส่ชื่อ!D38="","",IF(DR43="ปกติ",SUM(BR43,BS43,BT43,BU43,BV43,BW43,BX43,BY43,BZ43,CA43,CB43,CC43,CD43,CE43,CF43),"-")) ->  | CO43: =IF(ใส่ชื่อ!D38="","",IF(CJ43="","",(IF(CK43="","",(IF(CL43="","",(IF(CM43="","",(IF(CN43="","",(SUM(CJ43:CN43)))))))))))) ->  | DG43: =IF(ใส่ชื่อ!D38="","",IF(COUNTIF(DC43:DE43,"มผ"),"มผ",IF(DE43="มผ","มผ",IF(DR43="ปกติ",SUM(DC43:DD43,IF(DF43="",DE43,DF43)),"-")))) ->  | DL43: =IF(ใส่ชื่อ!D38="","",IF(DG43="","",IF(COUNTIF(DC43:DJ43,"มผ"),"มผ",IF(COUNTIF(DC43:DJ43,"-"),"-",IF(DR43="ปกติ",SUM(DG43,IF(DJ43="",DI43,DJ43))))))) ->  | DP43: =IF(ใส่ชื่อ!A38="","",IF(DL43="-","-",IF(DL43=0,"",IF(DR43="ปกติ",MAXA(DL43/2,DN43/2))))) ->  | DR43: =IF(เวลาเรียน!M45="","",เวลาเรียน!M45) -> 
A44: 38 | B44: 0 | C44: =CONCATENATE(ใส่ชื่อ!C39) ->  | D44: =CONCATENATE(ใส่ชื่อ!D39&ใส่ชื่อ!E39&" "&ใส่ชื่อ!F39) ->  | E44: =ใส่ชื่อ!A39 -> 0 | Z44: =IF(ใส่ชื่อ!D39="","",IF(DR44="ปกติ",SUM(F44,G44,H44,I44,J44,K44,L44,M44,N44,O44,P44,Q44,R44,S44,T44,U44,V44,W44,X44,Y44),"-")) ->  | AW44: =IF(ใส่ชื่อ!D39="","",IF(COUNTIF(AC44:AS44,0),"มผ",IF(DR44="ปกติ",SUM(AC44,AD44,AE44,AF44,AG44,AH44,AI44,AJ44,AK44,AL44,AM44,AN44,AO44,AP44,AQ44,AR44,AS44),"-"))) ->  | BO44: =IF(ใส่ชื่อ!D39="","",IF(COUNTIF(AZ44:BN44,0),"มผ",IF(DR44="ปกติ",SUM(AZ44,BA44,BB44,BC44,BD44,BE44,BF44,BG44,BH44,BI44,BJ44,BK44,BL44,BM44,BN44),"-"))) ->  | CG44: =IF(ใส่ชื่อ!D39="","",IF(DR44="ปกติ",SUM(BR44,BS44,BT44,BU44,BV44,BW44,BX44,BY44,BZ44,CA44,CB44,CC44,CD44,CE44,CF44),"-")) ->  | CO44: =IF(ใส่ชื่อ!D39="","",IF(CJ44="","",(IF(CK44="","",(IF(CL44="","",(IF(CM44="","",(IF(CN44="","",(SUM(CJ44:CN44)))))))))))) ->  | DG44: =IF(ใส่ชื่อ!D39="","",IF(COUNTIF(DC44:DE44,"มผ"),"มผ",IF(DE44="มผ","มผ",IF(DR44="ปกติ",SUM(DC44:DD44,IF(DF44="",DE44,DF44)),"-")))) ->  | DL44: =IF(ใส่ชื่อ!D39="","",IF(DG44="","",IF(COUNTIF(DC44:DJ44,"มผ"),"มผ",IF(COUNTIF(DC44:DJ44,"-"),"-",IF(DR44="ปกติ",SUM(DG44,IF(DJ44="",DI44,DJ44))))))) ->  | DP44: =IF(ใส่ชื่อ!A39="","",IF(DL44="-","-",IF(DL44=0,"",IF(DR44="ปกติ",MAXA(DL44/2,DN44/2))))) ->  | DR44: =IF(เวลาเรียน!M46="","",เวลาเรียน!M46) -> 
A45: 39 | B45: 0 | C45: =CONCATENATE(ใส่ชื่อ!C40) ->  | D45: =CONCATENATE(ใส่ชื่อ!D40&ใส่ชื่อ!E40&" "&ใส่ชื่อ!F40) ->  | E45: =ใส่ชื่อ!A40 -> 0 | Z45: =IF(ใส่ชื่อ!D40="","",IF(DR45="ปกติ",SUM(F45,G45,H45,I45,J45,K45,L45,M45,N45,O45,P45,Q45,R45,S45,T45,U45,V45,W45,X45,Y45),"-")) ->  | AW45: =IF(ใส่ชื่อ!D40="","",IF(COUNTIF(AC45:AS45,0),"มผ",IF(DR45="ปกติ",SUM(AC45,AD45,AE45,AF45,AG45,AH45,AI45,AJ45,AK45,AL45,AM45,AN45,AO45,AP45,AQ45,AR45,AS45),"-"))) ->  | BO45: =IF(ใส่ชื่อ!D40="","",IF(COUNTIF(AZ45:BN45,0),"มผ",IF(DR45="ปกติ",SUM(AZ45,BA45,BB45,BC45,BD45,BE45,BF45,BG45,BH45,BI45,BJ45,BK45,BL45,BM45,BN45),"-"))) ->  | CG45: =IF(ใส่ชื่อ!D40="","",IF(DR45="ปกติ",SUM(BR45,BS45,BT45,BU45,BV45,BW45,BX45,BY45,BZ45,CA45,CB45,CC45,CD45,CE45,CF45),"-")) ->  | CO45: =IF(ใส่ชื่อ!D40="","",IF(CJ45="","",(IF(CK45="","",(IF(CL45="","",(IF(CM45="","",(IF(CN45="","",(SUM(CJ45:CN45)))))))))))) ->  | DG45: =IF(ใส่ชื่อ!D40="","",IF(COUNTIF(DC45:DE45,"มผ"),"มผ",IF(DE45="มผ","มผ",IF(DR45="ปกติ",SUM(DC45:DD45,IF(DF45="",DE45,DF45)),"-")))) ->  | DL45: =IF(ใส่ชื่อ!D40="","",IF(DG45="","",IF(COUNTIF(DC45:DJ45,"มผ"),"มผ",IF(COUNTIF(DC45:DJ45,"-"),"-",IF(DR45="ปกติ",SUM(DG45,IF(DJ45="",DI45,DJ45))))))) ->  | DP45: =IF(ใส่ชื่อ!A40="","",IF(DL45="-","-",IF(DL45=0,"",IF(DR45="ปกติ",MAXA(DL45/2,DN45/2))))) ->  | DR45: =IF(เวลาเรียน!M47="","",เวลาเรียน!M47) -> 
A46: 40 | B46: 0 | C46: =CONCATENATE(ใส่ชื่อ!C41) ->  | D46: =CONCATENATE(ใส่ชื่อ!D41&ใส่ชื่อ!E41&" "&ใส่ชื่อ!F41) ->  | E46: =ใส่ชื่อ!A41 -> 0 | Z46: =IF(ใส่ชื่อ!D41="","",IF(DR46="ปกติ",SUM(F46,G46,H46,I46,J46,K46,L46,M46,N46,O46,P46,Q46,R46,S46,T46,U46,V46,W46,X46,Y46),"-")) ->  | AW46: =IF(ใส่ชื่อ!D41="","",IF(COUNTIF(AC46:AS46,0),"มผ",IF(DR46="ปกติ",SUM(AC46,AD46,AE46,AF46,AG46,AH46,AI46,AJ46,AK46,AL46,AM46,AN46,AO46,AP46,AQ46,AR46,AS46),"-"))) ->  | BO46: =IF(ใส่ชื่อ!D41="","",IF(COUNTIF(AZ46:BN46,0),"มผ",IF(DR46="ปกติ",SUM(AZ46,BA46,BB46,BC46,BD46,BE46,BF46,BG46,BH46,BI46,BJ46,BK46,BL46,BM46,BN46),"-"))) ->  | CG46: =IF(ใส่ชื่อ!D41="","",IF(DR46="ปกติ",SUM(BR46,BS46,BT46,BU46,BV46,BW46,BX46,BY46,BZ46,CA46,CB46,CC46,CD46,CE46,CF46),"-")) ->  | CO46: =IF(ใส่ชื่อ!D41="","",IF(CJ46="","",(IF(CK46="","",(IF(CL46="","",(IF(CM46="","",(IF(CN46="","",(SUM(CJ46:CN46)))))))))))) ->  | DG46: =IF(ใส่ชื่อ!D41="","",IF(COUNTIF(DC46:DE46,"มผ"),"มผ",IF(DE46="มผ","มผ",IF(DR46="ปกติ",SUM(DC46:DD46,IF(DF46="",DE46,DF46)),"-")))) ->  | DL46: =IF(ใส่ชื่อ!D41="","",IF(DG46="","",IF(COUNTIF(DC46:DJ46,"มผ"),"มผ",IF(COUNTIF(DC46:DJ46,"-"),"-",IF(DR46="ปกติ",SUM(DG46,IF(DJ46="",DI46,DJ46))))))) ->  | DP46: =IF(ใส่ชื่อ!A41="","",IF(DL46="-","-",IF(DL46=0,"",IF(DR46="ปกติ",MAXA(DL46/2,DN46/2))))) ->  | DR46: =IF(เวลาเรียน!M48="","",เวลาเรียน!M48) -> 
A47: 36 | B47: 0 | C47: =CONCATENATE(ใส่ชื่อ!C42) ->  | D47: =CONCATENATE(ใส่ชื่อ!D42&ใส่ชื่อ!E42&" "&ใส่ชื่อ!F42) ->  | E47: =ใส่ชื่อ!A42 -> 0 | Z47: =IF(ใส่ชื่อ!D42="","",IF(DR47="ปกติ",SUM(F47,G47,H47,I47,J47,K47,L47,M47,N47,O47,P47,Q47,R47,S47,T47,U47,V47,W47,X47,Y47),"-")) ->  | AW47: =IF(ใส่ชื่อ!D42="","",IF(COUNTIF(AC47:AS47,0),"มผ",IF(DR47="ปกติ",SUM(AC47,AD47,AE47,AF47,AG47,AH47,AI47,AJ47,AK47,AL47,AM47,AN47,AO47,AP47,AQ47,AR47,AS47),"-"))) ->  | BO47: =IF(ใส่ชื่อ!D42="","",IF(COUNTIF(AZ47:BN47,0),"มผ",IF(DR47="ปกติ",SUM(AZ47,BA47,BB47,BC47,BD47,BE47,BF47,BG47,BH47,BI47,BJ47,BK47,BL47,BM47,BN47),"-"))) ->  | CG47: =IF(ใส่ชื่อ!D42="","",IF(DR47="ปกติ",SUM(BR47,BS47,BT47,BU47,BV47,BW47,BX47,BY47,BZ47,CA47,CB47,CC47,CD47,CE47,CF47),"-")) ->  | CO47: =IF(ใส่ชื่อ!D42="","",IF(CJ47="","",(IF(CK47="","",(IF(CL47="","",(IF(CM47="","",(IF(CN47="","",(SUM(CJ47:CN47)))))))))))) ->  | DG47: =IF(ใส่ชื่อ!D42="","",IF(COUNTIF(DC47:DE47,"มผ"),"มผ",IF(DE47="มผ","มผ",IF(DR47="ปกติ",SUM(DC47:DD47,IF(DF47="",DE47,DF47)),"-")))) ->  | DL47: =IF(ใส่ชื่อ!D42="","",IF(DG47="","",IF(COUNTIF(DC47:DJ47,"มผ"),"มผ",IF(COUNTIF(DC47:DJ47,"-"),"-",IF(DR47="ปกติ",SUM(DG47,IF(DJ47="",DI47,DJ47))))))) ->  | DP47: =IF(ใส่ชื่อ!A42="","",IF(DL47="-","-",IF(DL47=0,"",IF(DR47="ปกติ",MAXA(DL47/2,DN47/2))))) ->  | DR47: =IF(เวลาเรียน!M49="","",เวลาเรียน!M49) -> 
A48: 37 | B48: 0 | C48: =CONCATENATE(ใส่ชื่อ!C43) ->  | D48: =CONCATENATE(ใส่ชื่อ!D43&ใส่ชื่อ!E43&" "&ใส่ชื่อ!F43) ->  | E48: =ใส่ชื่อ!A43 -> 0 | Z48: =IF(ใส่ชื่อ!D43="","",IF(DR48="ปกติ",SUM(F48,G48,H48,I48,J48,K48,L48,M48,N48,O48,P48,Q48,R48,S48,T48,U48,V48,W48,X48,Y48),"-")) ->  | AW48: =IF(ใส่ชื่อ!D43="","",IF(COUNTIF(AC48:AS48,0),"มผ",IF(DR48="ปกติ",SUM(AC48,AD48,AE48,AF48,AG48,AH48,AI48,AJ48,AK48,AL48,AM48,AN48,AO48,AP48,AQ48,AR48,AS48),"-"))) ->  | BO48: =IF(ใส่ชื่อ!D43="","",IF(COUNTIF(AZ48:BN48,0),"มผ",IF(DR48="ปกติ",SUM(AZ48,BA48,BB48,BC48,BD48,BE48,BF48,BG48,BH48,BI48,BJ48,BK48,BL48,BM48,BN48),"-"))) ->  | CG48: =IF(ใส่ชื่อ!D43="","",IF(DR48="ปกติ",SUM(BR48,BS48,BT48,BU48,BV48,BW48,BX48,BY48,BZ48,CA48,CB48,CC48,CD48,CE48,CF48),"-")) ->  | CO48: =IF(ใส่ชื่อ!D43="","",IF(CJ48="","",(IF(CK48="","",(IF(CL48="","",(IF(CM48="","",(IF(CN48="","",(SUM(CJ48:CN48)))))))))))) ->  | DG48: =IF(ใส่ชื่อ!D43="","",IF(COUNTIF(DC48:DE48,"มผ"),"มผ",IF(DE48="มผ","มผ",IF(DR48="ปกติ",SUM(DC48:DD48,IF(DF48="",DE48,DF48)),"-")))) ->  | DL48: =IF(ใส่ชื่อ!D43="","",IF(DG48="","",IF(COUNTIF(DC48:DJ48,"มผ"),"มผ",IF(COUNTIF(DC48:DJ48,"-"),"-",IF(DR48="ปกติ",SUM(DG48,IF(DJ48="",DI48,DJ48))))))) ->  | DP48: =IF(ใส่ชื่อ!A43="","",IF(DL48="-","-",IF(DL48=0,"",IF(DR48="ปกติ",MAXA(DL48/2,DN48/2))))) ->  | DR48: =IF(เวลาเรียน!M50="","",เวลาเรียน!M50) -> 
A49: 38 | B49: 0 | C49: =CONCATENATE(ใส่ชื่อ!C44) ->  | D49: =CONCATENATE(ใส่ชื่อ!D44&ใส่ชื่อ!E44&" "&ใส่ชื่อ!F44) ->  | E49: =ใส่ชื่อ!A44 -> 0 | Z49: =IF(ใส่ชื่อ!D44="","",IF(DR49="ปกติ",SUM(F49,G49,H49,I49,J49,K49,L49,M49,N49,O49,P49,Q49,R49,S49,T49,U49,V49,W49,X49,Y49),"-")) ->  | AW49: =IF(ใส่ชื่อ!D44="","",IF(COUNTIF(AC49:AS49,0),"มผ",IF(DR49="ปกติ",SUM(AC49,AD49,AE49,AF49,AG49,AH49,AI49,AJ49,AK49,AL49,AM49,AN49,AO49,AP49,AQ49,AR49,AS49),"-"))) ->  | BO49: =IF(ใส่ชื่อ!D44="","",IF(COUNTIF(AZ49:BN49,0),"มผ",IF(DR49="ปกติ",SUM(AZ49,BA49,BB49,BC49,BD49,BE49,BF49,BG49,BH49,BI49,BJ49,BK49,BL49,BM49,BN49),"-"))) ->  | CG49: =IF(ใส่ชื่อ!D44="","",IF(DR49="ปกติ",SUM(BR49,BS49,BT49,BU49,BV49,BW49,BX49,BY49,BZ49,CA49,CB49,CC49,CD49,CE49,CF49),"-")) ->  | CO49: =IF(ใส่ชื่อ!D44="","",IF(CJ49="","",(IF(CK49="","",(IF(CL49="","",(IF(CM49="","",(IF(CN49="","",(SUM(CJ49:CN49)))))))))))) ->  | DG49: =IF(ใส่ชื่อ!D44="","",IF(COUNTIF(DC49:DE49,"มผ"),"มผ",IF(DE49="มผ","มผ",IF(DR49="ปกติ",SUM(DC49:DD49,IF(DF49="",DE49,DF49)),"-")))) ->  | DL49: =IF(ใส่ชื่อ!D44="","",IF(DG49="","",IF(COUNTIF(DC49:DJ49,"มผ"),"มผ",IF(COUNTIF(DC49:DJ49,"-"),"-",IF(DR49="ปกติ",SUM(DG49,IF(DJ49="",DI49,DJ49))))))) ->  | DP49: =IF(ใส่ชื่อ!A44="","",IF(DL49="-","-",IF(DL49=0,"",IF(DR49="ปกติ",MAXA(DL49/2,DN49/2))))) ->  | DR49: =IF(เวลาเรียน!M51="","",เวลาเรียน!M51) -> 
A50: 39 | B50: 0 | C50: =CONCATENATE(ใส่ชื่อ!C45) ->  | D50: =CONCATENATE(ใส่ชื่อ!D45&ใส่ชื่อ!E45&" "&ใส่ชื่อ!F45) ->  | E50: =ใส่ชื่อ!A45 -> 0 | Z50: =IF(ใส่ชื่อ!D45="","",IF(DR50="ปกติ",SUM(F50,G50,H50,I50,J50,K50,L50,M50,N50,O50,P50,Q50,R50,S50,T50,U50,V50,W50,X50,Y50),"-")) ->  | AW50: =IF(ใส่ชื่อ!D45="","",IF(COUNTIF(AC50:AS50,0),"มผ",IF(DR50="ปกติ",SUM(AC50,AD50,AE50,AF50,AG50,AH50,AI50,AJ50,AK50,AL50,AM50,AN50,AO50,AP50,AQ50,AR50,AS50),"-"))) ->  | BO50: =IF(ใส่ชื่อ!D45="","",IF(COUNTIF(AZ50:BN50,0),"มผ",IF(DR50="ปกติ",SUM(AZ50,BA50,BB50,BC50,BD50,BE50,BF50,BG50,BH50,BI50,BJ50,BK50,BL50,BM50,BN50),"-"))) ->  | CG50: =IF(ใส่ชื่อ!D45="","",IF(DR50="ปกติ",SUM(BR50,BS50,BT50,BU50,BV50,BW50,BX50,BY50,BZ50,CA50,CB50,CC50,CD50,CE50,CF50),"-")) ->  | CO50: =IF(ใส่ชื่อ!D45="","",IF(CJ50="","",(IF(CK50="","",(IF(CL50="","",(IF(CM50="","",(IF(CN50="","",(SUM(CJ50:CN50)))))))))))) ->  | DG50: =IF(ใส่ชื่อ!D45="","",IF(COUNTIF(DC50:DE50,"มผ"),"มผ",IF(DE50="มผ","มผ",IF(DR50="ปกติ",SUM(DC50:DD50,IF(DF50="",DE50,DF50)),"-")))) ->  | DL50: =IF(ใส่ชื่อ!D45="","",IF(DG50="","",IF(COUNTIF(DC50:DJ50,"มผ"),"มผ",IF(COUNTIF(DC50:DJ50,"-"),"-",IF(DR50="ปกติ",SUM(DG50,IF(DJ50="",DI50,DJ50))))))) ->  | DP50: =IF(ใส่ชื่อ!A45="","",IF(DL50="-","-",IF(DL50=0,"",IF(DR50="ปกติ",MAXA(DL50/2,DN50/2))))) ->  | DR50: =IF(เวลาเรียน!M52="","",เวลาเรียน!M52) -> 
A51: 40 | B51: 0 | C51: =CONCATENATE(ใส่ชื่อ!C46) ->  | D51: =CONCATENATE(ใส่ชื่อ!D46&ใส่ชื่อ!E46&" "&ใส่ชื่อ!F46) ->  | E51: =ใส่ชื่อ!A46 -> 0 | Z51: =IF(ใส่ชื่อ!D46="","",IF(DR51="ปกติ",SUM(F51,G51,H51,I51,J51,K51,L51,M51,N51,O51,P51,Q51,R51,S51,T51,U51,V51,W51,X51,Y51),"-")) ->  | AW51: =IF(ใส่ชื่อ!D46="","",IF(COUNTIF(AC51:AS51,0),"มผ",IF(DR51="ปกติ",SUM(AC51,AD51,AE51,AF51,AG51,AH51,AI51,AJ51,AK51,AL51,AM51,AN51,AO51,AP51,AQ51,AR51,AS51),"-"))) ->  | BO51: =IF(ใส่ชื่อ!D46="","",IF(COUNTIF(AZ51:BN51,0),"มผ",IF(DR51="ปกติ",SUM(AZ51,BA51,BB51,BC51,BD51,BE51,BF51,BG51,BH51,BI51,BJ51,BK51,BL51,BM51,BN51),"-"))) ->  | CG51: =IF(ใส่ชื่อ!D46="","",IF(DR51="ปกติ",SUM(BR51,BS51,BT51,BU51,BV51,BW51,BX51,BY51,BZ51,CA51,CB51,CC51,CD51,CE51,CF51),"-")) ->  | CO51: =IF(ใส่ชื่อ!D46="","",IF(CJ51="","",(IF(CK51="","",(IF(CL51="","",(IF(CM51="","",(IF(CN51="","",(SUM(CJ51:CN51)))))))))))) ->  | DG51: =IF(ใส่ชื่อ!D46="","",IF(COUNTIF(DC51:DE51,"มผ"),"มผ",IF(DE51="มผ","มผ",IF(DR51="ปกติ",SUM(DC51:DD51,IF(DF51="",DE51,DF51)),"-")))) ->  | DL51: =IF(ใส่ชื่อ!D46="","",IF(DG51="","",IF(COUNTIF(DC51:DJ51,"มผ"),"มผ",IF(COUNTIF(DC51:DJ51,"-"),"-",IF(DR51="ปกติ",SUM(DG51,IF(DJ51="",DI51,DJ51))))))) ->  | DP51: =IF(ใส่ชื่อ!A46="","",IF(DL51="-","-",IF(DL51=0,"",IF(DR51="ปกติ",MAXA(DL51/2,DN51/2))))) ->  | DR51: =IF(เวลาเรียน!M53="","",เวลาเรียน!M53) -> 
A52: 36 | B52: 0 | C52: =CONCATENATE(ใส่ชื่อ!C47) ->  | D52: =CONCATENATE(ใส่ชื่อ!D47&ใส่ชื่อ!E47&" "&ใส่ชื่อ!F47) ->  | E52: =ใส่ชื่อ!A47 -> 0 | Z52: =IF(ใส่ชื่อ!D47="","",IF(DR52="ปกติ",SUM(F52,G52,H52,I52,J52,K52,L52,M52,N52,O52,P52,Q52,R52,S52,T52,U52,V52,W52,X52,Y52),"-")) ->  | AW52: =IF(ใส่ชื่อ!D47="","",IF(COUNTIF(AC52:AS52,0),"มผ",IF(DR52="ปกติ",SUM(AC52,AD52,AE52,AF52,AG52,AH52,AI52,AJ52,AK52,AL52,AM52,AN52,AO52,AP52,AQ52,AR52,AS52),"-"))) ->  | BO52: =IF(ใส่ชื่อ!D47="","",IF(COUNTIF(AZ52:BN52,0),"มผ",IF(DR52="ปกติ",SUM(AZ52,BA52,BB52,BC52,BD52,BE52,BF52,BG52,BH52,BI52,BJ52,BK52,BL52,BM52,BN52),"-"))) ->  | CG52: =IF(ใส่ชื่อ!D47="","",IF(DR52="ปกติ",SUM(BR52,BS52,BT52,BU52,BV52,BW52,BX52,BY52,BZ52,CA52,CB52,CC52,CD52,CE52,CF52),"-")) ->  | CO52: =IF(ใส่ชื่อ!D47="","",IF(CJ52="","",(IF(CK52="","",(IF(CL52="","",(IF(CM52="","",(IF(CN52="","",(SUM(CJ52:CN52)))))))))))) ->  | DG52: =IF(ใส่ชื่อ!D47="","",IF(COUNTIF(DC52:DE52,"มผ"),"มผ",IF(DE52="มผ","มผ",IF(DR52="ปกติ",SUM(DC52:DD52,IF(DF52="",DE52,DF52)),"-")))) ->  | DL52: =IF(ใส่ชื่อ!D47="","",IF(DG52="","",IF(COUNTIF(DC52:DJ52,"มผ"),"มผ",IF(COUNTIF(DC52:DJ52,"-"),"-",IF(DR52="ปกติ",SUM(DG52,IF(DJ52="",DI52,DJ52))))))) ->  | DP52: =IF(ใส่ชื่อ!A47="","",IF(DL52="-","-",IF(DL52=0,"",IF(DR52="ปกติ",MAXA(DL52/2,DN52/2))))) ->  | DR52: =IF(เวลาเรียน!M54="","",เวลาเรียน!M54) -> 
A53: 37 | B53: 0 | C53: =CONCATENATE(ใส่ชื่อ!C48) ->  | D53: =CONCATENATE(ใส่ชื่อ!D48&ใส่ชื่อ!E48&" "&ใส่ชื่อ!F48) ->  | E53: =ใส่ชื่อ!A48 -> 0 | Z53: =IF(ใส่ชื่อ!D48="","",IF(DR53="ปกติ",SUM(F53,G53,H53,I53,J53,K53,L53,M53,N53,O53,P53,Q53,R53,S53,T53,U53,V53,W53,X53,Y53),"-")) ->  | AW53: =IF(ใส่ชื่อ!D48="","",IF(COUNTIF(AC53:AS53,0),"มผ",IF(DR53="ปกติ",SUM(AC53,AD53,AE53,AF53,AG53,AH53,AI53,AJ53,AK53,AL53,AM53,AN53,AO53,AP53,AQ53,AR53,AS53),"-"))) ->  | BO53: =IF(ใส่ชื่อ!D48="","",IF(COUNTIF(AZ53:BN53,0),"มผ",IF(DR53="ปกติ",SUM(AZ53,BA53,BB53,BC53,BD53,BE53,BF53,BG53,BH53,BI53,BJ53,BK53,BL53,BM53,BN53),"-"))) ->  | CG53: =IF(ใส่ชื่อ!D48="","",IF(DR53="ปกติ",SUM(BR53,BS53,BT53,BU53,BV53,BW53,BX53,BY53,BZ53,CA53,CB53,CC53,CD53,CE53,CF53),"-")) ->  | CO53: =IF(ใส่ชื่อ!D48="","",IF(CJ53="","",(IF(CK53="","",(IF(CL53="","",(IF(CM53="","",(IF(CN53="","",(SUM(CJ53:CN53)))))))))))) ->  | DG53: =IF(ใส่ชื่อ!D48="","",IF(COUNTIF(DC53:DE53,"มผ"),"มผ",IF(DE53="มผ","มผ",IF(DR53="ปกติ",SUM(DC53:DD53,IF(DF53="",DE53,DF53)),"-")))) ->  | DL53: =IF(ใส่ชื่อ!D48="","",IF(DG53="","",IF(COUNTIF(DC53:DJ53,"มผ"),"มผ",IF(COUNTIF(DC53:DJ53,"-"),"-",IF(DR53="ปกติ",SUM(DG53,IF(DJ53="",DI53,DJ53))))))) ->  | DP53: =IF(ใส่ชื่อ!A48="","",IF(DL53="-","-",IF(DL53=0,"",IF(DR53="ปกติ",MAXA(DL53/2,DN53/2))))) ->  | DR53: =IF(เวลาเรียน!M55="","",เวลาเรียน!M55) -> 
A54: 38 | B54: 0 | C54: =CONCATENATE(ใส่ชื่อ!C49) ->  | D54: =CONCATENATE(ใส่ชื่อ!D49&ใส่ชื่อ!E49&" "&ใส่ชื่อ!F49) ->  | E54: =ใส่ชื่อ!A49 -> 0 | Z54: =IF(ใส่ชื่อ!D49="","",IF(DR54="ปกติ",SUM(F54,G54,H54,I54,J54,K54,L54,M54,N54,O54,P54,Q54,R54,S54,T54,U54,V54,W54,X54,Y54),"-")) ->  | AW54: =IF(ใส่ชื่อ!D49="","",IF(COUNTIF(AC54:AS54,0),"มผ",IF(DR54="ปกติ",SUM(AC54,AD54,AE54,AF54,AG54,AH54,AI54,AJ54,AK54,AL54,AM54,AN54,AO54,AP54,AQ54,AR54,AS54),"-"))) ->  | BO54: =IF(ใส่ชื่อ!D49="","",IF(COUNTIF(AZ54:BN54,0),"มผ",IF(DR54="ปกติ",SUM(AZ54,BA54,BB54,BC54,BD54,BE54,BF54,BG54,BH54,BI54,BJ54,BK54,BL54,BM54,BN54),"-"))) ->  | CG54: =IF(ใส่ชื่อ!D49="","",IF(DR54="ปกติ",SUM(BR54,BS54,BT54,BU54,BV54,BW54,BX54,BY54,BZ54,CA54,CB54,CC54,CD54,CE54,CF54),"-")) ->  | CO54: =IF(ใส่ชื่อ!D49="","",IF(CJ54="","",(IF(CK54="","",(IF(CL54="","",(IF(CM54="","",(IF(CN54="","",(SUM(CJ54:CN54)))))))))))) ->  | DG54: =IF(ใส่ชื่อ!D49="","",IF(COUNTIF(DC54:DE54,"มผ"),"มผ",IF(DE54="มผ","มผ",IF(DR54="ปกติ",SUM(DC54:DD54,IF(DF54="",DE54,DF54)),"-")))) ->  | DL54: =IF(ใส่ชื่อ!D49="","",IF(DG54="","",IF(COUNTIF(DC54:DJ54,"มผ"),"มผ",IF(COUNTIF(DC54:DJ54,"-"),"-",IF(DR54="ปกติ",SUM(DG54,IF(DJ54="",DI54,DJ54))))))) ->  | DP54: =IF(ใส่ชื่อ!A49="","",IF(DL54="-","-",IF(DL54=0,"",IF(DR54="ปกติ",MAXA(DL54/2,DN54/2))))) ->  | DR54: =IF(เวลาเรียน!M56="","",เวลาเรียน!M56) -> 
A55: 39 | B55: 0 | C55: =CONCATENATE(ใส่ชื่อ!C50) ->  | D55: =CONCATENATE(ใส่ชื่อ!D50&ใส่ชื่อ!E50&" "&ใส่ชื่อ!F50) ->  | E55: =ใส่ชื่อ!A50 -> 0 | Z55: =IF(ใส่ชื่อ!D50="","",IF(DR55="ปกติ",SUM(F55,G55,H55,I55,J55,K55,L55,M55,N55,O55,P55,Q55,R55,S55,T55,U55,V55,W55,X55,Y55),"-")) ->  | AW55: =IF(ใส่ชื่อ!D50="","",IF(COUNTIF(AC55:AS55,0),"มผ",IF(DR55="ปกติ",SUM(AC55,AD55,AE55,AF55,AG55,AH55,AI55,AJ55,AK55,AL55,AM55,AN55,AO55,AP55,AQ55,AR55,AS55),"-"))) ->  | BO55: =IF(ใส่ชื่อ!D50="","",IF(COUNTIF(AZ55:BN55,0),"มผ",IF(DR55="ปกติ",SUM(AZ55,BA55,BB55,BC55,BD55,BE55,BF55,BG55,BH55,BI55,BJ55,BK55,BL55,BM55,BN55),"-"))) ->  | CG55: =IF(ใส่ชื่อ!D50="","",IF(DR55="ปกติ",SUM(BR55,BS55,BT55,BU55,BV55,BW55,BX55,BY55,BZ55,CA55,CB55,CC55,CD55,CE55,CF55),"-")) ->  | CO55: =IF(ใส่ชื่อ!D50="","",IF(CJ55="","",(IF(CK55="","",(IF(CL55="","",(IF(CM55="","",(IF(CN55="","",(SUM(CJ55:CN55)))))))))))) ->  | DG55: =IF(ใส่ชื่อ!D50="","",IF(COUNTIF(DC55:DE55,"มผ"),"มผ",IF(DE55="มผ","มผ",IF(DR55="ปกติ",SUM(DC55:DD55,IF(DF55="",DE55,DF55)),"-")))) ->  | DL55: =IF(ใส่ชื่อ!D50="","",IF(DG55="","",IF(COUNTIF(DC55:DJ55,"มผ"),"มผ",IF(COUNTIF(DC55:DJ55,"-"),"-",IF(DR55="ปกติ",SUM(DG55,IF(DJ55="",DI55,DJ55))))))) ->  | DP55: =IF(ใส่ชื่อ!A50="","",IF(DL55="-","-",IF(DL55=0,"",IF(DR55="ปกติ",MAXA(DL55/2,DN55/2))))) ->  | DR55: =IF(เวลาเรียน!M57="","",เวลาเรียน!M57) -> 
A56: 40 | B56: 0 | C56: =CONCATENATE(ใส่ชื่อ!C51) ->  | D56: =CONCATENATE(ใส่ชื่อ!D51&ใส่ชื่อ!E51&" "&ใส่ชื่อ!F51) ->  | E56: =ใส่ชื่อ!A51 -> 0 | Z56: =IF(ใส่ชื่อ!D51="","",IF(DR56="ปกติ",SUM(F56,G56,H56,I56,J56,K56,L56,M56,N56,O56,P56,Q56,R56,S56,T56,U56,V56,W56,X56,Y56),"-")) ->  | AW56: =IF(ใส่ชื่อ!D51="","",IF(COUNTIF(AC56:AS56,0),"มผ",IF(DR56="ปกติ",SUM(AC56,AD56,AE56,AF56,AG56,AH56,AI56,AJ56,AK56,AL56,AM56,AN56,AO56,AP56,AQ56,AR56,AS56),"-"))) ->  | BO56: =IF(ใส่ชื่อ!D51="","",IF(COUNTIF(AZ56:BN56,0),"มผ",IF(DR56="ปกติ",SUM(AZ56,BA56,BB56,BC56,BD56,BE56,BF56,BG56,BH56,BI56,BJ56,BK56,BL56,BM56,BN56),"-"))) ->  | CG56: =IF(ใส่ชื่อ!D51="","",IF(DR56="ปกติ",SUM(BR56,BS56,BT56,BU56,BV56,BW56,BX56,BY56,BZ56,CA56,CB56,CC56,CD56,CE56,CF56),"-")) ->  | CO56: =IF(ใส่ชื่อ!D51="","",IF(CJ56="","",(IF(CK56="","",(IF(CL56="","",(IF(CM56="","",(IF(CN56="","",(SUM(CJ56:CN56)))))))))))) ->  | DG56: =IF(ใส่ชื่อ!D51="","",IF(COUNTIF(DC56:DE56,"มผ"),"มผ",IF(DE56="มผ","มผ",IF(DR56="ปกติ",SUM(DC56:DD56,IF(DF56="",DE56,DF56)),"-")))) ->  | DL56: =IF(ใส่ชื่อ!D51="","",IF(DG56="","",IF(COUNTIF(DC56:DJ56,"มผ"),"มผ",IF(COUNTIF(DC56:DJ56,"-"),"-",IF(DR56="ปกติ",SUM(DG56,IF(DJ56="",DI56,DJ56))))))) ->  | DP56: =IF(ใส่ชื่อ!A51="","",IF(DL56="-","-",IF(DL56=0,"",IF(DR56="ปกติ",MAXA(DL56/2,DN56/2))))) ->  | DR56: =IF(เวลาเรียน!M58="","",เวลาเรียน!M58) -> 
C57: =กำหนดอัตราส่วนคะแนน!U4 -> 50 | CJ57: =COUNTIF($CQ$7:$CQ$56,"ดย") -> 11 | CK57: =COUNTIF($CQ$7:$CQ$56,"ด") -> 9 | CL57: =COUNTIF($CQ$7:$CQ$56,"ผ") -> 0 | CM57: =COUNTIF($CQ$7:$CQ$56,"มผ") -> 0 | CR57: =COUNTIF($DB$7:$DB$56,"ดย") -> 20 | CS57: =COUNTIF($DB$7:$DB$56,"ด") -> 0 | CT57: =COUNTIF($DB$7:$DB$56,"ผ") -> 0 | CU57: =COUNTIF($DB$7:$DB$56,"มผ") -> 0 | EK57: =กำหนดอัตราส่วนคะแนน!FA4 -> 0 | HR57: =COUNTIF($CQ$7:$CQ$56,"3") -> 0 | HS57: =COUNTIF($CQ$7:$CQ$56,"2") -> 0 | HT57: =COUNTIF($CQ$7:$CQ$56,"1") -> 0 | HU57: =COUNTIF($CQ$7:$CQ$56,"0") -> 0 | HZ57: =COUNTIF($DB$7:$DB$56,"3") -> 0 | IA57: =COUNTIF($DB$7:$DB$56,"2") -> 0 | IB57: =COUNTIF($DB$7:$DB$56,"1") -> 0 | IC57: =COUNTIF($DB$7:$DB$56,"0") -> 0
BR61: ตอนที่ | BT61: ป.1/1 | BV61: 1
BR62: ท 1.1 | BT62: ป.1/2 | BV62: 2
BR63: ท 2.1 | BT63: ป.1/3 | BV63: 3
BR64: ท 3.1 | BT64: ป.1/4 | BV64: 4
BR65: ท 4.1 | BT65: ป.1/5 | BV65: 5
BR66: ท 5.1 | BT66: ป.1/6 | BV66: -
BR67: ค 1.1 | BT67: ป.1/7 | BV67: ป.1/1
BR68: ค 1.2 | BT68: ป.1/8 | BV68: ป.1/2
BR69: ค 1.3 | BT69: ป.1/9 | BV69: ป.1/3
BR70: ค 2.1 | BT70: ป.1/10 | BV70: ป.1/4
BR71: ค 2.2 | BT71: ป.2/1 | BV71: ป.1/5
BR72: ค 3.1 | BT72: ป.2/2 | BV72: ป.1/6
BR73: ค 3.2 | BT73: ป.2/3 | BV73: ป.1/7
BR74: ว 1.1 | BT74: ป.2/4 | BV74: ป.1/8
BR75: ว 1.2 | BT75: ป.2/5 | BV75: ป.1/9
BR76: ว 1.3 | BT76: ป.2/6 | BV76: ป.1/10
BR77: ว 2.1 | BT77: ป.2/7 | BV77: ป.1/11
BR78: ว 2.2 | BT78: ป.2/8 | BV78: ป.1/12
BR79: ว 2.3 | BT79: ป.2/9 | BV79: ป.1/13
BR80: ว 3.1 | BT80: ป.2/10 | BV80: ป.1/14
BR81: ว 3.2 | BT81: ป.3/1 | BV81: ป.1/15
BR82: ว 4.1 | BV82: ป.2/1
BR83: ว 4.2 | BT83: ป.3/2 | BV83: ป.2/2
BR84: ส 1.1 | BT84: ป.3/3 | BV84: ป.2/3
BR85: ส 1.2 | BV85: ป.2/4
BR86: ส 2.1 | BT86: ป.3/4 | BV86: ป.2/5
BR87: ส 2.2 | BT87: ป.3/5 | BV87: ป.2/6
BR88: ส 3.1 | BT88: ป.3/6 | BV88: ป.2/7
BR89: ส 3.2 | BT89: ป.3/7 | BV89: ป.2/8
BR90: ส 4.1 | BT90: ป.3/8 | BV90: ป.2/9
BR91: ส 4.2 | BT91: ป.3/9 | BV91: ป.2/10
BR92: ส 4.2 | BT92: ป.3/10 | BV92: ป.2/11
BR93: ส 4.3 | BT93: ป.4/1 | BV93: ป.2/12
BR94: ส 5.1 | BT94: ป.4/2 | BV94: ป.2/13
BR95: ส 5.2 | BT95: ป.4/3 | BV95: ป.2/14
BR96: พ 1.1 | BT96: ป.4/4 | BV96: ป.2/15
BR97: พ 2.1 | BT97: ป.4/5 | BV97: ป.3/1
B98: ท 1.1 | E98: ม.1/1 | BR98: พ 3.1 | BT98: ป.4/6 | BV98: ป.3/2 | EM98: ม.1/1
B99: ท 2.1 | E99: ม.1/2 | BR99: พ 3.2 | BT99: ป.4/7 | BV99: ป.3/3 | EM99: ม.1/2
B100: ท 3.1 | E100: ม.1/3 | BR100: พ 4.1 | BT100: ป.4/8 | BV100: ป.3/4 | EM100: ม.1/3
B101: ท 4.1 | E101: ม.1/4 | BR101: พ 5.1 | BT101: ป.4/9 | BV101: ป.3/5 | EM101: ม.1/4
B102: ท 5.1 | E102: ม.1/5 | BR102: ศ 1.1 | BT102: ป.4/10 | BV102: ป.3/6 | EM102: ม.1/5
B103: ค 1.1 | E103: ม.1/6 | BR103: ศ 1.2 | BT103: ป.5/1 | BV103: ป.3/7 | EM103: ม.1/6
B104: ค 1.2 | E104: ม.1/7 | BR104: ศ 2.1 | BT104: ป.5/2 | BV104: ป.3/8 | EM104: ม.1/7
B105: ค 1.3 | E105: ม.1/8 | BR105: ศ 2.2 | BT105: ป.5/3 | BV105: ป.3/9 | EM105: ม.1/8
B106: ค 1.4 | E106: ม.1/9 | BR106: ศ 3.1 | BT106: ป.5/4 | BV106: ป.3/10 | EM106: ม.1/9
B107: ค 2.1 | E107: ม.1/10 | BR107: ศ 3.2 | BT107: ป.5/5 | BV107: ป.3/11 | EM107: ม.1/10
B108: ค 2.2 | E108: ม.2/1 | BR108: ง 1.1 | BT108: ป.5/6 | BV108: ป.3/12 | EM108: ม.2/1
B109: ค 3.1 | E109: ม.2/2 | BR109: ง 2.1 | BT109: ป.5/7 | BV109: ป.3/13 | EM109: ม.2/2
B110: ค 3.2 | E110: ม.2/3 | BR110: ง 3.1 | BT110: ป.5/8 | BV110: ป.3/14 | EM110: ม.2/3
B111: ค 4.1 | E111: ม.2/4 | BR111: ง 4.1 | BT111: ป.5/9 | BV111: ป.3/15 | EM111: ม.2/4
B112: ค 4.2 | E112: ม.2/5 | BR112: ต 1.1 | BT112: ป.5/10 | BV112: ป.4/1 | EM112: ม.2/5
B113: ค 5.1 | E113: ม.2/6 | BR113: ต 1.2 | BT113: ป.6/1 | BV113: ป.4/2 | EM113: ม.2/6
B114: ค 5.2 | E114: ม.2/7 | BR114: ต 1.3 | BT114: ป.6/2 | BV114: ป.4/3 | EM114: ม.2/7
B115: ค 5.3 | E115: ม.2/8 | BR115: ต 2.1 | BT115: ป.6/3 | BV115: ป.4/4 | EM115: ม.2/8
B116: ค 6.1 | E116: ม.2/9 | BR116: ต 2.2 | BT116: ป.6/4 | BV116: ป.4/5 | EM116: ม.2/9
B117: ว 1.1 | E117: ม.2/10 | BR117: ต 3.1 | BT117: ป.6/5 | BV117: ป.4/6 | EM117: ม.2/10
B118: ว 1.2 | E118: ม.3/1 | BR118: ต 4.1 | BT118: ป.6/6 | BV118: ป.4/7 | EM118: ม.3/1
B119: ว 2.1 | E119: ม.3/2 | BR119: ต 4.2 | BT119: ป.6/7 | BV119: ป.4/8 | EM119: ม.3/2
B120: ว 2.2 | E120: ม.3/3 | BR120: ข้อ 1 | BT120: ป.6/8 | BV120: ป.4/9 | EM120: ม.3/3
B121: ว 3.1 | E121: ม.3/4 | BR121: ข้อ 2 | BT121: ป.6/9 | BV121: ป.4/10 | EM121: ม.3/4
B122: ว 3.2 | E122: ม.3/5 | BR122: ข้อ 3 | BT122: ป.6/10 | BV122: ป.4/11 | EM122: ม.3/5
B123: ว 4.1 | E123: ม.3/6 | BR123: ข้อ 4 | BT123: ข้อ1 | BV123: ป.4/12 | EM123: ม.3/6
B124: ว 4.2 | E124: ม.3/7 | BR124: ข้อ 5 | BT124: ข้อ2 | BV124: ป.4/13 | EM124: ม.3/7
B125: ว 5.1 | E125: ม.3/8 | BR125: ข้อ 6 | BT125: ข้อ3 | BV125: ป.4/14 | EM125: ม.3/8
B126: ว 6.1 | E126: ม.3/9 | BR126: ข้อ 7 | BT126: ข้อ4 | BV126: ป.4/15 | EM126: ม.3/9
B127: ว 7.1 | E127: ม.3/10 | BR127: ข้อ 8 | BT127: ข้อ5 | BV127: ป.4/16 | EM127: ม.3/10
B128: ว 7.2 | E128: ม.4-6/1 | BR128: ข้อ 9 | BT128: ข้อ6 | BV128: ป.5/1 | EM128: ม.4-6/1
B129: ว 8.1 | E129: ม.4-6/2 | BR129: ข้อ 10 | BT129: ข้อ7 | BV129: ป.5/2 | EM129: ม.4-6/2
B130: ส 1.1 | E130: ม.4-6/3 | BR130: ข้อ 11 | BT130: ข้อ8 | BV130: ป.5/3 | EM130: ม.4-6/3
B131: ส 1.2 | E131: ม.4-6/4 | BR131: ข้อ 12 | BT131: ข้อ9 | BV131: ป.5/4 | EM131: ม.4-6/4
B132: ส 2.1 | E132: ม.4-6/5 | BR132: ข้อ 13 | BT132: ข้อ10 | BV132: ป.5/5 | EM132: ม.4-6/5
B133: ส 2.2 | E133: ม.4-6/6 | BR133: ข้อ 14 | BT133: ข้อ11 | BV133: ป.5/6 | EM133: ม.4-6/6
B134: ส 3.1 | E134: ม.4-6/7 | BR134: ข้อ 15 | BT134: ข้อ12 | BV134: ป.5/7 | EM134: ม.4-6/7
B135: ส 3.2 | E135: ม.4-6/8 | BR135: ข้อ 16 | BT135: ข้อ13 | BV135: ป.5/8 | EM135: ม.4-6/8
B136: ส 4.1 | E136: ม.4-6/9 | BR136: ข้อ 17 | BT136: ข้อ14 | BV136: ป.5/9 | EM136: ม.4-6/9
B137: ส 4.2 | E137: ม.4-6/10 | BR137: ข้อ 18 | BT137: ข้อ15 | BV137: ป.5/10 | EM137: ม.4-6/10
B138: ส 4.2 | E138: ม.4-6/11 | BR138: ข้อ 19 | BT138: ข้อ16 | BV138: ป.5/11 | EM138: ม.4-6/11
B139: ส 5.1 | E139: ม.4-6/12 | BR139: ข้อ 20 | BT139: ข้อ17 | BV139: ป.5/12 | EM139: ม.4-6/12
B140: ส 5.2 | E140: ม.4-6/13 | BR140: ข้อ 21 | BT140: ข้อ18 | BV140: ป.5/13 | EM140: ม.4-6/13
B141: พ 1.1 | E141: ม.4-6/14 | BR141: ข้อ 22 | BT141: ข้อ19 | BV141: ป.5/14 | EM141: ม.4-6/14
B142: พ 2.1 | E142: ม.4-6/15 | BR142: ข้อ 23 | BT142: ข้อ20 | BV142: ป.5/15 | EM142: ม.4-6/15
B143: พ 3.1 | E143: ม.4-6/16 | BR143: ข้อ 24 | BT143: ข้อ21 | BV143: ป.6/1 | EM143: ม.4-6/16
B144: พ 3.2 | E144: ม.4-6/17 | BR144: ข้อ 25 | BT144: ข้อ22 | BV144: ป.6/2 | EM144: ม.4-6/17
B145: พ 4.1 | E145: ม.4-6/18 | BR145: ข้อ 26 | BT145: ข้อ23 | BV145: ป.6/3 | EM145: ม.4-6/18
B146: พ 5.1 | E146: ม.4-6/19 | BR146: ข้อ 27 | BT146: ข้อ24 | BV146: ป.6/4 | EM146: ม.4-6/19
B147: ศ. 1.1 | E147: ม.4-6/20 | BR147: ข้อ 28 | BT147: ข้อ25 | BV147: ป.6/5 | EM147: ม.4-6/20
B148: ศ 1.2 | E148: ม.4-6/21 | BR148: ข้อ 29 | BT148: ข้อ26 | BV148: ป.6/6 | EM148: ม.4-6/21
B149: ศ 2.1 | E149: ม.4-6/22 | BR149: ข้อ 30 | BT149: ข้อ27 | BV149: ป.6/7 | EM149: ม.4-6/22
B150: ศ 2.2 | E150: ม.4-6/23 | BT150: ข้อ28 | BV150: ป.6/8 | EM150: ม.4-6/23
B151: ศ 3.1 | E151: ม.4-6/24 | BT151: ข้อ29 | BV151: ป.6/9 | EM151: ม.4-6/24
B152: ศ 3.2 | E152: ม.4-6/25 | BT152: ข้อ30 | BV152: ป.6/10 | EM152: ม.4-6/25
B153: ง 1.1 | E153: ม.4-6/26 | BT153: - | BV153: ป.6/11 | EM153: ม.4-6/26
B154: ง 2.1 | E154: ม.4-6/27 | BT154: 1 | BV154: ป.6/12 | EM154: ม.4-6/27
B155: ง 3.1 | E155: ม.4-6/28 | BT155: 2 | BV155: ป.6/13 | EM155: ม.4-6/28
B156: ง 4.1 | E156: ม.4-6/29 | BT156: 3 | BV156: ป.6/14 | EM156: ม.4-6/29
B157: ต 1.1 | E157: ม.4-6/30 | BT157: 4 | BV157: ป.6/15 | EM157: ม.4-6/30
B158: ต 1.2 | BT158: 5
B159: ต 1.3
B160: ต 2.1
B161: ต 2.2
B162: ต 3.1
B163: ต 4.1
B164: ต 4.2

Sheet ประเมินผลการเรียนเทอม2
D1: อัตราส่วนคะแนน = | E1: =ประเมินผลการเรียนเทอม1!E1 -> 70 : 30 | F1: ="คะแนนประเมินผลสัมฤทธิ์ ภาคเรียนที่2 "&" วิชา "&ปก!AS15&" "&"ชั้น ป."&ปก!$C$21&"/"&ปก!$C$22&" หน้า 6" -> คะแนนประเมินผลสัมฤทธิ์ ภาคเรียนที่2 วิชา - ชั้น ป.2/2 หน้า 6 | AC1: ="คะแนนประเมินผลสัมฤทธิ์ ภาคเรียนที่1 "&" วิชา "&ปก!AS15&" "&"ชั้น ป."&ปก!$C$21&"/"&ปก!$C$22&" หน้า 10" -> คะแนนประเมินผลสัมฤทธิ์ ภาคเรียนที่1 วิชา - ชั้น ป.2/2 หน้า 10 | AZ1: ="คะแนนประเมินผลสัมฤทธิ์ ภาคเรียนที่1 "&" วิชา "&ปก!AS15&" "&"ชั้น ป."&ปก!$C$21&"/"&ปก!$C$22&" หน้า 11" -> คะแนนประเมินผลสัมฤทธิ์ ภาคเรียนที่1 วิชา - ชั้น ป.2/2 หน้า 11 | BR1: ="คะแนนประเมินผลสัมฤทธิ์ ภาคเรียนที่2 "&" วิชา "&ปก!AS15&" "&"ชั้น ป."&ปก!$C$21&"/"&ปก!$C$22&" หน้า 7" -> คะแนนประเมินผลสัมฤทธิ์ ภาคเรียนที่2 วิชา - ชั้น ป.2/2 หน้า 7 | CJ1: ="คะแนนประเมินผลสัมฤทธิ์ ภาคเรียนที่2 "&" วิชา "&ปก!AS15&" "&"ชั้น ป."&ปก!$C$21&"/"&ปก!$C$22&" หน้า 8" -> คะแนนประเมินผลสัมฤทธิ์ ภาคเรียนที่2 วิชา - ชั้น ป.2/2 หน้า 8 | DC1: ระหว่างภาค | DG1: ="ผลสัมฤทธิ์ทางการเรียน ภาคเรียนที่2 "&" วิชา "&ปก!AS15&" "&"ชั้น ป."&ปก!$C$21&"/"&ปก!$C$22&" หน้า 9" -> ผลสัมฤทธิ์ทางการเรียน ภาคเรียนที่2 วิชา - ชั้น ป.2/2 หน้า 9
Z2: =กำหนดอัตราส่วนคะแนน!B41 -> 0 | AW2: =กำหนดอัตราส่วนคะแนน!Y41 -> 0 | BO2: =กำหนดอัตราส่วนคะแนน!BQ41 -> 0 | CG2: =กำหนดอัตราส่วนคะแนน!CN41 -> 0 | CO2: =กำหนดอัตราส่วนคะแนน!AH41 -> 0
C3: เลข ประจำ ตัว นักเรียน | D3: ชื่อ - นามสกุล | E3: การประเมิน | F3: คะแนน ชิ้นงาน ภาระงาน การสอบ การวัดผล ระหว่างภาค | Z3: คะแนนรวม | AB3: คะแนนเต็ม | AC3: =IF(ปก!$C$25="","{{ข้อมูล ERROR โปรดกลับไปเลือกประเภทวิชาที่หน้าปก}}",IF(ปก!$C$25="พื้นฐาน","การประเมินตัวชี้วัด หลังกลางภาค",IF(ปก!$C$25="เพิ่มเติม","การประเมินผลการเรียนรู้ หลังกลางภาค"))) -> การประเมินตัวชี้วัด หลังกลางภาค | AW3: คะแนนรวม | AY3: คะแนนเต็ม | AZ3: การประเมินผลกลางภาคเรียน(สอบกลางภาค) | BO3: คะแนนรวม | BQ3: คะแนนเต็ม | BR3: การประเมินผลปลายภาคเรียน(สอบปลายภาคเรียน) | CG3: คะแนนรวม | CI3: คะแนนเต็ม | CJ3: การอ่าน คิดวิเคราะห์ และเขียน | CO3: คะแนนรวม | CP3: คะแนนเต็ม | CQ3: ระดับคุณภาพ | CR3: คุณลักษณะอันพึงประสงค์ | DB3: ระดับคุณภาพ | DC3: ก่อนกลางภาค | DD3: หลังกลางภาค | DE3: สอบกลางภาค | DF3: สอบแก้ตัว | DG3: ระหว่างภาค 2 | DI3: สอบปลายภาค 2 | DJ3: สอบแก้ตัว(ซ่อม) | DL3: รวมตลอดภาคเรียน | DN3: ลงคะแนน นร.ย้ายเข้า | DP3: คะแนนภาคเรียนที่ 1 | DQ3: คะแนนภาคเรียนที่ 2 | DS3: คะแนนรวมตลอดปี | DT3: ระดับผลการเรียน(เกรด) | DU3: สถานะ นักเรียน ปัจจุบัน
E4: ชิ้นงาน/ภาระงาน/การสอบ | F4: งาน | G4: งาน | H4: งาน | I4: งาน | J4: งาน | K4: งาน | W4: 18 | X4: 19 | Y4: 20 | AT4: 18 | AU4: 19 | AV4: 20 | CJ4: 1 | CK4: 2 | CL4: 3 | CM4: 4 | CN4: 5 | CR4: 1 | CS4: 2 | CT4: 3 | CU4: 4 | CV4: 5 | CW4: 6 | CX4: 7 | CY4: 8 | CZ4: 9 | DA4: 10
F5: ที่ 1 | G5: ที่ 1 | H5: ที่ 2 | I5: ที่ 3 | J5: ที่ 4 | K5: ที่ 5 | AA5: =$Z$6/$AB$6 -> 1 | AW5: =SUM(AC5,AD5,AE5,AF5,AG5,AH5,AI5,AJ5,AK5,AL5,AM5,AN5,AO5,AP5,AQ5,AR5,AS5,AT5,AU5,AV5) -> 0 | AX5: =$AW$5/$AY$5 ->  | BO5: =SUM(AZ5,BA5,BB5,BC5,BD5,BE5,BF5,BG5,BH5,BI5,BJ5,BK5,BL5,BM5,BN5) -> 0 | BP5: =$BO$5/$BQ$5 ->  | CH5: =$CG$6/$CI$6 -> 1 | CJ5: 3 | CK5: 3 | CL5: 3 | CM5: 3 | CN5: 3 | CO5: =SUM(CJ5,CK5,CL5,CM5,CN5) -> 15 | CP5: 3 | CR5: 3 | CS5: 3 | CT5: 3 | CU5: 3 | CV5: 3 | CW5: 3 | CX5: 3 | CY5: 3 | CZ5: 3 | DA5: 3
E6: คะแนน | F6: 10 | G6: 10 | H6: 10 | I6: 10 | J6: 10 | K6: 20 | Z6: =SUM(F6,G6,H6,I6,J6,K6,L6,M6,N6,O6,P6,Q6,R6,S6,T6,U6,V6,W6,X6,Y6) -> 70 | AB6: =IF(E1="50 : 50",50,IF(E1="60 : 40",60,IF(E1="70 : 30",70,IF(E1="80 : 20",80,IF(E1="90 : 10",90))))) -> 70 | BR6: 30 | CG6: =SUM(BR6,BS6,BT6,BU6,BV6,BW6,BX6,BY6,BZ6,CA6,CB6,CC6,CD6,CE6,CF6) -> 30 | CI6: =IF(E1="50 : 50",50,IF(E1="60 : 40",40,IF(E1="70 : 30",30,IF(E1="80 : 20",20,IF(E1="90 : 10",10))))) -> 30 | DC6: =AB5 -> 0 | DD6: =AY5 -> 0 | DE6: =BQ5 -> 0 | DG6: =AB6 -> 70 | DI6: =CI6 -> 30 | DJ6: =DI6/2 -> 15 | DL6: =IF(DG6+DI6<>100,"ERROR",SUM(DG6,DI6)) -> 100 | DN6: 100 | DP6: =ประเมินผลการเรียนเทอม1!DP6 -> 50 | DQ6: =DL6/2 -> 50 | DS6: 100
A7: 1 | C7: =CONCATENATE(ใส่ชื่อ!C2) -> 2836 | D7: =CONCATENATE(ใส่ชื่อ!D2&ใส่ชื่อ!E2&" "&ใส่ชื่อ!F2) -> เด็กชายธิติวัฒน์ ขุนสิทธิ์ | E7: =ใส่ชื่อ!A2 -> 1 | F7: 10 | G7: 10 | H7: 8 | I7: 9 | J7: 8 | K7: 13 | Z7: =IF(ใส่ชื่อ!D2="","",IF(DU7="ปกติ",SUM(F7,G7,H7,I7,J7,K7,L7,M7,N7,O7,P7,Q7,R7,S7,T7,U7,V7,W7,X7,Y7),"-")) -> 58 | AB7: =IF(Z7="","",IF(Z7="-","-",IF(Z7=0,"",IF($Z$6=0,"",ROUND(Z7/$AA$5,0))))) -> 58 | AW7: =IF(ใส่ชื่อ!D2="","",IF(COUNTIF(AC7:AS7,0),"มผ",IF(DU7="ปกติ",SUM(AC7,AD7,AE7,AF7,AG7,AH7,AI7,AJ7,AK7,AL7,AM7,AN7,AO7,AP7,AQ7,AR7,AS7),"-"))) -> 0 | AY7: =IF(AW7="","",IF(AW7="-","-",IF(AW7="มผ","มผ",IF(AW7=0,"",IF($AW$5=0,"",ROUND(AW7/$AX$5,0)))))) ->  | BO7: =IF(ใส่ชื่อ!D2="","",IF(COUNTIF(AZ7:BN7,0),"มผ",IF(DU7="ปกติ",SUM(AZ7,BA7,BB7,BC7,BD7,BE7,BF7,BG7,BH7,BI7,BJ7,BK7,BL7,BM7,BN7),"-"))) -> 0 | BQ7: =IF(BO7="","",IF(BO7="-","-",IF(BO7="มผ","มผ",IF(BO7=0,"",IF($BO$5=0,"",ROUND(BO7/$BP$5,0)))))) ->  | BR7: 27 | CG7: =IF(ใส่ชื่อ!D2="","",IF(DU7="ปกติ",SUM(BR7,BS7,BT7,BU7,BV7,BW7,BX7,BY7,BZ7,CA7,CB7,CC7,CD7,CE7,CF7),"-")) -> 27 | CI7: =IF(CG7="","",IF(CG7="-","-",IF(CG7=0,"",IF($CG$6=0,"",ROUND(CG7/$CH$5,0))))) -> 27 | CJ7: 3 | CK7: 3 | CL7: 3 | CM7: 3 | CN7: 3 | CO7: =IF(ใส่ชื่อ!D2="","",IF(CJ7="","",(IF(CK7="","",(IF(CL7="","",(IF(CM7="","",(IF(CN7="","",(SUM(CJ7:CN7)))))))))))) -> 15 | CP7: =IF(CO7="","",IF(CO7="-","-",IF(CO7="ร","ร",IF(CO7=0,0,IF($CO$5=0,"",ROUND(CO7/5,0)))))) -> 3 | CQ7: =IF(CP7="","",(IF(CP7>=2.5,"ดย",(IF(CP7>=1.5,"ด",(IF(CP7>=0.6,"ผ",(IF(CP7<=0.4,"มผ"))))))))) -> ดย | CR7: 3 | CS7: 3 | CT7: 3 | CU7: 3 | CV7: 3 | CW7: 3 | CX7: 3 | CY7: 3 | CZ7: 3 | DA7: 3 | DB7: =IF(CR7="","",(IF(CS7="","",(IF(CT7="","",(IF(CU7="","",(IF(CV7="","",(IF(CW7="","",(IF(CX7="","",(IF(CY7="","",IF(CZ7="","",(IF(DA7="","",(IF(COUNTIF(CR7:DA7,0)>0,"มผ",IF(AND(COUNTIF(CR7:DA7,3)>=6,COUNTIF(CR7:DA7,"<2")=0),"ดย",IF(OR(AND(AND(COUNTIF(CR7:DA7,3)>=1,COUNTIF(CR7:DA7,3)<=5),COUNTIF(CR7:DA7,"<2")=0),COUNTIF(CR7:DA7,2)=10,AND(COUNTIF(CR7:DA7,">=2")>=6,COUNTIF(CR7:DA7,1)>0)),"ด",IF(OR(COUNTIF(CR7:DA7,1)=10,AND(COUNTIF(CR7:DA7,">=2")>=1,COUNTIF(CR7:DA7,">=2")<=6)),"ผ","มผ"))))))))))))))))))))))) -> ดย | DC7: =AB7 -> 58 | DD7: =AY7 ->  | DE7: =BQ7 ->  | DG7: =IF(ใส่ชื่อ!D2="","",IF(COUNTIF(DC7:DE7,"มผ"),"มผ",IF(DE7="มผ","มผ",IF(DU7="ปกติ",SUM(DC7:DD7,IF(DF7="",DE7,DF7)),"-")))) -> 58 | DI7: =CI7 -> 27 | DL7: =IF(ใส่ชื่อ!D2="","",IF(DG7="","",IF(COUNTIF(DC7:DJ7,"มผ"),"มผ",IF(COUNTIF(DC7:DJ7,"-"),"-",IF(DU7="ปกติ",SUM(DG7,IF(DJ7="",DI7,DJ7))))))) -> 85 | DP7: =ประเมินผลการเรียนเทอม1!DP7 -> 40 | DQ7: =IF(ใส่ชื่อ!A2="","",IF(DL7="-","-",IF(DL7=0,"",IF(DU7="ปกติ",MAXA(DL7/2,DN7/2))))) -> 42.5 | DS7: =IF(เวลาเรียน!M9="","",IF(เวลาเรียน!M9="ย้าย","-",IF(เวลาเรียน!M9="จำหน่าย","-",IF(เวลาเรียน!M9="ขาดเรียนนาน","-",IF(DP7="","",IF(DQ7="","",SUM(DP7+DQ7))))))) -> 82.5 | DT7: =IF(เวลาเรียน!M9="","",IF(เวลาเรียน!M9="ย้าย","-",IF(เวลาเรียน!M9="จำหน่าย","-",IF(เวลาเรียน!M9="ขาดเรียนนาน","-",IF(เวลาเรียน!L9<80,"มส",IF(COUNTIF(DS7,"-"),"-",IF(COUNTIF(DS7,""),"",VLOOKUP(DS7,$DW$19:$DY$26,3)))))))) -> 4 | DU7: =IF(เวลาเรียน!M9="","",เวลาเรียน!M9) -> ปกติ
A8: 2 | B8: 2498 | C8: =CONCATENATE(ใส่ชื่อ!C3) -> 2840 | D8: =CONCATENATE(ใส่ชื่อ!D3&ใส่ชื่อ!E3&" "&ใส่ชื่อ!F3) -> เด็กชายอภิชาติ ล่องสุวรรณ | E8: =ใส่ชื่อ!A3 -> 2 | F8: 9 | G8: 9 | H8: 8 | I8: 8 | J8: 8 | K8: 12 | Z8: =IF(ใส่ชื่อ!D3="","",IF(DU8="ปกติ",SUM(F8,G8,H8,I8,J8,K8,L8,M8,N8,O8,P8,Q8,R8,S8,T8,U8,V8,W8,X8,Y8),"-")) -> 54 | AB8: =IF(Z8="","",IF(Z8="-","-",IF(Z8=0,"",IF($Z$6=0,"",ROUND(Z8/$AA$5,0))))) -> 54 | AW8: =IF(ใส่ชื่อ!D3="","",IF(COUNTIF(AC8:AS8,0),"มผ",IF(DU8="ปกติ",SUM(AC8,AD8,AE8,AF8,AG8,AH8,AI8,AJ8,AK8,AL8,AM8,AN8,AO8,AP8,AQ8,AR8,AS8),"-"))) -> 0 | AY8: =IF(AW8="","",IF(AW8="-","-",IF(AW8="มผ","มผ",IF(AW8=0,"",IF($AW$5=0,"",ROUND(AW8/$AX$5,0)))))) ->  | BO8: =IF(ใส่ชื่อ!D3="","",IF(COUNTIF(AZ8:BN8,0),"มผ",IF(DU8="ปกติ",SUM(AZ8,BA8,BB8,BC8,BD8,BE8,BF8,BG8,BH8,BI8,BJ8,BK8,BL8,BM8,BN8),"-"))) -> 0 | BQ8: =IF(BO8="","",IF(BO8="-","-",IF(BO8="มผ","มผ",IF(BO8=0,"",IF($BO$5=0,"",ROUND(BO8/$BP$5,0)))))) ->  | BR8: 27 | CG8: =IF(ใส่ชื่อ!D3="","",IF(DU8="ปกติ",SUM(BR8,BS8,BT8,BU8,BV8,BW8,BX8,BY8,BZ8,CA8,CB8,CC8,CD8,CE8,CF8),"-")) -> 27 | CI8: =IF(CG8="","",IF(CG8="-","-",IF(CG8=0,"",IF($CG$6=0,"",ROUND(CG8/$CH$5,0))))) -> 27 | CJ8: 3 | CK8: 3 | CL8: 3 | CM8: 2 | CN8: 3 | CO8: =IF(ใส่ชื่อ!D3="","",IF(CJ8="","",(IF(CK8="","",(IF(CL8="","",(IF(CM8="","",(IF(CN8="","",(SUM(CJ8:CN8)))))))))))) -> 14 | CP8: =IF(CO8="","",IF(CO8="-","-",IF(CO8="ร","ร",IF(CO8=0,0,IF($CO$5=0,"",ROUND(CO8/5,0)))))) -> 3 | CQ8: =IF(CP8="","",(IF(CP8>=2.5,"ดย",(IF(CP8>=1.5,"ด",(IF(CP8>=0.6,"ผ",(IF(CP8<=0.4,"มผ"))))))))) -> ดย | CR8: 3 | CS8: 3 | CT8: 2 | CU8: 3 | CV8: 3 | CW8: 2 | CX8: 3 | CY8: 3 | CZ8: 3 | DA8: 3 | DB8: =IF(CR8="","",(IF(CS8="","",(IF(CT8="","",(IF(CU8="","",(IF(CV8="","",(IF(CW8="","",(IF(CX8="","",(IF(CY8="","",IF(CZ8="","",(IF(DA8="","",(IF(COUNTIF(CR8:DA8,0)>0,"มผ",IF(AND(COUNTIF(CR8:DA8,3)>=6,COUNTIF(CR8:DA8,"<2")=0),"ดย",IF(OR(AND(AND(COUNTIF(CR8:DA8,3)>=1,COUNTIF(CR8:DA8,3)<=5),COUNTIF(CR8:DA8,"<2")=0),COUNTIF(CR8:DA8,2)=10,AND(COUNTIF(CR8:DA8,">=2")>=6,COUNTIF(CR8:DA8,1)>0)),"ด",IF(OR(COUNTIF(CR8:DA8,1)=10,AND(COUNTIF(CR8:DA8,">=2")>=1,COUNTIF(CR8:DA8,">=2")<=6)),"ผ","มผ"))))))))))))))))))))))) -> ดย | DC8: 54 | DG8: =IF(ใส่ชื่อ!D3="","",IF(COUNTIF(DC8:DE8,"มผ"),"มผ",IF(DE8="มผ","มผ",IF(DU8="ปกติ",SUM(DC8:DD8,IF(DF8="",DE8,DF8)),"-")))) -> 54 | DI8: 27 | DL8: =IF(ใส่ชื่อ!D3="","",IF(DG8="","",IF(COUNTIF(DC8:DJ8,"มผ"),"มผ",IF(COUNTIF(DC8:DJ8,"-"),"-",IF(DU8="ปกติ",SUM(DG8,IF(DJ8="",DI8,DJ8))))))) -> 81 | DP8: =ประเมินผลการเรียนเทอม1!DP8 -> 30.5 | DQ8: =IF(ใส่ชื่อ!A3="","",IF(DL8="-","-",IF(DL8=0,"",IF(DU8="ปกติ",MAXA(DL8/2,DN8/2))))) -> 40.5 | DS8: =IF(เวลาเรียน!M10="","",IF(เวลาเรียน!M10="ย้าย","-",IF(เวลาเรียน!M10="จำหน่าย","-",IF(เวลาเรียน!M10="ขาดเรียนนาน","-",IF(DP8="","",IF(DQ8="","",SUM(DP8+DQ8))))))) -> 71 | DT8: =IF(เวลาเรียน!M10="","",IF(เวลาเรียน!M10="ย้าย","-",IF(เวลาเรียน!M10="จำหน่าย","-",IF(เวลาเรียน!M10="ขาดเรียนนาน","-",IF(เวลาเรียน!L10<80,"มส",IF(COUNTIF(DS8,"-"),"-",IF(COUNTIF(DS8,""),"",VLOOKUP(DS8,$DW$19:$DY$26,3)))))))) -> 3 | DU8: =IF(เวลาเรียน!M10="","",เวลาเรียน!M10) -> ปกติ | DW8: ช่วงคะแนน | DY8: เกรด | EA8: 4 | EB8: 3.5 | EC8: 3 | ED8: 2.5 | EE8: 2 | EF8: 1.5 | EG8: 1 | EH8: 0 | EI8: ร | EJ8: มส
A9: 3 | B9: 2499 | C9: =CONCATENATE(ใส่ชื่อ!C4) -> 2842 | D9: =CONCATENATE(ใส่ชื่อ!D4&ใส่ชื่อ!E4&" "&ใส่ชื่อ!F4) -> เด็กชายเมธัส ป้อมเมือง | E9: =ใส่ชื่อ!A4 -> 3 | F9: 10 | G9: 9 | H9: 9 | I9: 10 | J9: 8 | K9: 15 | Z9: =IF(ใส่ชื่อ!D4="","",IF(DU9="ปกติ",SUM(F9,G9,H9,I9,J9,K9,L9,M9,N9,O9,P9,Q9,R9,S9,T9,U9,V9,W9,X9,Y9),"-")) -> 61 | AB9: 61 | AW9: =IF(ใส่ชื่อ!D4="","",IF(COUNTIF(AC9:AS9,0),"มผ",IF(DU9="ปกติ",SUM(AC9,AD9,AE9,AF9,AG9,AH9,AI9,AJ9,AK9,AL9,AM9,AN9,AO9,AP9,AQ9,AR9,AS9),"-"))) -> 0 | BO9: =IF(ใส่ชื่อ!D4="","",IF(COUNTIF(AZ9:BN9,0),"มผ",IF(DU9="ปกติ",SUM(AZ9,BA9,BB9,BC9,BD9,BE9,BF9,BG9,BH9,BI9,BJ9,BK9,BL9,BM9,BN9),"-"))) -> 0 | BR9: 23 | CG9: =IF(ใส่ชื่อ!D4="","",IF(DU9="ปกติ",SUM(BR9,BS9,BT9,BU9,BV9,BW9,BX9,BY9,BZ9,CA9,CB9,CC9,CD9,CE9,CF9),"-")) -> 23 | CI9: 23 | CJ9: 3 | CK9: 3 | CL9: 3 | CM9: 3 | CN9: 3 | CO9: =IF(ใส่ชื่อ!D4="","",IF(CJ9="","",(IF(CK9="","",(IF(CL9="","",(IF(CM9="","",(IF(CN9="","",(SUM(CJ9:CN9)))))))))))) -> 15 | CP9: 3 | CQ9: ดย | CR9: 3 | CS9: 3 | CT9: 3 | CU9: 3 | CV9: 3 | CW9: 3 | CX9: 3 | CY9: 3 | CZ9: 3 | DA9: 3 | DB9: ดย | DC9: 61 | DG9: =IF(ใส่ชื่อ!D4="","",IF(COUNTIF(DC9:DE9,"มผ"),"มผ",IF(DE9="มผ","มผ",IF(DU9="ปกติ",SUM(DC9:DD9,IF(DF9="",DE9,DF9)),"-")))) -> 61 | DI9: 23 | DL9: =IF(ใส่ชื่อ!D4="","",IF(DG9="","",IF(COUNTIF(DC9:DJ9,"มผ"),"มผ",IF(COUNTIF(DC9:DJ9,"-"),"-",IF(DU9="ปกติ",SUM(DG9,IF(DJ9="",DI9,DJ9))))))) -> 84 | DP9: =ประเมินผลการเรียนเทอม1!DP9 -> 38 | DQ9: =IF(ใส่ชื่อ!A4="","",IF(DL9="-","-",IF(DL9=0,"",IF(DU9="ปกติ",MAXA(DL9/2,DN9/2))))) -> 42 | DS9: =IF(เวลาเรียน!M11="","",IF(เวลาเรียน!M11="ย้าย","-",IF(เวลาเรียน!M11="จำหน่าย","-",IF(เวลาเรียน!M11="ขาดเรียนนาน","-",IF(DP9="","",IF(DQ9="","",SUM(DP9+DQ9))))))) -> 80 | DT9: =IF(เวลาเรียน!M11="","",IF(เวลาเรียน!M11="ย้าย","-",IF(เวลาเรียน!M11="จำหน่าย","-",IF(เวลาเรียน!M11="ขาดเรียนนาน","-",IF(เวลาเรียน!L11<80,"มส",IF(COUNTIF(DS9,"-"),"-",IF(COUNTIF(DS9,""),"",VLOOKUP(DS9,$DW$19:$DY$26,3)))))))) -> 4 | DU9: =IF(เวลาเรียน!M11="","",เวลาเรียน!M11) -> ปกติ | DW9: จาก | DX9: ถึง | EA9: =COUNTIF($DT$7:$DT$56,EA8) -> 8 | EB9: =COUNTIF($DT$7:$DT$56,EB8) -> 2 | EC9: 8 | ED9: 2 | EE9: 0 | EF9: 0 | EG9: 0 | EH9: 0 | EI9: 0 | EJ9: 0
A10: 4 | B10: 2500 | C10: =CONCATENATE(ใส่ชื่อ!C5) -> 2844 | D10: =CONCATENATE(ใส่ชื่อ!D5&ใส่ชื่อ!E5&" "&ใส่ชื่อ!F5) -> เด็กหญิงพรณิสา เพ็ชรจั่น | E10: =ใส่ชื่อ!A5 -> 4 | F10: 10 | G10: 10 | H10: 10 | I10: 9 | J10: 10 | K10: 17 | Z10: =IF(ใส่ชื่อ!D5="","",IF(DU10="ปกติ",SUM(F10,G10,H10,I10,J10,K10,L10,M10,N10,O10,P10,Q10,R10,S10,T10,U10,V10,W10,X10,Y10),"-")) -> 66 | AB10: 66 | AW10: =IF(ใส่ชื่อ!D5="","",IF(COUNTIF(AC10:AS10,0),"มผ",IF(DU10="ปกติ",SUM(AC10,AD10,AE10,AF10,AG10,AH10,AI10,AJ10,AK10,AL10,AM10,AN10,AO10,AP10,AQ10,AR10,AS10),"-"))) -> 0 | BO10: =IF(ใส่ชื่อ!D5="","",IF(COUNTIF(AZ10:BN10,0),"มผ",IF(DU10="ปกติ",SUM(AZ10,BA10,BB10,BC10,BD10,BE10,BF10,BG10,BH10,BI10,BJ10,BK10,BL10,BM10,BN10),"-"))) -> 0 | BR10: 28 | CG10: =IF(ใส่ชื่อ!D5="","",IF(DU10="ปกติ",SUM(BR10,BS10,BT10,BU10,BV10,BW10,BX10,BY10,BZ10,CA10,CB10,CC10,CD10,CE10,CF10),"-")) -> 28 | CI10: 28 | CJ10: 3 | CK10: 3 | CL10: 3 | CM10: 3 | CN10: 3 | CO10: =IF(ใส่ชื่อ!D5="","",IF(CJ10="","",(IF(CK10="","",(IF(CL10="","",(IF(CM10="","",(IF(CN10="","",(SUM(CJ10:CN10)))))))))))) -> 15 | CP10: 3 | CQ10: ดย | CR10: 3 | CS10: 3 | CT10: 3 | CU10: 3 | CV10: 3 | CW10: 3 | CX10: 3 | CY10: 3 | CZ10: 3 | DA10: 3 | DB10: ดย | DC10: 66 | DG10: =IF(ใส่ชื่อ!D5="","",IF(COUNTIF(DC10:DE10,"มผ"),"มผ",IF(DE10="มผ","มผ",IF(DU10="ปกติ",SUM(DC10:DD10,IF(DF10="",DE10,DF10)),"-")))) -> 66 | DI10: 28 | DL10: =IF(ใส่ชื่อ!D5="","",IF(DG10="","",IF(COUNTIF(DC10:DJ10,"มผ"),"มผ",IF(COUNTIF(DC10:DJ10,"-"),"-",IF(DU10="ปกติ",SUM(DG10,IF(DJ10="",DI10,DJ10))))))) -> 94 | DP10: =ประเมินผลการเรียนเทอม1!DP10 -> 42 | DQ10: =IF(ใส่ชื่อ!A5="","",IF(DL10="-","-",IF(DL10=0,"",IF(DU10="ปกติ",MAXA(DL10/2,DN10/2))))) -> 47 | DS10: =IF(เวลาเรียน!M12="","",IF(เวลาเรียน!M12="ย้าย","-",IF(เวลาเรียน!M12="จำหน่าย","-",IF(เวลาเรียน!M12="ขาดเรียนนาน","-",IF(DP10="","",IF(DQ10="","",SUM(DP10+DQ10))))))) -> 89 | DT10: =IF(เวลาเรียน!M12="","",IF(เวลาเรียน!M12="ย้าย","-",IF(เวลาเรียน!M12="จำหน่าย","-",IF(เวลาเรียน!M12="ขาดเรียนนาน","-",IF(เวลาเรียน!L12<80,"มส",IF(COUNTIF(DS10,"-"),"-",IF(COUNTIF(DS10,""),"",VLOOKUP(DS10,$DW$19:$DY$26,3)))))))) -> 4 | DU10: =IF(เวลาเรียน!M12="","",เวลาเรียน!M12) -> ปกติ | DW10: 0 | DX10: 49 | DY10: 0
A11: 5 | B11: 2501 | C11: =CONCATENATE(ใส่ชื่อ!C6) -> 2845 | D11: =CONCATENATE(ใส่ชื่อ!D6&ใส่ชื่อ!E6&" "&ใส่ชื่อ!F6) -> เด็กหญิงบุญฑริกา นิ่มอ่อน | E11: =ใส่ชื่อ!A6 -> 5 | F11: 9 | G11: 8 | H11: 9 | I11: 8 | J11: 7 | K11: 13 | Z11: =IF(ใส่ชื่อ!D6="","",IF(DU11="ปกติ",SUM(F11,G11,H11,I11,J11,K11,L11,M11,N11,O11,P11,Q11,R11,S11,T11,U11,V11,W11,X11,Y11),"-")) -> 54 | AB11: 54 | AW11: =IF(ใส่ชื่อ!D6="","",IF(COUNTIF(AC11:AS11,0),"มผ",IF(DU11="ปกติ",SUM(AC11,AD11,AE11,AF11,AG11,AH11,AI11,AJ11,AK11,AL11,AM11,AN11,AO11,AP11,AQ11,AR11,AS11),"-"))) -> 0 | BO11: =IF(ใส่ชื่อ!D6="","",IF(COUNTIF(AZ11:BN11,0),"มผ",IF(DU11="ปกติ",SUM(AZ11,BA11,BB11,BC11,BD11,BE11,BF11,BG11,BH11,BI11,BJ11,BK11,BL11,BM11,BN11),"-"))) -> 0 | BR11: 26 | CG11: =IF(ใส่ชื่อ!D6="","",IF(DU11="ปกติ",SUM(BR11,BS11,BT11,BU11,BV11,BW11,BX11,BY11,BZ11,CA11,CB11,CC11,CD11,CE11,CF11),"-")) -> 26 | CI11: 26 | CJ11: 3 | CK11: 2 | CL11: 2 | CM11: 2 | CN11: 3 | CO11: =IF(ใส่ชื่อ!D6="","",IF(CJ11="","",(IF(CK11="","",(IF(CL11="","",(IF(CM11="","",(IF(CN11="","",(SUM(CJ11:CN11)))))))))))) -> 12 | CP11: 2 | CQ11: ด | CR11: 3 | CS11: 2 | CT11: 2 | CU11: 2 | CV11: 2 | CW11: 2 | CX11: 2 | CY11: 3 | CZ11: 3 | DA11: 3 | DB11: ด | DC11: 54 | DG11: =IF(ใส่ชื่อ!D6="","",IF(COUNTIF(DC11:DE11,"มผ"),"มผ",IF(DE11="มผ","มผ",IF(DU11="ปกติ",SUM(DC11:DD11,IF(DF11="",DE11,DF11)),"-")))) -> 54 | DI11: 26 | DL11: =IF(ใส่ชื่อ!D6="","",IF(DG11="","",IF(COUNTIF(DC11:DJ11,"มผ"),"มผ",IF(COUNTIF(DC11:DJ11,"-"),"-",IF(DU11="ปกติ",SUM(DG11,IF(DJ11="",DI11,DJ11))))))) -> 80 | DP11: =ประเมินผลการเรียนเทอม1!DP11 -> 30 | DQ11: =IF(ใส่ชื่อ!A6="","",IF(DL11="-","-",IF(DL11=0,"",IF(DU11="ปกติ",MAXA(DL11/2,DN11/2))))) -> 40 | DS11: =IF(เวลาเรียน!M13="","",IF(เวลาเรียน!M13="ย้าย","-",IF(เวลาเรียน!M13="จำหน่าย","-",IF(เวลาเรียน!M13="ขาดเรียนนาน","-",IF(DP11="","",IF(DQ11="","",SUM(DP11+DQ11))))))) -> 70 | DT11: =IF(เวลาเรียน!M13="","",IF(เวลาเรียน!M13="ย้าย","-",IF(เวลาเรียน!M13="จำหน่าย","-",IF(เวลาเรียน!M13="ขาดเรียนนาน","-",IF(เวลาเรียน!L13<80,"มส",IF(COUNTIF(DS11,"-"),"-",IF(COUNTIF(DS11,""),"",VLOOKUP(DS11,$DW$19:$DY$26,3)))))))) -> 3 | DU11: =IF(เวลาเรียน!M13="","",เวลาเรียน!M13) -> ปกติ | DW11: 50 | DX11: 54 | DY11: 1
A12: 6 | B12: 2502 | C12: =CONCATENATE(ใส่ชื่อ!C7) -> 2846 | D12: =CONCATENATE(ใส่ชื่อ!D7&ใส่ชื่อ!E7&" "&ใส่ชื่อ!F7) -> เด็กหญิงรัญชิดา นรเนตร | E12: =ใส่ชื่อ!A7 -> 6 | F12: 9 | G12: 8 | H12: 9 | I12: 7 | J12: 8 | K12: 11 | Z12: =IF(ใส่ชื่อ!D7="","",IF(DU12="ปกติ",SUM(F12,G12,H12,I12,J12,K12,L12,M12,N12,O12,P12,Q12,R12,S12,T12,U12,V12,W12,X12,Y12),"-")) -> 52 | AB12: 52 | AW12: =IF(ใส่ชื่อ!D7="","",IF(COUNTIF(AC12:AS12,0),"มผ",IF(DU12="ปกติ",SUM(AC12,AD12,AE12,AF12,AG12,AH12,AI12,AJ12,AK12,AL12,AM12,AN12,AO12,AP12,AQ12,AR12,AS12),"-"))) -> 0 | BO12: =IF(ใส่ชื่อ!D7="","",IF(COUNTIF(AZ12:BN12,0),"มผ",IF(DU12="ปกติ",SUM(AZ12,BA12,BB12,BC12,BD12,BE12,BF12,BG12,BH12,BI12,BJ12,BK12,BL12,BM12,BN12),"-"))) -> 0 | BR12: 28 | CG12: =IF(ใส่ชื่อ!D7="","",IF(DU12="ปกติ",SUM(BR12,BS12,BT12,BU12,BV12,BW12,BX12,BY12,BZ12,CA12,CB12,CC12,CD12,CE12,CF12),"-")) -> 28 | CI12: 28 | CJ12: 3 | CK12: 2 | CL12: 2 | CM12: 3 | CN12: 3 | CO12: =IF(ใส่ชื่อ!D7="","",IF(CJ12="","",(IF(CK12="","",(IF(CL12="","",(IF(CM12="","",(IF(CN12="","",(SUM(CJ12:CN12)))))))))))) -> 13 | CP12: 3 | CQ12: ดย | CR12: 3 | CS12: 2 | CT12: 2 | CU12: 3 | CV12: 2 | CW12: 2 | CX12: 3 | CY12: 3 | CZ12: 3 | DA12: 3 | DB12: ดย | DC12: 52 | DG12: =IF(ใส่ชื่อ!D7="","",IF(COUNTIF(DC12:DE12,"มผ"),"มผ",IF(DE12="มผ","มผ",IF(DU12="ปกติ",SUM(DC12:DD12,IF(DF12="",DE12,DF12)),"-")))) -> 52 | DI12: 28 | DL12: =IF(ใส่ชื่อ!D7="","",IF(DG12="","",IF(COUNTIF(DC12:DJ12,"มผ"),"มผ",IF(COUNTIF(DC12:DJ12,"-"),"-",IF(DU12="ปกติ",SUM(DG12,IF(DJ12="",DI12,DJ12))))))) -> 80 | DP12: =ประเมินผลการเรียนเทอม1!DP12 -> 30.5 | DQ12: =IF(ใส่ชื่อ!A7="","",IF(DL12="-","-",IF(DL12=0,"",IF(DU12="ปกติ",MAXA(DL12/2,DN12/2))))) -> 40 | DS12: =IF(เวลาเรียน!M14="","",IF(เวลาเรียน!M14="ย้าย","-",IF(เวลาเรียน!M14="จำหน่าย","-",IF(เวลาเรียน!M14="ขาดเรียนนาน","-",IF(DP12="","",IF(DQ12="","",SUM(DP12+DQ12))))))) -> 70.5 | DT12: =IF(เวลาเรียน!M14="","",IF(เวลาเรียน!M14="ย้าย","-",IF(เวลาเรียน!M14="จำหน่าย","-",IF(เวลาเรียน!M14="ขาดเรียนนาน","-",IF(เวลาเรียน!L14<80,"มส",IF(COUNTIF(DS12,"-"),"-",IF(COUNTIF(DS12,""),"",VLOOKUP(DS12,$DW$19:$DY$26,3)))))))) -> 3 | DU12: =IF(เวลาเรียน!M14="","",เวลาเรียน!M14) -> ปกติ | DW12: 55 | DX12: 59 | DY12: 1.5
A13: 7 | B13: 2503 | C13: =CONCATENATE(ใส่ชื่อ!C8) -> 2847 | D13: =CONCATENATE(ใส่ชื่อ!D8&ใส่ชื่อ!E8&" "&ใส่ชื่อ!F8) -> เด็กหญิงอริสา วีระวิทยกุญชร | E13: =ใส่ชื่อ!A8 -> 7 | F13: 10 | G13: 8 | H13: 9 | I13: 9 | J13: 8 | K13: 14 | Z13: =IF(ใส่ชื่อ!D8="","",IF(DU13="ปกติ",SUM(F13,G13,H13,I13,J13,K13,L13,M13,N13,O13,P13,Q13,R13,S13,T13,U13,V13,W13,X13,Y13),"-")) -> 58 | AB13: 58 | AW13: =IF(ใส่ชื่อ!D8="","",IF(COUNTIF(AC13:AS13,0),"มผ",IF(DU13="ปกติ",SUM(AC13,AD13,AE13,AF13,AG13,AH13,AI13,AJ13,AK13,AL13,AM13,AN13,AO13,AP13,AQ13,AR13,AS13),"-"))) -> 0 | BO13: =IF(ใส่ชื่อ!D8="","",IF(COUNTIF(AZ13:BN13,0),"มผ",IF(DU13="ปกติ",SUM(AZ13,BA13,BB13,BC13,BD13,BE13,BF13,BG13,BH13,BI13,BJ13,BK13,BL13,BM13,BN13),"-"))) -> 0 | BR13: 22 | CG13: =IF(ใส่ชื่อ!D8="","",IF(DU13="ปกติ",SUM(BR13,BS13,BT13,BU13,BV13,BW13,BX13,BY13,BZ13,CA13,CB13,CC13,CD13,CE13,CF13),"-")) -> 22 | CI13: 22 | CJ13: 3 | CK13: 3 | CL13: 3 | CM13: 3 | CN13: 3 | CO13: =IF(ใส่ชื่อ!D8="","",IF(CJ13="","",(IF(CK13="","",(IF(CL13="","",(IF(CM13="","",(IF(CN13="","",(SUM(CJ13:CN13)))))))))))) -> 15 | CP13: 3 | CQ13: ดย | CR13: 3 | CS13: 3 | CT13: 2 | CU13: 2 | CV13: 3 | CW13: 3 | CX13: 3 | CY13: 3 | CZ13: 3 | DA13: 3 | DB13: ดย | DC13: 58 | DG13: =IF(ใส่ชื่อ!D8="","",IF(COUNTIF(DC13:DE13,"มผ"),"มผ",IF(DE13="มผ","มผ",IF(DU13="ปกติ",SUM(DC13:DD13,IF(DF13="",DE13,DF13)),"-")))) -> 58 | DI13: 22 | DL13: =IF(ใส่ชื่อ!D8="","",IF(DG13="","",IF(COUNTIF(DC13:DJ13,"มผ"),"มผ",IF(COUNTIF(DC13:DJ13,"-"),"-",IF(DU13="ปกติ",SUM(DG13,IF(DJ13="",DI13,DJ13))))))) -> 80 | DP13: =ประเมินผลการเรียนเทอม1!DP13 -> 35.5 | DQ13: =IF(ใส่ชื่อ!A8="","",IF(DL13="-","-",IF(DL13=0,"",IF(DU13="ปกติ",MAXA(DL13/2,DN13/2))))) -> 40 | DS13: =IF(เวลาเรียน!M15="","",IF(เวลาเรียน!M15="ย้าย","-",IF(เวลาเรียน!M15="จำหน่าย","-",IF(เวลาเรียน!M15="ขาดเรียนนาน","-",IF(DP13="","",IF(DQ13="","",SUM(DP13+DQ13))))))) -> 75.5 | DT13: =IF(เวลาเรียน!M15="","",IF(เวลาเรียน!M15="ย้าย","-",IF(เวลาเรียน!M15="จำหน่าย","-",IF(เวลาเรียน!M15="ขาดเรียนนาน","-",IF(เวลาเรียน!L15<80,"มส",IF(COUNTIF(DS13,"-"),"-",IF(COUNTIF(DS13,""),"",VLOOKUP(DS13,$DW$19:$DY$26,3)))))))) -> 3.5 | DU13: =IF(เวลาเรียน!M15="","",เวลาเรียน!M15) -> ปกติ | DW13: 60 | DX13: 64 | DY13: 2
A14: 8 | B14: 2504 | C14: =CONCATENATE(ใส่ชื่อ!C9) -> 2855 | D14: =CONCATENATE(ใส่ชื่อ!D9&ใส่ชื่อ!E9&" "&ใส่ชื่อ!F9) -> เด็กหญิงณัฐวรา ธนกิจชัยชนะ | E14: =ใส่ชื่อ!A9 -> 8 | F14: 9 | G14: 8 | H14: 9 | I14: 8 | J14: 8 | K14: 11 | Z14: =IF(ใส่ชื่อ!D9="","",IF(DU14="ปกติ",SUM(F14,G14,H14,I14,J14,K14,L14,M14,N14,O14,P14,Q14,R14,S14,T14,U14,V14,W14,X14,Y14),"-")) -> 53 | AB14: 53 | AW14: =IF(ใส่ชื่อ!D9="","",IF(COUNTIF(AC14:AS14,0),"มผ",IF(DU14="ปกติ",SUM(AC14,AD14,AE14,AF14,AG14,AH14,AI14,AJ14,AK14,AL14,AM14,AN14,AO14,AP14,AQ14,AR14,AS14),"-"))) -> 0 | BO14: =IF(ใส่ชื่อ!D9="","",IF(COUNTIF(AZ14:BN14,0),"มผ",IF(DU14="ปกติ",SUM(AZ14,BA14,BB14,BC14,BD14,BE14,BF14,BG14,BH14,BI14,BJ14,BK14,BL14,BM14,BN14),"-"))) -> 0 | BR14: 27 | CG14: =IF(ใส่ชื่อ!D9="","",IF(DU14="ปกติ",SUM(BR14,BS14,BT14,BU14,BV14,BW14,BX14,BY14,BZ14,CA14,CB14,CC14,CD14,CE14,CF14),"-")) -> 27 | CI14: 27 | CJ14: 3 | CK14: 3 | CL14: 3 | CM14: 3 | CN14: 3 | CO14: =IF(ใส่ชื่อ!D9="","",IF(CJ14="","",(IF(CK14="","",(IF(CL14="","",(IF(CM14="","",(IF(CN14="","",(SUM(CJ14:CN14)))))))))))) -> 15 | CP14: 3 | CQ14: ดย | CR14: 3 | CS14: 3 | CT14: 3 | CU14: 3 | CV14: 3 | CW14: 3 | CX14: 3 | CY14: 3 | CZ14: 3 | DA14: 3 | DB14: ดย | DC14: 53 | DG14: =IF(ใส่ชื่อ!D9="","",IF(COUNTIF(DC14:DE14,"มผ"),"มผ",IF(DE14="มผ","มผ",IF(DU14="ปกติ",SUM(DC14:DD14,IF(DF14="",DE14,DF14)),"-")))) -> 53 | DI14: 27 | DL14: =IF(ใส่ชื่อ!D9="","",IF(DG14="","",IF(COUNTIF(DC14:DJ14,"มผ"),"มผ",IF(COUNTIF(DC14:DJ14,"-"),"-",IF(DU14="ปกติ",SUM(DG14,IF(DJ14="",DI14,DJ14))))))) -> 80 | DP14: =ประเมินผลการเรียนเทอม1!DP14 -> 32.5 | DQ14: =IF(ใส่ชื่อ!A9="","",IF(DL14="-","-",IF(DL14=0,"",IF(DU14="ปกติ",MAXA(DL14/2,DN14/2))))) -> 40 | DS14: =IF(เวลาเรียน!M16="","",IF(เวลาเรียน!M16="ย้าย","-",IF(เวลาเรียน!M16="จำหน่าย","-",IF(เวลาเรียน!M16="ขาดเรียนนาน","-",IF(DP14="","",IF(DQ14="","",SUM(DP14+DQ14))))))) -> 72.5 | DT14: =IF(เวลาเรียน!M16="","",IF(เวลาเรียน!M16="ย้าย","-",IF(เวลาเรียน!M16="จำหน่าย","-",IF(เวลาเรียน!M16="ขาดเรียนนาน","-",IF(เวลาเรียน!L16<80,"มส",IF(COUNTIF(DS14,"-"),"-",IF(COUNTIF(DS14,""),"",VLOOKUP(DS14,$DW$19:$DY$26,3)))))))) -> 3 | DU14: =IF(เวลาเรียน!M16="","",เวลาเรียน!M16) -> ปกติ | DW14: 65 | DX14: 69 | DY14: 2.5
A15: 9 | B15: 2505 | C15: =CONCATENATE(ใส่ชื่อ!C10) -> 2856 | D15: =CONCATENATE(ใส่ชื่อ!D10&ใส่ชื่อ!E10&" "&ใส่ชื่อ!F10) -> เด็กชายอักคเชน ดอกกระถิน | E15: =ใส่ชื่อ!A10 -> 9 | F15: 9 | G15: 8 | H15: 8 | I15: 9 | J15: 8 | K15: 13 | Z15: =IF(ใส่ชื่อ!D10="","",IF(DU15="ปกติ",SUM(F15,G15,H15,I15,J15,K15,L15,M15,N15,O15,P15,Q15,R15,S15,T15,U15,V15,W15,X15,Y15),"-")) -> 55 | AB15: 55 | AW15: =IF(ใส่ชื่อ!D10="","",IF(COUNTIF(AC15:AS15,0),"มผ",IF(DU15="ปกติ",SUM(AC15,AD15,AE15,AF15,AG15,AH15,AI15,AJ15,AK15,AL15,AM15,AN15,AO15,AP15,AQ15,AR15,AS15),"-"))) -> 0 | BO15: =IF(ใส่ชื่อ!D10="","",IF(COUNTIF(AZ15:BN15,0),"มผ",IF(DU15="ปกติ",SUM(AZ15,BA15,BB15,BC15,BD15,BE15,BF15,BG15,BH15,BI15,BJ15,BK15,BL15,BM15,BN15),"-"))) -> 0 | BR15: 28 | CG15: =IF(ใส่ชื่อ!D10="","",IF(DU15="ปกติ",SUM(BR15,BS15,BT15,BU15,BV15,BW15,BX15,BY15,BZ15,CA15,CB15,CC15,CD15,CE15,CF15),"-")) -> 28 | CI15: 28 | CJ15: 3 | CK15: 2 | CL15: 3 | CM15: 3 | CN15: 3 | CO15: =IF(ใส่ชื่อ!D10="","",IF(CJ15="","",(IF(CK15="","",(IF(CL15="","",(IF(CM15="","",(IF(CN15="","",(SUM(CJ15:CN15)))))))))))) -> 14 | CP15: 3 | CQ15: ดย | CR15: 3 | CS15: 3 | CT15: 2 | CU15: 3 | CV15: 3 | CW15: 3 | CX15: 3 | CY15: 3 | CZ15: 3 | DA15: 3 | DB15: ดย | DC15: 55 | DG15: =IF(ใส่ชื่อ!D10="","",IF(COUNTIF(DC15:DE15,"มผ"),"มผ",IF(DE15="มผ","มผ",IF(DU15="ปกติ",SUM(DC15:DD15,IF(DF15="",DE15,DF15)),"-")))) -> 55 | DI15: 28 | DL15: =IF(ใส่ชื่อ!D10="","",IF(DG15="","",IF(COUNTIF(DC15:DJ15,"มผ"),"มผ",IF(COUNTIF(DC15:DJ15,"-"),"-",IF(DU15="ปกติ",SUM(DG15,IF(DJ15="",DI15,DJ15))))))) -> 83 | DP15: =ประเมินผลการเรียนเทอม1!DP15 -> 33.5 | DQ15: =IF(ใส่ชื่อ!A10="","",IF(DL15="-","-",IF(DL15=0,"",IF(DU15="ปกติ",MAXA(DL15/2,DN15/2))))) -> 41.5 | DS15: =IF(เวลาเรียน!M17="","",IF(เวลาเรียน!M17="ย้าย","-",IF(เวลาเรียน!M17="จำหน่าย","-",IF(เวลาเรียน!M17="ขาดเรียนนาน","-",IF(DP15="","",IF(DQ15="","",SUM(DP15+DQ15))))))) -> 75 | DT15: =IF(เวลาเรียน!M17="","",IF(เวลาเรียน!M17="ย้าย","-",IF(เวลาเรียน!M17="จำหน่าย","-",IF(เวลาเรียน!M17="ขาดเรียนนาน","-",IF(เวลาเรียน!L17<80,"มส",IF(COUNTIF(DS15,"-"),"-",IF(COUNTIF(DS15,""),"",VLOOKUP(DS15,$DW$19:$DY$26,3)))))))) -> 3.5 | DU15: =IF(เวลาเรียน!M17="","",เวลาเรียน!M17) -> ปกติ | DW15: 70 | DX15: 74 | DY15: 3
A16: 10 | B16: 2506 | C16: =CONCATENATE(ใส่ชื่อ!C11) -> 2863 | D16: =CONCATENATE(ใส่ชื่อ!D11&ใส่ชื่อ!E11&" "&ใส่ชื่อ!F11) -> เด็กหญิงณัฐณิชา วงศ์บุศรัตน์ | E16: =ใส่ชื่อ!A11 -> 10 | F16: 9 | G16: 9 | H16: 10 | I16: 9 | J16: 9 | K16: 14 | Z16: =IF(ใส่ชื่อ!D11="","",IF(DU16="ปกติ",SUM(F16,G16,H16,I16,J16,K16,L16,M16,N16,O16,P16,Q16,R16,S16,T16,U16,V16,W16,X16,Y16),"-")) -> 60 | AB16: 60 | AW16: =IF(ใส่ชื่อ!D11="","",IF(COUNTIF(AC16:AS16,0),"มผ",IF(DU16="ปกติ",SUM(AC16,AD16,AE16,AF16,AG16,AH16,AI16,AJ16,AK16,AL16,AM16,AN16,AO16,AP16,AQ16,AR16,AS16),"-"))) -> 0 | BO16: =IF(ใส่ชื่อ!D11="","",IF(COUNTIF(AZ16:BN16,0),"มผ",IF(DU16="ปกติ",SUM(AZ16,BA16,BB16,BC16,BD16,BE16,BF16,BG16,BH16,BI16,BJ16,BK16,BL16,BM16,BN16),"-"))) -> 0 | BR16: 24 | CG16: =IF(ใส่ชื่อ!D11="","",IF(DU16="ปกติ",SUM(BR16,BS16,BT16,BU16,BV16,BW16,BX16,BY16,BZ16,CA16,CB16,CC16,CD16,CE16,CF16),"-")) -> 24 | CI16: 24 | CJ16: 3 | CK16: 3 | CL16: 3 | CM16: 3 | CN16: 3 | CO16: =IF(ใส่ชื่อ!D11="","",IF(CJ16="","",(IF(CK16="","",(IF(CL16="","",(IF(CM16="","",(IF(CN16="","",(SUM(CJ16:CN16)))))))))))) -> 15 | CP16: 3 | CQ16: ดย | CR16: 3 | CS16: 3 | CT16: 3 | CU16: 3 | CV16: 3 | CW16: 3 | CX16: 3 | CY16: 3 | CZ16: 3 | DA16: 3 | DB16: ดย | DC16: 60 | DG16: =IF(ใส่ชื่อ!D11="","",IF(COUNTIF(DC16:DE16,"มผ"),"มผ",IF(DE16="มผ","มผ",IF(DU16="ปกติ",SUM(DC16:DD16,IF(DF16="",DE16,DF16)),"-")))) -> 60 | DI16: 24 | DL16: =IF(ใส่ชื่อ!D11="","",IF(DG16="","",IF(COUNTIF(DC16:DJ16,"มผ"),"มผ",IF(COUNTIF(DC16:DJ16,"-"),"-",IF(DU16="ปกติ",SUM(DG16,IF(DJ16="",DI16,DJ16))))))) -> 84 | DP16: =ประเมินผลการเรียนเทอม1!DP16 -> 40.5 | DQ16: =IF(ใส่ชื่อ!A11="","",IF(DL16="-","-",IF(DL16=0,"",IF(DU16="ปกติ",MAXA(DL16/2,DN16/2))))) -> 42 | DS16: =IF(เวลาเรียน!M18="","",IF(เวลาเรียน!M18="ย้าย","-",IF(เวลาเรียน!M18="จำหน่าย","-",IF(เวลาเรียน!M18="ขาดเรียนนาน","-",IF(DP16="","",IF(DQ16="","",SUM(DP16+DQ16))))))) -> 82.5 | DT16: =IF(เวลาเรียน!M18="","",IF(เวลาเรียน!M18="ย้าย","-",IF(เวลาเรียน!M18="จำหน่าย","-",IF(เวลาเรียน!M18="ขาดเรียนนาน","-",IF(เวลาเรียน!L18<80,"มส",IF(COUNTIF(DS16,"-"),"-",IF(COUNTIF(DS16,""),"",VLOOKUP(DS16,$DW$19:$DY$26,3)))))))) -> 4 | DU16: =IF(เวลาเรียน!M18="","",เวลาเรียน!M18) -> ปกติ | DW16: 75 | DX16: 79 | DY16: 3.5
A17: 11 | B17: 2507 | C17: =CONCATENATE(ใส่ชื่อ!C12) -> 2918 | D17: =CONCATENATE(ใส่ชื่อ!D12&ใส่ชื่อ!E12&" "&ใส่ชื่อ!F12) -> เด็กชายณัฐวุฒิ เปรมผล | E17: =ใส่ชื่อ!A12 -> 11 | F17: 9 | G17: 7 | H17: 8 | I17: 8 | J17: 8 | K17: 12 | Z17: =IF(ใส่ชื่อ!D12="","",IF(DU17="ปกติ",SUM(F17,G17,H17,I17,J17,K17,L17,M17,N17,O17,P17,Q17,R17,S17,T17,U17,V17,W17,X17,Y17),"-")) -> 52 | AB17: 52 | AW17: =IF(ใส่ชื่อ!D12="","",IF(COUNTIF(AC17:AS17,0),"มผ",IF(DU17="ปกติ",SUM(AC17,AD17,AE17,AF17,AG17,AH17,AI17,AJ17,AK17,AL17,AM17,AN17,AO17,AP17,AQ17,AR17,AS17),"-"))) -> 0 | BO17: =IF(ใส่ชื่อ!D12="","",IF(COUNTIF(AZ17:BN17,0),"มผ",IF(DU17="ปกติ",SUM(AZ17,BA17,BB17,BC17,BD17,BE17,BF17,BG17,BH17,BI17,BJ17,BK17,BL17,BM17,BN17),"-"))) -> 0 | BR17: 25 | CG17: =IF(ใส่ชื่อ!D12="","",IF(DU17="ปกติ",SUM(BR17,BS17,BT17,BU17,BV17,BW17,BX17,BY17,BZ17,CA17,CB17,CC17,CD17,CE17,CF17),"-")) -> 25 | CI17: 25 | CJ17: 3 | CK17: 3 | CL17: 3 | CM17: 3 | CN17: 3 | CO17: =IF(ใส่ชื่อ!D12="","",IF(CJ17="","",(IF(CK17="","",(IF(CL17="","",(IF(CM17="","",(IF(CN17="","",(SUM(CJ17:CN17)))))))))))) -> 15 | CP17: 3 | CQ17: ดย | CR17: 3 | CS17: 3 | CT17: 3 | CU17: 3 | CV17: 3 | CW17: 2 | CX17: 3 | CY17: 3 | CZ17: 3 | DA17: 3 | DB17: ดย | DC17: 52 | DG17: =IF(ใส่ชื่อ!D12="","",IF(COUNTIF(DC17:DE17,"มผ"),"มผ",IF(DE17="มผ","มผ",IF(DU17="ปกติ",SUM(DC17:DD17,IF(DF17="",DE17,DF17)),"-")))) -> 52 | DI17: 25 | DL17: =IF(ใส่ชื่อ!D12="","",IF(DG17="","",IF(COUNTIF(DC17:DJ17,"มผ"),"มผ",IF(COUNTIF(DC17:DJ17,"-"),"-",IF(DU17="ปกติ",SUM(DG17,IF(DJ17="",DI17,DJ17))))))) -> 77 | DP17: =ประเมินผลการเรียนเทอม1!DP17 -> 32.5 | DQ17: =IF(ใส่ชื่อ!A12="","",IF(DL17="-","-",IF(DL17=0,"",IF(DU17="ปกติ",MAXA(DL17/2,DN17/2))))) -> 38.5 | DS17: =IF(เวลาเรียน!M19="","",IF(เวลาเรียน!M19="ย้าย","-",IF(เวลาเรียน!M19="จำหน่าย","-",IF(เวลาเรียน!M19="ขาดเรียนนาน","-",IF(DP17="","",IF(DQ17="","",SUM(DP17+DQ17))))))) -> 71 | DT17: =IF(เวลาเรียน!M19="","",IF(เวลาเรียน!M19="ย้าย","-",IF(เวลาเรียน!M19="จำหน่าย","-",IF(เวลาเรียน!M19="ขาดเรียนนาน","-",IF(เวลาเรียน!L19<80,"มส",IF(COUNTIF(DS17,"-"),"-",IF(COUNTIF(DS17,""),"",VLOOKUP(DS17,$DW$19:$DY$26,3)))))))) -> 3 | DU17: =IF(เวลาเรียน!M19="","",เวลาเรียน!M19) -> ปกติ | DW17: 80 | DX17: 100 | DY17: 4
A18: 12 | B18: 2508 | C18: =CONCATENATE(ใส่ชื่อ!C13) -> 2919 | D18: =CONCATENATE(ใส่ชื่อ!D13&ใส่ชื่อ!E13&" "&ใส่ชื่อ!F13) -> เด็กชายธนาธิป สังข์โพธิ์ | E18: =ใส่ชื่อ!A13 -> 12 | F18: 8 | G18: 7 | H18: 8 | I18: 8 | J18: 7 | K18: 12 | Z18: =IF(ใส่ชื่อ!D13="","",IF(DU18="ปกติ",SUM(F18,G18,H18,I18,J18,K18,L18,M18,N18,O18,P18,Q18,R18,S18,T18,U18,V18,W18,X18,Y18),"-")) -> 50 | AB18: 50 | AW18: =IF(ใส่ชื่อ!D13="","",IF(COUNTIF(AC18:AS18,0),"มผ",IF(DU18="ปกติ",SUM(AC18,AD18,AE18,AF18,AG18,AH18,AI18,AJ18,AK18,AL18,AM18,AN18,AO18,AP18,AQ18,AR18,AS18),"-"))) -> 0 | BO18: =IF(ใส่ชื่อ!D13="","",IF(COUNTIF(AZ18:BN18,0),"มผ",IF(DU18="ปกติ",SUM(AZ18,BA18,BB18,BC18,BD18,BE18,BF18,BG18,BH18,BI18,BJ18,BK18,BL18,BM18,BN18),"-"))) -> 0 | BR18: 20 | CG18: =IF(ใส่ชื่อ!D13="","",IF(DU18="ปกติ",SUM(BR18,BS18,BT18,BU18,BV18,BW18,BX18,BY18,BZ18,CA18,CB18,CC18,CD18,CE18,CF18),"-")) -> 20 | CI18: 20 | CJ18: 3 | CK18: 2 | CL18: 2 | CM18: 2 | CN18: 3 | CO18: =IF(ใส่ชื่อ!D13="","",IF(CJ18="","",(IF(CK18="","",(IF(CL18="","",(IF(CM18="","",(IF(CN18="","",(SUM(CJ18:CN18)))))))))))) -> 12 | CP18: 2 | CQ18: ด | CR18: 3 | CS18: 3 | CT18: 2 | CU18: 2 | CV18: 2 | CW18: 2 | CX18: 2 | CY18: 2 | CZ18: 3 | DA18: 3 | DB18: ด | DC18: 50 | DG18: =IF(ใส่ชื่อ!D13="","",IF(COUNTIF(DC18:DE18,"มผ"),"มผ",IF(DE18="มผ","มผ",IF(DU18="ปกติ",SUM(DC18:DD18,IF(DF18="",DE18,DF18)),"-")))) -> 50 | DI18: 20 | DL18: =IF(ใส่ชื่อ!D13="","",IF(DG18="","",IF(COUNTIF(DC18:DJ18,"มผ"),"มผ",IF(COUNTIF(DC18:DJ18,"-"),"-",IF(DU18="ปกติ",SUM(DG18,IF(DJ18="",DI18,DJ18))))))) -> 70 | DP18: =ประเมินผลการเรียนเทอม1!DP18 -> 30 | DQ18: =IF(ใส่ชื่อ!A13="","",IF(DL18="-","-",IF(DL18=0,"",IF(DU18="ปกติ",MAXA(DL18/2,DN18/2))))) -> 35 | DS18: =IF(เวลาเรียน!M20="","",IF(เวลาเรียน!M20="ย้าย","-",IF(เวลาเรียน!M20="จำหน่าย","-",IF(เวลาเรียน!M20="ขาดเรียนนาน","-",IF(DP18="","",IF(DQ18="","",SUM(DP18+DQ18))))))) -> 65 | DT18: =IF(เวลาเรียน!M20="","",IF(เวลาเรียน!M20="ย้าย","-",IF(เวลาเรียน!M20="จำหน่าย","-",IF(เวลาเรียน!M20="ขาดเรียนนาน","-",IF(เวลาเรียน!L20<80,"มส",IF(COUNTIF(DS18,"-"),"-",IF(COUNTIF(DS18,""),"",VLOOKUP(DS18,$DW$19:$DY$26,3)))))))) -> 2.5 | DU18: =IF(เวลาเรียน!M20="","",เวลาเรียน!M20) -> ปกติ
A19: 13 | B19: 2509 | C19: =CONCATENATE(ใส่ชื่อ!C14) -> 2946 | D19: =CONCATENATE(ใส่ชื่อ!D14&ใส่ชื่อ!E14&" "&ใส่ชื่อ!F14) -> เด็กหญิงน้ำหวาน พม่า | E19: =ใส่ชื่อ!A14 -> 13 | F19: 9 | G19: 8 | H19: 10 | I19: 8 | J19: 9 | K19: 12 | Z19: =IF(ใส่ชื่อ!D14="","",IF(DU19="ปกติ",SUM(F19,G19,H19,I19,J19,K19,L19,M19,N19,O19,P19,Q19,R19,S19,T19,U19,V19,W19,X19,Y19),"-")) -> 56 | AB19: 56 | AW19: =IF(ใส่ชื่อ!D14="","",IF(COUNTIF(AC19:AS19,0),"มผ",IF(DU19="ปกติ",SUM(AC19,AD19,AE19,AF19,AG19,AH19,AI19,AJ19,AK19,AL19,AM19,AN19,AO19,AP19,AQ19,AR19,AS19),"-"))) -> 0 | BO19: =IF(ใส่ชื่อ!D14="","",IF(COUNTIF(AZ19:BN19,0),"มผ",IF(DU19="ปกติ",SUM(AZ19,BA19,BB19,BC19,BD19,BE19,BF19,BG19,BH19,BI19,BJ19,BK19,BL19,BM19,BN19),"-"))) -> 0 | BR19: 21 | CG19: =IF(ใส่ชื่อ!D14="","",IF(DU19="ปกติ",SUM(BR19,BS19,BT19,BU19,BV19,BW19,BX19,BY19,BZ19,CA19,CB19,CC19,CD19,CE19,CF19),"-")) -> 21 | CI19: 21 | CJ19: 3 | CK19: 3 | CL19: 3 | CM19: 2 | CN19: 3 | CO19: =IF(ใส่ชื่อ!D14="","",IF(CJ19="","",(IF(CK19="","",(IF(CL19="","",(IF(CM19="","",(IF(CN19="","",(SUM(CJ19:CN19)))))))))))) -> 14 | CP19: 3 | CQ19: ดย | CR19: 3 | CS19: 2 | CT19: 2 | CU19: 3 | CV19: 3 | CW19: 3 | CX19: 3 | CY19: 3 | CZ19: 3 | DA19: 3 | DB19: ดย | DC19: 56 | DG19: =IF(ใส่ชื่อ!D14="","",IF(COUNTIF(DC19:DE19,"มผ"),"มผ",IF(DE19="มผ","มผ",IF(DU19="ปกติ",SUM(DC19:DD19,IF(DF19="",DE19,DF19)),"-")))) -> 56 | DI19: 21 | DL19: =IF(ใส่ชื่อ!D14="","",IF(DG19="","",IF(COUNTIF(DC19:DJ19,"มผ"),"มผ",IF(COUNTIF(DC19:DJ19,"-"),"-",IF(DU19="ปกติ",SUM(DG19,IF(DJ19="",DI19,DJ19))))))) -> 77 | DP19: =ประเมินผลการเรียนเทอม1!DP19 -> 31.5 | DQ19: =IF(ใส่ชื่อ!A14="","",IF(DL19="-","-",IF(DL19=0,"",IF(DU19="ปกติ",MAXA(DL19/2,DN19/2))))) -> 38.5 | DS19: =IF(เวลาเรียน!M21="","",IF(เวลาเรียน!M21="ย้าย","-",IF(เวลาเรียน!M21="จำหน่าย","-",IF(เวลาเรียน!M21="ขาดเรียนนาน","-",IF(DP19="","",IF(DQ19="","",SUM(DP19+DQ19))))))) -> 70 | DT19: =IF(เวลาเรียน!M21="","",IF(เวลาเรียน!M21="ย้าย","-",IF(เวลาเรียน!M21="จำหน่าย","-",IF(เวลาเรียน!M21="ขาดเรียนนาน","-",IF(เวลาเรียน!L21<80,"มส",IF(COUNTIF(DS19,"-"),"-",IF(COUNTIF(DS19,""),"",VLOOKUP(DS19,$DW$19:$DY$26,3)))))))) -> 3 | DU19: =IF(เวลาเรียน!M21="","",เวลาเรียน!M21) -> ปกติ | DW19: 0 | DX19: 49.9 | DY19: 0
A20: 14 | B20: 2510 | C20: =CONCATENATE(ใส่ชื่อ!C15) -> 3010 | D20: =CONCATENATE(ใส่ชื่อ!D15&ใส่ชื่อ!E15&" "&ใส่ชื่อ!F15) -> เด็กหญิงชลิตา ยมนา | E20: =ใส่ชื่อ!A15 -> 14 | F20: 9 | G20: 7 | H20: 8 | I20: 7 | J20: 7 | K20: 14 | Z20: =IF(ใส่ชื่อ!D15="","",IF(DU20="ปกติ",SUM(F20,G20,H20,I20,J20,K20,L20,M20,N20,O20,P20,Q20,R20,S20,T20,U20,V20,W20,X20,Y20),"-")) -> 52 | AB20: 52 | AW20: =IF(ใส่ชื่อ!D15="","",IF(COUNTIF(AC20:AS20,0),"มผ",IF(DU20="ปกติ",SUM(AC20,AD20,AE20,AF20,AG20,AH20,AI20,AJ20,AK20,AL20,AM20,AN20,AO20,AP20,AQ20,AR20,AS20),"-"))) -> 0 | BO20: =IF(ใส่ชื่อ!D15="","",IF(COUNTIF(AZ20:BN20,0),"มผ",IF(DU20="ปกติ",SUM(AZ20,BA20,BB20,BC20,BD20,BE20,BF20,BG20,BH20,BI20,BJ20,BK20,BL20,BM20,BN20),"-"))) -> 0 | BR20: 16 | CG20: =IF(ใส่ชื่อ!D15="","",IF(DU20="ปกติ",SUM(BR20,BS20,BT20,BU20,BV20,BW20,BX20,BY20,BZ20,CA20,CB20,CC20,CD20,CE20,CF20),"-")) -> 16 | CI20: 16 | CJ20: 3 | CK20: 2 | CL20: 2 | CM20: 2 | CN20: 3 | CO20: =IF(ใส่ชื่อ!D15="","",IF(CJ20="","",(IF(CK20="","",(IF(CL20="","",(IF(CM20="","",(IF(CN20="","",(SUM(CJ20:CN20)))))))))))) -> 12 | CP20: 2 | CQ20: ด | CR20: 3 | CS20: 3 | CT20: 2 | CU20: 2 | CV20: 2 | CW20: 2 | CX20: 3 | CY20: 2 | CZ20: 3 | DA20: 3 | DB20: ด | DC20: 52 | DG20: =IF(ใส่ชื่อ!D15="","",IF(COUNTIF(DC20:DE20,"มผ"),"มผ",IF(DE20="มผ","มผ",IF(DU20="ปกติ",SUM(DC20:DD20,IF(DF20="",DE20,DF20)),"-")))) -> 52 | DI20: 16 | DL20: =IF(ใส่ชื่อ!D15="","",IF(DG20="","",IF(COUNTIF(DC20:DJ20,"มผ"),"มผ",IF(COUNTIF(DC20:DJ20,"-"),"-",IF(DU20="ปกติ",SUM(DG20,IF(DJ20="",DI20,DJ20))))))) -> 68 | DP20: =ประเมินผลการเรียนเทอม1!DP20 -> 31 | DQ20: =IF(ใส่ชื่อ!A15="","",IF(DL20="-","-",IF(DL20=0,"",IF(DU20="ปกติ",MAXA(DL20/2,DN20/2))))) -> 34 | DS20: =IF(เวลาเรียน!M22="","",IF(เวลาเรียน!M22="ย้าย","-",IF(เวลาเรียน!M22="จำหน่าย","-",IF(เวลาเรียน!M22="ขาดเรียนนาน","-",IF(DP20="","",IF(DQ20="","",SUM(DP20+DQ20))))))) -> 65 | DT20: =IF(เวลาเรียน!M22="","",IF(เวลาเรียน!M22="ย้าย","-",IF(เวลาเรียน!M22="จำหน่าย","-",IF(เวลาเรียน!M22="ขาดเรียนนาน","-",IF(เวลาเรียน!L22<80,"มส",IF(COUNTIF(DS20,"-"),"-",IF(COUNTIF(DS20,""),"",VLOOKUP(DS20,$DW$19:$DY$26,3)))))))) -> 2.5 | DU20: =IF(เวลาเรียน!M22="","",เวลาเรียน!M22) -> ปกติ | DW20: 50 | DX20: 54.9 | DY20: 1
A21: 15 | B21: 2511 | C21: =CONCATENATE(ใส่ชื่อ!C16) -> 3043 | D21: =CONCATENATE(ใส่ชื่อ!D16&ใส่ชื่อ!E16&" "&ใส่ชื่อ!F16) -> เด็กหญิงฉัตรพรรณราย แสงรัตนายนต์ | E21: =ใส่ชื่อ!A16 -> 15 | F21: 10 | G21: 10 | H21: 10 | I21: 9 | J21: 9 | K21: 17 | Z21: =IF(ใส่ชื่อ!D16="","",IF(DU21="ปกติ",SUM(F21,G21,H21,I21,J21,K21,L21,M21,N21,O21,P21,Q21,R21,S21,T21,U21,V21,W21,X21,Y21),"-")) -> 65 | AB21: 65 | AW21: =IF(ใส่ชื่อ!D16="","",IF(COUNTIF(AC21:AS21,0),"มผ",IF(DU21="ปกติ",SUM(AC21,AD21,AE21,AF21,AG21,AH21,AI21,AJ21,AK21,AL21,AM21,AN21,AO21,AP21,AQ21,AR21,AS21),"-"))) -> 0 | BO21: =IF(ใส่ชื่อ!D16="","",IF(COUNTIF(AZ21:BN21,0),"มผ",IF(DU21="ปกติ",SUM(AZ21,BA21,BB21,BC21,BD21,BE21,BF21,BG21,BH21,BI21,BJ21,BK21,BL21,BM21,BN21),"-"))) -> 0 | BR21: 26 | CG21: =IF(ใส่ชื่อ!D16="","",IF(DU21="ปกติ",SUM(BR21,BS21,BT21,BU21,BV21,BW21,BX21,BY21,BZ21,CA21,CB21,CC21,CD21,CE21,CF21),"-")) -> 26 | CI21: 26 | CJ21: 3 | CK21: 3 | CL21: 3 | CM21: 3 | CN21: 3 | CO21: =IF(ใส่ชื่อ!D16="","",IF(CJ21="","",(IF(CK21="","",(IF(CL21="","",(IF(CM21="","",(IF(CN21="","",(SUM(CJ21:CN21)))))))))))) -> 15 | CP21: 3 | CQ21: ดย | CR21: 3 | CS21: 3 | CT21: 3 | CU21: 3 | CV21: 3 | CW21: 3 | CX21: 3 | CY21: 3 | CZ21: 3 | DA21: 3 | DB21: ดย | DC21: 65 | DG21: =IF(ใส่ชื่อ!D16="","",IF(COUNTIF(DC21:DE21,"มผ"),"มผ",IF(DE21="มผ","มผ",IF(DU21="ปกติ",SUM(DC21:DD21,IF(DF21="",DE21,DF21)),"-")))) -> 65 | DI21: 26 | DL21: =IF(ใส่ชื่อ!D16="","",IF(DG21="","",IF(COUNTIF(DC21:DJ21,"มผ"),"มผ",IF(COUNTIF(DC21:DJ21,"-"),"-",IF(DU21="ปกติ",SUM(DG21,IF(DJ21="",DI21,DJ21))))))) -> 91 | DP21: =ประเมินผลการเรียนเทอม1!DP21 -> 41.5 | DQ21: =IF(ใส่ชื่อ!A16="","",IF(DL21="-","-",IF(DL21=0,"",IF(DU21="ปกติ",MAXA(DL21/2,DN21/2))))) -> 45.5 | DS21: =IF(เวลาเรียน!M23="","",IF(เวลาเรียน!M23="ย้าย","-",IF(เวลาเรียน!M23="จำหน่าย","-",IF(เวลาเรียน!M23="ขาดเรียนนาน","-",IF(DP21="","",IF(DQ21="","",SUM(DP21+DQ21))))))) -> 87 | DT21: =IF(เวลาเรียน!M23="","",IF(เวลาเรียน!M23="ย้าย","-",IF(เวลาเรียน!M23="จำหน่าย","-",IF(เวลาเรียน!M23="ขาดเรียนนาน","-",IF(เวลาเรียน!L23<80,"มส",IF(COUNTIF(DS21,"-"),"-",IF(COUNTIF(DS21,""),"",VLOOKUP(DS21,$DW$19:$DY$26,3)))))))) -> 4 | DU21: =IF(เวลาเรียน!M23="","",เวลาเรียน!M23) -> ปกติ | DW21: 55 | DX21: 59.9 | DY21: 1.5
A22: 16 | B22: 2512 | C22: =CONCATENATE(ใส่ชื่อ!C17) -> 3084 | D22: =CONCATENATE(ใส่ชื่อ!D17&ใส่ชื่อ!E17&" "&ใส่ชื่อ!F17) -> เด็กชายธนวุฒิ - | E22: =ใส่ชื่อ!A17 -> 16 | F22: 10 | G22: 10 | H22: 10 | I22: 9 | J22: 10 | K22: 16 | Z22: =IF(ใส่ชื่อ!D17="","",IF(DU22="ปกติ",SUM(F22,G22,H22,I22,J22,K22,L22,M22,N22,O22,P22,Q22,R22,S22,T22,U22,V22,W22,X22,Y22),"-")) -> 65 | AB22: 65 | AW22: =IF(ใส่ชื่อ!D17="","",IF(COUNTIF(AC22:AS22,0),"มผ",IF(DU22="ปกติ",SUM(AC22,AD22,AE22,AF22,AG22,AH22,AI22,AJ22,AK22,AL22,AM22,AN22,AO22,AP22,AQ22,AR22,AS22),"-"))) -> 0 | BO22: =IF(ใส่ชื่อ!D17="","",IF(COUNTIF(AZ22:BN22,0),"มผ",IF(DU22="ปกติ",SUM(AZ22,BA22,BB22,BC22,BD22,BE22,BF22,BG22,BH22,BI22,BJ22,BK22,BL22,BM22,BN22),"-"))) -> 0 | BR22: 27 | CG22: =IF(ใส่ชื่อ!D17="","",IF(DU22="ปกติ",SUM(BR22,BS22,BT22,BU22,BV22,BW22,BX22,BY22,BZ22,CA22,CB22,CC22,CD22,CE22,CF22),"-")) -> 27 | CI22: 27 | CJ22: 3 | CK22: 3 | CL22: 3 | CM22: 3 | CN22: 3 | CO22: =IF(ใส่ชื่อ!D17="","",IF(CJ22="","",(IF(CK22="","",(IF(CL22="","",(IF(CM22="","",(IF(CN22="","",(SUM(CJ22:CN22)))))))))))) -> 15 | CP22: 3 | CQ22: ดย | CR22: 3 | CS22: 3 | CT22: 3 | CU22: 3 | CV22: 3 | CW22: 3 | CX22: 3 | CY22: 3 | CZ22: 3 | DA22: 3 | DB22: ดย | DC22: 65 | DG22: =IF(ใส่ชื่อ!D17="","",IF(COUNTIF(DC22:DE22,"มผ"),"มผ",IF(DE22="มผ","มผ",IF(DU22="ปกติ",SUM(DC22:DD22,IF(DF22="",DE22,DF22)),"-")))) -> 65 | DI22: 27 | DL22: =IF(ใส่ชื่อ!D17="","",IF(DG22="","",IF(COUNTIF(DC22:DJ22,"มผ"),"มผ",IF(COUNTIF(DC22:DJ22,"-"),"-",IF(DU22="ปกติ",SUM(DG22,IF(DJ22="",DI22,DJ22))))))) -> 92 | DP22: =ประเมินผลการเรียนเทอม1!DP22 -> 45 | DQ22: =IF(ใส่ชื่อ!A17="","",IF(DL22="-","-",IF(DL22=0,"",IF(DU22="ปกติ",MAXA(DL22/2,DN22/2))))) -> 46 | DS22: =IF(เวลาเรียน!M24="","",IF(เวลาเรียน!M24="ย้าย","-",IF(เวลาเรียน!M24="จำหน่าย","-",IF(เวลาเรียน!M24="ขาดเรียนนาน","-",IF(DP22="","",IF(DQ22="","",SUM(DP22+DQ22))))))) -> 91 | DT22: =IF(เวลาเรียน!M24="","",IF(เวลาเรียน!M24="ย้าย","-",IF(เวลาเรียน!M24="จำหน่าย","-",IF(เวลาเรียน!M24="ขาดเรียนนาน","-",IF(เวลาเรียน!L24<80,"มส",IF(COUNTIF(DS22,"-"),"-",IF(COUNTIF(DS22,""),"",VLOOKUP(DS22,$DW$19:$DY$26,3)))))))) -> 4 | DU22: =IF(เวลาเรียน!M24="","",เวลาเรียน!M24) -> ปกติ | DW22: 60 | DX22: 64.9 | DY22: 2
A23: 17 | B23: 2513 | C23: =CONCATENATE(ใส่ชื่อ!C18) -> 3098 | D23: =CONCATENATE(ใส่ชื่อ!D18&ใส่ชื่อ!E18&" "&ใส่ชื่อ!F18) -> เด็กหญิงวรรณพิชชา จันไทย | E23: =ใส่ชื่อ!A18 -> 17 | F23: 10 | G23: 9 | H23: 8 | I23: 7 | J23: 8 | K23: 13 | Z23: =IF(ใส่ชื่อ!D18="","",IF(DU23="ปกติ",SUM(F23,G23,H23,I23,J23,K23,L23,M23,N23,O23,P23,Q23,R23,S23,T23,U23,V23,W23,X23,Y23),"-")) -> 55 | AB23: 55 | AW23: =IF(ใส่ชื่อ!D18="","",IF(COUNTIF(AC23:AS23,0),"มผ",IF(DU23="ปกติ",SUM(AC23,AD23,AE23,AF23,AG23,AH23,AI23,AJ23,AK23,AL23,AM23,AN23,AO23,AP23,AQ23,AR23,AS23),"-"))) -> 0 | BO23: =IF(ใส่ชื่อ!D18="","",IF(COUNTIF(AZ23:BN23,0),"มผ",IF(DU23="ปกติ",SUM(AZ23,BA23,BB23,BC23,BD23,BE23,BF23,BG23,BH23,BI23,BJ23,BK23,BL23,BM23,BN23),"-"))) -> 0 | BR23: 25 | CG23: =IF(ใส่ชื่อ!D18="","",IF(DU23="ปกติ",SUM(BR23,BS23,BT23,BU23,BV23,BW23,BX23,BY23,BZ23,CA23,CB23,CC23,CD23,CE23,CF23),"-")) -> 25 | CI23: 25 | CJ23: 3 | CK23: 3 | CL23: 3 | CM23: 2 | CN23: 3 | CO23: =IF(ใส่ชื่อ!D18="","",IF(CJ23="","",(IF(CK23="","",(IF(CL23="","",(IF(CM23="","",(IF(CN23="","",(SUM(CJ23:CN23)))))))))))) -> 14 | CP23: 3 | CQ23: ดย | CR23: 3 | CS23: 3 | CT23: 3 | CU23: 3 | CV23: 3 | CW23: 2 | CX23: 3 | CY23: 3 | CZ23: 3 | DA23: 3 | DB23: ดย | DC23: 55 | DG23: =IF(ใส่ชื่อ!D18="","",IF(COUNTIF(DC23:DE23,"มผ"),"มผ",IF(DE23="มผ","มผ",IF(DU23="ปกติ",SUM(DC23:DD23,IF(DF23="",DE23,DF23)),"-")))) -> 55 | DI23: 25 | DL23: =IF(ใส่ชื่อ!D18="","",IF(DG23="","",IF(COUNTIF(DC23:DJ23,"มผ"),"มผ",IF(COUNTIF(DC23:DJ23,"-"),"-",IF(DU23="ปกติ",SUM(DG23,IF(DJ23="",DI23,DJ23))))))) -> 80 | DP23: =ประเมินผลการเรียนเทอม1!DP23 -> 31 | DQ23: =IF(ใส่ชื่อ!A18="","",IF(DL23="-","-",IF(DL23=0,"",IF(DU23="ปกติ",MAXA(DL23/2,DN23/2))))) -> 40 | DS23: =IF(เวลาเรียน!M25="","",IF(เวลาเรียน!M25="ย้าย","-",IF(เวลาเรียน!M25="จำหน่าย","-",IF(เวลาเรียน!M25="ขาดเรียนนาน","-",IF(DP23="","",IF(DQ23="","",SUM(DP23+DQ23))))))) -> 71 | DT23: =IF(เวลาเรียน!M25="","",IF(เวลาเรียน!M25="ย้าย","-",IF(เวลาเรียน!M25="จำหน่าย","-",IF(เวลาเรียน!M25="ขาดเรียนนาน","-",IF(เวลาเรียน!L25<80,"มส",IF(COUNTIF(DS23,"-"),"-",IF(COUNTIF(DS23,""),"",VLOOKUP(DS23,$DW$19:$DY$26,3)))))))) -> 3 | DU23: =IF(เวลาเรียน!M25="","",เวลาเรียน!M25) -> ปกติ | DW23: 65 | DX23: 69.9 | DY23: 2.5
A24: 18 | B24: 2514 | C24: =CONCATENATE(ใส่ชื่อ!C19) -> 3111 | D24: =CONCATENATE(ใส่ชื่อ!D19&ใส่ชื่อ!E19&" "&ใส่ชื่อ!F19) -> เด็กหญิงมานาทิพย์ สมดี | E24: =ใส่ชื่อ!A19 -> 18 | F24: 10 | G24: 8 | H24: 8 | I24: 8 | J24: 9 | K24: 15 | Z24: =IF(ใส่ชื่อ!D19="","",IF(DU24="ปกติ",SUM(F24,G24,H24,I24,J24,K24,L24,M24,N24,O24,P24,Q24,R24,S24,T24,U24,V24,W24,X24,Y24),"-")) -> 58 | AB24: 58 | AW24: =IF(ใส่ชื่อ!D19="","",IF(COUNTIF(AC24:AS24,0),"มผ",IF(DU24="ปกติ",SUM(AC24,AD24,AE24,AF24,AG24,AH24,AI24,AJ24,AK24,AL24,AM24,AN24,AO24,AP24,AQ24,AR24,AS24),"-"))) -> 0 | BO24: =IF(ใส่ชื่อ!D19="","",IF(COUNTIF(AZ24:BN24,0),"มผ",IF(DU24="ปกติ",SUM(AZ24,BA24,BB24,BC24,BD24,BE24,BF24,BG24,BH24,BI24,BJ24,BK24,BL24,BM24,BN24),"-"))) -> 0 | BR24: 25 | CG24: =IF(ใส่ชื่อ!D19="","",IF(DU24="ปกติ",SUM(BR24,BS24,BT24,BU24,BV24,BW24,BX24,BY24,BZ24,CA24,CB24,CC24,CD24,CE24,CF24),"-")) -> 25 | CI24: 25 | CJ24: 3 | CK24: 3 | CL24: 3 | CM24: 3 | CN24: 3 | CO24: =IF(ใส่ชื่อ!D19="","",IF(CJ24="","",(IF(CK24="","",(IF(CL24="","",(IF(CM24="","",(IF(CN24="","",(SUM(CJ24:CN24)))))))))))) -> 15 | CP24: 3 | CQ24: ดย | CR24: 3 | CS24: 3 | CT24: 3 | CU24: 3 | CV24: 3 | CW24: 3 | CX24: 3 | CY24: 3 | CZ24: 3 | DA24: 3 | DB24: ดย | DC24: 58 | DG24: =IF(ใส่ชื่อ!D19="","",IF(COUNTIF(DC24:DE24,"มผ"),"มผ",IF(DE24="มผ","มผ",IF(DU24="ปกติ",SUM(DC24:DD24,IF(DF24="",DE24,DF24)),"-")))) -> 58 | DI24: 25 | DL24: =IF(ใส่ชื่อ!D19="","",IF(DG24="","",IF(COUNTIF(DC24:DJ24,"มผ"),"มผ",IF(COUNTIF(DC24:DJ24,"-"),"-",IF(DU24="ปกติ",SUM(DG24,IF(DJ24="",DI24,DJ24))))))) -> 83 | DP24: =ประเมินผลการเรียนเทอม1!DP24 -> 38.5 | DQ24: =IF(ใส่ชื่อ!A19="","",IF(DL24="-","-",IF(DL24=0,"",IF(DU24="ปกติ",MAXA(DL24/2,DN24/2))))) -> 41.5 | DS24: =IF(เวลาเรียน!M26="","",IF(เวลาเรียน!M26="ย้าย","-",IF(เวลาเรียน!M26="จำหน่าย","-",IF(เวลาเรียน!M26="ขาดเรียนนาน","-",IF(DP24="","",IF(DQ24="","",SUM(DP24+DQ24))))))) -> 80 | DT24: =IF(เวลาเรียน!M26="","",IF(เวลาเรียน!M26="ย้าย","-",IF(เวลาเรียน!M26="จำหน่าย","-",IF(เวลาเรียน!M26="ขาดเรียนนาน","-",IF(เวลาเรียน!L26<80,"มส",IF(COUNTIF(DS24,"-"),"-",IF(COUNTIF(DS24,""),"",VLOOKUP(DS24,$DW$19:$DY$26,3)))))))) -> 4 | DU24: =IF(เวลาเรียน!M26="","",เวลาเรียน!M26) -> ปกติ | DW24: 70 | DX24: 74.9 | DY24: 3
A25: 19 | B25: 2515 | C25: =CONCATENATE(ใส่ชื่อ!C20) -> 3181 | D25: =CONCATENATE(ใส่ชื่อ!D20&ใส่ชื่อ!E20&" "&ใส่ชื่อ!F20) -> เด็กหญิงชุติกาญจน์ เอี่ยมโสด | E25: =ใส่ชื่อ!A20 -> 19 | F25: 10 | G25: 10 | H25: 9 | I25: 7 | J25: 7 | K25: 12 | Z25: =IF(ใส่ชื่อ!D20="","",IF(DU25="ปกติ",SUM(F25,G25,H25,I25,J25,K25,L25,M25,N25,O25,P25,Q25,R25,S25,T25,U25,V25,W25,X25,Y25),"-")) -> 55 | AB25: 55 | AW25: =IF(ใส่ชื่อ!D20="","",IF(COUNTIF(AC25:AS25,0),"มผ",IF(DU25="ปกติ",SUM(AC25,AD25,AE25,AF25,AG25,AH25,AI25,AJ25,AK25,AL25,AM25,AN25,AO25,AP25,AQ25,AR25,AS25),"-"))) -> 0 | BO25: =IF(ใส่ชื่อ!D20="","",IF(COUNTIF(AZ25:BN25,0),"มผ",IF(DU25="ปกติ",SUM(AZ25,BA25,BB25,BC25,BD25,BE25,BF25,BG25,BH25,BI25,BJ25,BK25,BL25,BM25,BN25),"-"))) -> 0 | BR25: 16 | CG25: =IF(ใส่ชื่อ!D20="","",IF(DU25="ปกติ",SUM(BR25,BS25,BT25,BU25,BV25,BW25,BX25,BY25,BZ25,CA25,CB25,CC25,CD25,CE25,CF25),"-")) -> 16 | CI25: 16 | CJ25: 3 | CK25: 3 | CL25: 3 | CM25: 3 | CN25: 3 | CO25: =IF(ใส่ชื่อ!D20="","",IF(CJ25="","",(IF(CK25="","",(IF(CL25="","",(IF(CM25="","",(IF(CN25="","",(SUM(CJ25:CN25)))))))))))) -> 15 | CP25: 3 | CQ25: ดย | CR25: 3 | CS25: 3 | CT25: 3 | CU25: 3 | CV25: 3 | CW25: 3 | CX25: 3 | CY25: 3 | CZ25: 3 | DA25: 3 | DB25: ดย | DC25: 55 | DG25: =IF(ใส่ชื่อ!D20="","",IF(COUNTIF(DC25:DE25,"มผ"),"มผ",IF(DE25="มผ","มผ",IF(DU25="ปกติ",SUM(DC25:DD25,IF(DF25="",DE25,DF25)),"-")))) -> 55 | DI25: 16 | DL25: =IF(ใส่ชื่อ!D20="","",IF(DG25="","",IF(COUNTIF(DC25:DJ25,"มผ"),"มผ",IF(COUNTIF(DC25:DJ25,"-"),"-",IF(DU25="ปกติ",SUM(DG25,IF(DJ25="",DI25,DJ25))))))) -> 71 | DP25: =ประเมินผลการเรียนเทอม1!DP25 -> 35 | DQ25: =IF(ใส่ชื่อ!A20="","",IF(DL25="-","-",IF(DL25=0,"",IF(DU25="ปกติ",MAXA(DL25/2,DN25/2))))) -> 35.5 | DS25: =IF(เวลาเรียน!M27="","",IF(เวลาเรียน!M27="ย้าย","-",IF(เวลาเรียน!M27="จำหน่าย","-",IF(เวลาเรียน!M27="ขาดเรียนนาน","-",IF(DP25="","",IF(DQ25="","",SUM(DP25+DQ25))))))) -> 70.5 | DT25: =IF(เวลาเรียน!M27="","",IF(เวลาเรียน!M27="ย้าย","-",IF(เวลาเรียน!M27="จำหน่าย","-",IF(เวลาเรียน!M27="ขาดเรียนนาน","-",IF(เวลาเรียน!L27<80,"มส",IF(COUNTIF(DS25,"-"),"-",IF(COUNTIF(DS25,""),"",VLOOKUP(DS25,$DW$19:$DY$26,3)))))))) -> 3 | DU25: =IF(เวลาเรียน!M27="","",เวลาเรียน!M27) -> ปกติ | DW25: 75 | DX25: 79.9 | DY25: 3.5
A26: 20 | B26: 2516 | C26: =CONCATENATE(ใส่ชื่อ!C21) ->  | D26: =CONCATENATE(ใส่ชื่อ!D21&ใส่ชื่อ!E21&" "&ใส่ชื่อ!F21) -> เด็กหญิงฐิตาภรณ์ แย้มนาค | E26: =ใส่ชื่อ!A21 -> 20 | F26: 10 | G26: 8 | H26: 9 | I26: 10 | J26: 9 | K26: 12 | Z26: =IF(ใส่ชื่อ!D21="","",IF(DU26="ปกติ",SUM(F26,G26,H26,I26,J26,K26,L26,M26,N26,O26,P26,Q26,R26,S26,T26,U26,V26,W26,X26,Y26),"-")) -> 58 | AB26: 58 | AW26: =IF(ใส่ชื่อ!D21="","",IF(COUNTIF(AC26:AS26,0),"มผ",IF(DU26="ปกติ",SUM(AC26,AD26,AE26,AF26,AG26,AH26,AI26,AJ26,AK26,AL26,AM26,AN26,AO26,AP26,AQ26,AR26,AS26),"-"))) -> 0 | BO26: =IF(ใส่ชื่อ!D21="","",IF(COUNTIF(AZ26:BN26,0),"มผ",IF(DU26="ปกติ",SUM(AZ26,BA26,BB26,BC26,BD26,BE26,BF26,BG26,BH26,BI26,BJ26,BK26,BL26,BM26,BN26),"-"))) -> 0 | BR26: 18 | CG26: =IF(ใส่ชื่อ!D21="","",IF(DU26="ปกติ",SUM(BR26,BS26,BT26,BU26,BV26,BW26,BX26,BY26,BZ26,CA26,CB26,CC26,CD26,CE26,CF26),"-")) -> 18 | CI26: 18 | CJ26: 3 | CK26: 3 | CL26: 3 | CM26: 3 | CN26: 3 | CO26: =IF(ใส่ชื่อ!D21="","",IF(CJ26="","",(IF(CK26="","",(IF(CL26="","",(IF(CM26="","",(IF(CN26="","",(SUM(CJ26:CN26)))))))))))) -> 15 | CP26: 3 | CQ26: ดย | CR26: 3 | CS26: 3 | CT26: 3 | CU26: 3 | CV26: 3 | CW26: 3 | CX26: 3 | CY26: 3 | CZ26: 3 | DA26: 3 | DB26: ดย | DC26: 58 | DG26: =IF(ใส่ชื่อ!D21="","",IF(COUNTIF(DC26:DE26,"มผ"),"มผ",IF(DE26="มผ","มผ",IF(DU26="ปกติ",SUM(DC26:DD26,IF(DF26="",DE26,DF26)),"-")))) -> 58 | DI26: 18 | DL26: =IF(ใส่ชื่อ!D21="","",IF(DG26="","",IF(COUNTIF(DC26:DJ26,"มผ"),"มผ",IF(COUNTIF(DC26:DJ26,"-"),"-",IF(DU26="ปกติ",SUM(DG26,IF(DJ26="",DI26,DJ26))))))) -> 76 | DP26: =ประเมินผลการเรียนเทอม1!DP26 -> 42 | DQ26: =IF(ใส่ชื่อ!A21="","",IF(DL26="-","-",IF(DL26=0,"",IF(DU26="ปกติ",MAXA(DL26/2,DN26/2))))) -> 38 | DS26: =IF(เวลาเรียน!M28="","",IF(เวลาเรียน!M28="ย้าย","-",IF(เวลาเรียน!M28="จำหน่าย","-",IF(เวลาเรียน!M28="ขาดเรียนนาน","-",IF(DP26="","",IF(DQ26="","",SUM(DP26+DQ26))))))) -> 80 | DT26: =IF(เวลาเรียน!M28="","",IF(เวลาเรียน!M28="ย้าย","-",IF(เวลาเรียน!M28="จำหน่าย","-",IF(เวลาเรียน!M28="ขาดเรียนนาน","-",IF(เวลาเรียน!L28<80,"มส",IF(COUNTIF(DS26,"-"),"-",IF(COUNTIF(DS26,""),"",VLOOKUP(DS26,$DW$19:$DY$26,3)))))))) -> 4 | DU26: =IF(เวลาเรียน!M28="","",เวลาเรียน!M28) -> ปกติ | DW26: 80 | DX26: 100 | DY26: 4
A27: 21 | B27: 2517 | C27: =CONCATENATE(ใส่ชื่อ!C22) ->  | D27: =CONCATENATE(ใส่ชื่อ!D22&ใส่ชื่อ!E22&" "&ใส่ชื่อ!F22) ->  | E27: =ใส่ชื่อ!A22 -> 0 | Z27: =IF(ใส่ชื่อ!D22="","",IF(DU27="ปกติ",SUM(F27,G27,H27,I27,J27,K27,L27,M27,N27,O27,P27,Q27,R27,S27,T27,U27,V27,W27,X27,Y27),"-")) ->  | AW27: =IF(ใส่ชื่อ!D22="","",IF(COUNTIF(AC27:AS27,0),"มผ",IF(DU27="ปกติ",SUM(AC27,AD27,AE27,AF27,AG27,AH27,AI27,AJ27,AK27,AL27,AM27,AN27,AO27,AP27,AQ27,AR27,AS27),"-"))) ->  | BO27: =IF(ใส่ชื่อ!D22="","",IF(COUNTIF(AZ27:BN27,0),"มผ",IF(DU27="ปกติ",SUM(AZ27,BA27,BB27,BC27,BD27,BE27,BF27,BG27,BH27,BI27,BJ27,BK27,BL27,BM27,BN27),"-"))) ->  | CG27: =IF(ใส่ชื่อ!D22="","",IF(DU27="ปกติ",SUM(BR27,BS27,BT27,BU27,BV27,BW27,BX27,BY27,BZ27,CA27,CB27,CC27,CD27,CE27,CF27),"-")) ->  | CO27: =IF(ใส่ชื่อ!D22="","",IF(CJ27="","",(IF(CK27="","",(IF(CL27="","",(IF(CM27="","",(IF(CN27="","",(SUM(CJ27:CN27)))))))))))) ->  | DG27: =IF(ใส่ชื่อ!D22="","",IF(COUNTIF(DC27:DE27,"มผ"),"มผ",IF(DE27="มผ","มผ",IF(DU27="ปกติ",SUM(DC27:DD27,IF(DF27="",DE27,DF27)),"-")))) ->  | DL27: =IF(ใส่ชื่อ!D22="","",IF(DG27="","",IF(COUNTIF(DC27:DJ27,"มผ"),"มผ",IF(COUNTIF(DC27:DJ27,"-"),"-",IF(DU27="ปกติ",SUM(DG27,IF(DJ27="",DI27,DJ27))))))) ->  | DP27: =ประเมินผลการเรียนเทอม1!DP27 ->  | DQ27: =IF(ใส่ชื่อ!A22="","",IF(DL27="-","-",IF(DL27=0,"",IF(DU27="ปกติ",MAXA(DL27/2,DN27/2))))) ->  | DS27: =IF(เวลาเรียน!M29="","",IF(เวลาเรียน!M29="ย้าย","-",IF(เวลาเรียน!M29="จำหน่าย","-",IF(เวลาเรียน!M29="ขาดเรียนนาน","-",IF(DP27="","",IF(DQ27="","",SUM(DP27+DQ27))))))) ->  | DT27: =IF(เวลาเรียน!M29="","",IF(เวลาเรียน!M29="ย้าย","-",IF(เวลาเรียน!M29="จำหน่าย","-",IF(เวลาเรียน!M29="ขาดเรียนนาน","-",IF(เวลาเรียน!L29<80,"มส",IF(COUNTIF(DS27,"-"),"-",IF(COUNTIF(DS27,""),"",VLOOKUP(DS27,$DW$19:$DY$26,3)))))))) ->  | DU27: =IF(เวลาเรียน!M29="","",เวลาเรียน!M29) -> 
A28: 22 | B28: 2518 | C28: =CONCATENATE(ใส่ชื่อ!C23) ->  | D28: =CONCATENATE(ใส่ชื่อ!D23&ใส่ชื่อ!E23&" "&ใส่ชื่อ!F23) ->  | E28: =ใส่ชื่อ!A23 -> 0 | Z28: =IF(ใส่ชื่อ!D23="","",IF(DU28="ปกติ",SUM(F28,G28,H28,I28,J28,K28,L28,M28,N28,O28,P28,Q28,R28,S28,T28,U28,V28,W28,X28,Y28),"-")) ->  | AW28: =IF(ใส่ชื่อ!D23="","",IF(COUNTIF(AC28:AS28,0),"มผ",IF(DU28="ปกติ",SUM(AC28,AD28,AE28,AF28,AG28,AH28,AI28,AJ28,AK28,AL28,AM28,AN28,AO28,AP28,AQ28,AR28,AS28),"-"))) ->  | BO28: =IF(ใส่ชื่อ!D23="","",IF(COUNTIF(AZ28:BN28,0),"มผ",IF(DU28="ปกติ",SUM(AZ28,BA28,BB28,BC28,BD28,BE28,BF28,BG28,BH28,BI28,BJ28,BK28,BL28,BM28,BN28),"-"))) ->  | CG28: =IF(ใส่ชื่อ!D23="","",IF(DU28="ปกติ",SUM(BR28,BS28,BT28,BU28,BV28,BW28,BX28,BY28,BZ28,CA28,CB28,CC28,CD28,CE28,CF28),"-")) ->  | CO28: =IF(ใส่ชื่อ!D23="","",IF(CJ28="","",(IF(CK28="","",(IF(CL28="","",(IF(CM28="","",(IF(CN28="","",(SUM(CJ28:CN28)))))))))))) ->  | DG28: =IF(ใส่ชื่อ!D23="","",IF(COUNTIF(DC28:DE28,"มผ"),"มผ",IF(DE28="มผ","มผ",IF(DU28="ปกติ",SUM(DC28:DD28,IF(DF28="",DE28,DF28)),"-")))) ->  | DL28: =IF(ใส่ชื่อ!D23="","",IF(DG28="","",IF(COUNTIF(DC28:DJ28,"มผ"),"มผ",IF(COUNTIF(DC28:DJ28,"-"),"-",IF(DU28="ปกติ",SUM(DG28,IF(DJ28="",DI28,DJ28))))))) ->  | DP28: =ประเมินผลการเรียนเทอม1!DP28 ->  | DQ28: =IF(ใส่ชื่อ!A23="","",IF(DL28="-","-",IF(DL28=0,"",IF(DU28="ปกติ",MAXA(DL28/2,DN28/2))))) ->  | DS28: =IF(เวลาเรียน!M30="","",IF(เวลาเรียน!M30="ย้าย","-",IF(เวลาเรียน!M30="จำหน่าย","-",IF(เวลาเรียน!M30="ขาดเรียนนาน","-",IF(DP28="","",IF(DQ28="","",SUM(DP28+DQ28))))))) ->  | DT28: =IF(เวลาเรียน!M30="","",IF(เวลาเรียน!M30="ย้าย","-",IF(เวลาเรียน!M30="จำหน่าย","-",IF(เวลาเรียน!M30="ขาดเรียนนาน","-",IF(เวลาเรียน!L30<80,"มส",IF(COUNTIF(DS28,"-"),"-",IF(COUNTIF(DS28,""),"",VLOOKUP(DS28,$DW$19:$DY$26,3)))))))) ->  | DU28: =IF(เวลาเรียน!M30="","",เวลาเรียน!M30) -> 
A29: 23 | B29: 2519 | C29: =CONCATENATE(ใส่ชื่อ!C24) ->  | D29: =CONCATENATE(ใส่ชื่อ!D24&ใส่ชื่อ!E24&" "&ใส่ชื่อ!F24) ->  | E29: =ใส่ชื่อ!A24 -> 0 | Z29: =IF(ใส่ชื่อ!D24="","",IF(DU29="ปกติ",SUM(F29,G29,H29,I29,J29,K29,L29,M29,N29,O29,P29,Q29,R29,S29,T29,U29,V29,W29,X29,Y29),"-")) ->  | AW29: =IF(ใส่ชื่อ!D24="","",IF(COUNTIF(AC29:AS29,0),"มผ",IF(DU29="ปกติ",SUM(AC29,AD29,AE29,AF29,AG29,AH29,AI29,AJ29,AK29,AL29,AM29,AN29,AO29,AP29,AQ29,AR29,AS29),"-"))) ->  | BO29: =IF(ใส่ชื่อ!D24="","",IF(COUNTIF(AZ29:BN29,0),"มผ",IF(DU29="ปกติ",SUM(AZ29,BA29,BB29,BC29,BD29,BE29,BF29,BG29,BH29,BI29,BJ29,BK29,BL29,BM29,BN29),"-"))) ->  | CG29: =IF(ใส่ชื่อ!D24="","",IF(DU29="ปกติ",SUM(BR29,BS29,BT29,BU29,BV29,BW29,BX29,BY29,BZ29,CA29,CB29,CC29,CD29,CE29,CF29),"-")) ->  | CO29: =IF(ใส่ชื่อ!D24="","",IF(CJ29="","",(IF(CK29="","",(IF(CL29="","",(IF(CM29="","",(IF(CN29="","",(SUM(CJ29:CN29)))))))))))) ->  | DG29: =IF(ใส่ชื่อ!D24="","",IF(COUNTIF(DC29:DE29,"มผ"),"มผ",IF(DE29="มผ","มผ",IF(DU29="ปกติ",SUM(DC29:DD29,IF(DF29="",DE29,DF29)),"-")))) ->  | DL29: =IF(ใส่ชื่อ!D24="","",IF(DG29="","",IF(COUNTIF(DC29:DJ29,"มผ"),"มผ",IF(COUNTIF(DC29:DJ29,"-"),"-",IF(DU29="ปกติ",SUM(DG29,IF(DJ29="",DI29,DJ29))))))) ->  | DP29: =ประเมินผลการเรียนเทอม1!DP29 ->  | DQ29: =IF(ใส่ชื่อ!A24="","",IF(DL29="-","-",IF(DL29=0,"",IF(DU29="ปกติ",MAXA(DL29/2,DN29/2))))) ->  | DS29: =IF(เวลาเรียน!M31="","",IF(เวลาเรียน!M31="ย้าย","-",IF(เวลาเรียน!M31="จำหน่าย","-",IF(เวลาเรียน!M31="ขาดเรียนนาน","-",IF(DP29="","",IF(DQ29="","",SUM(DP29+DQ29))))))) ->  | DT29: =IF(เวลาเรียน!M31="","",IF(เวลาเรียน!M31="ย้าย","-",IF(เวลาเรียน!M31="จำหน่าย","-",IF(เวลาเรียน!M31="ขาดเรียนนาน","-",IF(เวลาเรียน!L31<80,"มส",IF(COUNTIF(DS29,"-"),"-",IF(COUNTIF(DS29,""),"",VLOOKUP(DS29,$DW$19:$DY$26,3)))))))) ->  | DU29: =IF(เวลาเรียน!M31="","",เวลาเรียน!M31) -> 
A30: 24 | B30: 2520 | C30: =CONCATENATE(ใส่ชื่อ!C25) ->  | D30: =CONCATENATE(ใส่ชื่อ!D25&ใส่ชื่อ!E25&" "&ใส่ชื่อ!F25) ->  | E30: =ใส่ชื่อ!A25 -> 0 | Z30: =IF(ใส่ชื่อ!D25="","",IF(DU30="ปกติ",SUM(F30,G30,H30,I30,J30,K30,L30,M30,N30,O30,P30,Q30,R30,S30,T30,U30,V30,W30,X30,Y30),"-")) ->  | AW30: =IF(ใส่ชื่อ!D25="","",IF(COUNTIF(AC30:AS30,0),"มผ",IF(DU30="ปกติ",SUM(AC30,AD30,AE30,AF30,AG30,AH30,AI30,AJ30,AK30,AL30,AM30,AN30,AO30,AP30,AQ30,AR30,AS30),"-"))) ->  | BO30: =IF(ใส่ชื่อ!D25="","",IF(COUNTIF(AZ30:BN30,0),"มผ",IF(DU30="ปกติ",SUM(AZ30,BA30,BB30,BC30,BD30,BE30,BF30,BG30,BH30,BI30,BJ30,BK30,BL30,BM30,BN30),"-"))) ->  | CG30: =IF(ใส่ชื่อ!D25="","",IF(DU30="ปกติ",SUM(BR30,BS30,BT30,BU30,BV30,BW30,BX30,BY30,BZ30,CA30,CB30,CC30,CD30,CE30,CF30),"-")) ->  | CO30: =IF(ใส่ชื่อ!D25="","",IF(CJ30="","",(IF(CK30="","",(IF(CL30="","",(IF(CM30="","",(IF(CN30="","",(SUM(CJ30:CN30)))))))))))) ->  | DG30: =IF(ใส่ชื่อ!D25="","",IF(COUNTIF(DC30:DE30,"มผ"),"มผ",IF(DE30="มผ","มผ",IF(DU30="ปกติ",SUM(DC30:DD30,IF(DF30="",DE30,DF30)),"-")))) ->  | DL30: =IF(ใส่ชื่อ!D25="","",IF(DG30="","",IF(COUNTIF(DC30:DJ30,"มผ"),"มผ",IF(COUNTIF(DC30:DJ30,"-"),"-",IF(DU30="ปกติ",SUM(DG30,IF(DJ30="",DI30,DJ30))))))) ->  | DP30: =ประเมินผลการเรียนเทอม1!DP30 ->  | DQ30: =IF(ใส่ชื่อ!A25="","",IF(DL30="-","-",IF(DL30=0,"",IF(DU30="ปกติ",MAXA(DL30/2,DN30/2))))) ->  | DS30: =IF(เวลาเรียน!M32="","",IF(เวลาเรียน!M32="ย้าย","-",IF(เวลาเรียน!M32="จำหน่าย","-",IF(เวลาเรียน!M32="ขาดเรียนนาน","-",IF(DP30="","",IF(DQ30="","",SUM(DP30+DQ30))))))) ->  | DT30: =IF(เวลาเรียน!M32="","",IF(เวลาเรียน!M32="ย้าย","-",IF(เวลาเรียน!M32="จำหน่าย","-",IF(เวลาเรียน!M32="ขาดเรียนนาน","-",IF(เวลาเรียน!L32<80,"มส",IF(COUNTIF(DS30,"-"),"-",IF(COUNTIF(DS30,""),"",VLOOKUP(DS30,$DW$19:$DY$26,3)))))))) ->  | DU30: =IF(เวลาเรียน!M32="","",เวลาเรียน!M32) -> 
A31: 25 | B31: 2521 | C31: =CONCATENATE(ใส่ชื่อ!C26) ->  | D31: =CONCATENATE(ใส่ชื่อ!D26&ใส่ชื่อ!E26&" "&ใส่ชื่อ!F26) ->  | E31: =ใส่ชื่อ!A26 -> 0 | Z31: =IF(ใส่ชื่อ!D26="","",IF(DU31="ปกติ",SUM(F31,G31,H31,I31,J31,K31,L31,M31,N31,O31,P31,Q31,R31,S31,T31,U31,V31,W31,X31,Y31),"-")) ->  | AW31: =IF(ใส่ชื่อ!D26="","",IF(COUNTIF(AC31:AS31,0),"มผ",IF(DU31="ปกติ",SUM(AC31,AD31,AE31,AF31,AG31,AH31,AI31,AJ31,AK31,AL31,AM31,AN31,AO31,AP31,AQ31,AR31,AS31),"-"))) ->  | BO31: =IF(ใส่ชื่อ!D26="","",IF(COUNTIF(AZ31:BN31,0),"มผ",IF(DU31="ปกติ",SUM(AZ31,BA31,BB31,BC31,BD31,BE31,BF31,BG31,BH31,BI31,BJ31,BK31,BL31,BM31,BN31),"-"))) ->  | CG31: =IF(ใส่ชื่อ!D26="","",IF(DU31="ปกติ",SUM(BR31,BS31,BT31,BU31,BV31,BW31,BX31,BY31,BZ31,CA31,CB31,CC31,CD31,CE31,CF31),"-")) ->  | CO31: =IF(ใส่ชื่อ!D26="","",IF(CJ31="","",(IF(CK31="","",(IF(CL31="","",(IF(CM31="","",(IF(CN31="","",(SUM(CJ31:CN31)))))))))))) ->  | DG31: =IF(ใส่ชื่อ!D26="","",IF(COUNTIF(DC31:DE31,"มผ"),"มผ",IF(DE31="มผ","มผ",IF(DU31="ปกติ",SUM(DC31:DD31,IF(DF31="",DE31,DF31)),"-")))) ->  | DL31: =IF(ใส่ชื่อ!D26="","",IF(DG31="","",IF(COUNTIF(DC31:DJ31,"มผ"),"มผ",IF(COUNTIF(DC31:DJ31,"-"),"-",IF(DU31="ปกติ",SUM(DG31,IF(DJ31="",DI31,DJ31))))))) ->  | DP31: =ประเมินผลการเรียนเทอม1!DP31 ->  | DQ31: =IF(ใส่ชื่อ!A26="","",IF(DL31="-","-",IF(DL31=0,"",IF(DU31="ปกติ",MAXA(DL31/2,DN31/2))))) ->  | DS31: =IF(เวลาเรียน!M33="","",IF(เวลาเรียน!M33="ย้าย","-",IF(เวลาเรียน!M33="จำหน่าย","-",IF(เวลาเรียน!M33="ขาดเรียนนาน","-",IF(DP31="","",IF(DQ31="","",SUM(DP31+DQ31))))))) ->  | DT31: =IF(เวลาเรียน!M33="","",IF(เวลาเรียน!M33="ย้าย","-",IF(เวลาเรียน!M33="จำหน่าย","-",IF(เวลาเรียน!M33="ขาดเรียนนาน","-",IF(เวลาเรียน!L33<80,"มส",IF(COUNTIF(DS31,"-"),"-",IF(COUNTIF(DS31,""),"",VLOOKUP(DS31,$DW$19:$DY$26,3)))))))) ->  | DU31: =IF(เวลาเรียน!M33="","",เวลาเรียน!M33) -> 
A32: 26 | B32: 2522 | C32: =CONCATENATE(ใส่ชื่อ!C27) ->  | D32: =CONCATENATE(ใส่ชื่อ!D27&ใส่ชื่อ!E27&" "&ใส่ชื่อ!F27) ->  | E32: =ใส่ชื่อ!A27 -> 0 | Z32: =IF(ใส่ชื่อ!D27="","",IF(DU32="ปกติ",SUM(F32,G32,H32,I32,J32,K32,L32,M32,N32,O32,P32,Q32,R32,S32,T32,U32,V32,W32,X32,Y32),"-")) ->  | AW32: =IF(ใส่ชื่อ!D27="","",IF(COUNTIF(AC32:AS32,0),"มผ",IF(DU32="ปกติ",SUM(AC32,AD32,AE32,AF32,AG32,AH32,AI32,AJ32,AK32,AL32,AM32,AN32,AO32,AP32,AQ32,AR32,AS32),"-"))) ->  | BO32: =IF(ใส่ชื่อ!D27="","",IF(COUNTIF(AZ32:BN32,0),"มผ",IF(DU32="ปกติ",SUM(AZ32,BA32,BB32,BC32,BD32,BE32,BF32,BG32,BH32,BI32,BJ32,BK32,BL32,BM32,BN32),"-"))) ->  | CG32: =IF(ใส่ชื่อ!D27="","",IF(DU32="ปกติ",SUM(BR32,BS32,BT32,BU32,BV32,BW32,BX32,BY32,BZ32,CA32,CB32,CC32,CD32,CE32,CF32),"-")) ->  | CO32: =IF(ใส่ชื่อ!D27="","",IF(CJ32="","",(IF(CK32="","",(IF(CL32="","",(IF(CM32="","",(IF(CN32="","",(SUM(CJ32:CN32)))))))))))) ->  | DG32: =IF(ใส่ชื่อ!D27="","",IF(COUNTIF(DC32:DE32,"มผ"),"มผ",IF(DE32="มผ","มผ",IF(DU32="ปกติ",SUM(DC32:DD32,IF(DF32="",DE32,DF32)),"-")))) ->  | DL32: =IF(ใส่ชื่อ!D27="","",IF(DG32="","",IF(COUNTIF(DC32:DJ32,"มผ"),"มผ",IF(COUNTIF(DC32:DJ32,"-"),"-",IF(DU32="ปกติ",SUM(DG32,IF(DJ32="",DI32,DJ32))))))) ->  | DP32: =ประเมินผลการเรียนเทอม1!DP32 ->  | DQ32: =IF(ใส่ชื่อ!A27="","",IF(DL32="-","-",IF(DL32=0,"",IF(DU32="ปกติ",MAXA(DL32/2,DN32/2))))) ->  | DS32: =IF(เวลาเรียน!M34="","",IF(เวลาเรียน!M34="ย้าย","-",IF(เวลาเรียน!M34="จำหน่าย","-",IF(เวลาเรียน!M34="ขาดเรียนนาน","-",IF(DP32="","",IF(DQ32="","",SUM(DP32+DQ32))))))) ->  | DT32: =IF(เวลาเรียน!M34="","",IF(เวลาเรียน!M34="ย้าย","-",IF(เวลาเรียน!M34="จำหน่าย","-",IF(เวลาเรียน!M34="ขาดเรียนนาน","-",IF(เวลาเรียน!L34<80,"มส",IF(COUNTIF(DS32,"-"),"-",IF(COUNTIF(DS32,""),"",VLOOKUP(DS32,$DW$19:$DY$26,3)))))))) ->  | DU32: =IF(เวลาเรียน!M34="","",เวลาเรียน!M34) -> 
A33: 27 | B33: 2523 | C33: =CONCATENATE(ใส่ชื่อ!C28) ->  | D33: =CONCATENATE(ใส่ชื่อ!D28&ใส่ชื่อ!E28&" "&ใส่ชื่อ!F28) ->  | E33: =ใส่ชื่อ!A28 -> 0 | Z33: =IF(ใส่ชื่อ!D28="","",IF(DU33="ปกติ",SUM(F33,G33,H33,I33,J33,K33,L33,M33,N33,O33,P33,Q33,R33,S33,T33,U33,V33,W33,X33,Y33),"-")) ->  | AW33: =IF(ใส่ชื่อ!D28="","",IF(COUNTIF(AC33:AS33,0),"มผ",IF(DU33="ปกติ",SUM(AC33,AD33,AE33,AF33,AG33,AH33,AI33,AJ33,AK33,AL33,AM33,AN33,AO33,AP33,AQ33,AR33,AS33),"-"))) ->  | BO33: =IF(ใส่ชื่อ!D28="","",IF(COUNTIF(AZ33:BN33,0),"มผ",IF(DU33="ปกติ",SUM(AZ33,BA33,BB33,BC33,BD33,BE33,BF33,BG33,BH33,BI33,BJ33,BK33,BL33,BM33,BN33),"-"))) ->  | CG33: =IF(ใส่ชื่อ!D28="","",IF(DU33="ปกติ",SUM(BR33,BS33,BT33,BU33,BV33,BW33,BX33,BY33,BZ33,CA33,CB33,CC33,CD33,CE33,CF33),"-")) ->  | CO33: =IF(ใส่ชื่อ!D28="","",IF(CJ33="","",(IF(CK33="","",(IF(CL33="","",(IF(CM33="","",(IF(CN33="","",(SUM(CJ33:CN33)))))))))))) ->  | DG33: =IF(ใส่ชื่อ!D28="","",IF(COUNTIF(DC33:DE33,"มผ"),"มผ",IF(DE33="มผ","มผ",IF(DU33="ปกติ",SUM(DC33:DD33,IF(DF33="",DE33,DF33)),"-")))) ->  | DL33: =IF(ใส่ชื่อ!D28="","",IF(DG33="","",IF(COUNTIF(DC33:DJ33,"มผ"),"มผ",IF(COUNTIF(DC33:DJ33,"-"),"-",IF(DU33="ปกติ",SUM(DG33,IF(DJ33="",DI33,DJ33))))))) ->  | DP33: =ประเมินผลการเรียนเทอม1!DP33 ->  | DQ33: =IF(ใส่ชื่อ!A28="","",IF(DL33="-","-",IF(DL33=0,"",IF(DU33="ปกติ",MAXA(DL33/2,DN33/2))))) ->  | DS33: =IF(เวลาเรียน!M35="","",IF(เวลาเรียน!M35="ย้าย","-",IF(เวลาเรียน!M35="จำหน่าย","-",IF(เวลาเรียน!M35="ขาดเรียนนาน","-",IF(DP33="","",IF(DQ33="","",SUM(DP33+DQ33))))))) ->  | DT33: =IF(เวลาเรียน!M35="","",IF(เวลาเรียน!M35="ย้าย","-",IF(เวลาเรียน!M35="จำหน่าย","-",IF(เวลาเรียน!M35="ขาดเรียนนาน","-",IF(เวลาเรียน!L35<80,"มส",IF(COUNTIF(DS33,"-"),"-",IF(COUNTIF(DS33,""),"",VLOOKUP(DS33,$DW$19:$DY$26,3)))))))) ->  | DU33: =IF(เวลาเรียน!M35="","",เวลาเรียน!M35) -> 
A34: 28 | B34: 2524 | C34: =CONCATENATE(ใส่ชื่อ!C29) ->  | D34: =CONCATENATE(ใส่ชื่อ!D29&ใส่ชื่อ!E29&" "&ใส่ชื่อ!F29) ->  | E34: =ใส่ชื่อ!A29 -> 0 | Z34: =IF(ใส่ชื่อ!D29="","",IF(DU34="ปกติ",SUM(F34,G34,H34,I34,J34,K34,L34,M34,N34,O34,P34,Q34,R34,S34,T34,U34,V34,W34,X34,Y34),"-")) ->  | AW34: =IF(ใส่ชื่อ!D29="","",IF(COUNTIF(AC34:AS34,0),"มผ",IF(DU34="ปกติ",SUM(AC34,AD34,AE34,AF34,AG34,AH34,AI34,AJ34,AK34,AL34,AM34,AN34,AO34,AP34,AQ34,AR34,AS34),"-"))) ->  | BO34: =IF(ใส่ชื่อ!D29="","",IF(COUNTIF(AZ34:BN34,0),"มผ",IF(DU34="ปกติ",SUM(AZ34,BA34,BB34,BC34,BD34,BE34,BF34,BG34,BH34,BI34,BJ34,BK34,BL34,BM34,BN34),"-"))) ->  | CG34: =IF(ใส่ชื่อ!D29="","",IF(DU34="ปกติ",SUM(BR34,BS34,BT34,BU34,BV34,BW34,BX34,BY34,BZ34,CA34,CB34,CC34,CD34,CE34,CF34),"-")) ->  | CO34: =IF(ใส่ชื่อ!D29="","",IF(CJ34="","",(IF(CK34="","",(IF(CL34="","",(IF(CM34="","",(IF(CN34="","",(SUM(CJ34:CN34)))))))))))) ->  | DG34: =IF(ใส่ชื่อ!D29="","",IF(COUNTIF(DC34:DE34,"มผ"),"มผ",IF(DE34="มผ","มผ",IF(DU34="ปกติ",SUM(DC34:DD34,IF(DF34="",DE34,DF34)),"-")))) ->  | DL34: =IF(ใส่ชื่อ!D29="","",IF(DG34="","",IF(COUNTIF(DC34:DJ34,"มผ"),"มผ",IF(COUNTIF(DC34:DJ34,"-"),"-",IF(DU34="ปกติ",SUM(DG34,IF(DJ34="",DI34,DJ34))))))) ->  | DP34: =ประเมินผลการเรียนเทอม1!DP34 ->  | DQ34: =IF(ใส่ชื่อ!A29="","",IF(DL34="-","-",IF(DL34=0,"",IF(DU34="ปกติ",MAXA(DL34/2,DN34/2))))) ->  | DS34: =IF(เวลาเรียน!M36="","",IF(เวลาเรียน!M36="ย้าย","-",IF(เวลาเรียน!M36="จำหน่าย","-",IF(เวลาเรียน!M36="ขาดเรียนนาน","-",IF(DP34="","",IF(DQ34="","",SUM(DP34+DQ34))))))) ->  | DT34: =IF(เวลาเรียน!M36="","",IF(เวลาเรียน!M36="ย้าย","-",IF(เวลาเรียน!M36="จำหน่าย","-",IF(เวลาเรียน!M36="ขาดเรียนนาน","-",IF(เวลาเรียน!L36<80,"มส",IF(COUNTIF(DS34,"-"),"-",IF(COUNTIF(DS34,""),"",VLOOKUP(DS34,$DW$19:$DY$26,3)))))))) ->  | DU34: =IF(เวลาเรียน!M36="","",เวลาเรียน!M36) -> 
A35: 29 | B35: 2525 | C35: =CONCATENATE(ใส่ชื่อ!C30) ->  | D35: =CONCATENATE(ใส่ชื่อ!D30&ใส่ชื่อ!E30&" "&ใส่ชื่อ!F30) ->  | E35: =ใส่ชื่อ!A30 -> 0 | Z35: =IF(ใส่ชื่อ!D30="","",IF(DU35="ปกติ",SUM(F35,G35,H35,I35,J35,K35,L35,M35,N35,O35,P35,Q35,R35,S35,T35,U35,V35,W35,X35,Y35),"-")) ->  | AW35: =IF(ใส่ชื่อ!D30="","",IF(COUNTIF(AC35:AS35,0),"มผ",IF(DU35="ปกติ",SUM(AC35,AD35,AE35,AF35,AG35,AH35,AI35,AJ35,AK35,AL35,AM35,AN35,AO35,AP35,AQ35,AR35,AS35),"-"))) ->  | BO35: =IF(ใส่ชื่อ!D30="","",IF(COUNTIF(AZ35:BN35,0),"มผ",IF(DU35="ปกติ",SUM(AZ35,BA35,BB35,BC35,BD35,BE35,BF35,BG35,BH35,BI35,BJ35,BK35,BL35,BM35,BN35),"-"))) ->  | CG35: =IF(ใส่ชื่อ!D30="","",IF(DU35="ปกติ",SUM(BR35,BS35,BT35,BU35,BV35,BW35,BX35,BY35,BZ35,CA35,CB35,CC35,CD35,CE35,CF35),"-")) ->  | CO35: =IF(ใส่ชื่อ!D30="","",IF(CJ35="","",(IF(CK35="","",(IF(CL35="","",(IF(CM35="","",(IF(CN35="","",(SUM(CJ35:CN35)))))))))))) ->  | DG35: =IF(ใส่ชื่อ!D30="","",IF(COUNTIF(DC35:DE35,"มผ"),"มผ",IF(DE35="มผ","มผ",IF(DU35="ปกติ",SUM(DC35:DD35,IF(DF35="",DE35,DF35)),"-")))) ->  | DL35: =IF(ใส่ชื่อ!D30="","",IF(DG35="","",IF(COUNTIF(DC35:DJ35,"มผ"),"มผ",IF(COUNTIF(DC35:DJ35,"-"),"-",IF(DU35="ปกติ",SUM(DG35,IF(DJ35="",DI35,DJ35))))))) ->  | DP35: =ประเมินผลการเรียนเทอม1!DP35 ->  | DQ35: =IF(ใส่ชื่อ!A30="","",IF(DL35="-","-",IF(DL35=0,"",IF(DU35="ปกติ",MAXA(DL35/2,DN35/2))))) ->  | DS35: =IF(เวลาเรียน!M37="","",IF(เวลาเรียน!M37="ย้าย","-",IF(เวลาเรียน!M37="จำหน่าย","-",IF(เวลาเรียน!M37="ขาดเรียนนาน","-",IF(DP35="","",IF(DQ35="","",SUM(DP35+DQ35))))))) ->  | DT35: =IF(เวลาเรียน!M37="","",IF(เวลาเรียน!M37="ย้าย","-",IF(เวลาเรียน!M37="จำหน่าย","-",IF(เวลาเรียน!M37="ขาดเรียนนาน","-",IF(เวลาเรียน!L37<80,"มส",IF(COUNTIF(DS35,"-"),"-",IF(COUNTIF(DS35,""),"",VLOOKUP(DS35,$DW$19:$DY$26,3)))))))) ->  | DU35: =IF(เวลาเรียน!M37="","",เวลาเรียน!M37) -> 
A36: 30 | B36: 2526 | C36: =CONCATENATE(ใส่ชื่อ!C31) ->  | D36: =CONCATENATE(ใส่ชื่อ!D31&ใส่ชื่อ!E31&" "&ใส่ชื่อ!F31) ->  | E36: =ใส่ชื่อ!A31 -> 0 | Z36: =IF(ใส่ชื่อ!D31="","",IF(DU36="ปกติ",SUM(F36,G36,H36,I36,J36,K36,L36,M36,N36,O36,P36,Q36,R36,S36,T36,U36,V36,W36,X36,Y36),"-")) ->  | AW36: =IF(ใส่ชื่อ!D31="","",IF(COUNTIF(AC36:AS36,0),"มผ",IF(DU36="ปกติ",SUM(AC36,AD36,AE36,AF36,AG36,AH36,AI36,AJ36,AK36,AL36,AM36,AN36,AO36,AP36,AQ36,AR36,AS36),"-"))) ->  | BO36: =IF(ใส่ชื่อ!D31="","",IF(COUNTIF(AZ36:BN36,0),"มผ",IF(DU36="ปกติ",SUM(AZ36,BA36,BB36,BC36,BD36,BE36,BF36,BG36,BH36,BI36,BJ36,BK36,BL36,BM36,BN36),"-"))) ->  | CG36: =IF(ใส่ชื่อ!D31="","",IF(DU36="ปกติ",SUM(BR36,BS36,BT36,BU36,BV36,BW36,BX36,BY36,BZ36,CA36,CB36,CC36,CD36,CE36,CF36),"-")) ->  | CO36: =IF(ใส่ชื่อ!D31="","",IF(CJ36="","",(IF(CK36="","",(IF(CL36="","",(IF(CM36="","",(IF(CN36="","",(SUM(CJ36:CN36)))))))))))) ->  | DG36: =IF(ใส่ชื่อ!D31="","",IF(COUNTIF(DC36:DE36,"มผ"),"มผ",IF(DE36="มผ","มผ",IF(DU36="ปกติ",SUM(DC36:DD36,IF(DF36="",DE36,DF36)),"-")))) ->  | DL36: =IF(ใส่ชื่อ!D31="","",IF(DG36="","",IF(COUNTIF(DC36:DJ36,"มผ"),"มผ",IF(COUNTIF(DC36:DJ36,"-"),"-",IF(DU36="ปกติ",SUM(DG36,IF(DJ36="",DI36,DJ36))))))) ->  | DP36: =ประเมินผลการเรียนเทอม1!DP36 ->  | DQ36: =IF(ใส่ชื่อ!A31="","",IF(DL36="-","-",IF(DL36=0,"",IF(DU36="ปกติ",MAXA(DL36/2,DN36/2))))) ->  | DS36: =IF(เวลาเรียน!M38="","",IF(เวลาเรียน!M38="ย้าย","-",IF(เวลาเรียน!M38="จำหน่าย","-",IF(เวลาเรียน!M38="ขาดเรียนนาน","-",IF(DP36="","",IF(DQ36="","",SUM(DP36+DQ36))))))) ->  | DT36: =IF(เวลาเรียน!M38="","",IF(เวลาเรียน!M38="ย้าย","-",IF(เวลาเรียน!M38="จำหน่าย","-",IF(เวลาเรียน!M38="ขาดเรียนนาน","-",IF(เวลาเรียน!L38<80,"มส",IF(COUNTIF(DS36,"-"),"-",IF(COUNTIF(DS36,""),"",VLOOKUP(DS36,$DW$19:$DY$26,3)))))))) ->  | DU36: =IF(เวลาเรียน!M38="","",เวลาเรียน!M38) -> 
A37: 31 | B37: 2528 | C37: =CONCATENATE(ใส่ชื่อ!C32) ->  | D37: =CONCATENATE(ใส่ชื่อ!D32&ใส่ชื่อ!E32&" "&ใส่ชื่อ!F32) ->  | E37: =ใส่ชื่อ!A32 -> 0 | Z37: =IF(ใส่ชื่อ!D32="","",IF(DU37="ปกติ",SUM(F37,G37,H37,I37,J37,K37,L37,M37,N37,O37,P37,Q37,R37,S37,T37,U37,V37,W37,X37,Y37),"-")) ->  | AW37: =IF(ใส่ชื่อ!D32="","",IF(COUNTIF(AC37:AS37,0),"มผ",IF(DU37="ปกติ",SUM(AC37,AD37,AE37,AF37,AG37,AH37,AI37,AJ37,AK37,AL37,AM37,AN37,AO37,AP37,AQ37,AR37,AS37),"-"))) ->  | BO37: =IF(ใส่ชื่อ!D32="","",IF(COUNTIF(AZ37:BN37,0),"มผ",IF(DU37="ปกติ",SUM(AZ37,BA37,BB37,BC37,BD37,BE37,BF37,BG37,BH37,BI37,BJ37,BK37,BL37,BM37,BN37),"-"))) ->  | CG37: =IF(ใส่ชื่อ!D32="","",IF(DU37="ปกติ",SUM(BR37,BS37,BT37,BU37,BV37,BW37,BX37,BY37,BZ37,CA37,CB37,CC37,CD37,CE37,CF37),"-")) ->  | CO37: =IF(ใส่ชื่อ!D32="","",IF(CJ37="","",(IF(CK37="","",(IF(CL37="","",(IF(CM37="","",(IF(CN37="","",(SUM(CJ37:CN37)))))))))))) ->  | DG37: =IF(ใส่ชื่อ!D32="","",IF(COUNTIF(DC37:DE37,"มผ"),"มผ",IF(DE37="มผ","มผ",IF(DU37="ปกติ",SUM(DC37:DD37,IF(DF37="",DE37,DF37)),"-")))) ->  | DL37: =IF(ใส่ชื่อ!D32="","",IF(DG37="","",IF(COUNTIF(DC37:DJ37,"มผ"),"มผ",IF(COUNTIF(DC37:DJ37,"-"),"-",IF(DU37="ปกติ",SUM(DG37,IF(DJ37="",DI37,DJ37))))))) ->  | DP37: =ประเมินผลการเรียนเทอม1!DP37 ->  | DQ37: =IF(ใส่ชื่อ!A32="","",IF(DL37="-","-",IF(DL37=0,"",IF(DU37="ปกติ",MAXA(DL37/2,DN37/2))))) ->  | DS37: =IF(เวลาเรียน!M39="","",IF(เวลาเรียน!M39="ย้าย","-",IF(เวลาเรียน!M39="จำหน่าย","-",IF(เวลาเรียน!M39="ขาดเรียนนาน","-",IF(DP37="","",IF(DQ37="","",SUM(DP37+DQ37))))))) ->  | DT37: =IF(เวลาเรียน!M39="","",IF(เวลาเรียน!M39="ย้าย","-",IF(เวลาเรียน!M39="จำหน่าย","-",IF(เวลาเรียน!M39="ขาดเรียนนาน","-",IF(เวลาเรียน!L39<80,"มส",IF(COUNTIF(DS37,"-"),"-",IF(COUNTIF(DS37,""),"",VLOOKUP(DS37,$DW$19:$DY$26,3)))))))) ->  | DU37: =IF(เวลาเรียน!M39="","",เวลาเรียน!M39) -> 
A38: 32 | B38: 2529 | C38: =CONCATENATE(ใส่ชื่อ!C33) ->  | D38: =CONCATENATE(ใส่ชื่อ!D33&ใส่ชื่อ!E33&" "&ใส่ชื่อ!F33) ->  | E38: =ใส่ชื่อ!A33 -> 0 | Z38: =IF(ใส่ชื่อ!D33="","",IF(DU38="ปกติ",SUM(F38,G38,H38,I38,J38,K38,L38,M38,N38,O38,P38,Q38,R38,S38,T38,U38,V38,W38,X38,Y38),"-")) ->  | AW38: =IF(ใส่ชื่อ!D33="","",IF(COUNTIF(AC38:AS38,0),"มผ",IF(DU38="ปกติ",SUM(AC38,AD38,AE38,AF38,AG38,AH38,AI38,AJ38,AK38,AL38,AM38,AN38,AO38,AP38,AQ38,AR38,AS38),"-"))) ->  | BO38: =IF(ใส่ชื่อ!D33="","",IF(COUNTIF(AZ38:BN38,0),"มผ",IF(DU38="ปกติ",SUM(AZ38,BA38,BB38,BC38,BD38,BE38,BF38,BG38,BH38,BI38,BJ38,BK38,BL38,BM38,BN38),"-"))) ->  | CG38: =IF(ใส่ชื่อ!D33="","",IF(DU38="ปกติ",SUM(BR38,BS38,BT38,BU38,BV38,BW38,BX38,BY38,BZ38,CA38,CB38,CC38,CD38,CE38,CF38),"-")) ->  | CO38: =IF(ใส่ชื่อ!D33="","",IF(CJ38="","",(IF(CK38="","",(IF(CL38="","",(IF(CM38="","",(IF(CN38="","",(SUM(CJ38:CN38)))))))))))) ->  | DG38: =IF(ใส่ชื่อ!D33="","",IF(COUNTIF(DC38:DE38,"มผ"),"มผ",IF(DE38="มผ","มผ",IF(DU38="ปกติ",SUM(DC38:DD38,IF(DF38="",DE38,DF38)),"-")))) ->  | DL38: =IF(ใส่ชื่อ!D33="","",IF(DG38="","",IF(COUNTIF(DC38:DJ38,"มผ"),"มผ",IF(COUNTIF(DC38:DJ38,"-"),"-",IF(DU38="ปกติ",SUM(DG38,IF(DJ38="",DI38,DJ38))))))) ->  | DP38: =ประเมินผลการเรียนเทอม1!DP38 ->  | DQ38: =IF(ใส่ชื่อ!A33="","",IF(DL38="-","-",IF(DL38=0,"",IF(DU38="ปกติ",MAXA(DL38/2,DN38/2))))) ->  | DS38: =IF(เวลาเรียน!M40="","",IF(เวลาเรียน!M40="ย้าย","-",IF(เวลาเรียน!M40="จำหน่าย","-",IF(เวลาเรียน!M40="ขาดเรียนนาน","-",IF(DP38="","",IF(DQ38="","",SUM(DP38+DQ38))))))) ->  | DT38: =IF(เวลาเรียน!M40="","",IF(เวลาเรียน!M40="ย้าย","-",IF(เวลาเรียน!M40="จำหน่าย","-",IF(เวลาเรียน!M40="ขาดเรียนนาน","-",IF(เวลาเรียน!L40<80,"มส",IF(COUNTIF(DS38,"-"),"-",IF(COUNTIF(DS38,""),"",VLOOKUP(DS38,$DW$19:$DY$26,3)))))))) ->  | DU38: =IF(เวลาเรียน!M40="","",เวลาเรียน!M40) -> 
A39: 33 | B39: 0 | C39: =CONCATENATE(ใส่ชื่อ!C34) ->  | D39: =CONCATENATE(ใส่ชื่อ!D34&ใส่ชื่อ!E34&" "&ใส่ชื่อ!F34) ->  | E39: =ใส่ชื่อ!A34 -> 0 | Z39: =IF(ใส่ชื่อ!D34="","",IF(DU39="ปกติ",SUM(F39,G39,H39,I39,J39,K39,L39,M39,N39,O39,P39,Q39,R39,S39,T39,U39,V39,W39,X39,Y39),"-")) ->  | AW39: =IF(ใส่ชื่อ!D34="","",IF(COUNTIF(AC39:AS39,0),"มผ",IF(DU39="ปกติ",SUM(AC39,AD39,AE39,AF39,AG39,AH39,AI39,AJ39,AK39,AL39,AM39,AN39,AO39,AP39,AQ39,AR39,AS39),"-"))) ->  | BO39: =IF(ใส่ชื่อ!D34="","",IF(COUNTIF(AZ39:BN39,0),"มผ",IF(DU39="ปกติ",SUM(AZ39,BA39,BB39,BC39,BD39,BE39,BF39,BG39,BH39,BI39,BJ39,BK39,BL39,BM39,BN39),"-"))) ->  | CG39: =IF(ใส่ชื่อ!D34="","",IF(DU39="ปกติ",SUM(BR39,BS39,BT39,BU39,BV39,BW39,BX39,BY39,BZ39,CA39,CB39,CC39,CD39,CE39,CF39),"-")) ->  | CO39: =IF(ใส่ชื่อ!D34="","",IF(CJ39="","",(IF(CK39="","",(IF(CL39="","",(IF(CM39="","",(IF(CN39="","",(SUM(CJ39:CN39)))))))))))) ->  | DG39: =IF(ใส่ชื่อ!D34="","",IF(COUNTIF(DC39:DE39,"มผ"),"มผ",IF(DE39="มผ","มผ",IF(DU39="ปกติ",SUM(DC39:DD39,IF(DF39="",DE39,DF39)),"-")))) ->  | DL39: =IF(ใส่ชื่อ!D34="","",IF(DG39="","",IF(COUNTIF(DC39:DJ39,"มผ"),"มผ",IF(COUNTIF(DC39:DJ39,"-"),"-",IF(DU39="ปกติ",SUM(DG39,IF(DJ39="",DI39,DJ39))))))) ->  | DP39: =ประเมินผลการเรียนเทอม1!DP39 ->  | DQ39: =IF(ใส่ชื่อ!A34="","",IF(DL39="-","-",IF(DL39=0,"",IF(DU39="ปกติ",MAXA(DL39/2,DN39/2))))) ->  | DS39: =IF(เวลาเรียน!M41="","",IF(เวลาเรียน!M41="ย้าย","-",IF(เวลาเรียน!M41="จำหน่าย","-",IF(เวลาเรียน!M41="ขาดเรียนนาน","-",IF(DP39="","",IF(DQ39="","",SUM(DP39+DQ39))))))) ->  | DT39: =IF(เวลาเรียน!M41="","",IF(เวลาเรียน!M41="ย้าย","-",IF(เวลาเรียน!M41="จำหน่าย","-",IF(เวลาเรียน!M41="ขาดเรียนนาน","-",IF(เวลาเรียน!L41<80,"มส",IF(COUNTIF(DS39,"-"),"-",IF(COUNTIF(DS39,""),"",VLOOKUP(DS39,$DW$19:$DY$26,3)))))))) ->  | DU39: =IF(เวลาเรียน!M41="","",เวลาเรียน!M41) -> 
A40: 34 | B40: 0 | C40: =CONCATENATE(ใส่ชื่อ!C35) ->  | D40: =CONCATENATE(ใส่ชื่อ!D35&ใส่ชื่อ!E35&" "&ใส่ชื่อ!F35) ->  | E40: =ใส่ชื่อ!A35 -> 0 | Z40: =IF(ใส่ชื่อ!D35="","",IF(DU40="ปกติ",SUM(F40,G40,H40,I40,J40,K40,L40,M40,N40,O40,P40,Q40,R40,S40,T40,U40,V40,W40,X40,Y40),"-")) ->  | AW40: =IF(ใส่ชื่อ!D35="","",IF(COUNTIF(AC40:AS40,0),"มผ",IF(DU40="ปกติ",SUM(AC40,AD40,AE40,AF40,AG40,AH40,AI40,AJ40,AK40,AL40,AM40,AN40,AO40,AP40,AQ40,AR40,AS40),"-"))) ->  | BO40: =IF(ใส่ชื่อ!D35="","",IF(COUNTIF(AZ40:BN40,0),"มผ",IF(DU40="ปกติ",SUM(AZ40,BA40,BB40,BC40,BD40,BE40,BF40,BG40,BH40,BI40,BJ40,BK40,BL40,BM40,BN40),"-"))) ->  | CG40: =IF(ใส่ชื่อ!D35="","",IF(DU40="ปกติ",SUM(BR40,BS40,BT40,BU40,BV40,BW40,BX40,BY40,BZ40,CA40,CB40,CC40,CD40,CE40,CF40),"-")) ->  | CO40: =IF(ใส่ชื่อ!D35="","",IF(CJ40="","",(IF(CK40="","",(IF(CL40="","",(IF(CM40="","",(IF(CN40="","",(SUM(CJ40:CN40)))))))))))) ->  | DG40: =IF(ใส่ชื่อ!D35="","",IF(COUNTIF(DC40:DE40,"มผ"),"มผ",IF(DE40="มผ","มผ",IF(DU40="ปกติ",SUM(DC40:DD40,IF(DF40="",DE40,DF40)),"-")))) ->  | DL40: =IF(ใส่ชื่อ!D35="","",IF(DG40="","",IF(COUNTIF(DC40:DJ40,"มผ"),"มผ",IF(COUNTIF(DC40:DJ40,"-"),"-",IF(DU40="ปกติ",SUM(DG40,IF(DJ40="",DI40,DJ40))))))) ->  | DP40: =ประเมินผลการเรียนเทอม1!DP40 ->  | DQ40: =IF(ใส่ชื่อ!A35="","",IF(DL40="-","-",IF(DL40=0,"",IF(DU40="ปกติ",MAXA(DL40/2,DN40/2))))) ->  | DS40: =IF(เวลาเรียน!M42="","",IF(เวลาเรียน!M42="ย้าย","-",IF(เวลาเรียน!M42="จำหน่าย","-",IF(เวลาเรียน!M42="ขาดเรียนนาน","-",IF(DP40="","",IF(DQ40="","",SUM(DP40+DQ40))))))) ->  | DT40: =IF(เวลาเรียน!M42="","",IF(เวลาเรียน!M42="ย้าย","-",IF(เวลาเรียน!M42="จำหน่าย","-",IF(เวลาเรียน!M42="ขาดเรียนนาน","-",IF(เวลาเรียน!L42<80,"มส",IF(COUNTIF(DS40,"-"),"-",IF(COUNTIF(DS40,""),"",VLOOKUP(DS40,$DW$19:$DY$26,3)))))))) ->  | DU40: =IF(เวลาเรียน!M42="","",เวลาเรียน!M42) -> 
A41: 35 | B41: 0 | C41: =CONCATENATE(ใส่ชื่อ!C36) ->  | D41: =CONCATENATE(ใส่ชื่อ!D36&ใส่ชื่อ!E36&" "&ใส่ชื่อ!F36) ->  | E41: =ใส่ชื่อ!A36 -> 0 | Z41: =IF(ใส่ชื่อ!D36="","",IF(DU41="ปกติ",SUM(F41,G41,H41,I41,J41,K41,L41,M41,N41,O41,P41,Q41,R41,S41,T41,U41,V41,W41,X41,Y41),"-")) ->  | AW41: =IF(ใส่ชื่อ!D36="","",IF(COUNTIF(AC41:AS41,0),"มผ",IF(DU41="ปกติ",SUM(AC41,AD41,AE41,AF41,AG41,AH41,AI41,AJ41,AK41,AL41,AM41,AN41,AO41,AP41,AQ41,AR41,AS41),"-"))) ->  | BO41: =IF(ใส่ชื่อ!D36="","",IF(COUNTIF(AZ41:BN41,0),"มผ",IF(DU41="ปกติ",SUM(AZ41,BA41,BB41,BC41,BD41,BE41,BF41,BG41,BH41,BI41,BJ41,BK41,BL41,BM41,BN41),"-"))) ->  | CG41: =IF(ใส่ชื่อ!D36="","",IF(DU41="ปกติ",SUM(BR41,BS41,BT41,BU41,BV41,BW41,BX41,BY41,BZ41,CA41,CB41,CC41,CD41,CE41,CF41),"-")) ->  | CO41: =IF(ใส่ชื่อ!D36="","",IF(CJ41="","",(IF(CK41="","",(IF(CL41="","",(IF(CM41="","",(IF(CN41="","",(SUM(CJ41:CN41)))))))))))) ->  | DG41: =IF(ใส่ชื่อ!D36="","",IF(COUNTIF(DC41:DE41,"มผ"),"มผ",IF(DE41="มผ","มผ",IF(DU41="ปกติ",SUM(DC41:DD41,IF(DF41="",DE41,DF41)),"-")))) ->  | DL41: =IF(ใส่ชื่อ!D36="","",IF(DG41="","",IF(COUNTIF(DC41:DJ41,"มผ"),"มผ",IF(COUNTIF(DC41:DJ41,"-"),"-",IF(DU41="ปกติ",SUM(DG41,IF(DJ41="",DI41,DJ41))))))) ->  | DP41: =ประเมินผลการเรียนเทอม1!DP41 ->  | DQ41: =IF(ใส่ชื่อ!A36="","",IF(DL41="-","-",IF(DL41=0,"",IF(DU41="ปกติ",MAXA(DL41/2,DN41/2))))) ->  | DS41: =IF(เวลาเรียน!M43="","",IF(เวลาเรียน!M43="ย้าย","-",IF(เวลาเรียน!M43="จำหน่าย","-",IF(เวลาเรียน!M43="ขาดเรียนนาน","-",IF(DP41="","",IF(DQ41="","",SUM(DP41+DQ41))))))) ->  | DT41: =IF(เวลาเรียน!M43="","",IF(เวลาเรียน!M43="ย้าย","-",IF(เวลาเรียน!M43="จำหน่าย","-",IF(เวลาเรียน!M43="ขาดเรียนนาน","-",IF(เวลาเรียน!L43<80,"มส",IF(COUNTIF(DS41,"-"),"-",IF(COUNTIF(DS41,""),"",VLOOKUP(DS41,$DW$19:$DY$26,3)))))))) ->  | DU41: =IF(เวลาเรียน!M43="","",เวลาเรียน!M43) -> 
A42: 36 | B42: 0 | C42: =CONCATENATE(ใส่ชื่อ!C37) ->  | D42: =CONCATENATE(ใส่ชื่อ!D37&ใส่ชื่อ!E37&" "&ใส่ชื่อ!F37) ->  | E42: =ใส่ชื่อ!A37 -> 0 | Z42: =IF(ใส่ชื่อ!D37="","",IF(DU42="ปกติ",SUM(F42,G42,H42,I42,J42,K42,L42,M42,N42,O42,P42,Q42,R42,S42,T42,U42,V42,W42,X42,Y42),"-")) ->  | AW42: =IF(ใส่ชื่อ!D37="","",IF(COUNTIF(AC42:AS42,0),"มผ",IF(DU42="ปกติ",SUM(AC42,AD42,AE42,AF42,AG42,AH42,AI42,AJ42,AK42,AL42,AM42,AN42,AO42,AP42,AQ42,AR42,AS42),"-"))) ->  | BO42: =IF(ใส่ชื่อ!D37="","",IF(COUNTIF(AZ42:BN42,0),"มผ",IF(DU42="ปกติ",SUM(AZ42,BA42,BB42,BC42,BD42,BE42,BF42,BG42,BH42,BI42,BJ42,BK42,BL42,BM42,BN42),"-"))) ->  | CG42: =IF(ใส่ชื่อ!D37="","",IF(DU42="ปกติ",SUM(BR42,BS42,BT42,BU42,BV42,BW42,BX42,BY42,BZ42,CA42,CB42,CC42,CD42,CE42,CF42),"-")) ->  | CO42: =IF(ใส่ชื่อ!D37="","",IF(CJ42="","",(IF(CK42="","",(IF(CL42="","",(IF(CM42="","",(IF(CN42="","",(SUM(CJ42:CN42)))))))))))) ->  | DG42: =IF(ใส่ชื่อ!D37="","",IF(COUNTIF(DC42:DE42,"มผ"),"มผ",IF(DE42="มผ","มผ",IF(DU42="ปกติ",SUM(DC42:DD42,IF(DF42="",DE42,DF42)),"-")))) ->  | DL42: =IF(ใส่ชื่อ!D37="","",IF(DG42="","",IF(COUNTIF(DC42:DJ42,"มผ"),"มผ",IF(COUNTIF(DC42:DJ42,"-"),"-",IF(DU42="ปกติ",SUM(DG42,IF(DJ42="",DI42,DJ42))))))) ->  | DP42: =ประเมินผลการเรียนเทอม1!DP42 ->  | DQ42: =IF(ใส่ชื่อ!A37="","",IF(DL42="-","-",IF(DL42=0,"",IF(DU42="ปกติ",MAXA(DL42/2,DN42/2))))) ->  | DS42: =IF(เวลาเรียน!M44="","",IF(เวลาเรียน!M44="ย้าย","-",IF(เวลาเรียน!M44="จำหน่าย","-",IF(เวลาเรียน!M44="ขาดเรียนนาน","-",IF(DP42="","",IF(DQ42="","",SUM(DP42+DQ42))))))) ->  | DT42: =IF(เวลาเรียน!M44="","",IF(เวลาเรียน!M44="ย้าย","-",IF(เวลาเรียน!M44="จำหน่าย","-",IF(เวลาเรียน!M44="ขาดเรียนนาน","-",IF(เวลาเรียน!L44<80,"มส",IF(COUNTIF(DS42,"-"),"-",IF(COUNTIF(DS42,""),"",VLOOKUP(DS42,$DW$19:$DY$26,3)))))))) ->  | DU42: =IF(เวลาเรียน!M44="","",เวลาเรียน!M44) -> 
A43: 37 | B43: 0 | C43: =CONCATENATE(ใส่ชื่อ!C38) ->  | D43: =CONCATENATE(ใส่ชื่อ!D38&ใส่ชื่อ!E38&" "&ใส่ชื่อ!F38) ->  | E43: =ใส่ชื่อ!A38 -> 0 | Z43: =IF(ใส่ชื่อ!D38="","",IF(DU43="ปกติ",SUM(F43,G43,H43,I43,J43,K43,L43,M43,N43,O43,P43,Q43,R43,S43,T43,U43,V43,W43,X43,Y43),"-")) ->  | AW43: =IF(ใส่ชื่อ!D38="","",IF(COUNTIF(AC43:AS43,0),"มผ",IF(DU43="ปกติ",SUM(AC43,AD43,AE43,AF43,AG43,AH43,AI43,AJ43,AK43,AL43,AM43,AN43,AO43,AP43,AQ43,AR43,AS43),"-"))) ->  | BO43: =IF(ใส่ชื่อ!D38="","",IF(COUNTIF(AZ43:BN43,0),"มผ",IF(DU43="ปกติ",SUM(AZ43,BA43,BB43,BC43,BD43,BE43,BF43,BG43,BH43,BI43,BJ43,BK43,BL43,BM43,BN43),"-"))) ->  | CG43: =IF(ใส่ชื่อ!D38="","",IF(DU43="ปกติ",SUM(BR43,BS43,BT43,BU43,BV43,BW43,BX43,BY43,BZ43,CA43,CB43,CC43,CD43,CE43,CF43),"-")) ->  | CO43: =IF(ใส่ชื่อ!D38="","",IF(CJ43="","",(IF(CK43="","",(IF(CL43="","",(IF(CM43="","",(IF(CN43="","",(SUM(CJ43:CN43)))))))))))) ->  | DG43: =IF(ใส่ชื่อ!D38="","",IF(COUNTIF(DC43:DE43,"มผ"),"มผ",IF(DE43="มผ","มผ",IF(DU43="ปกติ",SUM(DC43:DD43,IF(DF43="",DE43,DF43)),"-")))) ->  | DL43: =IF(ใส่ชื่อ!D38="","",IF(DG43="","",IF(COUNTIF(DC43:DJ43,"มผ"),"มผ",IF(COUNTIF(DC43:DJ43,"-"),"-",IF(DU43="ปกติ",SUM(DG43,IF(DJ43="",DI43,DJ43))))))) ->  | DP43: =ประเมินผลการเรียนเทอม1!DP43 ->  | DQ43: =IF(ใส่ชื่อ!A38="","",IF(DL43="-","-",IF(DL43=0,"",IF(DU43="ปกติ",MAXA(DL43/2,DN43/2))))) ->  | DS43: =IF(เวลาเรียน!M45="","",IF(เวลาเรียน!M45="ย้าย","-",IF(เวลาเรียน!M45="จำหน่าย","-",IF(เวลาเรียน!M45="ขาดเรียนนาน","-",IF(DP43="","",IF(DQ43="","",SUM(DP43+DQ43))))))) ->  | DT43: =IF(เวลาเรียน!M45="","",IF(เวลาเรียน!M45="ย้าย","-",IF(เวลาเรียน!M45="จำหน่าย","-",IF(เวลาเรียน!M45="ขาดเรียนนาน","-",IF(เวลาเรียน!L45<80,"มส",IF(COUNTIF(DS43,"-"),"-",IF(COUNTIF(DS43,""),"",VLOOKUP(DS43,$DW$19:$DY$26,3)))))))) ->  | DU43: =IF(เวลาเรียน!M45="","",เวลาเรียน!M45) -> 
A44: 38 | B44: 0 | C44: =CONCATENATE(ใส่ชื่อ!C39) ->  | D44: =CONCATENATE(ใส่ชื่อ!D39&ใส่ชื่อ!E39&" "&ใส่ชื่อ!F39) ->  | E44: =ใส่ชื่อ!A39 -> 0 | Z44: =IF(ใส่ชื่อ!D39="","",IF(DU44="ปกติ",SUM(F44,G44,H44,I44,J44,K44,L44,M44,N44,O44,P44,Q44,R44,S44,T44,U44,V44,W44,X44,Y44),"-")) ->  | AW44: =IF(ใส่ชื่อ!D39="","",IF(COUNTIF(AC44:AS44,0),"มผ",IF(DU44="ปกติ",SUM(AC44,AD44,AE44,AF44,AG44,AH44,AI44,AJ44,AK44,AL44,AM44,AN44,AO44,AP44,AQ44,AR44,AS44),"-"))) ->  | BO44: =IF(ใส่ชื่อ!D39="","",IF(COUNTIF(AZ44:BN44,0),"มผ",IF(DU44="ปกติ",SUM(AZ44,BA44,BB44,BC44,BD44,BE44,BF44,BG44,BH44,BI44,BJ44,BK44,BL44,BM44,BN44),"-"))) ->  | CG44: =IF(ใส่ชื่อ!D39="","",IF(DU44="ปกติ",SUM(BR44,BS44,BT44,BU44,BV44,BW44,BX44,BY44,BZ44,CA44,CB44,CC44,CD44,CE44,CF44),"-")) ->  | CO44: =IF(ใส่ชื่อ!D39="","",IF(CJ44="","",(IF(CK44="","",(IF(CL44="","",(IF(CM44="","",(IF(CN44="","",(SUM(CJ44:CN44)))))))))))) ->  | DG44: =IF(ใส่ชื่อ!D39="","",IF(COUNTIF(DC44:DE44,"มผ"),"มผ",IF(DE44="มผ","มผ",IF(DU44="ปกติ",SUM(DC44:DD44,IF(DF44="",DE44,DF44)),"-")))) ->  | DL44: =IF(ใส่ชื่อ!D39="","",IF(DG44="","",IF(COUNTIF(DC44:DJ44,"มผ"),"มผ",IF(COUNTIF(DC44:DJ44,"-"),"-",IF(DU44="ปกติ",SUM(DG44,IF(DJ44="",DI44,DJ44))))))) ->  | DP44: =ประเมินผลการเรียนเทอม1!DP44 ->  | DQ44: =IF(ใส่ชื่อ!A39="","",IF(DL44="-","-",IF(DL44=0,"",IF(DU44="ปกติ",MAXA(DL44/2,DN44/2))))) ->  | DS44: =IF(เวลาเรียน!M46="","",IF(เวลาเรียน!M46="ย้าย","-",IF(เวลาเรียน!M46="จำหน่าย","-",IF(เวลาเรียน!M46="ขาดเรียนนาน","-",IF(DP44="","",IF(DQ44="","",SUM(DP44+DQ44))))))) ->  | DT44: =IF(เวลาเรียน!M46="","",IF(เวลาเรียน!M46="ย้าย","-",IF(เวลาเรียน!M46="จำหน่าย","-",IF(เวลาเรียน!M46="ขาดเรียนนาน","-",IF(เวลาเรียน!L46<80,"มส",IF(COUNTIF(DS44,"-"),"-",IF(COUNTIF(DS44,""),"",VLOOKUP(DS44,$DW$19:$DY$26,3)))))))) ->  | DU44: =IF(เวลาเรียน!M46="","",เวลาเรียน!M46) -> 
A45: 39 | B45: 0 | C45: =CONCATENATE(ใส่ชื่อ!C40) ->  | D45: =CONCATENATE(ใส่ชื่อ!D40&ใส่ชื่อ!E40&" "&ใส่ชื่อ!F40) ->  | E45: =ใส่ชื่อ!A40 -> 0 | Z45: =IF(ใส่ชื่อ!D40="","",IF(DU45="ปกติ",SUM(F45,G45,H45,I45,J45,K45,L45,M45,N45,O45,P45,Q45,R45,S45,T45,U45,V45,W45,X45,Y45),"-")) ->  | AW45: =IF(ใส่ชื่อ!D40="","",IF(COUNTIF(AC45:AS45,0),"มผ",IF(DU45="ปกติ",SUM(AC45,AD45,AE45,AF45,AG45,AH45,AI45,AJ45,AK45,AL45,AM45,AN45,AO45,AP45,AQ45,AR45,AS45),"-"))) ->  | BO45: =IF(ใส่ชื่อ!D40="","",IF(COUNTIF(AZ45:BN45,0),"มผ",IF(DU45="ปกติ",SUM(AZ45,BA45,BB45,BC45,BD45,BE45,BF45,BG45,BH45,BI45,BJ45,BK45,BL45,BM45,BN45),"-"))) ->  | CG45: =IF(ใส่ชื่อ!D40="","",IF(DU45="ปกติ",SUM(BR45,BS45,BT45,BU45,BV45,BW45,BX45,BY45,BZ45,CA45,CB45,CC45,CD45,CE45,CF45),"-")) ->  | CO45: =IF(ใส่ชื่อ!D40="","",IF(CJ45="","",(IF(CK45="","",(IF(CL45="","",(IF(CM45="","",(IF(CN45="","",(SUM(CJ45:CN45)))))))))))) ->  | DG45: =IF(ใส่ชื่อ!D40="","",IF(COUNTIF(DC45:DE45,"มผ"),"มผ",IF(DE45="มผ","มผ",IF(DU45="ปกติ",SUM(DC45:DD45,IF(DF45="",DE45,DF45)),"-")))) ->  | DL45: =IF(ใส่ชื่อ!D40="","",IF(DG45="","",IF(COUNTIF(DC45:DJ45,"มผ"),"มผ",IF(COUNTIF(DC45:DJ45,"-"),"-",IF(DU45="ปกติ",SUM(DG45,IF(DJ45="",DI45,DJ45))))))) ->  | DP45: =ประเมินผลการเรียนเทอม1!DP45 ->  | DQ45: =IF(ใส่ชื่อ!A40="","",IF(DL45="-","-",IF(DL45=0,"",IF(DU45="ปกติ",MAXA(DL45/2,DN45/2))))) ->  | DS45: =IF(เวลาเรียน!M47="","",IF(เวลาเรียน!M47="ย้าย","-",IF(เวลาเรียน!M47="จำหน่าย","-",IF(เวลาเรียน!M47="ขาดเรียนนาน","-",IF(DP45="","",IF(DQ45="","",SUM(DP45+DQ45))))))) ->  | DT45: =IF(เวลาเรียน!M47="","",IF(เวลาเรียน!M47="ย้าย","-",IF(เวลาเรียน!M47="จำหน่าย","-",IF(เวลาเรียน!M47="ขาดเรียนนาน","-",IF(เวลาเรียน!L47<80,"มส",IF(COUNTIF(DS45,"-"),"-",IF(COUNTIF(DS45,""),"",VLOOKUP(DS45,$DW$19:$DY$26,3)))))))) ->  | DU45: =IF(เวลาเรียน!M47="","",เวลาเรียน!M47) -> 
A46: 40 | B46: 0 | C46: =CONCATENATE(ใส่ชื่อ!C41) ->  | D46: =CONCATENATE(ใส่ชื่อ!D41&ใส่ชื่อ!E41&" "&ใส่ชื่อ!F41) ->  | E46: =ใส่ชื่อ!A41 -> 0 | Z46: =IF(ใส่ชื่อ!D41="","",IF(DU46="ปกติ",SUM(F46,G46,H46,I46,J46,K46,L46,M46,N46,O46,P46,Q46,R46,S46,T46,U46,V46,W46,X46,Y46),"-")) ->  | AW46: =IF(ใส่ชื่อ!D41="","",IF(COUNTIF(AC46:AS46,0),"มผ",IF(DU46="ปกติ",SUM(AC46,AD46,AE46,AF46,AG46,AH46,AI46,AJ46,AK46,AL46,AM46,AN46,AO46,AP46,AQ46,AR46,AS46),"-"))) ->  | BO46: =IF(ใส่ชื่อ!D41="","",IF(COUNTIF(AZ46:BN46,0),"มผ",IF(DU46="ปกติ",SUM(AZ46,BA46,BB46,BC46,BD46,BE46,BF46,BG46,BH46,BI46,BJ46,BK46,BL46,BM46,BN46),"-"))) ->  | CG46: =IF(ใส่ชื่อ!D41="","",IF(DU46="ปกติ",SUM(BR46,BS46,BT46,BU46,BV46,BW46,BX46,BY46,BZ46,CA46,CB46,CC46,CD46,CE46,CF46),"-")) ->  | CO46: =IF(ใส่ชื่อ!D41="","",IF(CJ46="","",(IF(CK46="","",(IF(CL46="","",(IF(CM46="","",(IF(CN46="","",(SUM(CJ46:CN46)))))))))))) ->  | DG46: =IF(ใส่ชื่อ!D41="","",IF(COUNTIF(DC46:DE46,"มผ"),"มผ",IF(DE46="มผ","มผ",IF(DU46="ปกติ",SUM(DC46:DD46,IF(DF46="",DE46,DF46)),"-")))) ->  | DL46: =IF(ใส่ชื่อ!D41="","",IF(DG46="","",IF(COUNTIF(DC46:DJ46,"มผ"),"มผ",IF(COUNTIF(DC46:DJ46,"-"),"-",IF(DU46="ปกติ",SUM(DG46,IF(DJ46="",DI46,DJ46))))))) ->  | DP46: =ประเมินผลการเรียนเทอม1!DP46 ->  | DQ46: =IF(ใส่ชื่อ!A41="","",IF(DL46="-","-",IF(DL46=0,"",IF(DU46="ปกติ",MAXA(DL46/2,DN46/2))))) ->  | DS46: =IF(เวลาเรียน!M48="","",IF(เวลาเรียน!M48="ย้าย","-",IF(เวลาเรียน!M48="จำหน่าย","-",IF(เวลาเรียน!M48="ขาดเรียนนาน","-",IF(DP46="","",IF(DQ46="","",SUM(DP46+DQ46))))))) ->  | DT46: =IF(เวลาเรียน!M48="","",IF(เวลาเรียน!M48="ย้าย","-",IF(เวลาเรียน!M48="จำหน่าย","-",IF(เวลาเรียน!M48="ขาดเรียนนาน","-",IF(เวลาเรียน!L48<80,"มส",IF(COUNTIF(DS46,"-"),"-",IF(COUNTIF(DS46,""),"",VLOOKUP(DS46,$DW$19:$DY$26,3)))))))) ->  | DU46: =IF(เวลาเรียน!M48="","",เวลาเรียน!M48) -> 
A47: 36 | B47: 0 | C47: =CONCATENATE(ใส่ชื่อ!C42) ->  | D47: =CONCATENATE(ใส่ชื่อ!D42&ใส่ชื่อ!E42&" "&ใส่ชื่อ!F42) ->  | E47: =ใส่ชื่อ!A42 -> 0 | Z47: =IF(ใส่ชื่อ!D42="","",IF(DU47="ปกติ",SUM(F47,G47,H47,I47,J47,K47,L47,M47,N47,O47,P47,Q47,R47,S47,T47,U47,V47,W47,X47,Y47),"-")) ->  | AW47: =IF(ใส่ชื่อ!D42="","",IF(COUNTIF(AC47:AS47,0),"มผ",IF(DU47="ปกติ",SUM(AC47,AD47,AE47,AF47,AG47,AH47,AI47,AJ47,AK47,AL47,AM47,AN47,AO47,AP47,AQ47,AR47,AS47),"-"))) ->  | BO47: =IF(ใส่ชื่อ!D42="","",IF(COUNTIF(AZ47:BN47,0),"มผ",IF(DU47="ปกติ",SUM(AZ47,BA47,BB47,BC47,BD47,BE47,BF47,BG47,BH47,BI47,BJ47,BK47,BL47,BM47,BN47),"-"))) ->  | CG47: =IF(ใส่ชื่อ!D42="","",IF(DU47="ปกติ",SUM(BR47,BS47,BT47,BU47,BV47,BW47,BX47,BY47,BZ47,CA47,CB47,CC47,CD47,CE47,CF47),"-")) ->  | CO47: =IF(ใส่ชื่อ!D42="","",IF(CJ47="","",(IF(CK47="","",(IF(CL47="","",(IF(CM47="","",(IF(CN47="","",(SUM(CJ47:CN47)))))))))))) ->  | DG47: =IF(ใส่ชื่อ!D42="","",IF(COUNTIF(DC47:DE47,"มผ"),"มผ",IF(DE47="มผ","มผ",IF(DU47="ปกติ",SUM(DC47:DD47,IF(DF47="",DE47,DF47)),"-")))) ->  | DL47: =IF(ใส่ชื่อ!D42="","",IF(DG47="","",IF(COUNTIF(DC47:DJ47,"มผ"),"มผ",IF(COUNTIF(DC47:DJ47,"-"),"-",IF(DU47="ปกติ",SUM(DG47,IF(DJ47="",DI47,DJ47))))))) ->  | DP47: =ประเมินผลการเรียนเทอม1!DP47 ->  | DQ47: =IF(ใส่ชื่อ!A42="","",IF(DL47="-","-",IF(DL47=0,"",IF(DU47="ปกติ",MAXA(DL47/2,DN47/2))))) ->  | DS47: =IF(เวลาเรียน!M49="","",IF(เวลาเรียน!M49="ย้าย","-",IF(เวลาเรียน!M49="จำหน่าย","-",IF(เวลาเรียน!M49="ขาดเรียนนาน","-",IF(DP47="","",IF(DQ47="","",SUM(DP47+DQ47))))))) ->  | DT47: =IF(เวลาเรียน!M49="","",IF(เวลาเรียน!M49="ย้าย","-",IF(เวลาเรียน!M49="จำหน่าย","-",IF(เวลาเรียน!M49="ขาดเรียนนาน","-",IF(เวลาเรียน!L49<80,"มส",IF(COUNTIF(DS47,"-"),"-",IF(COUNTIF(DS47,""),"",VLOOKUP(DS47,$DW$19:$DY$26,3)))))))) ->  | DU47: =IF(เวลาเรียน!M49="","",เวลาเรียน!M49) -> 
A48: 37 | B48: 0 | C48: =CONCATENATE(ใส่ชื่อ!C43) ->  | D48: =CONCATENATE(ใส่ชื่อ!D43&ใส่ชื่อ!E43&" "&ใส่ชื่อ!F43) ->  | E48: =ใส่ชื่อ!A43 -> 0 | Z48: =IF(ใส่ชื่อ!D43="","",IF(DU48="ปกติ",SUM(F48,G48,H48,I48,J48,K48,L48,M48,N48,O48,P48,Q48,R48,S48,T48,U48,V48,W48,X48,Y48),"-")) ->  | AW48: =IF(ใส่ชื่อ!D43="","",IF(COUNTIF(AC48:AS48,0),"มผ",IF(DU48="ปกติ",SUM(AC48,AD48,AE48,AF48,AG48,AH48,AI48,AJ48,AK48,AL48,AM48,AN48,AO48,AP48,AQ48,AR48,AS48),"-"))) ->  | BO48: =IF(ใส่ชื่อ!D43="","",IF(COUNTIF(AZ48:BN48,0),"มผ",IF(DU48="ปกติ",SUM(AZ48,BA48,BB48,BC48,BD48,BE48,BF48,BG48,BH48,BI48,BJ48,BK48,BL48,BM48,BN48),"-"))) ->  | CG48: =IF(ใส่ชื่อ!D43="","",IF(DU48="ปกติ",SUM(BR48,BS48,BT48,BU48,BV48,BW48,BX48,BY48,BZ48,CA48,CB48,CC48,CD48,CE48,CF48),"-")) ->  | CO48: =IF(ใส่ชื่อ!D43="","",IF(CJ48="","",(IF(CK48="","",(IF(CL48="","",(IF(CM48="","",(IF(CN48="","",(SUM(CJ48:CN48)))))))))))) ->  | DG48: =IF(ใส่ชื่อ!D43="","",IF(COUNTIF(DC48:DE48,"มผ"),"มผ",IF(DE48="มผ","มผ",IF(DU48="ปกติ",SUM(DC48:DD48,IF(DF48="",DE48,DF48)),"-")))) ->  | DL48: =IF(ใส่ชื่อ!D43="","",IF(DG48="","",IF(COUNTIF(DC48:DJ48,"มผ"),"มผ",IF(COUNTIF(DC48:DJ48,"-"),"-",IF(DU48="ปกติ",SUM(DG48,IF(DJ48="",DI48,DJ48))))))) ->  | DP48: =ประเมินผลการเรียนเทอม1!DP48 ->  | DQ48: =IF(ใส่ชื่อ!A43="","",IF(DL48="-","-",IF(DL48=0,"",IF(DU48="ปกติ",MAXA(DL48/2,DN48/2))))) ->  | DS48: =IF(เวลาเรียน!M50="","",IF(เวลาเรียน!M50="ย้าย","-",IF(เวลาเรียน!M50="จำหน่าย","-",IF(เวลาเรียน!M50="ขาดเรียนนาน","-",IF(DP48="","",IF(DQ48="","",SUM(DP48+DQ48))))))) ->  | DT48: =IF(เวลาเรียน!M50="","",IF(เวลาเรียน!M50="ย้าย","-",IF(เวลาเรียน!M50="จำหน่าย","-",IF(เวลาเรียน!M50="ขาดเรียนนาน","-",IF(เวลาเรียน!L50<80,"มส",IF(COUNTIF(DS48,"-"),"-",IF(COUNTIF(DS48,""),"",VLOOKUP(DS48,$DW$19:$DY$26,3)))))))) ->  | DU48: =IF(เวลาเรียน!M50="","",เวลาเรียน!M50) -> 
A49: 38 | B49: 0 | C49: =CONCATENATE(ใส่ชื่อ!C44) ->  | D49: =CONCATENATE(ใส่ชื่อ!D44&ใส่ชื่อ!E44&" "&ใส่ชื่อ!F44) ->  | E49: =ใส่ชื่อ!A44 -> 0 | Z49: =IF(ใส่ชื่อ!D44="","",IF(DU49="ปกติ",SUM(F49,G49,H49,I49,J49,K49,L49,M49,N49,O49,P49,Q49,R49,S49,T49,U49,V49,W49,X49,Y49),"-")) ->  | AW49: =IF(ใส่ชื่อ!D44="","",IF(COUNTIF(AC49:AS49,0),"มผ",IF(DU49="ปกติ",SUM(AC49,AD49,AE49,AF49,AG49,AH49,AI49,AJ49,AK49,AL49,AM49,AN49,AO49,AP49,AQ49,AR49,AS49),"-"))) ->  | BO49: =IF(ใส่ชื่อ!D44="","",IF(COUNTIF(AZ49:BN49,0),"มผ",IF(DU49="ปกติ",SUM(AZ49,BA49,BB49,BC49,BD49,BE49,BF49,BG49,BH49,BI49,BJ49,BK49,BL49,BM49,BN49),"-"))) ->  | CG49: =IF(ใส่ชื่อ!D44="","",IF(DU49="ปกติ",SUM(BR49,BS49,BT49,BU49,BV49,BW49,BX49,BY49,BZ49,CA49,CB49,CC49,CD49,CE49,CF49),"-")) ->  | CO49: =IF(ใส่ชื่อ!D44="","",IF(CJ49="","",(IF(CK49="","",(IF(CL49="","",(IF(CM49="","",(IF(CN49="","",(SUM(CJ49:CN49)))))))))))) ->  | DG49: =IF(ใส่ชื่อ!D44="","",IF(COUNTIF(DC49:DE49,"มผ"),"มผ",IF(DE49="มผ","มผ",IF(DU49="ปกติ",SUM(DC49:DD49,IF(DF49="",DE49,DF49)),"-")))) ->  | DL49: =IF(ใส่ชื่อ!D44="","",IF(DG49="","",IF(COUNTIF(DC49:DJ49,"มผ"),"มผ",IF(COUNTIF(DC49:DJ49,"-"),"-",IF(DU49="ปกติ",SUM(DG49,IF(DJ49="",DI49,DJ49))))))) ->  | DP49: =ประเมินผลการเรียนเทอม1!DP49 ->  | DQ49: =IF(ใส่ชื่อ!A44="","",IF(DL49="-","-",IF(DL49=0,"",IF(DU49="ปกติ",MAXA(DL49/2,DN49/2))))) ->  | DS49: =IF(เวลาเรียน!M51="","",IF(เวลาเรียน!M51="ย้าย","-",IF(เวลาเรียน!M51="จำหน่าย","-",IF(เวลาเรียน!M51="ขาดเรียนนาน","-",IF(DP49="","",IF(DQ49="","",SUM(DP49+DQ49))))))) ->  | DT49: =IF(เวลาเรียน!M51="","",IF(เวลาเรียน!M51="ย้าย","-",IF(เวลาเรียน!M51="จำหน่าย","-",IF(เวลาเรียน!M51="ขาดเรียนนาน","-",IF(เวลาเรียน!L51<80,"มส",IF(COUNTIF(DS49,"-"),"-",IF(COUNTIF(DS49,""),"",VLOOKUP(DS49,$DW$19:$DY$26,3)))))))) ->  | DU49: =IF(เวลาเรียน!M51="","",เวลาเรียน!M51) -> 
A50: 39 | B50: 0 | C50: =CONCATENATE(ใส่ชื่อ!C45) ->  | D50: =CONCATENATE(ใส่ชื่อ!D45&ใส่ชื่อ!E45&" "&ใส่ชื่อ!F45) ->  | E50: =ใส่ชื่อ!A45 -> 0 | Z50: =IF(ใส่ชื่อ!D45="","",IF(DU50="ปกติ",SUM(F50,G50,H50,I50,J50,K50,L50,M50,N50,O50,P50,Q50,R50,S50,T50,U50,V50,W50,X50,Y50),"-")) ->  | AW50: =IF(ใส่ชื่อ!D45="","",IF(COUNTIF(AC50:AS50,0),"มผ",IF(DU50="ปกติ",SUM(AC50,AD50,AE50,AF50,AG50,AH50,AI50,AJ50,AK50,AL50,AM50,AN50,AO50,AP50,AQ50,AR50,AS50),"-"))) ->  | BO50: =IF(ใส่ชื่อ!D45="","",IF(COUNTIF(AZ50:BN50,0),"มผ",IF(DU50="ปกติ",SUM(AZ50,BA50,BB50,BC50,BD50,BE50,BF50,BG50,BH50,BI50,BJ50,BK50,BL50,BM50,BN50),"-"))) ->  | CG50: =IF(ใส่ชื่อ!D45="","",IF(DU50="ปกติ",SUM(BR50,BS50,BT50,BU50,BV50,BW50,BX50,BY50,BZ50,CA50,CB50,CC50,CD50,CE50,CF50),"-")) ->  | CO50: =IF(ใส่ชื่อ!D45="","",IF(CJ50="","",(IF(CK50="","",(IF(CL50="","",(IF(CM50="","",(IF(CN50="","",(SUM(CJ50:CN50)))))))))))) ->  | DG50: =IF(ใส่ชื่อ!D45="","",IF(COUNTIF(DC50:DE50,"มผ"),"มผ",IF(DE50="มผ","มผ",IF(DU50="ปกติ",SUM(DC50:DD50,IF(DF50="",DE50,DF50)),"-")))) ->  | DL50: =IF(ใส่ชื่อ!D45="","",IF(DG50="","",IF(COUNTIF(DC50:DJ50,"มผ"),"มผ",IF(COUNTIF(DC50:DJ50,"-"),"-",IF(DU50="ปกติ",SUM(DG50,IF(DJ50="",DI50,DJ50))))))) ->  | DP50: =ประเมินผลการเรียนเทอม1!DP50 ->  | DQ50: =IF(ใส่ชื่อ!A45="","",IF(DL50="-","-",IF(DL50=0,"",IF(DU50="ปกติ",MAXA(DL50/2,DN50/2))))) ->  | DS50: =IF(เวลาเรียน!M52="","",IF(เวลาเรียน!M52="ย้าย","-",IF(เวลาเรียน!M52="จำหน่าย","-",IF(เวลาเรียน!M52="ขาดเรียนนาน","-",IF(DP50="","",IF(DQ50="","",SUM(DP50+DQ50))))))) ->  | DT50: =IF(เวลาเรียน!M52="","",IF(เวลาเรียน!M52="ย้าย","-",IF(เวลาเรียน!M52="จำหน่าย","-",IF(เวลาเรียน!M52="ขาดเรียนนาน","-",IF(เวลาเรียน!L52<80,"มส",IF(COUNTIF(DS50,"-"),"-",IF(COUNTIF(DS50,""),"",VLOOKUP(DS50,$DW$19:$DY$26,3)))))))) ->  | DU50: =IF(เวลาเรียน!M52="","",เวลาเรียน!M52) -> 
A51: 40 | B51: 0 | C51: =CONCATENATE(ใส่ชื่อ!C46) ->  | D51: =CONCATENATE(ใส่ชื่อ!D46&ใส่ชื่อ!E46&" "&ใส่ชื่อ!F46) ->  | E51: =ใส่ชื่อ!A46 -> 0 | Z51: =IF(ใส่ชื่อ!D46="","",IF(DU51="ปกติ",SUM(F51,G51,H51,I51,J51,K51,L51,M51,N51,O51,P51,Q51,R51,S51,T51,U51,V51,W51,X51,Y51),"-")) ->  | AW51: =IF(ใส่ชื่อ!D46="","",IF(COUNTIF(AC51:AS51,0),"มผ",IF(DU51="ปกติ",SUM(AC51,AD51,AE51,AF51,AG51,AH51,AI51,AJ51,AK51,AL51,AM51,AN51,AO51,AP51,AQ51,AR51,AS51),"-"))) ->  | BO51: =IF(ใส่ชื่อ!D46="","",IF(COUNTIF(AZ51:BN51,0),"มผ",IF(DU51="ปกติ",SUM(AZ51,BA51,BB51,BC51,BD51,BE51,BF51,BG51,BH51,BI51,BJ51,BK51,BL51,BM51,BN51),"-"))) ->  | CG51: =IF(ใส่ชื่อ!D46="","",IF(DU51="ปกติ",SUM(BR51,BS51,BT51,BU51,BV51,BW51,BX51,BY51,BZ51,CA51,CB51,CC51,CD51,CE51,CF51),"-")) ->  | CO51: =IF(ใส่ชื่อ!D46="","",IF(CJ51="","",(IF(CK51="","",(IF(CL51="","",(IF(CM51="","",(IF(CN51="","",(SUM(CJ51:CN51)))))))))))) ->  | DG51: =IF(ใส่ชื่อ!D46="","",IF(COUNTIF(DC51:DE51,"มผ"),"มผ",IF(DE51="มผ","มผ",IF(DU51="ปกติ",SUM(DC51:DD51,IF(DF51="",DE51,DF51)),"-")))) ->  | DL51: =IF(ใส่ชื่อ!D46="","",IF(DG51="","",IF(COUNTIF(DC51:DJ51,"มผ"),"มผ",IF(COUNTIF(DC51:DJ51,"-"),"-",IF(DU51="ปกติ",SUM(DG51,IF(DJ51="",DI51,DJ51))))))) ->  | DP51: =ประเมินผลการเรียนเทอม1!DP51 ->  | DQ51: =IF(ใส่ชื่อ!A46="","",IF(DL51="-","-",IF(DL51=0,"",IF(DU51="ปกติ",MAXA(DL51/2,DN51/2))))) ->  | DS51: =IF(เวลาเรียน!M53="","",IF(เวลาเรียน!M53="ย้าย","-",IF(เวลาเรียน!M53="จำหน่าย","-",IF(เวลาเรียน!M53="ขาดเรียนนาน","-",IF(DP51="","",IF(DQ51="","",SUM(DP51+DQ51))))))) ->  | DT51: =IF(เวลาเรียน!M53="","",IF(เวลาเรียน!M53="ย้าย","-",IF(เวลาเรียน!M53="จำหน่าย","-",IF(เวลาเรียน!M53="ขาดเรียนนาน","-",IF(เวลาเรียน!L53<80,"มส",IF(COUNTIF(DS51,"-"),"-",IF(COUNTIF(DS51,""),"",VLOOKUP(DS51,$DW$19:$DY$26,3)))))))) ->  | DU51: =IF(เวลาเรียน!M53="","",เวลาเรียน!M53) -> 
A52: 36 | B52: 0 | C52: =CONCATENATE(ใส่ชื่อ!C47) ->  | D52: =CONCATENATE(ใส่ชื่อ!D47&ใส่ชื่อ!E47&" "&ใส่ชื่อ!F47) ->  | E52: =ใส่ชื่อ!A47 -> 0 | Z52: =IF(ใส่ชื่อ!D47="","",IF(DU52="ปกติ",SUM(F52,G52,H52,I52,J52,K52,L52,M52,N52,O52,P52,Q52,R52,S52,T52,U52,V52,W52,X52,Y52),"-")) ->  | AW52: =IF(ใส่ชื่อ!D47="","",IF(COUNTIF(AC52:AS52,0),"มผ",IF(DU52="ปกติ",SUM(AC52,AD52,AE52,AF52,AG52,AH52,AI52,AJ52,AK52,AL52,AM52,AN52,AO52,AP52,AQ52,AR52,AS52),"-"))) ->  | BO52: =IF(ใส่ชื่อ!D47="","",IF(COUNTIF(AZ52:BN52,0),"มผ",IF(DU52="ปกติ",SUM(AZ52,BA52,BB52,BC52,BD52,BE52,BF52,BG52,BH52,BI52,BJ52,BK52,BL52,BM52,BN52),"-"))) ->  | CG52: =IF(ใส่ชื่อ!D47="","",IF(DU52="ปกติ",SUM(BR52,BS52,BT52,BU52,BV52,BW52,BX52,BY52,BZ52,CA52,CB52,CC52,CD52,CE52,CF52),"-")) ->  | CO52: =IF(ใส่ชื่อ!D47="","",IF(CJ52="","",(IF(CK52="","",(IF(CL52="","",(IF(CM52="","",(IF(CN52="","",(SUM(CJ52:CN52)))))))))))) ->  | DG52: =IF(ใส่ชื่อ!D47="","",IF(COUNTIF(DC52:DE52,"มผ"),"มผ",IF(DE52="มผ","มผ",IF(DU52="ปกติ",SUM(DC52:DD52,IF(DF52="",DE52,DF52)),"-")))) ->  | DL52: =IF(ใส่ชื่อ!D47="","",IF(DG52="","",IF(COUNTIF(DC52:DJ52,"มผ"),"มผ",IF(COUNTIF(DC52:DJ52,"-"),"-",IF(DU52="ปกติ",SUM(DG52,IF(DJ52="",DI52,DJ52))))))) ->  | DP52: =ประเมินผลการเรียนเทอม1!DP52 ->  | DQ52: =IF(ใส่ชื่อ!A47="","",IF(DL52="-","-",IF(DL52=0,"",IF(DU52="ปกติ",MAXA(DL52/2,DN52/2))))) ->  | DS52: =IF(เวลาเรียน!M54="","",IF(เวลาเรียน!M54="ย้าย","-",IF(เวลาเรียน!M54="จำหน่าย","-",IF(เวลาเรียน!M54="ขาดเรียนนาน","-",IF(DP52="","",IF(DQ52="","",SUM(DP52+DQ52))))))) ->  | DT52: =IF(เวลาเรียน!M54="","",IF(เวลาเรียน!M54="ย้าย","-",IF(เวลาเรียน!M54="จำหน่าย","-",IF(เวลาเรียน!M54="ขาดเรียนนาน","-",IF(เวลาเรียน!L54<80,"มส",IF(COUNTIF(DS52,"-"),"-",IF(COUNTIF(DS52,""),"",VLOOKUP(DS52,$DW$19:$DY$26,3)))))))) ->  | DU52: =IF(เวลาเรียน!M54="","",เวลาเรียน!M54) -> 
A53: 37 | B53: 0 | C53: =CONCATENATE(ใส่ชื่อ!C48) ->  | D53: =CONCATENATE(ใส่ชื่อ!D48&ใส่ชื่อ!E48&" "&ใส่ชื่อ!F48) ->  | E53: =ใส่ชื่อ!A48 -> 0 | Z53: =IF(ใส่ชื่อ!D48="","",IF(DU53="ปกติ",SUM(F53,G53,H53,I53,J53,K53,L53,M53,N53,O53,P53,Q53,R53,S53,T53,U53,V53,W53,X53,Y53),"-")) ->  | AW53: =IF(ใส่ชื่อ!D48="","",IF(COUNTIF(AC53:AS53,0),"มผ",IF(DU53="ปกติ",SUM(AC53,AD53,AE53,AF53,AG53,AH53,AI53,AJ53,AK53,AL53,AM53,AN53,AO53,AP53,AQ53,AR53,AS53),"-"))) ->  | BO53: =IF(ใส่ชื่อ!D48="","",IF(COUNTIF(AZ53:BN53,0),"มผ",IF(DU53="ปกติ",SUM(AZ53,BA53,BB53,BC53,BD53,BE53,BF53,BG53,BH53,BI53,BJ53,BK53,BL53,BM53,BN53),"-"))) ->  | CG53: =IF(ใส่ชื่อ!D48="","",IF(DU53="ปกติ",SUM(BR53,BS53,BT53,BU53,BV53,BW53,BX53,BY53,BZ53,CA53,CB53,CC53,CD53,CE53,CF53),"-")) ->  | CO53: =IF(ใส่ชื่อ!D48="","",IF(CJ53="","",(IF(CK53="","",(IF(CL53="","",(IF(CM53="","",(IF(CN53="","",(SUM(CJ53:CN53)))))))))))) ->  | DG53: =IF(ใส่ชื่อ!D48="","",IF(COUNTIF(DC53:DE53,"มผ"),"มผ",IF(DE53="มผ","มผ",IF(DU53="ปกติ",SUM(DC53:DD53,IF(DF53="",DE53,DF53)),"-")))) ->  | DL53: =IF(ใส่ชื่อ!D48="","",IF(DG53="","",IF(COUNTIF(DC53:DJ53,"มผ"),"มผ",IF(COUNTIF(DC53:DJ53,"-"),"-",IF(DU53="ปกติ",SUM(DG53,IF(DJ53="",DI53,DJ53))))))) ->  | DP53: =ประเมินผลการเรียนเทอม1!DP53 ->  | DQ53: =IF(ใส่ชื่อ!A48="","",IF(DL53="-","-",IF(DL53=0,"",IF(DU53="ปกติ",MAXA(DL53/2,DN53/2))))) ->  | DS53: =IF(เวลาเรียน!M55="","",IF(เวลาเรียน!M55="ย้าย","-",IF(เวลาเรียน!M55="จำหน่าย","-",IF(เวลาเรียน!M55="ขาดเรียนนาน","-",IF(DP53="","",IF(DQ53="","",SUM(DP53+DQ53))))))) ->  | DT53: =IF(เวลาเรียน!M55="","",IF(เวลาเรียน!M55="ย้าย","-",IF(เวลาเรียน!M55="จำหน่าย","-",IF(เวลาเรียน!M55="ขาดเรียนนาน","-",IF(เวลาเรียน!L55<80,"มส",IF(COUNTIF(DS53,"-"),"-",IF(COUNTIF(DS53,""),"",VLOOKUP(DS53,$DW$19:$DY$26,3)))))))) ->  | DU53: =IF(เวลาเรียน!M55="","",เวลาเรียน!M55) -> 
A54: 38 | B54: 0 | C54: =CONCATENATE(ใส่ชื่อ!C49) ->  | D54: =CONCATENATE(ใส่ชื่อ!D49&ใส่ชื่อ!E49&" "&ใส่ชื่อ!F49) ->  | E54: =ใส่ชื่อ!A49 -> 0 | Z54: =IF(ใส่ชื่อ!D49="","",IF(DU54="ปกติ",SUM(F54,G54,H54,I54,J54,K54,L54,M54,N54,O54,P54,Q54,R54,S54,T54,U54,V54,W54,X54,Y54),"-")) ->  | AW54: =IF(ใส่ชื่อ!D49="","",IF(COUNTIF(AC54:AS54,0),"มผ",IF(DU54="ปกติ",SUM(AC54,AD54,AE54,AF54,AG54,AH54,AI54,AJ54,AK54,AL54,AM54,AN54,AO54,AP54,AQ54,AR54,AS54),"-"))) ->  | BO54: =IF(ใส่ชื่อ!D49="","",IF(COUNTIF(AZ54:BN54,0),"มผ",IF(DU54="ปกติ",SUM(AZ54,BA54,BB54,BC54,BD54,BE54,BF54,BG54,BH54,BI54,BJ54,BK54,BL54,BM54,BN54),"-"))) ->  | CG54: =IF(ใส่ชื่อ!D49="","",IF(DU54="ปกติ",SUM(BR54,BS54,BT54,BU54,BV54,BW54,BX54,BY54,BZ54,CA54,CB54,CC54,CD54,CE54,CF54),"-")) ->  | CO54: =IF(ใส่ชื่อ!D49="","",IF(CJ54="","",(IF(CK54="","",(IF(CL54="","",(IF(CM54="","",(IF(CN54="","",(SUM(CJ54:CN54)))))))))))) ->  | DG54: =IF(ใส่ชื่อ!D49="","",IF(COUNTIF(DC54:DE54,"มผ"),"มผ",IF(DE54="มผ","มผ",IF(DU54="ปกติ",SUM(DC54:DD54,IF(DF54="",DE54,DF54)),"-")))) ->  | DL54: =IF(ใส่ชื่อ!D49="","",IF(DG54="","",IF(COUNTIF(DC54:DJ54,"มผ"),"มผ",IF(COUNTIF(DC54:DJ54,"-"),"-",IF(DU54="ปกติ",SUM(DG54,IF(DJ54="",DI54,DJ54))))))) ->  | DP54: =ประเมินผลการเรียนเทอม1!DP54 ->  | DQ54: =IF(ใส่ชื่อ!A49="","",IF(DL54="-","-",IF(DL54=0,"",IF(DU54="ปกติ",MAXA(DL54/2,DN54/2))))) ->  | DS54: =IF(เวลาเรียน!M56="","",IF(เวลาเรียน!M56="ย้าย","-",IF(เวลาเรียน!M56="จำหน่าย","-",IF(เวลาเรียน!M56="ขาดเรียนนาน","-",IF(DP54="","",IF(DQ54="","",SUM(DP54+DQ54))))))) ->  | DT54: =IF(เวลาเรียน!M56="","",IF(เวลาเรียน!M56="ย้าย","-",IF(เวลาเรียน!M56="จำหน่าย","-",IF(เวลาเรียน!M56="ขาดเรียนนาน","-",IF(เวลาเรียน!L56<80,"มส",IF(COUNTIF(DS54,"-"),"-",IF(COUNTIF(DS54,""),"",VLOOKUP(DS54,$DW$19:$DY$26,3)))))))) ->  | DU54: =IF(เวลาเรียน!M56="","",เวลาเรียน!M56) -> 
A55: 39 | B55: 0 | C55: =CONCATENATE(ใส่ชื่อ!C50) ->  | D55: =CONCATENATE(ใส่ชื่อ!D50&ใส่ชื่อ!E50&" "&ใส่ชื่อ!F50) ->  | E55: =ใส่ชื่อ!A50 -> 0 | Z55: =IF(ใส่ชื่อ!D50="","",IF(DU55="ปกติ",SUM(F55,G55,H55,I55,J55,K55,L55,M55,N55,O55,P55,Q55,R55,S55,T55,U55,V55,W55,X55,Y55),"-")) ->  | AW55: =IF(ใส่ชื่อ!D50="","",IF(COUNTIF(AC55:AS55,0),"มผ",IF(DU55="ปกติ",SUM(AC55,AD55,AE55,AF55,AG55,AH55,AI55,AJ55,AK55,AL55,AM55,AN55,AO55,AP55,AQ55,AR55,AS55),"-"))) ->  | BO55: =IF(ใส่ชื่อ!D50="","",IF(COUNTIF(AZ55:BN55,0),"มผ",IF(DU55="ปกติ",SUM(AZ55,BA55,BB55,BC55,BD55,BE55,BF55,BG55,BH55,BI55,BJ55,BK55,BL55,BM55,BN55),"-"))) ->  | CG55: =IF(ใส่ชื่อ!D50="","",IF(DU55="ปกติ",SUM(BR55,BS55,BT55,BU55,BV55,BW55,BX55,BY55,BZ55,CA55,CB55,CC55,CD55,CE55,CF55),"-")) ->  | CO55: =IF(ใส่ชื่อ!D50="","",IF(CJ55="","",(IF(CK55="","",(IF(CL55="","",(IF(CM55="","",(IF(CN55="","",(SUM(CJ55:CN55)))))))))))) ->  | DG55: =IF(ใส่ชื่อ!D50="","",IF(COUNTIF(DC55:DE55,"มผ"),"มผ",IF(DE55="มผ","มผ",IF(DU55="ปกติ",SUM(DC55:DD55,IF(DF55="",DE55,DF55)),"-")))) ->  | DL55: =IF(ใส่ชื่อ!D50="","",IF(DG55="","",IF(COUNTIF(DC55:DJ55,"มผ"),"มผ",IF(COUNTIF(DC55:DJ55,"-"),"-",IF(DU55="ปกติ",SUM(DG55,IF(DJ55="",DI55,DJ55))))))) ->  | DP55: =ประเมินผลการเรียนเทอม1!DP55 ->  | DQ55: =IF(ใส่ชื่อ!A50="","",IF(DL55="-","-",IF(DL55=0,"",IF(DU55="ปกติ",MAXA(DL55/2,DN55/2))))) ->  | DS55: =IF(เวลาเรียน!M57="","",IF(เวลาเรียน!M57="ย้าย","-",IF(เวลาเรียน!M57="จำหน่าย","-",IF(เวลาเรียน!M57="ขาดเรียนนาน","-",IF(DP55="","",IF(DQ55="","",SUM(DP55+DQ55))))))) ->  | DT55: =IF(เวลาเรียน!M57="","",IF(เวลาเรียน!M57="ย้าย","-",IF(เวลาเรียน!M57="จำหน่าย","-",IF(เวลาเรียน!M57="ขาดเรียนนาน","-",IF(เวลาเรียน!L57<80,"มส",IF(COUNTIF(DS55,"-"),"-",IF(COUNTIF(DS55,""),"",VLOOKUP(DS55,$DW$19:$DY$26,3)))))))) ->  | DU55: =IF(เวลาเรียน!M57="","",เวลาเรียน!M57) -> 
A56: 40 | B56: 0 | C56: =CONCATENATE(ใส่ชื่อ!C51) ->  | D56: =CONCATENATE(ใส่ชื่อ!D51&ใส่ชื่อ!E51&" "&ใส่ชื่อ!F51) ->  | E56: =ใส่ชื่อ!A51 -> 0 | Z56: =IF(ใส่ชื่อ!D51="","",IF(DU56="ปกติ",SUM(F56,G56,H56,I56,J56,K56,L56,M56,N56,O56,P56,Q56,R56,S56,T56,U56,V56,W56,X56,Y56),"-")) ->  | AW56: =IF(ใส่ชื่อ!D51="","",IF(COUNTIF(AC56:AS56,0),"มผ",IF(DU56="ปกติ",SUM(AC56,AD56,AE56,AF56,AG56,AH56,AI56,AJ56,AK56,AL56,AM56,AN56,AO56,AP56,AQ56,AR56,AS56),"-"))) ->  | BO56: =IF(ใส่ชื่อ!D51="","",IF(COUNTIF(AZ56:BN56,0),"มผ",IF(DU56="ปกติ",SUM(AZ56,BA56,BB56,BC56,BD56,BE56,BF56,BG56,BH56,BI56,BJ56,BK56,BL56,BM56,BN56),"-"))) ->  | CG56: =IF(ใส่ชื่อ!D51="","",IF(DU56="ปกติ",SUM(BR56,BS56,BT56,BU56,BV56,BW56,BX56,BY56,BZ56,CA56,CB56,CC56,CD56,CE56,CF56),"-")) ->  | CO56: =IF(ใส่ชื่อ!D51="","",IF(CJ56="","",(IF(CK56="","",(IF(CL56="","",(IF(CM56="","",(IF(CN56="","",(SUM(CJ56:CN56)))))))))))) ->  | DG56: =IF(ใส่ชื่อ!D51="","",IF(COUNTIF(DC56:DE56,"มผ"),"มผ",IF(DE56="มผ","มผ",IF(DU56="ปกติ",SUM(DC56:DD56,IF(DF56="",DE56,DF56)),"-")))) ->  | DL56: =IF(ใส่ชื่อ!D51="","",IF(DG56="","",IF(COUNTIF(DC56:DJ56,"มผ"),"มผ",IF(COUNTIF(DC56:DJ56,"-"),"-",IF(DU56="ปกติ",SUM(DG56,IF(DJ56="",DI56,DJ56))))))) ->  | DP56: =ประเมินผลการเรียนเทอม1!DP56 ->  | DQ56: =IF(ใส่ชื่อ!A51="","",IF(DL56="-","-",IF(DL56=0,"",IF(DU56="ปกติ",MAXA(DL56/2,DN56/2))))) ->  | DS56: =IF(เวลาเรียน!M58="","",IF(เวลาเรียน!M58="ย้าย","-",IF(เวลาเรียน!M58="จำหน่าย","-",IF(เวลาเรียน!M58="ขาดเรียนนาน","-",IF(DP56="","",IF(DQ56="","",SUM(DP56+DQ56))))))) ->  | DT56: =IF(เวลาเรียน!M58="","",IF(เวลาเรียน!M58="ย้าย","-",IF(เวลาเรียน!M58="จำหน่าย","-",IF(เวลาเรียน!M58="ขาดเรียนนาน","-",IF(เวลาเรียน!L58<80,"มส",IF(COUNTIF(DS56,"-"),"-",IF(COUNTIF(DS56,""),"",VLOOKUP(DS56,$DW$19:$DY$26,3)))))))) ->  | DU56: =IF(เวลาเรียน!M58="","",เวลาเรียน!M58) -> 
C57: =กำหนดอัตราส่วนคะแนน!U4 -> 50 | CJ57: =COUNTIF($CQ$7:$CQ$56,"ดย") -> 17 | CK57: =COUNTIF($CQ$7:$CQ$56,"ด") -> 3 | CL57: =COUNTIF($CQ$7:$CQ$56,"ผ") -> 0 | CM57: =COUNTIF($CQ$7:$CQ$56,"มผ") -> 0 | CR57: =COUNTIF($DB$7:$DB$56,"ดย") -> 17 | CS57: =COUNTIF($DB$7:$DB$56,"ด") -> 3 | CT57: =COUNTIF($DB$7:$DB$56,"ผ") -> 0 | CU57: =COUNTIF($DB$7:$DB$56,"มผ") -> 0 | EN57: =กำหนดอัตราส่วนคะแนน!FA4 -> 0 | HU57: =COUNTIF($CQ$7:$CQ$56,"3") -> 0 | HV57: =COUNTIF($CQ$7:$CQ$56,"2") -> 0 | HW57: =COUNTIF($CQ$7:$CQ$56,"1") -> 0 | HX57: =COUNTIF($CQ$7:$CQ$56,"0") -> 0 | IC57: =COUNTIF($DB$7:$DB$56,"3") -> 0 | ID57: =COUNTIF($DB$7:$DB$56,"2") -> 0 | IE57: =COUNTIF($DB$7:$DB$56,"1") -> 0 | IF57: =COUNTIF($DB$7:$DB$56,"0") -> 0
BR61: ตอนที่ | BT61: ป.1/1 | BV61: 1
BR62: ท 1.1 | BT62: ป.1/2 | BV62: 2
BR63: ท 2.1 | BT63: ป.1/3 | BV63: 3
BR64: ท 3.1 | BT64: ป.1/4 | BV64: 4
BR65: ท 4.1 | BT65: ป.1/5 | BV65: 5
BR66: ท 5.1 | BT66: ป.1/6 | BV66: -
BR67: ค 1.1 | BT67: ป.1/7 | BV67: ป.1/1
BR68: ค 1.2 | BT68: ป.1/8 | BV68: ป.1/2
BR69: ค 1.3 | BT69: ป.1/9 | BV69: ป.1/3
BR70: ค 2.1 | BT70: ป.1/10 | BV70: ป.1/4
BR71: ค 2.2 | BT71: ป.2/1 | BV71: ป.1/5
BR72: ค 3.1 | BT72: ป.2/2 | BV72: ป.1/6
BR73: ค 3.2 | BT73: ป.2/3 | BV73: ป.1/7
BR74: ว 1.1 | BT74: ป.2/4 | BV74: ป.1/8
BR75: ว 1.2 | BT75: ป.2/5 | BV75: ป.1/9
BR76: ว 1.3 | BT76: ป.2/6 | BV76: ป.1/10
BR77: ว 2.1 | BT77: ป.2/7 | BV77: ป.1/11
BR78: ว 2.2 | BT78: ป.2/8 | BV78: ป.1/12
BR79: ว 2.3 | BT79: ป.2/9 | BV79: ป.1/13
BR80: ว 3.1 | BT80: ป.2/10 | BV80: ป.1/14
BR81: ว 3.2 | BT81: ป.3/1 | BV81: ป.1/15
BR82: ว 4.1 | BV82: ป.2/1
BR83: ว 4.2 | BT83: ป.3/2 | BV83: ป.2/2
BR84: ส 1.1 | BT84: ป.3/3 | BV84: ป.2/3
BR85: ส 1.2 | BV85: ป.2/4
BR86: ส 2.1 | BT86: ป.3/4 | BV86: ป.2/5
BR87: ส 2.2 | BT87: ป.3/5 | BV87: ป.2/6
BR88: ส 3.1 | BT88: ป.3/6 | BV88: ป.2/7
BR89: ส 3.2 | BT89: ป.3/7 | BV89: ป.2/8
BR90: ส 4.1 | BT90: ป.3/8 | BV90: ป.2/9
BR91: ส 4.2 | BT91: ป.3/9 | BV91: ป.2/10
BR92: ส 4.2 | BT92: ป.3/10 | BV92: ป.2/11
BR93: ส 5.1 | BT93: ป.4/1 | BV93: ป.2/12
BR94: ส 5.2 | BT94: ป.4/2 | BV94: ป.2/13
BR95: พ 1.1 | BT95: ป.4/3 | BV95: ป.2/14
BR96: พ 2.1 | BT96: ป.4/4 | BV96: ป.2/15
BR97: พ 3.1 | BT97: ป.4/5 | BV97: ป.3/1
B98: ท 1.1 | E98: ม.1/1 | BR98: พ 3.2 | BT98: ป.4/6 | BV98: ป.3/2 | EP98: ม.1/1
B99: ท 2.1 | E99: ม.1/2 | BR99: พ 4.1 | BT99: ป.4/7 | BV99: ป.3/3 | EP99: ม.1/2
B100: ท 3.1 | E100: ม.1/3 | BR100: พ 5.1 | BT100: ป.4/8 | BV100: ป.3/4 | EP100: ม.1/3
B101: ท 4.1 | E101: ม.1/4 | BR101: ศ 1.1 | BT101: ป.4/9 | BV101: ป.3/5 | EP101: ม.1/4
B102: ท 5.1 | E102: ม.1/5 | BR102: ศ 1.2 | BT102: ป.4/10 | BV102: ป.3/6 | EP102: ม.1/5
B103: ค 1.1 | E103: ม.1/6 | BR103: ศ 2.1 | BT103: ป.5/1 | BV103: ป.3/7 | EP103: ม.1/6
B104: ค 1.2 | E104: ม.1/7 | BR104: ศ 2.2 | BT104: ป.5/2 | BV104: ป.3/8 | EP104: ม.1/7
B105: ค 1.3 | E105: ม.1/8 | BR105: ศ 3.1 | BT105: ป.5/3 | BV105: ป.3/9 | EP105: ม.1/8
B106: ค 1.4 | E106: ม.1/9 | BR106: ศ 3.2 | BT106: ป.5/4 | BV106: ป.3/10 | EP106: ม.1/9
B107: ค 2.1 | E107: ม.1/10 | BR107: ง 1.1 | BT107: ป.5/5 | BV107: ป.3/11 | EP107: ม.1/10
B108: ค 2.2 | E108: ม.2/1 | BR108: ง 2.1 | BT108: ป.5/6 | BV108: ป.3/12 | EP108: ม.2/1
B109: ค 3.1 | E109: ม.2/2 | BR109: ง 3.1 | BT109: ป.5/7 | BV109: ป.3/13 | EP109: ม.2/2
B110: ค 3.2 | E110: ม.2/3 | BR110: ง 4.1 | BT110: ป.5/8 | BV110: ป.3/14 | EP110: ม.2/3
B111: ค 4.1 | E111: ม.2/4 | BR111: ต 1.1 | BT111: ป.5/9 | BV111: ป.3/15 | EP111: ม.2/4
B112: ค 4.2 | E112: ม.2/5 | BR112: ต 1.2 | BT112: ป.5/10 | BV112: ป.4/1 | EP112: ม.2/5
B113: ค 5.1 | E113: ม.2/6 | BR113: ต 1.3 | BT113: ป.6/1 | BV113: ป.4/2 | EP113: ม.2/6
B114: ค 5.2 | E114: ม.2/7 | BR114: ต 2.1 | BT114: ป.6/2 | BV114: ป.4/3 | EP114: ม.2/7
B115: ค 5.3 | E115: ม.2/8 | BR115: ต 2.2 | BT115: ป.6/3 | BV115: ป.4/4 | EP115: ม.2/8
B116: ค 6.1 | E116: ม.2/9 | BR116: ต 3.1 | BT116: ป.6/4 | BV116: ป.4/5 | EP116: ม.2/9
B117: ว 1.1 | E117: ม.2/10 | BR117: ต 4.1 | BT117: ป.6/5 | BV117: ป.4/6 | EP117: ม.2/10
B118: ว 1.2 | E118: ม.3/1 | BR118: ต 4.2 | BT118: ป.6/6 | BV118: ป.4/7 | EP118: ม.3/1
B119: ว 2.1 | E119: ม.3/2 | BR119: ข้อ 1 | BT119: ป.6/7 | BV119: ป.4/8 | EP119: ม.3/2
B120: ว 2.2 | E120: ม.3/3 | BR120: ข้อ 2 | BT120: ป.6/8 | BV120: ป.4/9 | EP120: ม.3/3
B121: ว 3.1 | E121: ม.3/4 | BR121: ข้อ 3 | BT121: ป.6/9 | BV121: ป.4/10 | EP121: ม.3/4
B122: ว 3.2 | E122: ม.3/5 | BR122: ข้อ 4 | BT122: ป.6/10 | BV122: ป.4/11 | EP122: ม.3/5
B123: ว 4.1 | E123: ม.3/6 | BR123: ข้อ 5 | BT123: ข้อ1 | BV123: ป.4/12 | EP123: ม.3/6
B124: ว 4.2 | E124: ม.3/7 | BR124: ข้อ 6 | BT124: ข้อ2 | BV124: ป.4/13 | EP124: ม.3/7
B125: ว 5.1 | E125: ม.3/8 | BR125: ข้อ 7 | BT125: ข้อ3 | BV125: ป.4/14 | EP125: ม.3/8
B126: ว 6.1 | E126: ม.3/9 | BR126: ข้อ 8 | BT126: ข้อ4 | BV126: ป.4/15 | EP126: ม.3/9
B127: ว 7.1 | E127: ม.3/10 | BR127: ข้อ 9 | BT127: ข้อ5 | BV127: ป.5/1 | EP127: ม.3/10
B128: ว 7.2 | E128: ม.4-6/1 | BR128: ข้อ 10 | BT128: ข้อ6 | BV128: ป.5/2 | EP128: ม.4-6/1
B129: ว 8.1 | E129: ม.4-6/2 | BR129: ข้อ 11 | BT129: ข้อ7 | BV129: ป.5/3 | EP129: ม.4-6/2
B130: ส 1.1 | E130: ม.4-6/3 | BR130: ข้อ 12 | BT130: ข้อ8 | BV130: ป.5/4 | EP130: ม.4-6/3
B131: ส 1.2 | E131: ม.4-6/4 | BR131: ข้อ 13 | BT131: ข้อ9 | BV131: ป.5/5 | EP131: ม.4-6/4
B132: ส 2.1 | E132: ม.4-6/5 | BR132: ข้อ 14 | BT132: ข้อ10 | BV132: ป.5/6 | EP132: ม.4-6/5
B133: ส 2.2 | E133: ม.4-6/6 | BR133: ข้อ 15 | BT133: ข้อ11 | BV133: ป.5/7 | EP133: ม.4-6/6
B134: ส 3.1 | E134: ม.4-6/7 | BR134: ข้อ 16 | BT134: ข้อ12 | BV134: ป.5/8 | EP134: ม.4-6/7
B135: ส 3.2 | E135: ม.4-6/8 | BR135: ข้อ 17 | BT135: ข้อ13 | BV135: ป.5/9 | EP135: ม.4-6/8
B136: ส 4.1 | E136: ม.4-6/9 | BR136: ข้อ 18 | BT136: ข้อ14 | BV136: ป.5/10 | EP136: ม.4-6/9
B137: ส 4.2 | E137: ม.4-6/10 | BR137: ข้อ 19 | BT137: ข้อ15 | BV137: ป.5/11 | EP137: ม.4-6/10
B138: ส 4.2 | E138: ม.4-6/11 | BR138: ข้อ 20 | BT138: ข้อ16 | BV138: ป.5/12 | EP138: ม.4-6/11
B139: ส 5.1 | E139: ม.4-6/12 | BR139: ข้อ 21 | BT139: ข้อ17 | BV139: ป.5/13 | EP139: ม.4-6/12
B140: ส 5.2 | E140: ม.4-6/13 | BR140: ข้อ 22 | BT140: ข้อ18 | BV140: ป.5/14 | EP140: ม.4-6/13
B141: พ 1.1 | E141: ม.4-6/14 | BR141: ข้อ 23 | BT141: ข้อ19 | BV141: ป.5/15 | EP141: ม.4-6/14
B142: พ 2.1 | E142: ม.4-6/15 | BR142: ข้อ 24 | BT142: ข้อ20 | BV142: ป.6/1 | EP142: ม.4-6/15
B143: พ 3.1 | E143: ม.4-6/16 | BR143: ข้อ 25 | BT143: ข้อ21 | BV143: ป.6/2 | EP143: ม.4-6/16
B144: พ 3.2 | E144: ม.4-6/17 | BR144: ข้อ 26 | BT144: ข้อ22 | BV144: ป.6/3 | EP144: ม.4-6/17
B145: พ 4.1 | E145: ม.4-6/18 | BR145: ข้อ 27 | BT145: ข้อ23 | BV145: ป.6/4 | EP145: ม.4-6/18
B146: พ 5.1 | E146: ม.4-6/19 | BR146: ข้อ 28 | BT146: ข้อ24 | BV146: ป.6/5 | EP146: ม.4-6/19
B147: ศ. 1.1 | E147: ม.4-6/20 | BR147: ข้อ 29 | BT147: ข้อ25 | BV147: ป.6/6 | EP147: ม.4-6/20
B148: ศ 1.2 | E148: ม.4-6/21 | BR148: ข้อ 30 | BT148: ข้อ26 | BV148: ป.6/7 | EP148: ม.4-6/21
B149: ศ 2.1 | E149: ม.4-6/22 | BT149: ข้อ27 | BV149: ป.6/8 | EP149: ม.4-6/22
B150: ศ 2.2 | E150: ม.4-6/23 | BT150: ข้อ28 | BV150: ป.6/9 | EP150: ม.4-6/23
B151: ศ 3.1 | E151: ม.4-6/24 | BT151: ข้อ29 | BV151: ป.6/10 | EP151: ม.4-6/24
B152: ศ 3.2 | E152: ม.4-6/25 | BT152: ข้อ30 | BV152: ป.6/11 | EP152: ม.4-6/25
B153: ง 1.1 | E153: ม.4-6/26 | BT153: - | BV153: ป.6/12 | EP153: ม.4-6/26
B154: ง 2.1 | E154: ม.4-6/27 | BT154: 1 | BV154: ป.6/13 | EP154: ม.4-6/27
B155: ง 3.1 | E155: ม.4-6/28 | BT155: 2 | BV155: ป.6/14 | EP155: ม.4-6/28
B156: ง 4.1 | E156: ม.4-6/29 | BT156: 3 | BV156: ป.6/15 | EP156: ม.4-6/29
B157: ต 1.1 | E157: ม.4-6/30 | BT157: 4 | EP157: ม.4-6/30
B158: ต 1.2 | BT158: 5
B159: ต 1.3
B160: ต 2.1
B161: ต 2.2
B162: ต 3.1
B163: ต 4.1
B164: ต 4.2

Sheet คุณลักษณะอันพึงประสงค์ (hidden)
C1: การประเมิน | D1: คุณลักษณะอันพึงประสงค์ ภาคเรียนที่ 1 | Q1: คุณลักษณะอันพึงประสงค์
A2: ="นักเรียน"&ปก!AF11&ปก!AL11 -> นักเรียนชั้นประถมศึกษาปีที่ 2/2 | D2: =ใบรายชื่อ!$A$4 -> รายวิชาหน้าที่พลเมือง รหัสวิชา - ปีการศึกษา 2565 | Q2: =ใบรายชื่อ!$A$4 -> รายวิชาหน้าที่พลเมือง รหัสวิชา - ปีการศึกษา 2565
A3: เลขที่ | B3: เลขประจำตัว | C3: ชื่อ - ชื่อสกุล | D3: เลขที่ | E3: คุณลักษณะอันพึงประสงค์ข้อที่ | M3: ระดับผลการประเมิน | N3: ผลการประเมิน ภาคเรียนที่ 1 | Q3: เลขที่ | R3: คุณลักษณะอันพึงประสงค์ข้อที่ | Z3: ระดับผลการประเมิน | AA3: ผลการประเมิน
E4: 1 | F4: 2 | G4: 3 | H4: 4 | I4: 5 | J4: 6 | K4: 7 | L4: 8 | R4: 1 | S4: 2 | T4: 3 | U4: 4 | V4: 5 | W4: 6 | X4: 7 | Y4: 8 | AC4: เกณฑ์การประเมินคุณลักษณะอันพึงประสงค์
A5: 1 | B5: =ใส่ชื่อ!C2 -> 2836 | C5: =ใส่ชื่อ!D2&ใส่ชื่อ!#REF!&" "&ใส่ชื่อ!#REF! ->  | D5: 1 | M5: =IF(N5="","",IF(N5="ดีเยี่ยม",3,IF(N5="ดี",2,IF(N5="ผ่าน",1,IF(N5="ไม่ผ่าน",0))))) ->  | N5: =IF(E5="","",(IF(F5="","",(IF(G5="","",(IF(H5="","",(IF(I5="","",(IF(J5="","",IF(K5="","",(IF(L5="","",(IF(COUNTIF(E5:L5,0)>0,"ไม่ผ่าน",IF(AND(COUNTIF(E5:L5,3)>=5,COUNTIF(E5:L5,"<2")=0),"ดีเยี่ยม",IF(OR(AND(AND(COUNTIF(E5:L5,3)>=1,COUNTIF(E5:L5,3)<=4),COUNTIF(E5:L5,"<2")=0),COUNTIF(E5:L5,2)=8,AND(COUNTIF(E5:L5,">=2")>=5,COUNTIF(E5:L5,1)>0)),"ดี",IF(OR(COUNTIF(E5:L5,1)=8,AND(COUNTIF(E5:L5,">=2")>=1,COUNTIF(E5:L5,">=2")<=4)),"ผ่าน","ไม่ผ่าน"))))))))))))))))))) ->  | O5: เก็บ+กลาง | P5: =SUM(#REF!,#REF!) ->  | Q5: 1 | Z5: =IF(AA5="","",IF(AA5="ดีเยี่ยม",3,IF(AA5="ดี",2,IF(AA5="ผ่าน",1,IF(AA5="ไม่ผ่าน",0))))) ->  | AA5: =IF(R5="","",(IF(S5="","",(IF(T5="","",(IF(U5="","",(IF(V5="","",(IF(W5="","",IF(X5="","",(IF(Y5="","",(IF(COUNTIF(R5:Y5,0)>0,"ไม่ผ่าน",IF(AND(COUNTIF(R5:Y5,3)>=5,COUNTIF(R5:Y5,"<2")=0),"ดีเยี่ยม",IF(OR(AND(AND(COUNTIF(R5:Y5,3)>=1,COUNTIF(R5:Y5,3)<=4),COUNTIF(R5:Y5,"<2")=0),COUNTIF(R5:Y5,2)=8,AND(COUNTIF(R5:Y5,">=2")>=5,COUNTIF(R5:Y5,1)>0)),"ดี",IF(OR(COUNTIF(R5:Y5,1)=8,AND(COUNTIF(R5:Y5,">=2")>=1,COUNTIF(R5:Y5,">=2")<=4)),"ผ่าน","ไม่ผ่าน"))))))))))))))))))) ->  | AC5: ระดับ | AD5: เกณฑ์การพิจรณา
A6: 2 | B6: =ใส่ชื่อ!C3 -> 2840 | C6: =ใส่ชื่อ!D3&ใส่ชื่อ!#REF!&" "&ใส่ชื่อ!#REF! ->  | D6: 2 | M6: =IF(N6="","",IF(N6="ดีเยี่ยม",3,IF(N6="ดี",2,IF(N6="ผ่าน",1,IF(N6="ไม่ผ่าน",0))))) ->  | N6: =IF(E6="","",(IF(F6="","",(IF(G6="","",(IF(H6="","",(IF(I6="","",(IF(J6="","",IF(K6="","",(IF(L6="","",(IF(COUNTIF(E6:L6,0)>0,"ไม่ผ่าน",IF(AND(COUNTIF(E6:L6,3)>=5,COUNTIF(E6:L6,"<2")=0),"ดีเยี่ยม",IF(OR(AND(AND(COUNTIF(E6:L6,3)>=1,COUNTIF(E6:L6,3)<=4),COUNTIF(E6:L6,"<2")=0),COUNTIF(E6:L6,2)=8,AND(COUNTIF(E6:L6,">=2")>=5,COUNTIF(E6:L6,1)>0)),"ดี",IF(OR(COUNTIF(E6:L6,1)=8,AND(COUNTIF(E6:L6,">=2")>=1,COUNTIF(E6:L6,">=2")<=4)),"ผ่าน","ไม่ผ่าน"))))))))))))))))))) ->  | O6: ปลาย | P6: =#REF! ->  | Q6: 2 | Z6: =IF(AA6="","",IF(AA6="ดีเยี่ยม",3,IF(AA6="ดี",2,IF(AA6="ผ่าน",1,IF(AA6="ไม่ผ่าน",0))))) ->  | AA6: =IF(R6="","",(IF(S6="","",(IF(T6="","",(IF(U6="","",(IF(V6="","",(IF(W6="","",IF(X6="","",(IF(Y6="","",(IF(COUNTIF(R6:Y6,0)>0,"ไม่ผ่าน",IF(AND(COUNTIF(R6:Y6,3)>=5,COUNTIF(R6:Y6,"<2")=0),"ดีเยี่ยม",IF(OR(AND(AND(COUNTIF(R6:Y6,3)>=1,COUNTIF(R6:Y6,3)<=4),COUNTIF(R6:Y6,"<2")=0),COUNTIF(R6:Y6,2)=8,AND(COUNTIF(R6:Y6,">=2")>=5,COUNTIF(R6:Y6,1)>0)),"ดี",IF(OR(COUNTIF(R6:Y6,1)=8,AND(COUNTIF(R6:Y6,">=2")>=1,COUNTIF(R6:Y6,">=2")<=4)),"ผ่าน","ไม่ผ่าน"))))))))))))))))))) ->  | AC6: ดีเยี่ยม(3) | AD6: 1 | AE6: ได้ผลการประเมินระดับดีเยี่ยม จำนวน 5-8 คุณลักษณะ และไม่มีคุณลักษณะใด
A7: 3 | B7: =ใส่ชื่อ!C4 -> 2842 | C7: =ใส่ชื่อ!D4&ใส่ชื่อ!#REF!&" "&ใส่ชื่อ!#REF! ->  | D7: 3 | N7: =IF(E7="","",(IF(F7="","",(IF(G7="","",(IF(H7="","",(IF(I7="","",(IF(J7="","",IF(K7="","",(IF(L7="","",(IF(COUNTIF(E7:L7,0)>0,"ไม่ผ่าน",IF(AND(COUNTIF(E7:L7,3)>=5,COUNTIF(E7:L7,"<2")=0),"ดีเยี่ยม",IF(OR(AND(AND(COUNTIF(E7:L7,3)>=1,COUNTIF(E7:L7,3)<=4),COUNTIF(E7:L7,"<2")=0),COUNTIF(E7:L7,2)=8,AND(COUNTIF(E7:L7,">=2")>=5,COUNTIF(E7:L7,1)>0)),"ดี",IF(OR(COUNTIF(E7:L7,1)=8,AND(COUNTIF(E7:L7,">=2")>=1,COUNTIF(E7:L7,">=2")<=4)),"ผ่าน","ไม่ผ่าน"))))))))))))))))))) ->  | O7: รวม | P7: =SUM(P5+P6) ->  | Q7: 3 | AA7: =IF(R7="","",(IF(S7="","",(IF(T7="","",(IF(U7="","",(IF(V7="","",(IF(W7="","",IF(X7="","",(IF(Y7="","",(IF(COUNTIF(R7:Y7,0)>0,"ไม่ผ่าน",IF(AND(COUNTIF(R7:Y7,3)>=5,COUNTIF(R7:Y7,"<2")=0),"ดีเยี่ยม",IF(OR(AND(AND(COUNTIF(R7:Y7,3)>=1,COUNTIF(R7:Y7,3)<=4),COUNTIF(R7:Y7,"<2")=0),COUNTIF(R7:Y7,2)=8,AND(COUNTIF(R7:Y7,">=2")>=5,COUNTIF(R7:Y7,1)>0)),"ดี",IF(OR(COUNTIF(R7:Y7,1)=8,AND(COUNTIF(R7:Y7,">=2")>=1,COUNTIF(R7:Y7,">=2")<=4)),"ผ่าน","ไม่ผ่าน"))))))))))))))))))) ->  | AE7: ได้ผลการประเมินต่ำกว่าระดับดี
A8: 4 | B8: =ใส่ชื่อ!C5 -> 2844 | C8: =ใส่ชื่อ!D5&ใส่ชื่อ!#REF!&" "&ใส่ชื่อ!#REF! ->  | D8: 4 | Q8: 4 | AC8: ดี(2) | AD8: 1 | AE8: ได้ผลการประเมินระดับดีเยี่ยม จำนวน 1-4 คุณลักษณะ และไม่มีคุณลักษณะใด
A9: 5 | B9: =ใส่ชื่อ!C6 -> 2845 | C9: =ใส่ชื่อ!D6&ใส่ชื่อ!#REF!&" "&ใส่ชื่อ!#REF! ->  | D9: 5 | Q9: 5 | AE9: ได้ผลการประเมินต่ำกว่าระดับดี หรือ
A10: 6 | B10: =ใส่ชื่อ!C7 -> 2846 | C10: =ใส่ชื่อ!D7&ใส่ชื่อ!#REF!&" "&ใส่ชื่อ!#REF! ->  | D10: 6 | Q10: 6 | AD10: 2 | AE10: ได้ผลการประเมินระดับดี ทั้ง 8 คุณลักษณะ หรือ
A11: 7 | B11: =ใส่ชื่อ!C8 -> 2847 | C11: =ใส่ชื่อ!D8&ใส่ชื่อ!#REF!&" "&ใส่ชื่อ!#REF! ->  | D11: 7 | Q11: 7 | AD11: 3 | AE11: ได้ผลการประเมินตั้งแต่ระดับดีขึ้นไป จำนวน 5-7 คุณลักษณะ และมีบางคุณลักษณะ
A12: 8 | B12: =ใส่ชื่อ!C9 -> 2855 | C12: =ใส่ชื่อ!D9&ใส่ชื่อ!#REF!&" "&ใส่ชื่อ!#REF! ->  | D12: 8 | Q12: 8 | AE12: ได้ผลการประเมินระดับผ่าน
A13: 9 | B13: =ใส่ชื่อ!C10 -> 2856 | C13: =ใส่ชื่อ!D10&ใส่ชื่อ!#REF!&" "&ใส่ชื่อ!#REF! ->  | D13: 9 | Q13: 9 | AC13: ผ่าน(1) | AD13: 1 | AE13: ได้ผลการประเมินระดับผ่าน ทั้ง 8 คุณลักษณะ หรือ
A14: 10 | B14: =ใส่ชื่อ!C11 -> 2863 | C14: =ใส่ชื่อ!D11&ใส่ชื่อ!#REF!&" "&ใส่ชื่อ!#REF! ->  | D14: 10 | Q14: 10 | AD14: 2 | AE14: ได้ผลการประเมินระดับดีขึ้นไป จำนวน 1-4 คุณลักษณะ และคุณลักษณะที่เหลือ
A15: 11 | B15: =ใส่ชื่อ!C12 -> 2918 | C15: =ใส่ชื่อ!D12&ใส่ชื่อ!#REF!&" "&ใส่ชื่อ!#REF! ->  | D15: 11 | Q15: 11 | AE15: ได้ผลการประเมินระดับผ่าน
A16: 12 | B16: =ใส่ชื่อ!C13 -> 2919 | C16: =ใส่ชื่อ!D13&ใส่ชื่อ!#REF!&" "&ใส่ชื่อ!#REF! ->  | D16: 12 | Q16: 12 | AC16: ไม่ผ่าน(0) | AD16: 1 | AE16: ได้ผลการประเมินระดับไม่ผ่าน ตั้งแต่ 1 คุณลักษณะขึ้นไป
A17: 13 | B17: =ใส่ชื่อ!C14 -> 2946 | C17: =ใส่ชื่อ!D14&ใส่ชื่อ!#REF!&" "&ใส่ชื่อ!#REF! ->  | D17: 13 | Q17: 13
A18: 14 | B18: =ใส่ชื่อ!C15 -> 3010 | C18: =ใส่ชื่อ!D15&ใส่ชื่อ!#REF!&" "&ใส่ชื่อ!#REF! ->  | D18: 14 | Q18: 14
A19: 15 | B19: =ใส่ชื่อ!C16 -> 3043 | C19: =ใส่ชื่อ!D16&ใส่ชื่อ!#REF!&" "&ใส่ชื่อ!#REF! ->  | D19: 15 | Q19: 15
A20: 16 | B20: =ใส่ชื่อ!C17 -> 3084 | C20: =ใส่ชื่อ!D17&ใส่ชื่อ!#REF!&" "&ใส่ชื่อ!#REF! ->  | D20: 16 | Q20: 16 | AD20: =COUNTIF($AA$5:$AA$54,"ไม่ผ่าน") -> 0
A21: 17 | B21: =ใส่ชื่อ!C18 -> 3098 | C21: =ใส่ชื่อ!D18&ใส่ชื่อ!#REF!&" "&ใส่ชื่อ!#REF! ->  | D21: 17 | Q21: 17 | AD21: =COUNTIF($AA$5:$AA$54,"ผ่าน") -> 0
A22: 18 | B22: =ใส่ชื่อ!C19 -> 3111 | C22: =ใส่ชื่อ!D19&ใส่ชื่อ!#REF!&" "&ใส่ชื่อ!#REF! ->  | D22: 18 | Q22: 18 | AD22: =COUNTIF($AA$5:$AA$54,"ดี") -> 0
A23: 19 | B23: =ใส่ชื่อ!C20 -> 3181 | C23: =ใส่ชื่อ!D20&ใส่ชื่อ!#REF!&" "&ใส่ชื่อ!#REF! ->  | D23: 19 | Q23: 19 | AD23: =COUNTIF($AA$5:$AA$54,"ดีเยี่ยม") -> 0
A24: 20 | B24: =ใส่ชื่อ!C21 -> 0 | C24: =ใส่ชื่อ!D21&ใส่ชื่อ!#REF!&" "&ใส่ชื่อ!#REF! ->  | D24: 20 | Q24: 20
A25: 21 | B25: =ใส่ชื่อ!C22 -> 0 | C25: =ใส่ชื่อ!D22&ใส่ชื่อ!#REF!&" "&ใส่ชื่อ!#REF! ->  | D25: 21 | Q25: 21
A26: 22 | B26: =ใส่ชื่อ!C23 -> 0 | C26: =ใส่ชื่อ!D23&ใส่ชื่อ!#REF!&" "&ใส่ชื่อ!#REF! ->  | D26: 22 | Q26: 22
A27: 23 | B27: =ใส่ชื่อ!C24 -> 0 | C27: =ใส่ชื่อ!D24&ใส่ชื่อ!#REF!&" "&ใส่ชื่อ!#REF! ->  | D27: 23 | Q27: 23
A28: 24 | B28: =ใส่ชื่อ!C25 -> 0 | C28: =ใส่ชื่อ!D25&ใส่ชื่อ!#REF!&" "&ใส่ชื่อ!#REF! ->  | D28: 24 | Q28: 24
A29: 25 | B29: =ใส่ชื่อ!C26 -> 0 | C29: =ใส่ชื่อ!D26&ใส่ชื่อ!#REF!&" "&ใส่ชื่อ!#REF! ->  | D29: 25 | Q29: 25
A30: 26 | B30: =ใส่ชื่อ!C27 -> 0 | C30: =ใส่ชื่อ!D27&ใส่ชื่อ!#REF!&" "&ใส่ชื่อ!#REF! ->  | D30: 26 | Q30: 26
A31: 27 | B31: =ใส่ชื่อ!C28 -> 0 | C31: =ใส่ชื่อ!D28&ใส่ชื่อ!#REF!&" "&ใส่ชื่อ!#REF! ->  | D31: 27 | Q31: 27
A32: 28 | B32: =ใส่ชื่อ!C29 -> 0 | C32: =ใส่ชื่อ!D29&ใส่ชื่อ!#REF!&" "&ใส่ชื่อ!#REF! ->  | D32: 28 | Q32: 28
A33: 29 | B33: =ใส่ชื่อ!C30 -> 0 | C33: =ใส่ชื่อ!D30&ใส่ชื่อ!#REF!&" "&ใส่ชื่อ!#REF! ->  | D33: 29 | Q33: 29
A34: 30 | B34: =ใส่ชื่อ!C31 -> 0 | C34: =ใส่ชื่อ!D31&ใส่ชื่อ!#REF!&" "&ใส่ชื่อ!#REF! ->  | D34: 30 | Q34: 30
A35: 31 | B35: =ใส่ชื่อ!C32 -> 0 | C35: =ใส่ชื่อ!D32&ใส่ชื่อ!#REF!&" "&ใส่ชื่อ!#REF! ->  | D35: 31 | Q35: 31
A36: 32 | B36: =ใส่ชื่อ!C33 -> 0 | C36: =ใส่ชื่อ!D33&ใส่ชื่อ!#REF!&" "&ใส่ชื่อ!#REF! ->  | D36: 32 | Q36: 32
A37: 33 | B37: =ใส่ชื่อ!C34 -> 0 | C37: =ใส่ชื่อ!D34&ใส่ชื่อ!#REF!&" "&ใส่ชื่อ!#REF! ->  | D37: 33 | Q37: 33
A38: 34 | B38: =ใส่ชื่อ!C35 -> 0 | C38: =ใส่ชื่อ!D35&ใส่ชื่อ!#REF!&" "&ใส่ชื่อ!#REF! ->  | D38: 34 | Q38: 34
A39: 35 | B39: =ใส่ชื่อ!C36 -> 0 | C39: =ใส่ชื่อ!D36&ใส่ชื่อ!#REF!&" "&ใส่ชื่อ!#REF! ->  | D39: 35 | Q39: 35
A40: 36 | B40: =ใส่ชื่อ!C37 -> 0 | C40: =ใส่ชื่อ!D37&ใส่ชื่อ!#REF!&" "&ใส่ชื่อ!#REF! ->  | D40: 36 | Q40: 36
A41: 37 | B41: =ใส่ชื่อ!C38 -> 0 | C41: =ใส่ชื่อ!D38&ใส่ชื่อ!#REF!&" "&ใส่ชื่อ!#REF! ->  | D41: 37 | Q41: 37
A42: 38 | B42: =ใส่ชื่อ!C39 -> 0 | C42: =ใส่ชื่อ!D39&ใส่ชื่อ!#REF!&" "&ใส่ชื่อ!#REF! ->  | D42: 38 | Q42: 38
A43: 39 | B43: =ใส่ชื่อ!C40 -> 0 | C43: =ใส่ชื่อ!D40&ใส่ชื่อ!#REF!&" "&ใส่ชื่อ!#REF! ->  | D43: 39 | Q43: 39
A44: 40 | B44: =ใส่ชื่อ!C41 -> 0 | C44: =ใส่ชื่อ!D41&ใส่ชื่อ!#REF!&" "&ใส่ชื่อ!#REF! ->  | D44: 40 | Q44: 40
A45: 41 | B45: =ใส่ชื่อ!C42 -> 0 | C45: =ใส่ชื่อ!D42&ใส่ชื่อ!#REF!&" "&ใส่ชื่อ!#REF! ->  | D45: 41 | Q45: 41
A46: 42 | B46: =ใส่ชื่อ!C43 -> 0 | C46: =ใส่ชื่อ!D43&ใส่ชื่อ!#REF!&" "&ใส่ชื่อ!#REF! ->  | D46: 42 | Q46: 42
A47: 43 | B47: =ใส่ชื่อ!C44 -> 0 | C47: =ใส่ชื่อ!D44&ใส่ชื่อ!#REF!&" "&ใส่ชื่อ!#REF! ->  | D47: 43 | Q47: 43
A48: 44 | B48: =ใส่ชื่อ!C45 -> 0 | C48: =ใส่ชื่อ!D45&ใส่ชื่อ!#REF!&" "&ใส่ชื่อ!#REF! ->  | D48: 44 | Q48: 44
A49: 45 | B49: =ใส่ชื่อ!C46 -> 0 | C49: =ใส่ชื่อ!D46&ใส่ชื่อ!#REF!&" "&ใส่ชื่อ!#REF! ->  | D49: 45 | Q49: 45
A50: 46 | B50: =ใส่ชื่อ!C47 -> 0 | C50: =ใส่ชื่อ!D47&ใส่ชื่อ!#REF!&" "&ใส่ชื่อ!#REF! ->  | D50: 46 | Q50: 46
A51: 47 | B51: =ใส่ชื่อ!C48 -> 0 | C51: =ใส่ชื่อ!D48&ใส่ชื่อ!#REF!&" "&ใส่ชื่อ!#REF! ->  | D51: 47 | Q51: 47
A52: 48 | B52: =ใส่ชื่อ!C49 -> 0 | C52: =ใส่ชื่อ!D49&ใส่ชื่อ!#REF!&" "&ใส่ชื่อ!#REF! ->  | D52: 48 | Q52: 48
A53: 49 | B53: =ใส่ชื่อ!C50 -> 0 | C53: =ใส่ชื่อ!D50&ใส่ชื่อ!#REF!&" "&ใส่ชื่อ!#REF! ->  | D53: 49 | Q53: 49
A54: 50 | B54: =ใส่ชื่อ!C51 -> 0 | C54: =ใส่ชื่อ!D51&ใส่ชื่อ!#REF!&" "&ใส่ชื่อ!#REF! ->  | D54: 50 | Q54: 50

Sheet อ่าน คิด วิเคราะห์ (hidden)
C1: การประเมินความสามารถ | D1: ในการอ่าน คิดวิเคราะห์ และเขียน ภาคเรียนที่ 1 | N1: ในการอ่าน คิดวิเคราะห์ และเขียน
C2: ="นักเรียน"&ปก!AF11&ปก!AL11&" " -> นักเรียนชั้นประถมศึกษาปีที่ 2/2 | D2: =ใบรายชื่อ!$A$4 -> รายวิชาหน้าที่พลเมือง รหัสวิชา - ปีการศึกษา 2565 | N2: =ใบรายชื่อ!$A$4 -> รายวิชาหน้าที่พลเมือง รหัสวิชา - ปีการศึกษา 2565
A3: เลขที่ | B3: เลขประจำตัว | C3: ชื่อ - ชื่อสกุล | D3: เลขที่ | E3: ตัวชี้วัดความสามารถในการอ่าน คิดวิเคราะห์ และเขียน | J3: ผลการประเมิน ภาคเรียนที่ 1 | N3: เลขที่ | O3: ตัวชี้วัดความสามารถในการอ่าน คิดวิเคราะห์ และเขียน | T3: ผลการประเมิน
E4: 1 | F4: 2 | G4: 3 | H4: 4 | I4: 5 | O4: 1 | P4: 2 | Q4: 3 | R4: 4 | S4: 5 | W4: เกณฑ์การประเมินความสามารถในการอ่าน คิดวิเคราะห์ และเขียน
A5: 1 | B5: =ใส่ชื่อ!C2 -> 2836 | C5: =ใส่ชื่อ!D2&ใส่ชื่อ!#REF!&" "&ใส่ชื่อ!#REF! ->  | D5: 1 | J5: =IF(E5="","",(IF(F5="","",(IF(G5="","",(IF(H5="","",(IF(I5="","",(SUM(E5:I5)/5)))))))))) ->  | K5: =IF(J5="","",(IF(J5>=2.5,"ดีเยี่ยม",(IF(J5>=1.5,"ดี",(IF(J5>=0.6,"ผ่าน",(IF(J5<=0.4,"ไม่ผ่าน"))))))))) ->  | L5: เก็บ+กลาง | M5: =SUM(#REF!,#REF!) ->  | N5: 1 | T5: =IF(O5="","",(IF(P5="","",(IF(Q5="","",(IF(R5="","",(IF(S5="","",(SUM(O5:S5)/5)))))))))) ->  | U5: =IF(T5="","",(IF(T5>=2.5,"ดีเยี่ยม",(IF(T5>=1.5,"ดี",(IF(T5>=0.6,"ผ่าน",(IF(T5<=0.4,"ไม่ผ่าน"))))))))) ->  | X5: ระดับ | Y5: เกณฑ์การพิจรณา
A6: 2 | B6: =ใส่ชื่อ!C3 -> 2840 | C6: =ใส่ชื่อ!D3&ใส่ชื่อ!#REF!&" "&ใส่ชื่อ!#REF! ->  | D6: 2 | J6: =IF(E6="","",(IF(F6="","",(IF(G6="","",(IF(H6="","",(IF(I6="","",(SUM(E6:I6)/5)))))))))) ->  | K6: =IF(J6="","",(IF(J6>=2.5,"ดีเยี่ยม",(IF(J6>=1.5,"ดี",(IF(J6>=0.6,"ผ่าน",(IF(J6<=0.4,"ไม่ผ่าน"))))))))) ->  | L6: ปลาย | M6: =#REF! ->  | N6: 2 | T6: =IF(O6="","",(IF(P6="","",(IF(Q6="","",(IF(R6="","",(IF(S6="","",(SUM(O6:S6)/5)))))))))) ->  | U6: =IF(T6="","",(IF(T6>=2.5,"ดีเยี่ยม",(IF(T6>=1.5,"ดี",(IF(T6>=0.6,"ผ่าน",(IF(T6<=0.4,"ไม่ผ่าน"))))))))) ->  | X6: ดีเยี่ยม(3) | Z6: มีผลงานที่แสดงถึงความสามารถในการอ่าน คิดวิเคราะห์ และเขียน ที่มีคุณภาพดีเลิศอยู่เสมอ
A7: 3 | B7: =ใส่ชื่อ!C4 -> 2842 | C7: =ใส่ชื่อ!D4&ใส่ชื่อ!#REF!&" "&ใส่ชื่อ!#REF! ->  | D7: 3 | J7: =IF(E7="","",(IF(F7="","",(IF(G7="","",(IF(H7="","",(IF(I7="","",(SUM(E7:I7)/5)))))))))) ->  | L7: รวม | M7: =SUM(M5+M6) ->  | N7: 3 | T7: =IF(O7="","",(IF(P7="","",(IF(Q7="","",(IF(R7="","",(IF(S7="","",(SUM(O7:S7)/5)))))))))) -> 
A8: 4 | B8: =ใส่ชื่อ!C5 -> 2844 | C8: =ใส่ชื่อ!D5&ใส่ชื่อ!#REF!&" "&ใส่ชื่อ!#REF! ->  | D8: 4 | N8: 4 | X8: ดี(2) | Z8: มีผลงานที่แสดงถึงความสามารถในการอ่าน คิดวิเคราะห์ และเขียน เป็นที่ยอมรับ
A9: 5 | B9: =ใส่ชื่อ!C6 -> 2845 | C9: =ใส่ชื่อ!D6&ใส่ชื่อ!#REF!&" "&ใส่ชื่อ!#REF! ->  | D9: 5 | N9: 5
A10: 6 | B10: =ใส่ชื่อ!C7 -> 2846 | C10: =ใส่ชื่อ!D7&ใส่ชื่อ!#REF!&" "&ใส่ชื่อ!#REF! ->  | D10: 6 | N10: 6 | X10: ผ่าน(1) | Z10: มีผลงานที่แสดงถึงความสามารถในการอ่าน คิดวิเคราะห์ และเขียน ทีมีข้อบกพร่องบางประการ
A11: 7 | B11: =ใส่ชื่อ!C8 -> 2847 | C11: =ใส่ชื่อ!D8&ใส่ชื่อ!#REF!&" "&ใส่ชื่อ!#REF! ->  | D11: 7 | N11: 7
A12: 8 | B12: =ใส่ชื่อ!C9 -> 2855 | C12: =ใส่ชื่อ!D9&ใส่ชื่อ!#REF!&" "&ใส่ชื่อ!#REF! ->  | D12: 8 | N12: 8 | X12: ไม่ผ่าน(0) | Z12: ไม่มีผลงานที่แสดงถึงความสามารถในการอ่าน คิดวิเคราะห์ และเขียนหรือถ้ามีผลงาน ผลงานนั้นยังมีข้อบกพร่องที่ต้องได้รับการปรับปรุงแก้ไขหลายประการ
A13: 9 | B13: =ใส่ชื่อ!C10 -> 2856 | C13: =ใส่ชื่อ!D10&ใส่ชื่อ!#REF!&" "&ใส่ชื่อ!#REF! ->  | D13: 9 | N13: 9
A14: 10 | B14: =ใส่ชื่อ!C11 -> 2863 | C14: =ใส่ชื่อ!D11&ใส่ชื่อ!#REF!&" "&ใส่ชื่อ!#REF! ->  | D14: 10 | N14: 10
A15: 11 | B15: =ใส่ชื่อ!C12 -> 2918 | C15: =ใส่ชื่อ!D12&ใส่ชื่อ!#REF!&" "&ใส่ชื่อ!#REF! ->  | D15: 11 | N15: 11
A16: 12 | B16: =ใส่ชื่อ!C13 -> 2919 | C16: =ใส่ชื่อ!D13&ใส่ชื่อ!#REF!&" "&ใส่ชื่อ!#REF! ->  | D16: 12 | N16: 12 | W16: =" "&"ตัวชี้วัดความสามารถในการอ่าน คิดวิคราะห์ และเขียน "&"ระดับชั้น"&ปก!AN11&" "&IF(ปก!C19=3,"(ม.1-3)",IF(ปก!C19=4,"(ม.4-6)")) -> ตัวชี้วัดความสามารถในการอ่าน คิดวิคราะห์ และเขียน ระดับชั้นระดับประถมศึกษาตอนต้น(ป.1-3) FALSE
A17: 13 | B17: =ใส่ชื่อ!C14 -> 2946 | C17: =ใส่ชื่อ!D14&ใส่ชื่อ!#REF!&" "&ใส่ชื่อ!#REF! ->  | D17: 13 | N17: 13
A18: 14 | B18: =ใส่ชื่อ!C15 -> 3010 | C18: =ใส่ชื่อ!D15&ใส่ชื่อ!#REF!&" "&ใส่ชื่อ!#REF! ->  | D18: 14 | N18: 14 | W18: 1. | X18: =IF(ปก!BA2="บ","สามารถคัดสรรสื่อที่ต้องการอ่านเพื่อหาข้อมูลสารสนเทศได้ตามวัตถุประสงค์ สามารถสร้างความเข้าใจและประยุกต์ใช้ความรู้จากการอ่าน ",IF(ปก!BA2="พ","สามารถอ่านเพื่อการศึกษาค้นคว้า เพิ่มพูนความรู้ ประสบการณ์ และการประยุกต์ใช้ในชีวิตประจำวัน")) -> FALSE
A19: 15 | B19: =ใส่ชื่อ!C16 -> 3043 | C19: =ใส่ชื่อ!D16&ใส่ชื่อ!#REF!&" "&ใส่ชื่อ!#REF! ->  | D19: 15 | N19: 15
A20: 16 | B20: =ใส่ชื่อ!C17 -> 3084 | C20: =ใส่ชื่อ!D17&ใส่ชื่อ!#REF!&" "&ใส่ชื่อ!#REF! ->  | D20: 16 | N20: 16 | W20: 2. | X20: =IF(ปก!BA2="บ","สามารถจับประเด็นสำคัญและประเด็นสนับสนุน โต้แย้ง",IF(ปก!BA2="พ","สามารถจับประเด็นสำคัญ ลำดับเหตุการณ์จากการอ่านสื่อที่มีความซับซ้อน")) -> FALSE
A21: 17 | B21: =ใส่ชื่อ!C18 -> 3098 | C21: =ใส่ชื่อ!D18&ใส่ชื่อ!#REF!&" "&ใส่ชื่อ!#REF! ->  | D21: 17 | N21: 17
A22: 18 | B22: =ใส่ชื่อ!C19 -> 3111 | C22: =ใส่ชื่อ!D19&ใส่ชื่อ!#REF!&" "&ใส่ชื่อ!#REF! ->  | D22: 18 | N22: 18 | W22: 3. | X22: =IF(ปก!BA2="บ","สามารถวิเคราะห์ วิจารณ์ ความสมเหตุสมผล ความน่าเชื่อถือ ลำดับความเป็นไปได้ของเรื่องที่อ่าน",IF(ปก!BA2="พ","สามารถวิเคราะห์สิ่งที่ผู้เขียนต้องการสื่อสารกับผู้อ่าน และสามารถวิพากษ์ ให้ข้อเสนอแนะในแง่มุมต่างๆ")) -> FALSE
A23: 19 | B23: =ใส่ชื่อ!C20 -> 3181 | C23: =ใส่ชื่อ!D20&ใส่ชื่อ!#REF!&" "&ใส่ชื่อ!#REF! ->  | D23: 19 | N23: 19
A24: 20 | B24: =ใส่ชื่อ!C21 -> 0 | C24: =ใส่ชื่อ!D21&ใส่ชื่อ!#REF!&" "&ใส่ชื่อ!#REF! ->  | D24: 20 | N24: 20 | W24: 4. | X24: =IF(ปก!BA2="บ","สามารถสรุปคุณค่า แนวคิด แง่คิดที่ได้จากการอ่าน",IF(ปก!BA2="พ","สามารถประเมินความน่าเชื่อถือ คุณค่า แนวคิดที่ได้จากสิ่งที่อ่านอย่างหลากหลาย")) -> FALSE
A25: 21 | B25: =ใส่ชื่อ!C22 -> 0 | C25: =ใส่ชื่อ!D22&ใส่ชื่อ!#REF!&" "&ใส่ชื่อ!#REF! ->  | D25: 21 | N25: 21
A26: 22 | B26: =ใส่ชื่อ!C23 -> 0 | C26: =ใส่ชื่อ!D23&ใส่ชื่อ!#REF!&" "&ใส่ชื่อ!#REF! ->  | D26: 22 | N26: 22 | W26: 5. | X26: =IF(ปก!BA2="บ","สามารถสรุป อภิปราย ขยายความ แสดงความคิดเห็น โต้แย้ง สนันสนุน โน้มน้าว โดยการเขียนสื่อสารในรูปแบบต่างๆ เช่น ผังความคิด เป็นต้น",IF(ปก!BA2="พ","สามารถเขียนแสดงความคิดเห็น โต้แย้ง สรุป โดยมีข้อมูลอธิบายสนับสนุนอย่างเพียงพอ และสมเหตุสมผล")) -> FALSE
A27: 23 | B27: =ใส่ชื่อ!C24 -> 0 | C27: =ใส่ชื่อ!D24&ใส่ชื่อ!#REF!&" "&ใส่ชื่อ!#REF! ->  | D27: 23 | N27: 23
A28: 24 | B28: =ใส่ชื่อ!C25 -> 0 | C28: =ใส่ชื่อ!D25&ใส่ชื่อ!#REF!&" "&ใส่ชื่อ!#REF! ->  | D28: 24 | N28: 24
A29: 25 | B29: =ใส่ชื่อ!C26 -> 0 | C29: =ใส่ชื่อ!D26&ใส่ชื่อ!#REF!&" "&ใส่ชื่อ!#REF! ->  | D29: 25 | N29: 25
A30: 26 | B30: =ใส่ชื่อ!C27 -> 0 | C30: =ใส่ชื่อ!D27&ใส่ชื่อ!#REF!&" "&ใส่ชื่อ!#REF! ->  | D30: 26 | N30: 26 | X30: =COUNTIF($U$5:$U$54,"ไม่ผ่าน") -> 0
A31: 27 | B31: =ใส่ชื่อ!C28 -> 0 | C31: =ใส่ชื่อ!D28&ใส่ชื่อ!#REF!&" "&ใส่ชื่อ!#REF! ->  | D31: 27 | N31: 27 | X31: =COUNTIF($U$5:$U$54,"ผ่าน") -> 0
A32: 28 | B32: =ใส่ชื่อ!C29 -> 0 | C32: =ใส่ชื่อ!D29&ใส่ชื่อ!#REF!&" "&ใส่ชื่อ!#REF! ->  | D32: 28 | N32: 28 | X32: =COUNTIF($U$5:$U$54,"ดี") -> 0
A33: 29 | B33: =ใส่ชื่อ!C30 -> 0 | C33: =ใส่ชื่อ!D30&ใส่ชื่อ!#REF!&" "&ใส่ชื่อ!#REF! ->  | D33: 29 | N33: 29 | X33: =COUNTIF($U$5:$U$54,"ดีเยี่ยม") -> 0
A34: 30 | B34: =ใส่ชื่อ!C31 -> 0 | C34: =ใส่ชื่อ!D31&ใส่ชื่อ!#REF!&" "&ใส่ชื่อ!#REF! ->  | D34: 30 | N34: 30
A35: 31 | B35: =ใส่ชื่อ!C32 -> 0 | C35: =ใส่ชื่อ!D32&ใส่ชื่อ!#REF!&" "&ใส่ชื่อ!#REF! ->  | D35: 31 | N35: 31
A36: 32 | B36: =ใส่ชื่อ!C33 -> 0 | C36: =ใส่ชื่อ!D33&ใส่ชื่อ!#REF!&" "&ใส่ชื่อ!#REF! ->  | D36: 32 | N36: 32
A37: 33 | B37: =ใส่ชื่อ!C34 -> 0 | C37: =ใส่ชื่อ!D34&ใส่ชื่อ!#REF!&" "&ใส่ชื่อ!#REF! ->  | D37: 33 | K37: =IF(J37="","",(IF(J37>=2.5,"ดีเยี่ยม",(IF(J37>=1.5,"ดี",(IF(J37>=0.6,"ผ่าน",(IF(J37<=0.4,"ไม่ผ่าน"))))))))) ->  | N37: 33 | U37: =IF(T37="","",(IF(T37>=2.5,"ดีเยี่ยม",(IF(T37>=1.5,"ดี",(IF(T37>=0.6,"ผ่าน",(IF(T37<=0.4,"ไม่ผ่าน"))))))))) -> 
A38: 34 | B38: =ใส่ชื่อ!C35 -> 0 | C38: =ใส่ชื่อ!D35&ใส่ชื่อ!#REF!&" "&ใส่ชื่อ!#REF! ->  | D38: 34 | N38: 34 | U38: =IF(T38="","",(IF(T38>=2.5,"ดีเยี่ยม",(IF(T38>=1.5,"ดี",(IF(T38>=0.6,"ผ่าน",(IF(T38<=0.4,"ไม่ผ่าน"))))))))) -> 
A39: 35 | B39: =ใส่ชื่อ!C36 -> 0 | C39: =ใส่ชื่อ!D36&ใส่ชื่อ!#REF!&" "&ใส่ชื่อ!#REF! ->  | D39: 35 | N39: 35
A40: 36 | B40: =ใส่ชื่อ!C37 -> 0 | C40: =ใส่ชื่อ!D37&ใส่ชื่อ!#REF!&" "&ใส่ชื่อ!#REF! ->  | D40: 36 | N40: 36
A41: 37 | B41: =ใส่ชื่อ!C38 -> 0 | C41: =ใส่ชื่อ!D38&ใส่ชื่อ!#REF!&" "&ใส่ชื่อ!#REF! ->  | D41: 37 | N41: 37
A42: 38 | B42: =ใส่ชื่อ!C39 -> 0 | C42: =ใส่ชื่อ!D39&ใส่ชื่อ!#REF!&" "&ใส่ชื่อ!#REF! ->  | D42: 38 | N42: 38
A43: 39 | B43: =ใส่ชื่อ!C40 -> 0 | C43: =ใส่ชื่อ!D40&ใส่ชื่อ!#REF!&" "&ใส่ชื่อ!#REF! ->  | D43: 39 | N43: 39
A44: 40 | B44: =ใส่ชื่อ!C41 -> 0 | C44: =ใส่ชื่อ!D41&ใส่ชื่อ!#REF!&" "&ใส่ชื่อ!#REF! ->  | D44: 40 | N44: 40
A45: 41 | B45: =ใส่ชื่อ!C42 -> 0 | C45: =ใส่ชื่อ!D42&ใส่ชื่อ!#REF!&" "&ใส่ชื่อ!#REF! ->  | D45: 41 | J45: =IF(E45="","",(IF(F45="","",(IF(G45="","",(IF(H45="","",(IF(I45="","",(SUM(E45:I45)/5)))))))))) ->  | K45: =IF(J45="","",(IF(J45>=2.5,"ดีเยี่ยม",(IF(J45>=1.5,"ดี",(IF(J45>=0.6,"ผ่าน",(IF(J45<=0.4,"ไม่ผ่าน"))))))))) ->  | N45: 41 | T45: =IF(O45="","",(IF(P45="","",(IF(Q45="","",(IF(R45="","",(IF(S45="","",(SUM(O45:S45)/5)))))))))) ->  | U45: =IF(T45="","",(IF(T45>=2.5,"ดีเยี่ยม",(IF(T45>=1.5,"ดี",(IF(T45>=0.6,"ผ่าน",(IF(T45<=0.4,"ไม่ผ่าน"))))))))) -> 
A46: 42 | B46: =ใส่ชื่อ!C43 -> 0 | C46: =ใส่ชื่อ!D43&ใส่ชื่อ!#REF!&" "&ใส่ชื่อ!#REF! ->  | D46: 42 | N46: 42
A47: 43 | B47: =ใส่ชื่อ!C44 -> 0 | C47: =ใส่ชื่อ!D44&ใส่ชื่อ!#REF!&" "&ใส่ชื่อ!#REF! ->  | D47: 43 | N47: 43
A48: 44 | B48: =ใส่ชื่อ!C45 -> 0 | C48: =ใส่ชื่อ!D45&ใส่ชื่อ!#REF!&" "&ใส่ชื่อ!#REF! ->  | D48: 44 | N48: 44
A49: 45 | B49: =ใส่ชื่อ!C46 -> 0 | C49: =ใส่ชื่อ!D46&ใส่ชื่อ!#REF!&" "&ใส่ชื่อ!#REF! ->  | D49: 45 | N49: 45
A50: 46 | B50: =ใส่ชื่อ!C47 -> 0 | C50: =ใส่ชื่อ!D47&ใส่ชื่อ!#REF!&" "&ใส่ชื่อ!#REF! ->  | D50: 46 | N50: 46
A51: 47 | B51: =ใส่ชื่อ!C48 -> 0 | C51: =ใส่ชื่อ!D48&ใส่ชื่อ!#REF!&" "&ใส่ชื่อ!#REF! ->  | D51: 47 | N51: 47
A52: 48 | B52: =ใส่ชื่อ!C49 -> 0 | C52: =ใส่ชื่อ!D49&ใส่ชื่อ!#REF!&" "&ใส่ชื่อ!#REF! ->  | D52: 48 | N52: 48
A53: 49 | B53: =ใส่ชื่อ!C50 -> 0 | C53: =ใส่ชื่อ!D50&ใส่ชื่อ!#REF!&" "&ใส่ชื่อ!#REF! ->  | D53: 49 | N53: 49
A54: 50 | B54: =ใส่ชื่อ!C51 -> 0 | C54: =ใส่ชื่อ!D51&ใส่ชื่อ!#REF!&" "&ใส่ชื่อ!#REF! ->  | D54: 50 | N54: 50

Sheet สรุปผลสัมฤทธิ์
A1: ="ผลการประเมินคุณภาพผู้เรียนระดับชั้นเรียน "&"รายวิชา "&ปก!C26&" รหัสวิชา "&ปก!C27 -> ผลการประเมินคุณภาพผู้เรียนระดับชั้นเรียน รายวิชา หน้าที่พลเมือง รหัสวิชา -
A2: ="ชั้นประถมศึกษาปีที่ "&ปก!C21&"/"&ปก!C22&" ปีการศึกษา "&ปก!C27 -> ชั้นประถมศึกษาปีที่ 2/2 ปีการศึกษา -
A3: =ปก!C5&" สังกัด"&ปก!C8&" อำเภอ"&ปก!C6&" จังหวัด"&ปก!C7 -> โรงเรียนวัดสิงห์ทอง สังกัดองค์การบริหารส่วนจังหวัดนนทบุรี อำเภอปากเกร็ด จังหวัดนนทบุรี
A5: เลขที่ | B5: เลขประจำตัว | C5: ชื่อ - สกุล | D5: เวลา เรียน ร้อยละ | E5: คะแนน | H5: ผลการเรียน | I5: อ่าน คิด วิเคราะห์และเขียน | J5: คุณลักษณะ อันพึงประสงค์ | K5: สรุปผลการพัฒนาคุณภาพ
E6: ภาคเรียนที่ 1 | F6: ภาคเรียนที่ 2 | G6: รวมรายปี
E7: =ประเมินผลการเรียนเทอม2!DP6 -> 50 | F7: =ประเมินผลการเรียนเทอม2!DQ6 -> 50 | G7: =ประเมินผลการเรียนเทอม2!DS6 -> 100
A8: =IF(ใส่ชื่อ!A2="","",ใส่ชื่อ!A2) -> 1 | B8: =IF(ใส่ชื่อ!C2="","",ใบรายชื่อ!B7) -> 2836 | C8: =CONCATENATE(ใส่ชื่อ!D2,ใส่ชื่อ!E2&" "&ใส่ชื่อ!F2) -> เด็กชายธิติวัฒน์ ขุนสิทธิ์ | D8: =IF(เวลาเรียน!L9=0,"",เวลาเรียน!L9) -> 100 | E8: =IF(A8="","",ประเมินผลการเรียนเทอม2!DP7) -> 40 | F8: =IF(A8="","",ประเมินผลการเรียนเทอม2!DQ7) -> 42.5 | G8: =IF(A8="","",ประเมินผลการเรียนเทอม2!DS7) -> 82.5 | H8: =ประเมินผลการเรียนเทอม2!DT7 -> 4 | I8: =ประเมินผลการเรียนเทอม2!CQ7 -> ดย | J8: =ประเมินผลการเรียนเทอม2!DB7 -> ดย | K8: จำนวนนักเรียนทั้งหมด
A9: =IF(ใส่ชื่อ!A3="","",ใส่ชื่อ!A3) -> 2 | B9: =IF(ใส่ชื่อ!C3="","",ใบรายชื่อ!B8) -> 2840 | C9: =CONCATENATE(ใส่ชื่อ!D3,ใส่ชื่อ!E3&" "&ใส่ชื่อ!F3) -> เด็กชายอภิชาติ ล่องสุวรรณ | D9: =IF(เวลาเรียน!L10=0,"",เวลาเรียน!L10) -> 100 | E9: =IF(A9="","",ประเมินผลการเรียนเทอม2!DP8) -> 30.5 | F9: =IF(A9="","",ประเมินผลการเรียนเทอม2!DQ8) -> 40.5 | G9: =IF(A9="","",ประเมินผลการเรียนเทอม2!DS8) -> 71 | H9: =ประเมินผลการเรียนเทอม2!DT8 -> 3 | I9: =ประเมินผลการเรียนเทอม2!CQ8 -> ดย | J9: =ประเมินผลการเรียนเทอม2!DB8 -> ดย | K9: จำนวน | L9: =ปก!Z24 -> 20 | M9: คน
A10: =IF(ใส่ชื่อ!A4="","",ใส่ชื่อ!A4) -> 3 | B10: =IF(ใส่ชื่อ!C4="","",ใบรายชื่อ!B9) -> 2842 | C10: =CONCATENATE(ใส่ชื่อ!D4,ใส่ชื่อ!E4&" "&ใส่ชื่อ!F4) -> เด็กชายเมธัส ป้อมเมือง | D10: =IF(เวลาเรียน!L11=0,"",เวลาเรียน!L11) -> 100 | E10: =IF(A10="","",ประเมินผลการเรียนเทอม2!DP9) -> 38 | F10: =IF(A10="","",ประเมินผลการเรียนเทอม2!DQ9) -> 42 | G10: =IF(A10="","",ประเมินผลการเรียนเทอม2!DS9) -> 80 | H10: =ประเมินผลการเรียนเทอม2!DT9 -> 4 | I10: =ประเมินผลการเรียนเทอม2!CQ9 -> ดย | J10: =ประเมินผลการเรียนเทอม2!DB9 -> ดย | K10: นักเรียนที่ได้ระดับ ดี(3) ขึ้นไป
A11: =IF(ใส่ชื่อ!A5="","",ใส่ชื่อ!A5) -> 4 | B11: =IF(ใส่ชื่อ!C5="","",ใบรายชื่อ!B10) -> 2844 | C11: =CONCATENATE(ใส่ชื่อ!D5,ใส่ชื่อ!E5&" "&ใส่ชื่อ!F5) -> เด็กหญิงพรณิสา เพ็ชรจั่น | D11: =IF(เวลาเรียน!L12=0,"",เวลาเรียน!L12) -> 100 | E11: =IF(A11="","",ประเมินผลการเรียนเทอม2!DP10) -> 42 | F11: =IF(A11="","",ประเมินผลการเรียนเทอม2!DQ10) -> 47 | G11: =IF(A11="","",ประเมินผลการเรียนเทอม2!DS10) -> 89 | H11: =ประเมินผลการเรียนเทอม2!DT10 -> 4 | I11: =ประเมินผลการเรียนเทอม2!CQ10 -> ดย | J11: =ประเมินผลการเรียนเทอม2!DB10 -> ดย | K11: จำนวน | L11: =ปก!AH24+ปก!AF24+ปก!AD24 -> 18 | M11: คน
A12: =IF(ใส่ชื่อ!A6="","",ใส่ชื่อ!A6) -> 5 | B12: =IF(ใส่ชื่อ!C6="","",ใบรายชื่อ!B11) -> 2845 | C12: =CONCATENATE(ใส่ชื่อ!D6,ใส่ชื่อ!E6&" "&ใส่ชื่อ!F6) -> เด็กหญิงบุญฑริกา นิ่มอ่อน | D12: =IF(เวลาเรียน!L13=0,"",เวลาเรียน!L13) -> 100 | E12: =IF(A12="","",ประเมินผลการเรียนเทอม2!DP11) -> 30 | F12: =IF(A12="","",ประเมินผลการเรียนเทอม2!DQ11) -> 40 | G12: =IF(A12="","",ประเมินผลการเรียนเทอม2!DS11) -> 70 | H12: =ประเมินผลการเรียนเทอม2!DT11 -> 3 | I12: =ประเมินผลการเรียนเทอม2!CQ11 -> ด | J12: =ประเมินผลการเรียนเทอม2!DB11 -> ด | K12: คิดเป็นร้อยละ | L12: =ปก!AL26 -> 90
A13: =IF(ใส่ชื่อ!A7="","",ใส่ชื่อ!A7) -> 6 | B13: =IF(ใส่ชื่อ!C7="","",ใบรายชื่อ!B12) -> 2846 | C13: =CONCATENATE(ใส่ชื่อ!D7,ใส่ชื่อ!E7&" "&ใส่ชื่อ!F7) -> เด็กหญิงรัญชิดา นรเนตร | D13: =IF(เวลาเรียน!L14=0,"",เวลาเรียน!L14) -> 100 | E13: =IF(A13="","",ประเมินผลการเรียนเทอม2!DP12) -> 30.5 | F13: =IF(A13="","",ประเมินผลการเรียนเทอม2!DQ12) -> 40 | G13: =IF(A13="","",ประเมินผลการเรียนเทอม2!DS12) -> 70.5 | H13: =ประเมินผลการเรียนเทอม2!DT12 -> 3 | I13: =ประเมินผลการเรียนเทอม2!CQ12 -> ดย | J13: =ประเมินผลการเรียนเทอม2!DB12 -> ดย | K13: นักเรียนที่ไม่ผ่านการประเมิน
A14: =IF(ใส่ชื่อ!A8="","",ใส่ชื่อ!A8) -> 7 | B14: =IF(ใส่ชื่อ!C8="","",ใบรายชื่อ!B13) -> 2847 | C14: =CONCATENATE(ใส่ชื่อ!D8,ใส่ชื่อ!E8&" "&ใส่ชื่อ!F8) -> เด็กหญิงอริสา วีระวิทยกุญชร | D14: =IF(เวลาเรียน!L15=0,"",เวลาเรียน!L15) -> 100 | E14: =IF(A14="","",ประเมินผลการเรียนเทอม2!DP13) -> 35.5 | F14: =IF(A14="","",ประเมินผลการเรียนเทอม2!DQ13) -> 40 | G14: =IF(A14="","",ประเมินผลการเรียนเทอม2!DS13) -> 75.5 | H14: =ประเมินผลการเรียนเทอม2!DT13 -> 3.5 | I14: =ประเมินผลการเรียนเทอม2!CQ13 -> ดย | J14: =ประเมินผลการเรียนเทอม2!DB13 -> ดย | K14: จำนวน | L14: =ปก!AT24+ปก!AR24 -> 0 | M14: คน
A15: =IF(ใส่ชื่อ!A9="","",ใส่ชื่อ!A9) -> 8 | B15: =IF(ใส่ชื่อ!C9="","",ใบรายชื่อ!B14) -> 2855 | C15: =CONCATENATE(ใส่ชื่อ!D9,ใส่ชื่อ!E9&" "&ใส่ชื่อ!F9) -> เด็กหญิงณัฐวรา ธนกิจชัยชนะ | D15: =IF(เวลาเรียน!L16=0,"",เวลาเรียน!L16) -> 100 | E15: =IF(A15="","",ประเมินผลการเรียนเทอม2!DP14) -> 32.5 | F15: =IF(A15="","",ประเมินผลการเรียนเทอม2!DQ14) -> 40 | G15: =IF(A15="","",ประเมินผลการเรียนเทอม2!DS14) -> 72.5 | H15: =ประเมินผลการเรียนเทอม2!DT14 -> 3 | I15: =ประเมินผลการเรียนเทอม2!CQ14 -> ดย | J15: =ประเมินผลการเรียนเทอม2!DB14 -> ดย | K15: คิดเป็นร้อยละ | L15: =ปก!AL27 -> 0
A16: =IF(ใส่ชื่อ!A10="","",ใส่ชื่อ!A10) -> 9 | B16: =IF(ใส่ชื่อ!C10="","",ใบรายชื่อ!B15) -> 2856 | C16: =CONCATENATE(ใส่ชื่อ!D10,ใส่ชื่อ!E10&" "&ใส่ชื่อ!F10) -> เด็กชายอักคเชน ดอกกระถิน | D16: =IF(เวลาเรียน!L17=0,"",เวลาเรียน!L17) -> 100 | E16: =IF(A16="","",ประเมินผลการเรียนเทอม2!DP15) -> 33.5 | F16: =IF(A16="","",ประเมินผลการเรียนเทอม2!DQ15) -> 41.5 | G16: =IF(A16="","",ประเมินผลการเรียนเทอม2!DS15) -> 75 | H16: =ประเมินผลการเรียนเทอม2!DT15 -> 3.5 | I16: =ประเมินผลการเรียนเทอม2!CQ15 -> ดย | J16: =ประเมินผลการเรียนเทอม2!DB15 -> ดย | K16: สรุปผลการเรียน
A17: =IF(ใส่ชื่อ!A11="","",ใส่ชื่อ!A11) -> 10 | B17: =IF(ใส่ชื่อ!C11="","",ใบรายชื่อ!B16) -> 2863 | C17: =CONCATENATE(ใส่ชื่อ!D11,ใส่ชื่อ!E11&" "&ใส่ชื่อ!F11) -> เด็กหญิงณัฐณิชา วงศ์บุศรัตน์ | D17: =IF(เวลาเรียน!L18=0,"",เวลาเรียน!L18) -> 100 | E17: =IF(A17="","",ประเมินผลการเรียนเทอม2!DP16) -> 40.5 | F17: =IF(A17="","",ประเมินผลการเรียนเทอม2!DQ16) -> 42 | G17: =IF(A17="","",ประเมินผลการเรียนเทอม2!DS16) -> 82.5 | H17: =ประเมินผลการเรียนเทอม2!DT16 -> 4 | I17: =ประเมินผลการเรียนเทอม2!CQ16 -> ดย | J17: =ประเมินผลการเรียนเทอม2!DB16 -> ดย | K17: ระดับฯ | L17: จำนวน | M17: ร้อยละ
A18: =IF(ใส่ชื่อ!A12="","",ใส่ชื่อ!A12) -> 11 | B18: =IF(ใส่ชื่อ!C12="","",ใบรายชื่อ!B17) -> 2918 | C18: =CONCATENATE(ใส่ชื่อ!D12,ใส่ชื่อ!E12&" "&ใส่ชื่อ!F12) -> เด็กชายณัฐวุฒิ เปรมผล | D18: =IF(เวลาเรียน!L19=0,"",เวลาเรียน!L19) -> 100 | E18: =IF(A18="","",ประเมินผลการเรียนเทอม2!DP17) -> 32.5 | F18: =IF(A18="","",ประเมินผลการเรียนเทอม2!DQ17) -> 38.5 | G18: =IF(A18="","",ประเมินผลการเรียนเทอม2!DS17) -> 71 | H18: =ประเมินผลการเรียนเทอม2!DT17 -> 3 | I18: =ประเมินผลการเรียนเทอม2!CQ17 -> ดย | J18: =ประเมินผลการเรียนเทอม2!DB17 -> ดย | K18: 4 | L18: =ปก!AD24 -> 8 | M18: =ปก!AD25 -> 40
A19: =IF(ใส่ชื่อ!A13="","",ใส่ชื่อ!A13) -> 12 | B19: =IF(ใส่ชื่อ!C13="","",ใบรายชื่อ!B18) -> 2919 | C19: =CONCATENATE(ใส่ชื่อ!D13,ใส่ชื่อ!E13&" "&ใส่ชื่อ!F13) -> เด็กชายธนาธิป สังข์โพธิ์ | D19: =IF(เวลาเรียน!L20=0,"",เวลาเรียน!L20) -> 100 | E19: =IF(A19="","",ประเมินผลการเรียนเทอม2!DP18) -> 30 | F19: =IF(A19="","",ประเมินผลการเรียนเทอม2!DQ18) -> 35 | G19: =IF(A19="","",ประเมินผลการเรียนเทอม2!DS18) -> 65 | H19: =ประเมินผลการเรียนเทอม2!DT18 -> 2.5 | I19: =ประเมินผลการเรียนเทอม2!CQ18 -> ด | J19: =ประเมินผลการเรียนเทอม2!DB18 -> ด | K19: 3.5 | L19: =ปก!AF24 -> 2 | M19: =ปก!AF25 -> 10 | N19: =SUM(#REF!) ->  | O19: =SUM(#REF!) -> 
A20: =IF(ใส่ชื่อ!A14="","",ใส่ชื่อ!A14) -> 13 | B20: =IF(ใส่ชื่อ!C14="","",ใบรายชื่อ!B19) -> 2946 | C20: =CONCATENATE(ใส่ชื่อ!D14,ใส่ชื่อ!E14&" "&ใส่ชื่อ!F14) -> เด็กหญิงน้ำหวาน พม่า | D20: =IF(เวลาเรียน!L21=0,"",เวลาเรียน!L21) -> 100 | E20: =IF(A20="","",ประเมินผลการเรียนเทอม2!DP19) -> 31.5 | F20: =IF(A20="","",ประเมินผลการเรียนเทอม2!DQ19) -> 38.5 | G20: =IF(A20="","",ประเมินผลการเรียนเทอม2!DS19) -> 70 | H20: =ประเมินผลการเรียนเทอม2!DT19 -> 3 | I20: =ประเมินผลการเรียนเทอม2!CQ19 -> ดย | J20: =ประเมินผลการเรียนเทอม2!DB19 -> ดย | K20: 3 | L20: =ปก!AH24 -> 8 | M20: =ปก!AH25 -> 40
A21: =IF(ใส่ชื่อ!A15="","",ใส่ชื่อ!A15) -> 14 | B21: =IF(ใส่ชื่อ!C15="","",ใบรายชื่อ!B20) -> 3010 | C21: =CONCATENATE(ใส่ชื่อ!D15,ใส่ชื่อ!E15&" "&ใส่ชื่อ!F15) -> เด็กหญิงชลิตา ยมนา | D21: =IF(เวลาเรียน!L22=0,"",เวลาเรียน!L22) -> 100 | E21: =IF(A21="","",ประเมินผลการเรียนเทอม2!DP20) -> 31 | F21: =IF(A21="","",ประเมินผลการเรียนเทอม2!DQ20) -> 34 | G21: =IF(A21="","",ประเมินผลการเรียนเทอม2!DS20) -> 65 | H21: =ประเมินผลการเรียนเทอม2!DT20 -> 2.5 | I21: =ประเมินผลการเรียนเทอม2!CQ20 -> ด | J21: =ประเมินผลการเรียนเทอม2!DB20 -> ด | K21: 2.5 | L21: =ปก!AJ24 -> 2 | M21: =ปก!AJ25 -> 10
A22: =IF(ใส่ชื่อ!A16="","",ใส่ชื่อ!A16) -> 15 | B22: =IF(ใส่ชื่อ!C16="","",ใบรายชื่อ!B21) -> 3043 | C22: =CONCATENATE(ใส่ชื่อ!D16,ใส่ชื่อ!E16&" "&ใส่ชื่อ!F16) -> เด็กหญิงฉัตรพรรณราย แสงรัตนายนต์ | D22: =IF(เวลาเรียน!L23=0,"",เวลาเรียน!L23) -> 100 | E22: =IF(A22="","",ประเมินผลการเรียนเทอม2!DP21) -> 41.5 | F22: =IF(A22="","",ประเมินผลการเรียนเทอม2!DQ21) -> 45.5 | G22: =IF(A22="","",ประเมินผลการเรียนเทอม2!DS21) -> 87 | H22: =ประเมินผลการเรียนเทอม2!DT21 -> 4 | I22: =ประเมินผลการเรียนเทอม2!CQ21 -> ดย | J22: =ประเมินผลการเรียนเทอม2!DB21 -> ดย | K22: 2 | L22: =ปก!AL24 -> 0 | M22: =ปก!AL25 -> 
A23: =IF(ใส่ชื่อ!A17="","",ใส่ชื่อ!A17) -> 16 | B23: =IF(ใส่ชื่อ!C17="","",ใบรายชื่อ!B22) -> 3084 | C23: =CONCATENATE(ใส่ชื่อ!D17,ใส่ชื่อ!E17&" "&ใส่ชื่อ!F17) -> เด็กชายธนวุฒิ - | D23: =IF(เวลาเรียน!L24=0,"",เวลาเรียน!L24) -> 100 | E23: =IF(A23="","",ประเมินผลการเรียนเทอม2!DP22) -> 45 | F23: =IF(A23="","",ประเมินผลการเรียนเทอม2!DQ22) -> 46 | G23: =IF(A23="","",ประเมินผลการเรียนเทอม2!DS22) -> 91 | H23: =ประเมินผลการเรียนเทอม2!DT22 -> 4 | I23: =ประเมินผลการเรียนเทอม2!CQ22 -> ดย | J23: =ประเมินผลการเรียนเทอม2!DB22 -> ดย | K23: 1.5 | L23: =ปก!AN24 -> 0 | M23: =ปก!AN25 -> 
A24: =IF(ใส่ชื่อ!A18="","",ใส่ชื่อ!A18) -> 17 | B24: =IF(ใส่ชื่อ!C18="","",ใบรายชื่อ!B23) -> 3098 | C24: =CONCATENATE(ใส่ชื่อ!D18,ใส่ชื่อ!E18&" "&ใส่ชื่อ!F18) -> เด็กหญิงวรรณพิชชา จันไทย | D24: =IF(เวลาเรียน!L25=0,"",เวลาเรียน!L25) -> 100 | E24: =IF(A24="","",ประเมินผลการเรียนเทอม2!DP23) -> 31 | F24: =IF(A24="","",ประเมินผลการเรียนเทอม2!DQ23) -> 40 | G24: =IF(A24="","",ประเมินผลการเรียนเทอม2!DS23) -> 71 | H24: =ประเมินผลการเรียนเทอม2!DT23 -> 3 | I24: =ประเมินผลการเรียนเทอม2!CQ23 -> ดย | J24: =ประเมินผลการเรียนเทอม2!DB23 -> ดย | K24: 1 | L24: =ปก!AP24 -> 0 | M24: =ปก!AP25 -> 
A25: =IF(ใส่ชื่อ!A19="","",ใส่ชื่อ!A19) -> 18 | B25: =IF(ใส่ชื่อ!C19="","",ใบรายชื่อ!B24) -> 3111 | C25: =CONCATENATE(ใส่ชื่อ!D19,ใส่ชื่อ!E19&" "&ใส่ชื่อ!F19) -> เด็กหญิงมานาทิพย์ สมดี | D25: =IF(เวลาเรียน!L26=0,"",เวลาเรียน!L26) -> 100 | E25: =IF(A25="","",ประเมินผลการเรียนเทอม2!DP24) -> 38.5 | F25: =IF(A25="","",ประเมินผลการเรียนเทอม2!DQ24) -> 41.5 | G25: =IF(A25="","",ประเมินผลการเรียนเทอม2!DS24) -> 80 | H25: =ประเมินผลการเรียนเทอม2!DT24 -> 4 | I25: =ประเมินผลการเรียนเทอม2!CQ24 -> ดย | J25: =ประเมินผลการเรียนเทอม2!DB24 -> ดย | K25: 0 | L25: =ปก!AR24 -> 0 | M25: =ปก!AR25 -> 
A26: =IF(ใส่ชื่อ!A20="","",ใส่ชื่อ!A20) -> 19 | B26: =IF(ใส่ชื่อ!C20="","",ใบรายชื่อ!B25) -> 3181 | C26: =CONCATENATE(ใส่ชื่อ!D20,ใส่ชื่อ!E20&" "&ใส่ชื่อ!F20) -> เด็กหญิงชุติกาญจน์ เอี่ยมโสด | D26: =IF(เวลาเรียน!L27=0,"",เวลาเรียน!L27) -> 100 | E26: =IF(A26="","",ประเมินผลการเรียนเทอม2!DP25) -> 35 | F26: =IF(A26="","",ประเมินผลการเรียนเทอม2!DQ25) -> 35.5 | G26: =IF(A26="","",ประเมินผลการเรียนเทอม2!DS25) -> 70.5 | H26: =ประเมินผลการเรียนเทอม2!DT25 -> 3 | I26: =ประเมินผลการเรียนเทอม2!CQ25 -> ดย | J26: =ประเมินผลการเรียนเทอม2!DB25 -> ดย | K26: มส | L26: =ปก!AT24 -> 0 | M26: =ปก!AT25 -> 
A27: =IF(ใส่ชื่อ!A21="","",ใส่ชื่อ!A21) -> 20 | B27: =IF(ใส่ชื่อ!C21="","",ใบรายชื่อ!B26) ->  | C27: =CONCATENATE(ใส่ชื่อ!D21,ใส่ชื่อ!E21&" "&ใส่ชื่อ!F21) -> เด็กหญิงฐิตาภรณ์ แย้มนาค | D27: =IF(เวลาเรียน!L28=0,"",เวลาเรียน!L28) -> 100 | E27: =IF(A27="","",ประเมินผลการเรียนเทอม2!DP26) -> 42 | F27: =IF(A27="","",ประเมินผลการเรียนเทอม2!DQ26) -> 38 | G27: =IF(A27="","",ประเมินผลการเรียนเทอม2!DS26) -> 80 | H27: =ประเมินผลการเรียนเทอม2!DT26 -> 4 | I27: =ประเมินผลการเรียนเทอม2!CQ26 -> ดย | J27: =ประเมินผลการเรียนเทอม2!DB26 -> ดย | K27: ผลการเรียนเฉลี่ยรายชั้นเรียน
A28: =IF(ใส่ชื่อ!A22="","",ใส่ชื่อ!A22) ->  | B28: =IF(ใส่ชื่อ!C22="","",ใบรายชื่อ!B27) ->  | C28: =CONCATENATE(ใส่ชื่อ!D22,ใส่ชื่อ!E22&" "&ใส่ชื่อ!F22) ->  | D28: =IF(เวลาเรียน!L29=0,"",เวลาเรียน!L29) ->  | E28: =IF(A28="","",ประเมินผลการเรียนเทอม2!DP27) ->  | F28: =IF(A28="","",ประเมินผลการเรียนเทอม2!DQ27) ->  | G28: =IF(A28="","",ประเมินผลการเรียนเทอม2!DS27) ->  | H28: =ประเมินผลการเรียนเทอม2!DT27 ->  | I28: =ประเมินผลการเรียนเทอม2!CQ27 ->  | J28: =ประเมินผลการเรียนเทอม2!DB27 ->  | K28: ร้อยละ | L28: =ปก!AX26 -> 3.4
A29: =IF(ใส่ชื่อ!A23="","",ใส่ชื่อ!A23) ->  | B29: =IF(ใส่ชื่อ!C23="","",ใบรายชื่อ!B28) ->  | C29: =CONCATENATE(ใส่ชื่อ!D23,ใส่ชื่อ!E23&" "&ใส่ชื่อ!F23) ->  | D29: =IF(เวลาเรียน!L30=0,"",เวลาเรียน!L30) ->  | E29: =IF(A29="","",ประเมินผลการเรียนเทอม2!DP28) ->  | F29: =IF(A29="","",ประเมินผลการเรียนเทอม2!DQ28) ->  | G29: =IF(A29="","",ประเมินผลการเรียนเทอม2!DS28) ->  | H29: =ประเมินผลการเรียนเทอม2!DT28 ->  | I29: =ประเมินผลการเรียนเทอม2!CQ28 ->  | J29: =ประเมินผลการเรียนเทอม2!DB28 ->  | K29: SD | L29: =ปก!AX27 -> 0.5525062515
A30: =IF(ใส่ชื่อ!A24="","",ใส่ชื่อ!A24) ->  | B30: =IF(ใส่ชื่อ!C24="","",ใบรายชื่อ!B29) ->  | C30: =CONCATENATE(ใส่ชื่อ!D24,ใส่ชื่อ!E24&" "&ใส่ชื่อ!F24) ->  | D30: =IF(เวลาเรียน!L31=0,"",เวลาเรียน!L31) ->  | E30: =IF(A30="","",ประเมินผลการเรียนเทอม2!DP29) ->  | F30: =IF(A30="","",ประเมินผลการเรียนเทอม2!DQ29) ->  | G30: =IF(A30="","",ประเมินผลการเรียนเทอม2!DS29) ->  | H30: =ประเมินผลการเรียนเทอม2!DT29 ->  | I30: =ประเมินผลการเรียนเทอม2!CQ29 ->  | J30: =ประเมินผลการเรียนเทอม2!DB29 ->  | K30: คะแนนเฉลี่ยรายชั้นเรียน
A31: =IF(ใส่ชื่อ!A25="","",ใส่ชื่อ!A25) ->  | B31: =IF(ใส่ชื่อ!C25="","",ใบรายชื่อ!B30) ->  | C31: =CONCATENATE(ใส่ชื่อ!D25,ใส่ชื่อ!E25&" "&ใส่ชื่อ!F25) ->  | D31: =IF(เวลาเรียน!L32=0,"",เวลาเรียน!L32) ->  | E31: =IF(A31="","",ประเมินผลการเรียนเทอม2!DP30) ->  | F31: =IF(A31="","",ประเมินผลการเรียนเทอม2!DQ30) ->  | G31: =IF(A31="","",ประเมินผลการเรียนเทอม2!DS30) ->  | H31: =ประเมินผลการเรียนเทอม2!DT30 ->  | I31: =ประเมินผลการเรียนเทอม2!CQ30 ->  | J31: =ประเมินผลการเรียนเทอม2!DB30 ->  | K31: ภาคเรียนที่1 | L31: ภาคเรียนที่2 | M31: ปีการศึกษา | N31: =SUM(#REF!) ->  | O31: =SUM(#REF!) -> 
A32: =IF(ใส่ชื่อ!A26="","",ใส่ชื่อ!A26) ->  | B32: =IF(ใส่ชื่อ!C26="","",ใบรายชื่อ!B31) ->  | C32: =CONCATENATE(ใส่ชื่อ!D26,ใส่ชื่อ!E26&" "&ใส่ชื่อ!F26) ->  | D32: =IF(เวลาเรียน!L33=0,"",เวลาเรียน!L33) ->  | E32: =IF(A32="","",ประเมินผลการเรียนเทอม2!DP31) ->  | F32: =IF(A32="","",ประเมินผลการเรียนเทอม2!DQ31) ->  | G32: =IF(A32="","",ประเมินผลการเรียนเทอม2!DS31) ->  | H32: =ประเมินผลการเรียนเทอม2!DT31 ->  | I32: =ประเมินผลการเรียนเทอม2!CQ31 ->  | J32: =ประเมินผลการเรียนเทอม2!DB31 ->  | K32: =IF(E58=0,"-",AVERAGE(E8:E57)) -> 35.55 | L32: =IF(F58=0,"-",AVERAGE(F8:F57)) -> 40.4 | M32: =IF(G58=0,"-",AVERAGE(G8:G57)) -> 75.95
A33: =IF(ใส่ชื่อ!A27="","",ใส่ชื่อ!A27) ->  | B33: =IF(ใส่ชื่อ!C27="","",ใบรายชื่อ!B32) ->  | C33: =CONCATENATE(ใส่ชื่อ!D27,ใส่ชื่อ!E27&" "&ใส่ชื่อ!F27) ->  | D33: =IF(เวลาเรียน!L34=0,"",เวลาเรียน!L34) ->  | E33: =IF(A33="","",ประเมินผลการเรียนเทอม2!DP32) ->  | F33: =IF(A33="","",ประเมินผลการเรียนเทอม2!DQ32) ->  | G33: =IF(A33="","",ประเมินผลการเรียนเทอม2!DS32) ->  | H33: =ประเมินผลการเรียนเทอม2!DT32 ->  | I33: =ประเมินผลการเรียนเทอม2!CQ32 ->  | J33: =ประเมินผลการเรียนเทอม2!DB32 ->  | K33: สรุปผลการอ่าน คิด วิเคราะห์ และเขียน
A34: =IF(ใส่ชื่อ!A28="","",ใส่ชื่อ!A28) ->  | B34: =IF(ใส่ชื่อ!C28="","",ใบรายชื่อ!B33) ->  | C34: =CONCATENATE(ใส่ชื่อ!D28,ใส่ชื่อ!E28&" "&ใส่ชื่อ!F28) ->  | D34: =IF(เวลาเรียน!L35=0,"",เวลาเรียน!L35) ->  | E34: =IF(A34="","",ประเมินผลการเรียนเทอม2!DP33) ->  | F34: =IF(A34="","",ประเมินผลการเรียนเทอม2!DQ33) ->  | G34: =IF(A34="","",ประเมินผลการเรียนเทอม2!DS33) ->  | H34: =ประเมินผลการเรียนเทอม2!DT33 ->  | I34: =ประเมินผลการเรียนเทอม2!CQ33 ->  | J34: =ประเมินผลการเรียนเทอม2!DB33 ->  | K34: ผลประเมิน | L34: จำนวน | M34: ร้อยละ
A35: =IF(ใส่ชื่อ!A29="","",ใส่ชื่อ!A29) ->  | B35: =IF(ใส่ชื่อ!C29="","",ใบรายชื่อ!B34) ->  | C35: =CONCATENATE(ใส่ชื่อ!D29,ใส่ชื่อ!E29&" "&ใส่ชื่อ!F29) ->  | D35: =IF(เวลาเรียน!L36=0,"",เวลาเรียน!L36) ->  | E35: =IF(A35="","",ประเมินผลการเรียนเทอม2!DP34) ->  | F35: =IF(A35="","",ประเมินผลการเรียนเทอม2!DQ34) ->  | G35: =IF(A35="","",ประเมินผลการเรียนเทอม2!DS34) ->  | H35: =ประเมินผลการเรียนเทอม2!DT34 ->  | I35: =ประเมินผลการเรียนเทอม2!CQ34 ->  | J35: =ประเมินผลการเรียนเทอม2!DB34 ->  | K35: ดีเยี่ยม | L35: =ปก!AC30 -> 17 | M35: =ปก!AC31 -> 85
A36: =IF(ใส่ชื่อ!A30="","",ใส่ชื่อ!A30) ->  | B36: =IF(ใส่ชื่อ!C30="","",ใบรายชื่อ!B35) ->  | C36: =CONCATENATE(ใส่ชื่อ!D30,ใส่ชื่อ!E30&" "&ใส่ชื่อ!F30) ->  | D36: =IF(เวลาเรียน!L37=0,"",เวลาเรียน!L37) ->  | E36: =IF(A36="","",ประเมินผลการเรียนเทอม2!DP35) ->  | F36: =IF(A36="","",ประเมินผลการเรียนเทอม2!DQ35) ->  | G36: =IF(A36="","",ประเมินผลการเรียนเทอม2!DS35) ->  | H36: =ประเมินผลการเรียนเทอม2!DT35 ->  | I36: =ประเมินผลการเรียนเทอม2!CQ35 ->  | J36: =ประเมินผลการเรียนเทอม2!DB35 ->  | K36: ดี | L36: =ปก!AF30 -> 3 | M36: =ปก!AF31 -> 15
A37: =IF(ใส่ชื่อ!A31="","",ใส่ชื่อ!A31) ->  | B37: =IF(ใส่ชื่อ!C31="","",ใบรายชื่อ!B36) ->  | C37: =CONCATENATE(ใส่ชื่อ!D31,ใส่ชื่อ!E31&" "&ใส่ชื่อ!F31) ->  | D37: =IF(เวลาเรียน!L38=0,"",เวลาเรียน!L38) ->  | E37: =IF(A37="","",ประเมินผลการเรียนเทอม2!DP36) ->  | F37: =IF(A37="","",ประเมินผลการเรียนเทอม2!DQ36) ->  | G37: =IF(A37="","",ประเมินผลการเรียนเทอม2!DS36) ->  | H37: =ประเมินผลการเรียนเทอม2!DT36 ->  | I37: =ประเมินผลการเรียนเทอม2!CQ36 ->  | J37: =ประเมินผลการเรียนเทอม2!DB36 ->  | K37: ผ่าน | L37: =ปก!AI30 -> 0 | M37: =ปก!AI31 ->  | N37: =SUM(#REF!) ->  | O37: =SUM(#REF!) -> 
A38: =IF(ใส่ชื่อ!A32="","",ใส่ชื่อ!A32) ->  | B38: =IF(ใส่ชื่อ!C32="","",ใบรายชื่อ!B37) ->  | C38: =CONCATENATE(ใส่ชื่อ!D32,ใส่ชื่อ!E32&" "&ใส่ชื่อ!F32) ->  | D38: =IF(เวลาเรียน!L39=0,"",เวลาเรียน!L39) ->  | E38: =IF(A38="","",ประเมินผลการเรียนเทอม2!DP37) ->  | F38: =IF(A38="","",ประเมินผลการเรียนเทอม2!DQ37) ->  | G38: =IF(A38="","",ประเมินผลการเรียนเทอม2!DS37) ->  | H38: =ประเมินผลการเรียนเทอม2!DT37 ->  | I38: =ประเมินผลการเรียนเทอม2!CQ37 ->  | J38: =ประเมินผลการเรียนเทอม2!DB37 ->  | K38: ไม่ผ่าน | L38: =ปก!AL30 -> 0 | M38: =ปก!AL31 -> 
A39: =IF(ใส่ชื่อ!A33="","",ใส่ชื่อ!A33) ->  | B39: =IF(ใส่ชื่อ!C33="","",ใบรายชื่อ!B38) ->  | C39: =CONCATENATE(ใส่ชื่อ!D33,ใส่ชื่อ!E33&" "&ใส่ชื่อ!F33) ->  | D39: =IF(เวลาเรียน!L40=0,"",เวลาเรียน!L40) ->  | E39: =IF(A39="","",ประเมินผลการเรียนเทอม2!DP38) ->  | F39: =IF(A39="","",ประเมินผลการเรียนเทอม2!DQ38) ->  | G39: =IF(A39="","",ประเมินผลการเรียนเทอม2!DS38) ->  | H39: =ประเมินผลการเรียนเทอม2!DT38 ->  | I39: =ประเมินผลการเรียนเทอม2!CQ38 ->  | J39: =ประเมินผลการเรียนเทอม2!DB38 ->  | K39: สรุปผลการประเมินคุณลักษณะอันพึงประสงค์
A40: =IF(ใส่ชื่อ!A34="","",ใส่ชื่อ!A34) ->  | B40: =IF(ใส่ชื่อ!C34="","",ใบรายชื่อ!B39) ->  | C40: =CONCATENATE(ใส่ชื่อ!D34,ใส่ชื่อ!E34&" "&ใส่ชื่อ!F34) ->  | D40: =IF(เวลาเรียน!L41=0,"",เวลาเรียน!L41) ->  | E40: =IF(A40="","",ประเมินผลการเรียนเทอม2!DP39) ->  | F40: =IF(A40="","",ประเมินผลการเรียนเทอม2!DQ39) ->  | G40: =IF(A40="","",ประเมินผลการเรียนเทอม2!DS39) ->  | H40: =ประเมินผลการเรียนเทอม2!DT39 ->  | I40: =ประเมินผลการเรียนเทอม2!CQ39 ->  | J40: =ประเมินผลการเรียนเทอม2!DB39 ->  | K40: ผลประเมิน | L40: จำนวน | M40: ร้อยละ
A41: =IF(ใส่ชื่อ!A35="","",ใส่ชื่อ!A35) ->  | B41: =IF(ใส่ชื่อ!C35="","",ใบรายชื่อ!B40) ->  | C41: =CONCATENATE(ใส่ชื่อ!D35,ใส่ชื่อ!E35&" "&ใส่ชื่อ!F35) ->  | D41: =IF(เวลาเรียน!L42=0,"",เวลาเรียน!L42) ->  | E41: =IF(A41="","",ประเมินผลการเรียนเทอม2!DP40) ->  | F41: =IF(A41="","",ประเมินผลการเรียนเทอม2!DQ40) ->  | G41: =IF(A41="","",ประเมินผลการเรียนเทอม2!DS40) ->  | H41: =ประเมินผลการเรียนเทอม2!DT40 ->  | I41: =ประเมินผลการเรียนเทอม2!CQ40 ->  | J41: =ประเมินผลการเรียนเทอม2!DB40 ->  | K41: ดีเยี่ยม | L41: =ปก!AO30 -> 17 | M41: =ปก!AO31 -> 85
A42: =IF(ใส่ชื่อ!A36="","",ใส่ชื่อ!A36) ->  | B42: =IF(ใส่ชื่อ!C36="","",ใบรายชื่อ!B41) ->  | C42: =CONCATENATE(ใส่ชื่อ!D36,ใส่ชื่อ!E36&" "&ใส่ชื่อ!F36) ->  | D42: =IF(เวลาเรียน!L43=0,"",เวลาเรียน!L43) ->  | E42: =IF(A42="","",ประเมินผลการเรียนเทอม2!DP41) ->  | F42: =IF(A42="","",ประเมินผลการเรียนเทอม2!DQ41) ->  | G42: =IF(A42="","",ประเมินผลการเรียนเทอม2!DS41) ->  | H42: =ประเมินผลการเรียนเทอม2!DT41 ->  | I42: =ประเมินผลการเรียนเทอม2!CQ41 ->  | J42: =ประเมินผลการเรียนเทอม2!DB41 ->  | K42: ดี | L42: =ปก!AR30 -> 3 | M42: =ปก!AR31 -> 15
A43: =IF(ใส่ชื่อ!A37="","",ใส่ชื่อ!A37) ->  | B43: =IF(ใส่ชื่อ!C37="","",ใบรายชื่อ!B42) ->  | C43: =CONCATENATE(ใส่ชื่อ!D37,ใส่ชื่อ!E37&" "&ใส่ชื่อ!F37) ->  | D43: =IF(เวลาเรียน!L44=0,"",เวลาเรียน!L44) ->  | E43: =IF(A43="","",ประเมินผลการเรียนเทอม2!DP42) ->  | F43: =IF(A43="","",ประเมินผลการเรียนเทอม2!DQ42) ->  | G43: =IF(A43="","",ประเมินผลการเรียนเทอม2!DS42) ->  | H43: =ประเมินผลการเรียนเทอม2!DT42 ->  | I43: =ประเมินผลการเรียนเทอม2!CQ42 ->  | J43: =ประเมินผลการเรียนเทอม2!DB42 ->  | K43: ผ่าน | L43: =ปก!AU30 -> 0 | M43: =ปก!AU31 ->  | N43: =SUM(#REF!) ->  | O43: =SUM(#REF!) -> 
A44: =IF(ใส่ชื่อ!A38="","",ใส่ชื่อ!A38) ->  | B44: =IF(ใส่ชื่อ!C38="","",ใบรายชื่อ!B43) ->  | C44: =CONCATENATE(ใส่ชื่อ!D38,ใส่ชื่อ!E38&" "&ใส่ชื่อ!F38) ->  | D44: =IF(เวลาเรียน!L45=0,"",เวลาเรียน!L45) ->  | E44: =IF(A44="","",ประเมินผลการเรียนเทอม2!DP43) ->  | F44: =IF(A44="","",ประเมินผลการเรียนเทอม2!DQ43) ->  | G44: =IF(A44="","",ประเมินผลการเรียนเทอม2!DS43) ->  | H44: =ประเมินผลการเรียนเทอม2!DT43 ->  | I44: =ประเมินผลการเรียนเทอม2!CQ43 ->  | J44: =ประเมินผลการเรียนเทอม2!DB43 ->  | K44: ไม่ผ่าน | L44: =ปก!AX30 -> 0 | M44: =ปก!AX31 -> 
A45: =IF(ใส่ชื่อ!A39="","",ใส่ชื่อ!A39) ->  | B45: =IF(ใส่ชื่อ!C39="","",ใบรายชื่อ!B44) ->  | C45: =CONCATENATE(ใส่ชื่อ!D39,ใส่ชื่อ!E39&" "&ใส่ชื่อ!F39) ->  | D45: =IF(เวลาเรียน!L46=0,"",เวลาเรียน!L46) ->  | E45: =IF(A45="","",ประเมินผลการเรียนเทอม2!DP44) ->  | F45: =IF(A45="","",ประเมินผลการเรียนเทอม2!DQ44) ->  | G45: =IF(A45="","",ประเมินผลการเรียนเทอม2!DS44) ->  | H45: =ประเมินผลการเรียนเทอม2!DT44 ->  | I45: =ประเมินผลการเรียนเทอม2!CQ44 ->  | J45: =ประเมินผลการเรียนเทอม2!DB44 -> 
A46: =IF(ใส่ชื่อ!A40="","",ใส่ชื่อ!A40) ->  | B46: =IF(ใส่ชื่อ!C40="","",ใบรายชื่อ!B45) ->  | C46: =CONCATENATE(ใส่ชื่อ!D40,ใส่ชื่อ!E40&" "&ใส่ชื่อ!F40) ->  | D46: =IF(เวลาเรียน!L47=0,"",เวลาเรียน!L47) ->  | E46: =IF(A46="","",ประเมินผลการเรียนเทอม2!DP45) ->  | F46: =IF(A46="","",ประเมินผลการเรียนเทอม2!DQ45) ->  | G46: =IF(A46="","",ประเมินผลการเรียนเทอม2!DS45) ->  | H46: =ประเมินผลการเรียนเทอม2!DT45 ->  | I46: =ประเมินผลการเรียนเทอม2!CQ45 ->  | J46: =ประเมินผลการเรียนเทอม2!DB45 ->  | K46: ลงชื่อ.......................................................
A47: =IF(ใส่ชื่อ!A41="","",ใส่ชื่อ!A41) ->  | B47: =IF(ใส่ชื่อ!C41="","",ใบรายชื่อ!B46) ->  | C47: =CONCATENATE(ใส่ชื่อ!D41,ใส่ชื่อ!E41&" "&ใส่ชื่อ!F41) ->  | D47: =IF(เวลาเรียน!L48=0,"",เวลาเรียน!L48) ->  | E47: =IF(A47="","",ประเมินผลการเรียนเทอม2!DP46) ->  | F47: =IF(A47="","",ประเมินผลการเรียนเทอม2!DQ46) ->  | G47: =IF(A47="","",ประเมินผลการเรียนเทอม2!DS46) ->  | H47: =ประเมินผลการเรียนเทอม2!DT46 ->  | I47: =ประเมินผลการเรียนเทอม2!CQ46 ->  | J47: =ประเมินผลการเรียนเทอม2!DB46 ->  | K47: =IF(ปก!C29="","",("("&ปก!C29&")")) -> (นายฐิตวัฒน์ เคลื่อนคล้อย)
A48: =IF(ใส่ชื่อ!A42="","",ใส่ชื่อ!A42) ->  | B48: =IF(ใส่ชื่อ!C42="","",ใบรายชื่อ!B47) ->  | C48: =CONCATENATE(ใส่ชื่อ!D42,ใส่ชื่อ!E42&" "&ใส่ชื่อ!F42) ->  | D48: =IF(เวลาเรียน!L49=0,"",เวลาเรียน!L49) ->  | E48: =IF(A48="","",ประเมินผลการเรียนเทอม2!DP47) ->  | F48: =IF(A48="","",ประเมินผลการเรียนเทอม2!DQ47) ->  | G48: =IF(A48="","",ประเมินผลการเรียนเทอม2!DS47) ->  | H48: =ประเมินผลการเรียนเทอม2!DT47 ->  | I48: =ประเมินผลการเรียนเทอม2!CQ47 ->  | J48: =ประเมินผลการเรียนเทอม2!DB47 ->  | K48: ครูผู้สอน
A49: =IF(ใส่ชื่อ!A43="","",ใส่ชื่อ!A43) ->  | B49: =IF(ใส่ชื่อ!C43="","",ใบรายชื่อ!B48) ->  | C49: =CONCATENATE(ใส่ชื่อ!D43,ใส่ชื่อ!E43&" "&ใส่ชื่อ!F43) ->  | D49: =IF(เวลาเรียน!L50=0,"",เวลาเรียน!L50) ->  | E49: =IF(A49="","",ประเมินผลการเรียนเทอม2!DP48) ->  | F49: =IF(A49="","",ประเมินผลการเรียนเทอม2!DQ48) ->  | G49: =IF(A49="","",ประเมินผลการเรียนเทอม2!DS48) ->  | H49: =ประเมินผลการเรียนเทอม2!DT48 ->  | I49: =ประเมินผลการเรียนเทอม2!CQ48 ->  | J49: =ประเมินผลการเรียนเทอม2!DB48 ->  | K49: หัวหน้ากลุ่มสาระฯ...............................................
A50: =IF(ใส่ชื่อ!A44="","",ใส่ชื่อ!A44) ->  | B50: =IF(ใส่ชื่อ!C44="","",ใบรายชื่อ!B49) ->  | C50: =CONCATENATE(ใส่ชื่อ!D44,ใส่ชื่อ!E44&" "&ใส่ชื่อ!F44) ->  | D50: =IF(เวลาเรียน!L51=0,"",เวลาเรียน!L51) ->  | E50: =IF(A50="","",ประเมินผลการเรียนเทอม2!DP49) ->  | F50: =IF(A50="","",ประเมินผลการเรียนเทอม2!DQ49) ->  | G50: =IF(A50="","",ประเมินผลการเรียนเทอม2!DS49) ->  | H50: =ประเมินผลการเรียนเทอม2!DT49 ->  | I50: =ประเมินผลการเรียนเทอม2!CQ49 ->  | J50: =ประเมินผลการเรียนเทอม2!DB49 ->  | K50: หัวหน้างานวัดผลฯ .......................................
A51: =IF(ใส่ชื่อ!A45="","",ใส่ชื่อ!A45) ->  | B51: =IF(ใส่ชื่อ!C45="","",ใบรายชื่อ!B50) ->  | C51: =CONCATENATE(ใส่ชื่อ!D45,ใส่ชื่อ!E45&" "&ใส่ชื่อ!F45) ->  | D51: =IF(เวลาเรียน!L52=0,"",เวลาเรียน!L52) ->  | E51: =IF(A51="","",ประเมินผลการเรียนเทอม2!DP50) ->  | F51: =IF(A51="","",ประเมินผลการเรียนเทอม2!DQ50) ->  | G51: =IF(A51="","",ประเมินผลการเรียนเทอม2!DS50) ->  | H51: =ประเมินผลการเรียนเทอม2!DT50 ->  | I51: =ประเมินผลการเรียนเทอม2!CQ50 ->  | J51: =ประเมินผลการเรียนเทอม2!DB50 ->  | K51: นายทะเบียน ...........................................
A52: =IF(ใส่ชื่อ!A46="","",ใส่ชื่อ!A46) ->  | B52: =IF(ใส่ชื่อ!C46="","",ใบรายชื่อ!B51) ->  | C52: =CONCATENATE(ใส่ชื่อ!D46,ใส่ชื่อ!E46&" "&ใส่ชื่อ!F46) ->  | D52: =IF(เวลาเรียน!L53=0,"",เวลาเรียน!L53) ->  | E52: =IF(A52="","",ประเมินผลการเรียนเทอม2!DP51) ->  | F52: =IF(A52="","",ประเมินผลการเรียนเทอม2!DQ51) ->  | G52: =IF(A52="","",ประเมินผลการเรียนเทอม2!DS51) ->  | H52: =ประเมินผลการเรียนเทอม2!DT51 ->  | I52: =ประเมินผลการเรียนเทอม2!CQ51 ->  | J52: =ประเมินผลการเรียนเทอม2!DB51 ->  | K52: รองฯวิชาการ..........................................
A53: =IF(ใส่ชื่อ!A47="","",ใส่ชื่อ!A47) ->  | B53: =IF(ใส่ชื่อ!C47="","",ใบรายชื่อ!B52) ->  | C53: =CONCATENATE(ใส่ชื่อ!D47,ใส่ชื่อ!E47&" "&ใส่ชื่อ!F47) ->  | D53: =IF(เวลาเรียน!L54=0,"",เวลาเรียน!L54) ->  | E53: =IF(A53="","",ประเมินผลการเรียนเทอม2!DP52) ->  | F53: =IF(A53="","",ประเมินผลการเรียนเทอม2!DQ52) ->  | G53: =IF(A53="","",ประเมินผลการเรียนเทอม2!DS52) ->  | H53: =ประเมินผลการเรียนเทอม2!DT52 ->  | I53: =ประเมินผลการเรียนเทอม2!CQ52 ->  | J53: =ประเมินผลการเรียนเทอม2!DB52 -> 
A54: =IF(ใส่ชื่อ!A48="","",ใส่ชื่อ!A48) ->  | B54: =IF(ใส่ชื่อ!C48="","",ใบรายชื่อ!B53) ->  | C54: =CONCATENATE(ใส่ชื่อ!D48,ใส่ชื่อ!E48&" "&ใส่ชื่อ!F48) ->  | D54: =IF(เวลาเรียน!L55=0,"",เวลาเรียน!L55) ->  | E54: =IF(A54="","",ประเมินผลการเรียนเทอม2!DP53) ->  | F54: =IF(A54="","",ประเมินผลการเรียนเทอม2!DQ53) ->  | G54: =IF(A54="","",ประเมินผลการเรียนเทอม2!DS53) ->  | H54: =ประเมินผลการเรียนเทอม2!DT53 ->  | I54: =ประเมินผลการเรียนเทอม2!CQ53 ->  | J54: =ประเมินผลการเรียนเทอม2!DB53 ->  | K54: ลงชื่อ.......................................................
A55: =IF(ใส่ชื่อ!A49="","",ใส่ชื่อ!A49) ->  | B55: =IF(ใส่ชื่อ!C49="","",ใบรายชื่อ!B54) ->  | C55: =CONCATENATE(ใส่ชื่อ!D49,ใส่ชื่อ!E49&" "&ใส่ชื่อ!F49) ->  | D55: =IF(เวลาเรียน!L56=0,"",เวลาเรียน!L56) ->  | E55: =IF(A55="","",ประเมินผลการเรียนเทอม2!DP54) ->  | F55: =IF(A55="","",ประเมินผลการเรียนเทอม2!DQ54) ->  | G55: =IF(A55="","",ประเมินผลการเรียนเทอม2!DS54) ->  | H55: =ประเมินผลการเรียนเทอม2!DT54 ->  | I55: =ประเมินผลการเรียนเทอม2!CQ54 ->  | J55: =ประเมินผลการเรียนเทอม2!DB54 ->  | K55: =ปก!AO41 -> (นางชญาดา สุขวงค์ตานนท์)
A56: =IF(ใส่ชื่อ!A50="","",ใส่ชื่อ!A50) ->  | B56: =IF(ใส่ชื่อ!C50="","",ใบรายชื่อ!B55) ->  | C56: =CONCATENATE(ใส่ชื่อ!D50,ใส่ชื่อ!E50&" "&ใส่ชื่อ!F50) ->  | D56: =IF(เวลาเรียน!L57=0,"",เวลาเรียน!L57) ->  | E56: =IF(A56="","",ประเมินผลการเรียนเทอม2!DP55) ->  | F56: =IF(A56="","",ประเมินผลการเรียนเทอม2!DQ55) ->  | G56: =IF(A56="","",ประเมินผลการเรียนเทอม2!DS55) ->  | H56: =ประเมินผลการเรียนเทอม2!DT55 ->  | I56: =ประเมินผลการเรียนเทอม2!CQ55 ->  | J56: =ประเมินผลการเรียนเทอม2!DB55 ->  | K56: =IF(ปก!AN40="ลงชื่อ...........................................ผู้อำนวยการสถานศึกษา","ผู้อำนวยการสถานศึกษา","รักษาการผู้อำนวยการสถานศึกษา") -> ผู้อำนวยการสถานศึกษา
A57: =IF(ใส่ชื่อ!A51="","",ใส่ชื่อ!A51) ->  | B57: =IF(ใส่ชื่อ!C51="","",ใบรายชื่อ!B56) ->  | C57: =CONCATENATE(ใส่ชื่อ!D51,ใส่ชื่อ!E51&" "&ใส่ชื่อ!F51) ->  | D57: =IF(เวลาเรียน!L58=0,"",เวลาเรียน!L58) ->  | E57: =IF(A57="","",ประเมินผลการเรียนเทอม2!DP56) ->  | F57: =IF(A57="","",ประเมินผลการเรียนเทอม2!DQ56) ->  | G57: =IF(A57="","",ประเมินผลการเรียนเทอม2!DS56) ->  | H57: =ประเมินผลการเรียนเทอม2!DT56 ->  | I57: =ประเมินผลการเรียนเทอม2!CQ56 ->  | J57: =ประเมินผลการเรียนเทอม2!DB56 ->  | K57: ............./............../...............
E58: =SUM(E8:E57) -> 711 | F58: =SUM(F8:F57) -> 808 | G58: =SUM(G8:G57) -> 1519

Sheet กำหนดชิ้นงานฯ
A1: ="ภาระงานชิ้นงานที่มอบหมาย รายวิชา"&ปก!AS15 -> ภาระงานชิ้นงานที่มอบหมาย รายวิชา -
A2: ="ปีการศึกษา "&ปก!C16 -> ปีการศึกษา 2565
A3: ลำดับงานที่/ สอบหน่วยที่ | C3: ชื่อ ชิ้นงาน/ภาระงาน/การสอบ/กิจกรรม/ เครื่องมือวัดผล | D3: =IF(ปก!C25="","ความสัมพันธ์กับตัวชี้วัด/ ผลการเรียนรู้",IF(ปก!C25="พื้นฐาน","ตอบสนองตัวชี้วัดที่",IF(ปก!C25="เพิ่มเติม","ตอบสนองผลการเรียนรู้ที่"))) -> ตอบสนองตัวชี้วัดที่ | E3: คะแนน | F3: กำหนดส่ง/ กำหนดสอบ | G3: หมายเหตุ
A41: คะแนนรวม (เก็บ) | E41: =SUM(E4:E40) -> 0
A42: ="คะแนนเก็บจริง( "&[3]ประเมินผลการเรียน!AB6&" คะแนน)" -> คะแนนเก็บจริง( 80 คะแนน)
F52: ม.1/1
F53: ม.1/2
F54: ม.1/3
F55: ม.1/4
F56: ม.1/5
F57: ม.1/6
F58: ม.1/7
F59: ม.1/8
F60: ม.1/9
F61: ม.1/10
F62: ม.2/1
F63: ม.2/2
F64: ม.2/3
F65: ม.2/4
F66: ม.2/5
F67: ม.2/6
F68: ม.2/7
F69: ม.2/8
F70: ม.2/9
F71: ม.2/10
F72: ม.3/1
F73: ม.3/2
F74: ม.3/3
F75: ม.3/4
F76: ม.3/5
F77: ม.3/6
F78: ม.3/7
F79: ม.3/8
F80: ม.3/9
F81: ม.3/10
F82: ม.4-6/1
F83: ม.4-6/2
F84: ม.4-6/3
F85: ม.4-6/4
F86: ม.4-6/5
F87: ม.4-6/6
F88: ม.4-6/7
F89: ม.4-6/8
F90: ม.4-6/9
F91: ม.4-6/10
F92: ม.4-6/11
F93: ม.4-6/12
F94: ม.4-6/13
F95: ม.4-6/14
F96: ม.4-6/15
F97: ม.4-6/16
F98: ม.4-6/17
F99: ม.4-6/18
F100: ม.4-6/19
F101: ม.4-6/20
F102: ม.4-6/21
F103: ม.4-6/22
F104: ม.4-6/23
F105: ม.4-6/24
F106: ม.4-6/25
F107: ม.4-6/26
F108: ม.4-6/27
F109: ม.4-6/28
F110: ม.4-6/29
F111: ม.4-6/30
F112: ข้อ 1
F113: ข้อ 2
F114: ข้อ 3
F115: ข้อ 4
F116: ข้อ 5
F117: ข้อ 6
F118: ข้อ 7
F119: ข้อ 8
F120: ข้อ 9
F121: ข้อ 10
F122: ข้อ 11
F123: ข้อ 12
F124: ข้อ 13
F125: ข้อ 14
F126: ข้อ 15
F127: ข้อ 16
F128: ข้อ 17
F129: ข้อ 18
F130: ข้อ 19
F131: ข้อ 20
F132: ข้อ 21
F133: ข้อ 22
F134: ข้อ 23
F135: ข้อ 24
F136: ข้อ 25
F137: ข้อ 26
F138: ข้อ 27
F139: ข้อ 28
F140: ข้อ 29
F141: ข้อ 30

Sheet แผนภูมิสรุป
A2: ="แผนภูมิแสดงจำนวนนักเรียนที่ได้ระดับผลการเรียน รายวิชา "&ปก!C26&" รหัสวิชา "&ปก!C27 -> แผนภูมิแสดงจำนวนนักเรียนที่ได้ระดับผลการเรียน รายวิชา หน้าที่พลเมือง รหัสวิชา -
A14: แผนภูมิแสดงร้อยละของนักเรียนที่ได้ระดับผลการเรียนแต่ละระดับ
A26: แผนภูมิแสดงร้อยละของนักเรียนที่ได้ผลการเรียนระดับดี(3) ขึ้นไป
M37: =SUM(ปก!AD24:AI24) -> 18
M38: =SUM(ปก!AJ23:AQ23) -> 7
M39: =ปก!AR23:AU23 -> 

Sheet โครงสร้างรายวิชา
A1: ="โครงสร้างรายวิชา "&ปก!AC15&" "&"รหัสวิชา"&" "&ปก!AS15 -> โครงสร้างรายวิชา หน้าที่พลเมือง รหัสวิชา -
A2: ข้อที่ | B2: =IF(ปก!C25="","",IF(ปก!C25="พื้นฐาน","ตัวชี้วัด",IF(ปก!C25="เพิ่มเติม","ผลการเรียนรู้"))) -> ตัวชี้วัด | E2: คะแนนประเมินผลรายปี | I2: รวม ปี
E3: ระหว่างภาคเรียนที่ 1 | F3: สอบ ปลาย ภาคเรียนที่ 1 | G3: ระหว่างภาคเรียนที่ 2 | H3: สอบ ปลาย ภาคเรียนที่ 2
I4: =SUM(E4:H4) -> 0
I5: =SUM(E5:H5) -> 0
I6: 0
I7: 0
I8: 0
I9: 0
I10: 0
I11: 0
I12: 0
I13: 0
I14: 0
I15: 0
I16: 0
I17: 0
I18: 0
I19: 0
I20: 0
I21: 0
I22: 0
I23: 0
I24: 0
I25: 0
I26: 0
I27: 0
I28: 0
I29: 0
I30: 0
I31: 0
I32: =SUM(E32:H32) -> 0
I33: 0
I34: 0
I35: 0
I36: 0
I37: 0
I38: 0
I39: 0
I40: 0
I41: 0
I42: 0
I43: 0
I44: 0
I45: 0
I46: 0
A47: ="เวลาเรียน "&ปก!AC16&" "&ปก!AE16 -> เวลาเรียน 40 ชั่วโมงต่อปี
A49: ="โครงสร้างรายวิชา "&ปก!AC15&" "&"รหัสวิชา"&" "&ปก!AS15&" (หน้า 2)" -> โครงสร้างรายวิชา หน้าที่พลเมือง รหัสวิชา - (หน้า 2)
A50: ข้อที่ | B50: =IF(ปก!C25="","",IF(ปก!C25="พื้นฐาน","ตัวชี้วัด",IF(ปก!C25="เพิ่มเติม","ผลการเรียนรู้"))) -> ตัวชี้วัด | E50: คะแนนประเมินผลรายปี | I50: รวม
E51: ระหว่างภาคเรียนที่ 1 | F51: สอบ ปลาย ภาคเรียนที่ 1 | G51: ระหว่างภาคเรียนที่ 2 | H51: สอบ ปลาย ภาคเรียนที่ 2
I52: =SUM(E52:H52) -> 0
I53: =SUM(E53:H53) -> 0
I54: 0
I55: 0
I56: 0
I57: 0
I58: 0
I59: 0
I60: 0
I61: 0
I62: 0
I63: 0
I64: 0
I65: 0
I66: 0
I67: 0
I68: 0
I69: 0
I70: 0
I71: 0
I72: 0
I73: 0
I74: 0
I75: 0
I76: 0
I77: 0
A78: คะแนนรวม (100 คะแนน) | E78: =SUM(E4:E46,E52:E77) -> 0 | F78: =SUM(F4:F46,F52:F77) -> 0 | G78: =SUM(G4:G46,G52:G77) -> 0 | H78: =SUM(H4:H46,H52:H77) -> 0 | I78: =SUM(E78:H78) -> 0
E79: =IF(E78=ประเมินผลการเรียนเทอม1!DG6/2,ประเมินผลการเรียนเทอม1!DG6/2,"รวมผิด") -> รวมผิด | F79: =IF(ประเมินผลการเรียนเทอม1!DI6/2=F78,ประเมินผลการเรียนเทอม1!DI6/2,"รวมผิด") -> รวมผิด | G79: =IF(ประเมินผลการเรียนเทอม2!DG6/2=G78,ประเมินผลการเรียนเทอม2!DG6/2,"รวมผิด") -> รวมผิด | H79: =IF(ประเมินผลการเรียนเทอม2!DI6/2=H78,ประเมินผลการเรียนเทอม2!DI6/2,"รวมผิด") -> รวมผิด | I79: =IF(SUM(E79:H79)=I78,SUM(E79:H79),"รวมผิด") -> 0
A80: ข้อที่ | B80: การอ่าน คิด วิเคราะห์ และเขียน | E80: คะแนน
A81: 1 | B81: =IF(ปก!C25="","",IF(ปก!C18="ประถมศึกษาตอนต้น(ป.1-3)","สามารถอ่านและหาประสบการณ์จากสื่อที่หลากหลาย",IF(ปก!C18="ประถมศึกษาตอนปลาย(ป.4-6)","สามารถอ่านเพื่อหาข้อมูลสารสนเทศเสริมประสบการณ์จากสื่อประเภทต่างๆ"))) -> สามารถอ่านและหาประสบการณ์จากสื่อที่หลากหลาย | E81: 0-3
A82: 2 | B82: =IF(ปก!C25="","",IF(ปก!C18="ประถมศึกษาตอนต้น(ป.1-3)","สามารถจับประเด็นสำคัญ ข้อเท็จจริง ความคิดเห็นเรื่องที่อ่าน",IF(ปก!C18="ประถมศึกษาตอนปลาย(ป.4-6)","สามารถจับประเด็นสำคัญ เปรียบเทียบ เชื่อมโยงความเป็นเหตุเป็นผลจากเรื่องที่อ่าน"))) -> สามารถจับประเด็นสำคัญ ข้อเท็จจริง ความคิดเห็นเรื่องที่อ่าน | E82: 0-3 | F82: 3 | G82: = ดีเยี่ยม (ดย)
A83: 3 | B83: =IF(ปก!C25="","",IF(ปก!C18="ประถมศึกษาตอนต้น(ป.1-3)","สามารถเปรียบเทียบแง่มุมต่างๆ เช่น ข้อดี ข้อเสีย ประโยชน์ โทษ ความเหมาะสม ไม่เหมาะสม",IF(ปก!C18="ประถมศึกษาตอนปลาย(ป.4-6)","สามารถเชื่อมโยงความสัมพันธ์ของเรื่องราว เหตุการณ์ของเรื่องที่อ่าน"))) -> สามารถเปรียบเทียบแง่มุมต่างๆ เช่น ข้อดี ข้อเสีย ประโยชน์ โทษ ความเหมาะสม ไม่เหมาะสม | E83: 0-3 | F83: 2 | G83: = ดี (ด)
A84: 4 | B84: =IF(ปก!C25="","",IF(ปก!C18="ประถมศึกษาตอนต้น(ป.1-3)","สามารถแสดงความคิดเห็นต่อเรื่องที่อ่าน โดยมีเหตุผลประกอบ",IF(ปก!C18="ประถมศึกษาตอนปลาย(ป.4-6)","สามารถแสดงความคิดเห็นต่อเรื่องที่อ่าน โดยมีเหตุผลสนับสนุน"))) -> สามารถแสดงความคิดเห็นต่อเรื่องที่อ่าน โดยมีเหตุผลประกอบ | E84: 0-3 | F84: 1 | G84: = ผ่าน (ผ)
A85: 5 | B85: =IF(ปก!C25="","",IF(ปก!C18="ประถมศึกษาตอนต้น(ป.1-3)","สามารถถ่ายทอดความคิดเห็น ความรู้สึกจากเรื่องที่อ่านโดยการเขียน",IF(ปก!C18="ประถมศึกษาตอนปลาย(ป.4-6)","สามารถถ่ายทอดความเข้าใจ ความคิดเห็น คุณค่าจากเรื่องที่อ่านโดยการเขียน"))) -> สามารถถ่ายทอดความคิดเห็น ความรู้สึกจากเรื่องที่อ่านโดยการเขียน | E85: 0-3 | F85: 0 | G85: = ไม่ผ่าน
A86: ข้อที่ | B86: คุณลักษณะอันพึงประสงค์ | E86: คะแนน
A87: 1 | B87: รักชาติ ศาสตร์ กษัตริย์ | E87: 0-3
A88: 2 | B88: ชื่อสัตย์สุจริต | E88: 0-3
A89: 3 | B89: มีวินัย | E89: 0-3
A90: 4 | B90: ใฝ่เรียนรู้ | E90: 0-3
A91: 5 | B91: อยู่อย่างพอเพียง | E91: 0-3
A92: 6 | B92: มุ่งมันในการทำงาน | E92: 0-3
A93: 7 | B93: รักความเป็นไทย | E93: 0-3
A94: 8 | B94: มีจิตสาธารณะ
A95: 9 | B95: เอื้อเฟื้อเผื่อแผ่
A96: 10 | B96: กตัญญูรู้คุณ | E96: 0-3
F107: ม.1/1 | AF107: ม.1/1
F108: ม.1/2 | AF108: ม.1/2
F109: ม.1/3 | AF109: ม.1/3
F110: ม.1/4 | AF110: ม.1/4
F111: ม.1/5 | AF111: ม.1/5
F112: ม.1/6 | AF112: ม.1/6
F113: ม.1/7 | AF113: ม.1/7
F114: ม.1/8 | AF114: ม.1/8
F115: ม.1/9 | AF115: ม.1/9
F116: ม.1/10 | AF116: ม.1/10
F117: ม.2/1 | AF117: ม.2/1
F118: ม.2/2 | AF118: ม.2/2
F119: ม.2/3 | AF119: ม.2/3
F120: ม.2/4 | AF120: ม.2/4
F121: ม.2/5 | AF121: ม.2/5
F122: ม.2/6 | AF122: ม.2/6
F123: ม.2/7 | AF123: ม.2/7
F124: ม.2/8 | AF124: ม.2/8
F125: ม.2/9 | AF125: ม.2/9
F126: ม.2/10 | AF126: ม.2/10
F127: ม.3/1 | AF127: ม.3/1
F128: ม.3/2 | AF128: ม.3/2
F129: ม.3/3 | AF129: ม.3/3
F130: ม.3/4 | AF130: ม.3/4
F131: ม.3/5 | AF131: ม.3/5
F132: ม.3/6 | AF132: ม.3/6
F133: ม.3/7 | AF133: ม.3/7
F134: ม.3/8 | AF134: ม.3/8
F135: ม.3/9 | AF135: ม.3/9
F136: ม.3/10 | AF136: ม.3/10
F137: ม.4-6/1 | AF137: ม.4-6/1
F138: ม.4-6/2 | AF138: ม.4-6/2
F139: ม.4-6/3 | AF139: ม.4-6/3
F140: ม.4-6/4 | AF140: ม.4-6/4
F141: ม.4-6/5 | AF141: ม.4-6/5
F142: ม.4-6/6 | AF142: ม.4-6/6
F143: ม.4-6/7 | AF143: ม.4-6/7
F144: ม.4-6/8 | AF144: ม.4-6/8
F145: ม.4-6/9 | AF145: ม.4-6/9
F146: ม.4-6/10 | AF146: ม.4-6/10
F147: ม.4-6/11 | AF147: ม.4-6/11
F148: ม.4-6/12 | AF148: ม.4-6/12
F149: ม.4-6/13 | AF149: ม.4-6/13
F150: ม.4-6/14 | AF150: ม.4-6/14
F151: ม.4-6/15 | AF151: ม.4-6/15
F152: ม.4-6/16 | AF152: ม.4-6/16
F153: ม.4-6/17 | AF153: ม.4-6/17
F154: ม.4-6/18 | AF154: ม.4-6/18
F155: ม.4-6/19 | AF155: ม.4-6/19
F156: ม.4-6/20 | AF156: ม.4-6/20
F157: ม.4-6/21 | AF157: ม.4-6/21
F158: ม.4-6/22 | AF158: ม.4-6/22
F159: ม.4-6/23 | AF159: ม.4-6/23
F160: ม.4-6/24 | AF160: ม.4-6/24
F161: ม.4-6/25 | AF161: ม.4-6/25
F162: ม.4-6/26 | AF162: ม.4-6/26
F163: ม.4-6/27 | AF163: ม.4-6/27
F164: ม.4-6/28 | AF164: ม.4-6/28
F165: ม.4-6/29 | AF165: ม.4-6/29
F166: ม.4-6/30 | AF166: ม.4-6/30
F167: ข้อ 1 | AF167: ข้อ 1
F168: ข้อ 2 | AF168: ข้อ 2
F169: ข้อ 3 | AF169: ข้อ 3
F170: ข้อ 4 | AF170: ข้อ 4
F171: ข้อ 5 | AF171: ข้อ 5
F172: ข้อ 6 | AF172: ข้อ 6
F173: ข้อ 7 | AF173: ข้อ 7
F174: ข้อ 8 | AF174: ข้อ 8
F175: ข้อ 9 | AF175: ข้อ 9
F176: ข้อ 10 | AF176: ข้อ 10
F177: ข้อ 11 | AF177: ข้อ 11
F178: ข้อ 12 | AF178: ข้อ 12
F179: ข้อ 13 | AF179: ข้อ 13
F180: ข้อ 14 | AF180: ข้อ 14
F181: ข้อ 15 | AF181: ข้อ 15
F182: ข้อ 16 | AF182: ข้อ 16
F183: ข้อ 17 | AF183: ข้อ 17
F184: ข้อ 18 | AF184: ข้อ 18
F185: ข้อ 19 | AF185: ข้อ 19
F186: ข้อ 20 | AF186: ข้อ 20
F187: ข้อ 21 | AF187: ข้อ 21
F188: ข้อ 22 | AF188: ข้อ 22
F189: ข้อ 23 | AF189: ข้อ 23
F190: ข้อ 24 | AF190: ข้อ 24
F191: ข้อ 25 | AF191: ข้อ 25
F192: ข้อ 26 | AF192: ข้อ 26
F193: ข้อ 27 | AF193: ข้อ 27
F194: ข้อ 28 | AF194: ข้อ 28
F195: ข้อ 29 | AF195: ข้อ 29
F196: ข้อ 30 | AF196: ข้อ 30

Sheet Sheet1
A1: StudentID | B1: รหัส | C1: คำนำหน้า | D1: ชื่อ | E1: นามสกุล | F1: คะแนน | G1: เกรด | H1: เกรด
I2: =[1]ปก!C27&" ม"&[1]ปก!C21&"-"&[1]ปก!C22&" "&[1]ปก!C29 -> ม-
A52: ท21102
